Workbook

Sheet RawData_SBIN_ICICI
A1: Date | B1: SBIN | C1: ICICIBANK | D1: Daily Returns of SBIN | E1: Daily Returns of ICICI | F1: Mean of returns SBIN, xbar | G1: Mean of returns ICICI, ybar | H1: (Xi-Xbar) SBIN | I1: (Yi-Ybar) ICICI | J1: (Xi-Xbar)^2 SBIN | K1: (Yi-Ybar)^2 ICICI | L1: Std dev of SBIN | M1: Std dev of ICICI | N1: Product of (Xi-Xbar) and (Yi-Ybar) | O1: Covariance | Q1: Wt of SBIN | R1: Wt of ICICI | S1: Std Dev of PFs | T1: Returns of PFs
A2: 2023-01-30 | B2: 538.200012 | C2: 823.5 | D2: =LN(B3/B2) | E2: =LN(C3/C2) | F2: =AVERAGE($D$3:$D$61) | G2: =AVERAGE($E$3:$E$61) | H2: =D3-F3 | I2: =E3-G3 | J2: =H3^2 | K2: =I3^2 | L2: =SQRT(SUM($J$3:$J$61)/(COUNT($J$3:$J$61)-1)) | M2: =SQRT(SUM($K$3:$K$61)/(COUNT($K$3:$K$61)-1)) | N2: =H3*I3 | O2: =SUM($N$3:$N$61)/(COUNT($N$3:$N$61)-1) | Q2: PORTFOLIOS | U2: =SQRT((Q3^2*$L$3^2)+(R3^2*$M$3^2)+(2*Q3*R3*$O$3)) | V2: =Q3*$F$3+R3*$G$3
A3: 2023-01-31 | B3: 553.5 | C3: 831.900024 | D3: =LN(B3/B2) -> 0.02803149156 | E3: =LN(C3/C2) -> 0.01014872052 | F3: =AVERAGE($D$3:$D$61) -> 0.0012180082 | G3: =AVERAGE($E$3:$E$61) -> 0.001834788658 | H3: =D3-F3 -> 0.02681348336 | I3: =E3-G3 -> 0.008313931863 | J3: =H3^2 -> 0.0007189628898 | K3: =I3^2 -> 6.912146303e-05 | L3: =SQRT(SUM($J$3:$J$61)/(COUNT($J$3:$J$61)-1)) -> 0.01609429181 | M3: =SQRT(SUM($K$3:$K$61)/(COUNT($K$3:$K$61)-1)) -> 0.01044964694 | N3: =H3*I3 -> 0.0002229254737 | O3: =SUM($N$3:$N$61)/(COUNT($N$3:$N$61)-1) -> 6.863931684e-05 | P3: Pf No 1 | Q3: 0 | R3: =1-Q3 -> 1 | S3: =SQRT((Q3^2*$L$3^2)+(R3^2*$M$3^2)+(2*Q3*R3*$O$3)) -> 0.01044964694 | T3: =Q3*$F$3+R3*$G$3 -> 0.001834788658
A4: 2023-02-01 | B4: 527.349976 | C4: 847.950012 | D4: =LN(B4/B3) -> -0.04839733294 | E4: =LN(C4/C3) -> 0.0191094158 | F4: =AVERAGE($D$3:$D$61) -> 0.0012180082 | G4: =AVERAGE($E$3:$E$61) -> 0.001834788658 | H4: =D4-F4 -> -0.04961534114 | I4: =E4-G4 -> 0.01727462714 | J4: =H4^2 -> 0.002461682076 | K4: =I4^2 -> 0.0002984127429 | L4: =SQRT(SUM($J$3:$J$61)/(COUNT($J$3:$J$61)-1)) -> 0.01609429181 | M4: =SQRT(SUM($K$3:$K$61)/(COUNT($K$3:$K$61)-1)) -> 0.01044964694 | N4: =H4*I4 -> -0.0008570865187 | O4: =SUM($N$3:$N$61)/(COUNT($N$3:$N$61)-1) -> 6.863931684e-05 | P4: Pf No 2 | Q4: =Q3+0.01 -> 0.01 | R4: =1-Q4 -> 0.99 | S4: =SQRT((Q4^2*$L$3^2)+(R4^2*$M$3^2)+(2*Q4*R4*$O$3)) -> 0.010411873 | T4: =Q4*$F$3+R4*$G$3 -> 0.001828620854
A5: 2023-02-02 | B5: 528.099976 | C5: 857.900024 | D5: 0.001421195055 | E5: 0.01166588461 | F5: 0.0012180082 | G5: 0.001834788658 | H5: 0.0002031868545 | I5: 0.009831095955 | J5: 4.128489784e-08 | K5: 9.665044767e-05 | L5: 0.01609429181 | M5: 0.01044964694 | N5: 1.997549463e-06 | O5: 6.863931684e-05 | P5: Pf No 3 | Q5: =Q4+0.01 -> 0.02 | R5: =1-Q5 -> 0.98 | S5: 0.01037618746 | T5: 0.001822453049
A6: 2023-02-03 | B6: 544.200012 | C6: 863.799988 | D6: 0.03003123413 | E6: 0.00685367608 | F6: 0.0012180082 | G6: 0.001834788658 | H6: 0.02881322593 | I6: 0.005018887422 | J6: 0.0008302019886 | K6: 2.518923095e-05 | L6: 0.01609429181 | M6: 0.01044964694 | N6: 0.0001446103372 | O6: 6.863931684e-05 | P6: Pf No 4 | Q6: 0.03 | R6: 0.97 | S6: 0.01034261192 | T6: 0.001816285245
A7: 2023-02-06 | B7: 545.400024 | C7: 853.700012 | D7: 0.002202666016 | E7: -0.01176138856 | F7: 0.0012180082 | G7: 0.001834788658 | H7: 0.0009846578156 | I7: -0.01359617722 | J7: 9.695510138e-07 | K7: 0.000184856035 | L7: 0.01609429181 | M7: 0.01044964694 | N7: -1.338758216e-05 | O7: 6.863931684e-05 | P7: Pf No 5 | Q7: 0.04 | R7: 0.96 | S7: 0.01031116702 | T7: 0.00181011744
A8: 2023-02-07 | B8: 547.099976 | C8: 852.75 | D8: 0.003112042786 | E8: -0.001113436774 | F8: 0.0012180082 | G8: 0.001834788658 | H8: 0.001894034586 | I8: -0.002948225432 | J8: 3.587367012e-06 | K8: 8.6920332e-06 | L8: 0.01609429181 | M8: 0.01044964694 | N8: -5.584040936e-06 | O8: 6.863931684e-05 | P8: Pf No 6 | Q8: 0.05 | R8: 0.95 | S8: 0.01028187228 | T8: 0.001803949635
A9: 2023-02-08 | B9: 549.75 | C9: 859.099976 | D9: 0.004832072233 | E9: 0.007418880409 | F9: 0.0012180082 | G9: 0.001834788658 | H9: 0.003614064032 | I9: 0.005584091751 | J9: 1.306145883e-05 | K9: 3.118208068e-05 | L9: 0.01609429181 | M9: 0.01044964694 | N9: 2.018126515e-05 | O9: 6.863931684e-05 | P9: Pf No 7 | Q9: 0.06 | R9: 0.94 | S9: 0.01025474615 | T9: 0.001797781831
A10: 2023-02-09 | B10: 550.799988 | C10: 860.799988 | D10: 0.001908115633 | E10: 0.001976873759 | F10: 0.0012180082 | G10: 0.001834788658 | H10: 0.0006901074327 | I10: 0.0001420851009 | J10: 4.762482687e-07 | K10: 2.018817589e-08 | L10: 0.01609429181 | M10: 0.01044964694 | N10: 9.80539842e-08 | O10: 6.863931684e-05 | P10: Pf No 8 | Q10: 0.07 | R10: 0.93 | S10: 0.01022980586 | T10: 0.001791614026
A11: 2023-02-10 | B11: 553.049988 | C11: 853.849976 | D11: 0.004076646582 | E11: -0.008106669242 | F11: 0.0012180082 | G11: 0.001834788658 | H11: 0.002858638382 | I11: -0.0099414579 | J11: 8.171813399e-06 | K11: 9.883258518e-05 | L11: 0.01609429181 | M11: 0.01044964694 | N11: -2.841903313e-05 | O11: 6.863931684e-05 | P11: Pf No 9 | Q11: 0.08 | R11: 0.92 | S11: 0.01020706745 | T11: 0.001785446222
A12: 2023-02-13 | B12: 537.5 | C12: 850.650024 | D12: -0.02851963165 | E12: -0.003754714883 | F12: 0.0012180082 | G12: 0.001834788658 | H12: -0.02973763985 | I12: -0.005589503542 | J12: 0.0008843272238 | K12: 3.124254984e-05 | L12: 0.01609429181 | M12: 0.01044964694 | N12: 0.0001662186433 | O12: 6.863931684e-05 | P12: Pf No 10 | Q12: 0.09 | R12: 0.91 | S12: 0.01018654566 | T12: 0.001779278417
A13: 2023-02-14 | B13: 540.849976 | C13: 865.299988 | D13: 0.0062131717 | E13: 0.0170754624 | F13: 0.0012180082 | G13: 0.001834788658 | H13: 0.004995163499 | I13: 0.01524067374 | J13: 2.495165839e-05 | K13: 0.0002322781362 | L13: 0.01609429181 | M13: 0.01044964694 | N13: 7.61296572e-05 | O13: 6.863931684e-05 | P13: Pf No 11 | Q13: 0.1 | R13: 0.9 | S13: 0.01016825391 | T13: 0.001773110613
A14: 2023-02-15 | B14: 542.25 | C14: 870.799988 | D14: 0.002585218005 | E14: 0.006336061835 | F14: 0.0012180082 | G14: 0.001834788658 | H14: 0.001367209805 | I14: 0.004501273177 | J14: 1.869262651e-06 | K14: 2.026146021e-05 | L14: 0.01609429181 | M14: 0.01044964694 | N14: 6.154184822e-06 | O14: 6.863931684e-05 | P14: Pf No 12 | Q14: 0.11 | R14: 0.89 | S14: 0.01015220425 | T14: 0.001766942808
A15: 2023-02-16 | B15: 540.099976 | C15: 869.450012 | D15: -0.003972886544 | E15: -0.00155147395 | F15: 0.0012180082 | G15: 0.001834788658 | H15: -0.005190894745 | I15: -0.003386262608 | J15: 2.694538825e-05 | K15: 1.146677445e-05 | L15: 0.01609429181 | M15: 0.01044964694 | N15: 1.757773278e-05 | O15: 6.863931684e-05 | P15: Pf No 13 | Q15: 0.12 | R15: 0.88 | S15: 0.01013840734 | T15: 0.001760775003
A16: 2023-02-17 | B16: 531 | C16: 862.650024 | D16: -0.01699224192 | E16: -0.007851766981 | F16: 0.0012180082 | G16: 0.001834788658 | H16: -0.01821025012 | I16: -0.009686555639 | J16: 0.0003316132095 | K16: 9.382936015e-05 | L16: 0.01609429181 | M16: 0.01044964694 | N16: 0.000176394601 | O16: 6.863931684e-05 | P16: Pf No 14 | Q16: 0.13 | R16: 0.87 | S16: 0.01012687237 | T16: 0.001754607199
A17: 2023-02-20 | B17: 525.150024 | C17: 852.099976 | D17: -0.01107803947 | E17: -0.01230521198 | F17: 0.0012180082 | G17: 0.001834788658 | H17: -0.01229604767 | I17: -0.01414000064 | J17: 0.0001511927884 | K17: 0.0001999396181 | L17: 0.01609429181 | M17: 0.01044964694 | N17: 0.0001738661219 | O17: 6.863931684e-05 | P17: Pf No 15 | Q17: 0.14 | R17: 0.86 | S17: 0.01011760709 | T17: 0.001748439394
A18: 2023-02-21 | B18: 523.450012 | C18: 854.200012 | D18: -0.00324244408 | E18: 0.002461509787 | F18: 0.0012180082 | G18: 0.001834788658 | H18: -0.00446045228 | I18: 0.0006267211291 | J18: 1.989563454e-05 | K18: 3.927793736e-07 | L18: 0.01609429181 | M18: 0.01044964694 | N18: -2.795459689e-06 | O18: 6.863931684e-05 | P18: Pf No 16 | Q18: 0.15 | R18: 0.85 | S18: 0.01011061774 | T18: 0.00174227159
A19: 2023-02-22 | B19: 516.349976 | C19: 839.25 | D19: -0.01365675405 | E19: -0.0176567366 | F19: 0.0012180082 | G19: 0.001834788658 | H19: -0.01487476225 | I19: -0.01949152525 | J19: 0.0002212585521 | K19: 0.0003799195567 | L19: 0.01609429181 | M19: 0.01044964694 | N19: 0.0002899318041 | O19: 6.863931684e-05 | P19: Pf No 17 | Q19: 0.16 | R19: 0.84 | S19: 0.01010590903 | T19: 0.001736103785
A20: 2023-02-23 | B20: 521 | C20: 839.75 | D20: 0.008965258116 | E20: 0.0005955926323 | F20: 0.0012180082 | G20: 0.001834788658 | H20: 0.007747249916 | I20: -0.001239196026 | J20: 6.001988126e-05 | K20: 1.535606791e-06 | L20: 0.01609429181 | M20: 0.01044964694 | N20: -9.600361308e-06 | O20: 6.863931684e-05 | P20: Pf No 18 | Q20: 0.17 | R20: 0.83 | S20: 0.01010348416 | T20: 0.00172993598
A21: 2023-02-24 | B21: 521.049988 | C21: 839.700012 | D21: 9.594165465e-05 | E21: -5.952901207e-05 | F21: 0.0012180082 | G21: 0.001834788658 | H21: -0.001122066546 | I21: -0.00189431767 | J21: 1.259033333e-06 | K21: 3.588439436e-06 | L21: 0.01609429181 | M21: 0.01044964694 | N21: 2.125550485e-06 | O21: 6.863931684e-05 | P21: Pf No 19 | Q21: 0.18 | R21: 0.82 | S21: 0.01010334478 | T21: 0.001723768176
A22: 2023-02-27 | B22: 527.700012 | C22: 856.400024 | D22: 0.01268197974 | E22: 0.01969288526 | F22: 0.0012180082 | G22: 0.001834788658 | H22: 0.01146397154 | I22: 0.0178580966 | J22: 0.0001314226435 | K22: 0.0003189116142 | L22: 0.01609429181 | M22: 0.01044964694 | N22: 0.0002047247113 | O22: 6.863931684e-05 | P22: Pf No 20 | Q22: 0.19 | R22: 0.81 | S22: 0.01010549096 | T22: 0.001717600371
A23: 2023-02-28 | B23: 522.799988 | C23: 854.849976 | D23: -0.009329004355 | E23: -0.001811597866 | F23: 0.0012180082 | G23: 0.001834788658 | H23: -0.01054701256 | I23: -0.003646386524 | J23: 0.0001112394738 | K23: 1.329613468e-05 | L23: 0.01609429181 | M23: 0.01044964694 | N23: 3.845848445e-05 | O23: 6.863931684e-05 | P23: Pf No 21 | Q23: 0.2 | R23: 0.8 | S23: 0.01010992127 | T23: 0.001711432567
A24: 2023-03-01 | B24: 536.700012 | C24: 856.299988 | D24: 0.02624034274 | E24: 0.001694781144 | F24: 0.0012180082 | G24: 0.001834788658 | H24: 0.02502233454 | I24: -0.000140007514 | J24: 0.0006261172261 | K24: 1.960210397e-08 | L24: 0.01609429181 | M24: 0.01044964694 | N24: -3.503314853e-06 | O24: 6.863931684e-05 | P24: Pf No 22 | Q24: 0.21 | R24: 0.79 | S24: 0.0101166327 | T24: 0.001705264762
A25: 2023-03-02 | B25: 533.75 | C25: 854 | D25: -0.005511736999 | E25: -0.00268957423 | F25: 0.0012180082 | G25: 0.001834788658 | H25: -0.006729745199 | I25: -0.004524362888 | J25: 4.528947045e-05 | K25: 2.046985954e-05 | L25: 0.01609429181 | M25: 0.01044964694 | N25: 3.044780943e-05 | O25: 6.863931684e-05 | P25: Pf No 23 | Q25: 0.22 | R25: 0.78 | S25: 0.01012562071 | T25: 0.001699096958
A26: 2023-03-03 | B26: 561.200012 | C26: 868.549988 | D26: 0.05014980507 | E26: 0.01689394694 | F26: 0.0012180082 | G26: 0.001834788658 | H26: 0.04893179687 | I26: 0.01505915828 | J26: 0.002394320745 | K26: 0.0002267782483 | L26: 0.01609429181 | M26: 0.01044964694 | N26: 0.0007368716742 | O26: 6.863931684e-05 | P26: Pf No 24 | Q26: 0.23 | R26: 0.77 | S26: 0.01013687925 | T26: 0.001692929153
A27: 2023-03-06 | B27: 561.700012 | C27: 867.75 | D27: 0.000890551291 | E27: -0.0009214859899 | F27: 0.0012180082 | G27: 0.001834788658 | H27: -0.0003274569094 | I27: -0.002756274648 | J27: 1.072280275e-07 | K27: 7.597049936e-06 | L27: 0.01609429181 | M27: 0.01044964694 | N27: 9.025611777e-07 | O27: 6.863931684e-05 | P27: Pf No 25 | Q27: 0.24 | R27: 0.76 | S27: 0.01015040076 | T27: 0.001686761348
A28: 2023-03-08 | B28: 564.799988 | C28: 872.099976 | D28: 0.00550374403 | E28: 0.005000413971 | F28: 0.0012180082 | G28: 0.001834788658 | H28: 0.00428573583 | I28: 0.003165625313 | J28: 1.836753161e-05 | K28: 1.002118362e-05 | L28: 0.01609429181 | M28: 0.01044964694 | N28: 1.356703383e-05 | O28: 6.863931684e-05 | P28: Pf No 26 | Q28: 0.25 | R28: 0.75 | S28: 0.01016617621 | T28: 0.001680593544
A29: 2023-03-09 | B29: 558.900024 | C29: 855.950012 | D29: -0.01050105572 | E29: -0.01869209147 | F29: 0.0012180082 | G29: 0.001834788658 | H29: -0.01171906392 | I29: -0.02052688013 | J29: 0.0001373364591 | K29: 0.0004213528079 | L29: 0.01609429181 | M29: 0.01044964694 | N29: 0.0002405558203 | O29: 6.863931684e-05 | P29: Pf No 27 | Q29: 0.26 | R29: 0.74 | S29: 0.01018419514 | T29: 0.001674425739
A30: 2023-03-10 | B30: 547.349976 | C30: 842.650024 | D30: -0.02088220151 | E30: -0.01566026084 | F30: 0.0012180082 | G30: 0.001834788658 | H30: -0.02210020971 | I30: -0.0174950495 | J30: 0.0004884192694 | K30: 0.0003060767568 | L30: 0.01609429181 | M30: 0.01044964694 | N30: 0.0003866442628 | O30: 6.863931684e-05 | P30: Pf No 28 | Q30: 0.27 | R30: 0.73 | S30: 0.01020444564 | T30: 0.001668257935
A31: 2023-03-13 | B31: 530 | C31: 828.400024 | D31: -0.03221140116 | E31: -0.01705555791 | F31: 0.0012180082 | G31: 0.001834788658 | H31: -0.03342940936 | I31: -0.01889034657 | J31: 0.00111752541 | K31: 0.0003568451935 | L31: 0.01609429181 | M31: 0.01044964694 | N31: 0.0006314931284 | O31: 6.863931684e-05 | P31: Pf No 29 | Q31: 0.28 | R31: 0.72 | S31: 0.01022691448 | T31: 0.00166209013
A32: 2023-03-14 | B32: 525.400024 | C32: 830.349976 | D32: -0.008717083615 | E32: 0.002351111256 | F32: 0.0012180082 | G32: 0.001834788658 | H32: -0.009935091816 | I32: 0.000516322598 | J32: 9.870604939e-05 | K32: 2.665890252e-07 | L32: 0.01609429181 | M32: 0.01044964694 | N32: -5.129712418e-06 | O32: 6.863931684e-05 | P32: Pf No 30 | Q32: 0.29 | R32: 0.71 | S32: 0.01025158705 | T32: 0.001655922326
A33: 2023-03-15 | B33: 517.549988 | C33: 825.900024 | D33: -0.01505380729 | E33: -0.005373539873 | F33: 0.0012180082 | G33: 0.001834788658 | H33: -0.01627181549 | I33: -0.007208328532 | J33: 0.0002647719793 | K33: 5.196000022e-05 | L33: 0.01609429181 | M33: 0.01044964694 | N33: 0.0001172925918 | O33: 6.863931684e-05 | P33: Pf No 31 | Q33: 0.3 | R33: 0.7 | S33: 0.0102784475 | T33: 0.001649754521
A34: 2023-03-16 | B34: 524.5 | C34: 823.900024 | D34: 0.01333931219 | E34: -0.002424537425 | F34: 0.0012180082 | G34: 0.001834788658 | H34: 0.01212130399 | I34: -0.004259326083 | J34: 0.0001469260105 | K34: 1.814185868e-05 | L34: 0.01609429181 | M34: 0.01044964694 | N34: -5.162858625e-05 | O34: 6.863931684e-05 | P34: Pf No 32 | Q34: 0.31 | R34: 0.69 | S34: 0.01030747872 | T34: 0.001643586716
A35: 2023-03-17 | B35: 529.799988 | C35: 836.25 | D35: 0.01005412635 | E35: 0.01487841899 | F35: 0.0012180082 | G35: 0.001834788658 | H35: 0.008836118151 | I35: 0.01304363033 | J35: 7.807698398e-05 | K35: 0.0001701362923 | L35: 0.01609429181 | M35: 0.01044964694 | N35: 0.0001152550587 | O35: 6.863931684e-05 | P35: Pf No 33 | Q35: 0.32 | R35: 0.68 | S35: 0.01033866242 | T35: 0.001637418912
A36: 2023-03-20 | B36: 519.200012 | C36: 836.450012 | D36: -0.02021036569 | E36: 0.0002391486812 | F36: 0.0012180082 | G36: 0.001834788658 | H36: -0.02142837389 | I36: -0.001595639977 | J36: 0.0004591752074 | K36: 2.546066937e-06 | L36: 0.01609429181 | M36: 0.01044964694 | N36: 3.419197002e-05 | O36: 6.863931684e-05 | P36: Pf No 34 | Q36: 0.33 | R36: 0.67 | S36: 0.01037197918 | T36: 0.001631251107
A37: 2023-03-21 | B37: 521.849976 | C37: 852.400024 | D37: 0.005090955773 | E37: 0.01888916826 | F37: 0.0012180082 | G37: 0.001834788658 | H37: 0.003872947573 | I37: 0.0170543796 | J37: 1.49997229e-05 | K37: 0.0002908518635 | L37: 0.01609429181 | M37: 0.01044964694 | N37: 6.605071808e-05 | O37: 6.863931684e-05 | P37: Pf No 35 | Q37: 0.34 | R37: 0.66 | S37: 0.01040740853 | T37: 0.001625083303
A38: 2023-03-22 | B38: 521.549988 | C38: 860.200012 | D38: -0.0005750201622 | E38: 0.00910900592 | F38: 0.0012180082 | G38: 0.001834788658 | H38: -0.001793028363 | I38: 0.007274217261 | J38: 3.214950709e-06 | K38: 5.291423676e-05 | L38: 0.01609429181 | M38: 0.01044964694 | N38: -1.304287787e-05 | O38: 6.863931684e-05 | P38: Pf No 36 | Q38: 0.35 | R38: 0.65 | S38: 0.01044492896 | T38: 0.001618915498
A39: 2023-03-23 | B39: 512.75 | C39: 855.450012 | D39: -0.01701672716 | E39: -0.005537274002 | F39: 0.0012180082 | G39: 0.001834788658 | H39: -0.01823473536 | I39: -0.00737206266 | J39: 0.0003325055737 | K39: 5.434730786e-05 | L39: 0.01609429181 | M39: 0.01044964694 | N39: 0.0001344276117 | O39: 6.863931684e-05 | P39: Pf No 37 | Q39: 0.36 | R39: 0.64 | S39: 0.01048451802 | T39: 0.001612747693
A40: 2023-03-24 | B40: 505.350006 | C40: 852.400024 | D40: -0.01453712656 | E40: -0.003571731918 | F40: 0.0012180082 | G40: 0.001834788658 | H40: -0.01575513476 | I40: -0.005406520576 | J40: 0.0002482242713 | K40: 2.923046474e-05 | L40: 0.01609429181 | M40: 0.01044964694 | N40: 8.518046026e-05 | O40: 6.863931684e-05 | P40: Pf No 38 | Q40: 0.37 | R40: 0.63 | S40: 0.01052615238 | T40: 0.001606579889
A41: 2023-03-27 | B41: 510.149994 | C41: 848.700012 | D41: 0.009453517966 | E41: -0.004350147265 | F41: 0.0012180082 | G41: 0.001834788658 | H41: 0.008235509766 | I41: -0.006184935924 | J41: 6.782362111e-05 | K41: 3.825343238e-05 | L41: 0.01609429181 | M41: 0.01044964694 | N41: -5.09361002e-05 | O41: 6.863931684e-05 | P41: Pf No 39 | Q41: 0.38 | R41: 0.62 | S41: 0.01056980786 | T41: 0.001600412084
A42: 2023-03-28 | B42: 508.100006 | C42: 854.75 | D42: -0.004026497952 | E42: 0.007103247405 | F42: 0.0012180082 | G42: 0.001834788658 | H42: -0.005244506152 | I42: 0.005268458746 | J42: 2.750484478e-05 | K42: 2.775665756e-05 | L42: 0.01609429181 | M42: 0.01044964694 | N42: -2.763046431e-05 | O42: 6.863931684e-05 | P42: Pf No 40 | Q42: 0.39 | R42: 0.61 | S42: 0.01061545953 | T42: 0.00159424428
A43: 2023-03-29 | B43: 516.5 | C43: 851 | D43: 0.01639699815 | E43: -0.004396899946 | F43: 0.0012180082 | G43: 0.001834788658 | H43: 0.01517898995 | I43: -0.006231688604 | J43: 0.0002304017359 | K43: 3.883394286e-05 | L43: 0.01609429181 | M43: 0.01044964694 | N43: -9.45907387e-05 | O43: 6.863931684e-05 | P43: Pf No 41 | Q43: 0.4 | R43: 0.6 | S43: 0.01066308175 | T43: 0.001588076475
A44: 2023-03-31 | B44: 523.75 | C44: 877.25 | D44: 0.01393918268 | E44: 0.03037988589 | F44: 0.0012180082 | G44: 0.001834788658 | H44: 0.01272117448 | I44: 0.02854509723 | J44: 0.0001618282801 | K44: 0.000814822576 | L44: 0.01609429181 | M44: 0.01044964694 | N44: 0.0003631271623 | O44: 6.863931684e-05 | P44: Pf No 42 | Q44: 0.41 | R44: 0.59 | S44: 0.01071264824 | T44: 0.001581908671
A45: 2023-04-03 | B45: 526.75 | C45: 883.799988 | D45: 0.005711581448 | E45: 0.007438764656 | F45: 0.0012180082 | G45: 0.001834788658 | H45: 0.004493573248 | I45: 0.005603975997 | J45: 2.019220053e-05 | K45: 3.140454698e-05 | L45: 0.01609429181 | M45: 0.01044964694 | N45: 2.518187662e-05 | O45: 6.863931684e-05 | P45: Pf No 43 | Q45: 0.42 | R45: 0.58 | S45: 0.01076413214 | T45: 0.001575740866
A46: 2023-04-05 | B46: 523 | C46: 884.599976 | D46: -0.007144588619 | E46: 0.0009047591844 | F46: 0.0012180082 | G46: 0.001834788658 | H46: -0.00836259682 | I46: -0.0009300294739 | J46: 6.993302557e-05 | K46: 8.649548223e-07 | L46: 0.01609429181 | M46: 0.01044964694 | N46: 7.777461521e-06 | O46: 6.863931684e-05 | P46: Pf No 44 | Q46: 0.43 | R46: 0.57 | S46: 0.01081750608 | T46: 0.001569573061
A47: 2023-04-06 | B47: 527.650024 | C47: 875 | D47: 0.008851766537 | E47: -0.01091165195 | F47: 0.0012180082 | G47: 0.001834788658 | H47: 0.007633758336 | I47: -0.0127464406 | J47: 5.827426634e-05 | K47: 0.0001624717481 | L47: 0.01609429181 | M47: 0.01044964694 | N47: -9.730324722e-05 | O47: 6.863931684e-05 | P47: Pf No 45 | Q47: 0.44 | R47: 0.56 | S47: 0.01087274221 | T47: 0.001563405257
A48: 2023-04-10 | B48: 526.299988 | C48: 868.450012 | D48: -0.002561861043 | E48: -0.00751385904 | F48: 0.0012180082 | G48: 0.001834788658 | H48: -0.003779869243 | I48: -0.009348647698 | J48: 1.42874115e-05 | K48: 8.739721378e-05 | L48: 0.01609429181 | M48: 0.01044964694 | N48: 3.53366659e-05 | O48: 6.863931684e-05 | P48: Pf No 46 | Q48: 0.45 | R48: 0.55 | S48: 0.01092981232 | T48: 0.001557237452
A49: 2023-04-11 | B49: 532.099976 | C49: 881.900024 | D49: 0.01096002694 | E49: 0.01536867079 | F49: 0.0012180082 | G49: 0.001834788658 | H49: 0.009742018739 | I49: 0.01353388213 | J49: 9.49069291e-05 | K49: 0.0001831659656 | L49: 0.01609429181 | M49: 0.01044964694 | N49: 0.0001318473333 | O49: 6.863931684e-05 | P49: Pf No 47 | Q49: 0.46 | R49: 0.54 | S49: 0.01098868782 | T49: 0.001551069648
A50: 2023-04-12 | B50: 528.200012 | C50: 890.150024 | D50: -0.007356373916 | E50: 0.009311316705 | F50: 0.0012180082 | G50: 0.001834788658 | H50: -0.008574382117 | I50: 0.007476528046 | J50: 7.352002868e-05 | K50: 5.589847163e-05 | L50: 0.01609429181 | M50: 0.01044964694 | N50: -6.410660837e-05 | O50: 6.863931684e-05 | P50: Pf No 48 | Q50: 0.47 | R50: 0.53 | S50: 0.01104933985 | T50: 0.001544901843
A51: 2023-04-13 | B51: 532.950012 | C51: 899 | D51: 0.00895261107 | E51: 0.009893019659 | F51: 0.0012180082 | G51: 0.001834788658 | H51: 0.007734602869 | I51: 0.008058231001 | J51: 5.982408154e-05 | K51: 6.493508686e-05 | L51: 0.01609429181 | M51: 0.01044964694 | N51: 6.232721662e-05 | O51: 6.863931684e-05 | P51: Pf No 49 | Q51: 0.48 | R51: 0.52 | S51: 0.01111173933 | T51: 0.001538734039
A52: 2023-04-17 | B52: 544 | C52: 901.299988 | D52: 0.0205216132 | E52: 0.002555117777 | F52: 0.0012180082 | G52: 0.001834788658 | H52: 0.019303605 | I52: 0.0007203291183 | J52: 0.0003726291662 | K52: 5.188740387e-07 | L52: 0.01609429181 | M52: 0.01044964694 | N52: 1.390494877e-05 | O52: 6.863931684e-05 | P52: Pf No 50 | Q52: 0.49 | R52: 0.51 | S52: 0.01117585697 | T52: 0.001532566234
A53: 2023-04-18 | B53: 545.849976 | C53: 896.849976 | D53: 0.003394921902 | E53: -0.004949555014 | F53: 0.0012180082 | G53: 0.001834788658 | H53: 0.002176913702 | I53: -0.006784343672 | J53: 4.738953265e-06 | K53: 4.602731906e-05 | L53: 0.01609429181 | M53: 0.01044964694 | N53: -1.47689307e-05 | O53: 6.863931684e-05 | P53: Pf No 51 | Q53: 0.5 | R53: 0.5 | S53: 0.0112416634 | T53: 0.001526398429
A54: 2023-04-19 | B54: 540.299988 | C54: 891.900024 | D54: -0.01021965012 | E54: -0.005534551654 | F54: 0.0012180082 | G54: 0.001834788658 | H54: -0.01143765832 | I54: -0.007369340312 | J54: 0.0001308200278 | K54: 5.430717663e-05 | L54: 0.01609429181 | M54: 0.01044964694 | N54: 8.428799652e-05 | O54: 6.863931684e-05 | P54: Pf No 52 | Q54: 0.51 | R54: 0.49 | S54: 0.01130912911 | T54: 0.001520230625
A55: 2023-04-20 | B55: 544.799988 | C55: 894.400024 | D55: 0.008294214169 | E55: 0.002799083653 | F55: 0.0012180082 | G55: 0.001834788658 | H55: 0.007076205968 | I55: 0.0009642949951 | J55: 5.007269091e-05 | K55: 9.298648377e-07 | L55: 0.01609429181 | M55: 0.01044964694 | N55: 6.82355e-06 | O55: 6.863931684e-05 | P55: Pf No 53 | Q55: 0.52 | R55: 0.48 | S55: 0.0113782246 | T55: 0.00151406282
A56: 2023-04-21 | B56: 543.150024 | C56: 885.650024 | D56: -0.003033163742 | E56: -0.009831263437 | F56: 0.0012180082 | G56: 0.001834788658 | H56: -0.004251171943 | I56: -0.0116660521 | J56: 1.807246289e-05 | K56: 0.0001360967715 | L56: 0.01609429181 | M56: 0.01044964694 | N56: 4.959439335e-05 | O56: 6.863931684e-05 | P56: Pf No 54 | Q56: 0.53 | R56: 0.47 | S56: 0.01144892037 | T56: 0.001507895016
A57: 2023-04-24 | B57: 554.599976 | C57: 904.75 | D57: 0.02086152084 | E57: 0.02133679665 | F57: 0.0012180082 | G57: 0.001834788658 | H57: 0.01964351264 | I57: 0.01950200799 | J57: 0.0003858675889 | K57: 0.0003803283156 | L57: 0.01609429181 | M57: 0.01044964694 | N57: 0.0003830879404 | O57: 6.863931684e-05 | P57: Pf No 55 | Q57: 0.54 | R57: 0.46 | S57: 0.01152118694 | T57: 0.001501727211
A58: 2023-04-25 | B58: 561.799988 | C58: 913.450012 | D58: 0.0128988034 | E58: 0.009569990476 | F58: 0.0012180082 | G58: 0.001834788658 | H58: 0.0116807952 | I58: 0.007735201817 | J58: 0.0001364409766 | K58: 5.983334716e-05 | L58: 0.01609429181 | M58: 0.01044964694 | N58: 9.035330828e-05 | O58: 6.863931684e-05 | P58: Pf No 56 | Q58: 0.55 | R58: 0.45 | S58: 0.01159499496 | T58: 0.001495559406
A59: 2023-04-26 | B59: 566.349976 | C59: 914.950012 | D59: 0.00806632596 | E59: 0.00164077917 | F59: 0.0012180082 | G59: 0.001834788658 | H59: 0.006848317759 | I59: -0.0001940094887 | J59: 4.689945613e-05 | K59: 3.763968172e-08 | L59: 0.01609429181 | M59: 0.01044964694 | N59: -1.328638627e-06 | O59: 6.863931684e-05 | P59: Pf No 57 | Q59: 0.56 | R59: 0.44 | S59: 0.01167031517 | T59: 0.001489391602
A60: 2023-04-27 | B60: 564.75 | C60: 918.349976 | D60: -0.002829063922 | E60: 0.003709123352 | F60: 0.0012180082 | G60: 0.001834788658 | H60: -0.004047072122 | I60: 0.001874334693 | J60: 1.637879276e-05 | K60: 3.513130542e-06 | L60: 0.01609429181 | M60: 0.01044964694 | N60: -7.585567685e-06 | O60: 6.863931684e-05 | P60: Pf No 58 | Q60: 0.57 | R60: 0.43 | S60: 0.01174711849 | T60: 0.001483223797
A61: 2023-04-28 | B61: 578.299988 | C61: 917.650024 | D61: 0.02370958907 | E61: -0.0007624749825 | F61: 0.0012180082 | G61: 0.001834788658 | H61: 0.02249158087 | I61: -0.002597263641 | J61: 0.0005058712098 | K61: 6.74577842e-06 | L61: 0.01609429181 | M61: 0.01044964694 | N61: -5.84165652e-05 | O61: 6.863931684e-05 | P61: Pf No 59 | Q61: 0.58 | R61: 0.42 | S61: 0.01182537602 | T61: 0.001477055993
C62: Std Dev | D62: =_xlfn.STDEV.S(D3:D61) -> 0.01609429181 | E62: =_xlfn.STDEV.S(E3:E61) -> 0.01044964694 | P62: Pf No 60 | Q62: 0.59 | R62: 0.41 | S62: 0.01190505908 | T62: 0.001470888188
C63: Cov | D63: =_xlfn.COVARIANCE.S(D3:D61,E3:E61) -> 6.863931684e-05 | P63: Pf No 61 | Q63: 0.6 | R63: 0.4 | S63: 0.01198613924 | T63: 0.001464720384
P64: Pf No 62 | Q64: 0.61 | R64: 0.39 | S64: 0.01206858834 | T64: 0.001458552579
P65: Pf No 63 | Q65: 0.62 | R65: 0.38 | S65: 0.01215237853 | T65: 0.001452384774
P66: Pf No 64 | Q66: 0.63 | R66: 0.37 | S66: 0.01223748225 | T66: 0.00144621697
P67: Pf No 65 | Q67: 0.64 | R67: 0.36 | S67: 0.01232387229 | T67: 0.001440049165
P68: Pf No 66 | Q68: 0.65 | R68: 0.35 | S68: =SQRT((Q68^2*$L$3^2)+(R68^2*$M$3^2)+(2*Q68*R68*$O$3)) -> 0.01241152179 | T68: =Q68*$F$3+R68*$G$3 -> 0.001433881361
P69: Pf No 67 | Q69: =Q68+0.01 -> 0.66 | R69: =1-Q69 -> 0.34 | S69: 0.01250040426 | T69: 0.001427713556
P70: Pf No 68 | Q70: 0.67 | R70: 0.33 | S70: 0.01259049358 | T70: 0.001421545752
P71: Pf No 69 | Q71: 0.68 | R71: 0.32 | S71: 0.01268176404 | T71: 0.001415377947
P72: Pf No 70 | Q72: 0.69 | R72: 0.31 | S72: 0.01277419032 | T72: 0.001409210142
P73: Pf No 71 | Q73: 0.7 | R73: 0.3 | S73: 0.01286774751 | T73: 0.001403042338
P74: Pf No 72 | Q74: 0.71 | R74: 0.29 | S74: 0.01296241113 | T74: 0.001396874533
P75: Pf No 73 | Q75: 0.72 | R75: 0.28 | S75: 0.01305815711 | T75: 0.001390706729
P76: Pf No 74 | Q76: 0.73 | R76: 0.27 | S76: 0.01315496181 | T76: 0.001384538924
P77: Pf No 75 | Q77: 0.74 | R77: 0.26 | S77: 0.01325280205 | T77: 0.001378371119
P78: Pf No 76 | Q78: 0.75 | R78: 0.25 | S78: 0.01335165505 | T78: 0.001372203315
P79: Pf No 77 | Q79: 0.76 | R79: 0.24 | S79: 0.01345149848 | T79: 0.00136603551
P80: Pf No 78 | Q80: 0.77 | R80: 0.23 | S80: 0.01355231047 | T80: 0.001359867706
P81: Pf No 79 | Q81: 0.78 | R81: 0.22 | S81: 0.01365406954 | T81: 0.001353699901
P82: Pf No 80 | Q82: 0.79 | R82: 0.21 | S82: 0.01375675469 | T82: 0.001347532097
P83: Pf No 81 | Q83: 0.8 | R83: 0.2 | S83: 0.01386034533 | T83: 0.001341364292
P84: Pf No 82 | Q84: 0.81 | R84: 0.19 | S84: 0.01396482131 | T84: 0.001335196487
P85: Pf No 83 | Q85: 0.82 | R85: 0.18 | S85: 0.01407016292 | T85: 0.001329028683
P86: Pf No 84 | Q86: 0.83 | R86: 0.17 | S86: 0.01417635084 | T86: 0.001322860878
P87: Pf No 85 | Q87: 0.84 | R87: 0.16 | S87: 0.01428336622 | T87: 0.001316693074
P88: Pf No 86 | Q88: 0.85 | R88: 0.15 | S88: 0.01439119058 | T88: 0.001310525269
P89: Pf No 87 | Q89: 0.86 | R89: 0.14 | S89: 0.01449980588 | T89: 0.001304357465
P90: Pf No 88 | Q90: 0.87 | R90: 0.13 | S90: 0.01460919449 | T90: 0.00129818966
P91: Pf No 89 | Q91: 0.88 | R91: 0.12 | S91: 0.01471933915 | T91: 0.001292021855
P92: Pf No 90 | Q92: 0.89 | R92: 0.11 | S92: 0.01483022303 | T92: 0.001285854051
P93: Pf No 91 | Q93: 0.9 | R93: 0.1 | S93: 0.01494182966 | T93: 0.001279686246
P94: Pf No 92 | Q94: 0.91 | R94: 0.09 | S94: 0.01505414297 | T94: 0.001273518442
P95: Pf No 93 | Q95: 0.92 | R95: 0.08 | S95: 0.01516714727 | T95: 0.001267350637
P96: Pf No 94 | Q96: 0.93 | R96: 0.07 | S96: 0.01528082721 | T96: 0.001261182832
P97: Pf No 95 | Q97: 0.94 | R97: 0.06 | S97: 0.01539516785 | T97: 0.001255015028
P98: Pf No 96 | Q98: 0.95 | R98: 0.05 | S98: 0.01551015456 | T98: 0.001248847223
P99: Pf No 97 | Q99: 0.96 | R99: 0.04 | S99: 0.01562577307 | T99: 0.001242679419
P100: Pf No 98 | Q100: 0.97 | R100: 0.03 | S100: 0.01574200948 | T100: 0.001236511614
P101: Pf No 99 | Q101: 0.98 | R101: 0.02 | S101: 0.01585885019 | T101: 0.00123034381
P102: Pf No 100 | Q102: 0.99 | R102: 0.01 | S102: 0.01597628194 | T102: 0.001224176005
P103: Pf No 101 | Q103: 1 | R103: 0 | S103: 0.01609429181 | T103: 0.0012180082

Sheet Nifty
A1: Date | B1: NIFTY | C1: Daily Returns | E1: Avg of Daily Returns | F1: Std dev of Daily Returns | G1: Variance of Daily Returns | J1: SIMULATIONS | K1: 1 | L1: =K1+1 -> 2 | M1: =L1+1 -> 3 | N1: 4 | O1: 5 | P1: 6 | Q1: 7 | R1: 8 | S1: 9 | T1: 10 | U1: 11 | V1: 12 | W1: 13 | X1: 14 | Y1: 15 | Z1: 16 | AA1: 17 | AB1: 18 | AC1: 19 | AD1: 20 | AE1: 21 | AF1: 22 | AG1: 23 | AH1: 24 | AI1: 25 | AJ1: 26 | AK1: 27 | AL1: 28 | AM1: 29 | AN1: 30 | AO1: 31 | AP1: 32 | AQ1: 33 | AR1: 34 | AS1: 35 | AT1: 36 | AU1: 37 | AV1: 38 | AW1: 39 | AX1: 40 | AY1: 41 | AZ1: 42 | BA1: 43 | BB1: 44 | BC1: 45 | BD1: 46 | BE1: 47 | BF1: 48 | BG1: 49 | BH1: 50 | BI1: 51 | BJ1: 52 | BK1: 53 | BL1: 54 | BM1: 55 | BN1: 56 | BO1: 57 | BP1: 58 | BQ1: 59 | BR1: 60 | BS1: 61 | BT1: 62 | BU1: 63 | BV1: 64 | BW1: 65 | BX1: 66 | BY1: =BX1+1 -> 67 | BZ1: 68 | CA1: 69 | CB1: 70 | CC1: 71 | CD1: 72 | CE1: 73 | CF1: 74 | CG1: 75 | CH1: 76 | CI1: 77 | CJ1: 78 | CK1: 79 | CL1: 80 | CM1: 81 | CN1: 82 | CO1: 83 | CP1: 84 | CQ1: 85 | CR1: 86 | CS1: 87 | CT1: 88 | CU1: 89 | CV1: 90 | CW1: 91 | CX1: 92 | CY1: 93 | CZ1: 94 | DA1: 95 | DB1: 96 | DC1: 97 | DD1: 98 | DE1: 99 | DF1: 100 | DG1: 101 | DH1: 102 | DI1: 103 | DJ1: 104 | DK1: 105 | DL1: 106 | DM1: 107 | DN1: 108 | DO1: 109 | DP1: 110 | DQ1: 111 | DR1: 112 | DS1: 113 | DT1: 114 | DU1: 115 | DV1: 116 | DW1: 117 | DX1: 118 | DY1: 119 | DZ1: 120 | EA1: 121 | EB1: 122 | EC1: 123 | ED1: 124 | EE1: 125 | EF1: 126 | EG1: 127 | EH1: 128 | EI1: 129 | EJ1: 130 | EK1: =EJ1+1 -> 131 | EL1: 132 | EM1: 133 | EN1: 134 | EO1: 135 | EP1: 136 | EQ1: 137 | ER1: 138 | ES1: 139 | ET1: 140 | EU1: 141 | EV1: 142 | EW1: 143 | EX1: 144 | EY1: 145 | EZ1: 146 | FA1: 147 | FB1: 148 | FC1: 149 | FD1: 150 | FE1: 151 | FF1: 152 | FG1: 153 | FH1: 154 | FI1: 155 | FJ1: 156 | FK1: 157 | FL1: 158 | FM1: 159 | FN1: 160 | FO1: 161 | FP1: 162 | FQ1: 163 | FR1: 164 | FS1: 165 | FT1: 166 | FU1: 167 | FV1: 168 | FW1: 169 | FX1: 170 | FY1: 171 | FZ1: 172 | GA1: 173 | GB1: 174 | GC1: 175 | GD1: 176 | GE1: 177 | GF1: 178 | GG1: 179 | GH1: 180 | GI1: 181 | GJ1: 182 | GK1: 183 | GL1: 184 | GM1: 185 | GN1: 186 | GO1: 187 | GP1: 188 | GQ1: 189 | GR1: 190 | GS1: 191 | GT1: 192 | GU1: 193 | GV1: 194 | GW1: =GV1+1 -> 195 | GX1: 196 | GY1: 197 | GZ1: 198 | HA1: 199 | HB1: 200 | HC1: 201 | HD1: 202 | HE1: 203 | HF1: 204 | HG1: 205 | HH1: 206 | HI1: 207 | HJ1: 208 | HK1: 209 | HL1: 210 | HM1: 211 | HN1: 212 | HO1: 213 | HP1: 214 | HQ1: 215 | HR1: 216 | HS1: 217 | HT1: 218 | HU1: 219 | HV1: 220 | HW1: 221 | HX1: 222 | HY1: 223 | HZ1: 224 | IA1: 225 | IB1: 226 | IC1: 227 | ID1: 228 | IE1: 229 | IF1: 230 | IG1: 231 | IH1: 232 | II1: 233 | IJ1: 234 | IK1: 235 | IL1: 236 | IM1: 237 | IN1: 238 | IO1: 239 | IP1: 240 | IQ1: 241 | IR1: 242 | IS1: 243 | IT1: 244 | IU1: 245 | IV1: 246 | IW1: 247 | IX1: 248 | IY1: 249 | IZ1: 250 | JA1: 251 | JB1: 252 | JC1: 253 | JD1: 254 | JE1: 255 | JF1: 256 | JG1: 257 | JH1: 258 | JI1: =JH1+1 -> 259 | JJ1: 260 | JK1: 261 | JL1: 262 | JM1: 263 | JN1: 264 | JO1: 265 | JP1: 266 | JQ1: 267 | JR1: 268 | JS1: 269 | JT1: 270 | JU1: 271 | JV1: 272 | JW1: 273 | JX1: 274 | JY1: 275 | JZ1: 276 | KA1: 277 | KB1: 278 | KC1: 279 | KD1: 280 | KE1: 281 | KF1: 282 | KG1: 283 | KH1: 284 | KI1: 285 | KJ1: 286 | KK1: 287 | KL1: 288 | KM1: 289 | KN1: 290 | KO1: 291 | KP1: 292 | KQ1: 293 | KR1: 294 | KS1: 295 | KT1: 296 | KU1: 297 | KV1: 298 | KW1: 299 | KX1: 300 | KY1: 301 | KZ1: 302 | LA1: 303 | LB1: 304 | LC1: 305 | LD1: 306 | LE1: 307 | LF1: 308 | LG1: 309 | LH1: 310 | LI1: 311 | LJ1: 312 | LK1: 313 | LL1: 314 | LM1: 315 | LN1: 316 | LO1: 317 | LP1: 318 | LQ1: 319 | LR1: 320 | LS1: 321 | LT1: 322 | LU1: =LT1+1 -> 323 | LV1: 324 | LW1: 325 | LX1: 326 | LY1: 327 | LZ1: 328 | MA1: 329 | MB1: 330 | MC1: 331 | MD1: 332 | ME1: 333 | MF1: 334 | MG1: 335 | MH1: 336 | MI1: 337 | MJ1: 338 | MK1: 339 | ML1: 340 | MM1: 341 | MN1: 342 | MO1: 343 | MP1: 344 | MQ1: 345 | MR1: 346 | MS1: 347 | MT1: 348 | MU1: 349 | MV1: 350 | MW1: 351 | MX1: 352 | MY1: 353 | MZ1: 354 | NA1: 355 | NB1: 356 | NC1: 357 | ND1: 358 | NE1: 359 | NF1: 360 | NG1: 361 | NH1: 362 | NI1: 363 | NJ1: 364 | NK1: 365 | NL1: 366 | NM1: 367 | NN1: 368 | NO1: 369 | NP1: 370 | NQ1: 371 | NR1: 372 | NS1: 373 | NT1: 374 | NU1: 375 | NV1: 376 | NW1: 377 | NX1: 378 | NY1: 379 | NZ1: 380 | OA1: 381 | OB1: 382 | OC1: 383 | OD1: 384 | OE1: 385 | OF1: 386 | OG1: =OF1+1 -> 387 | OH1: 388 | OI1: 389 | OJ1: 390 | OK1: 391 | OL1: 392 | OM1: 393 | ON1: 394 | OO1: 395 | OP1: 396 | OQ1: 397 | OR1: 398 | OS1: 399 | OT1: 400 | OU1: 401 | OV1: 402 | OW1: 403 | OX1: 404 | OY1: 405 | OZ1: 406 | PA1: 407 | PB1: 408 | PC1: 409 | PD1: 410 | PE1: 411 | PF1: 412 | PG1: 413 | PH1: 414 | PI1: 415 | PJ1: 416 | PK1: 417 | PL1: 418 | PM1: 419 | PN1: 420 | PO1: 421 | PP1: 422 | PQ1: 423 | PR1: 424 | PS1: 425 | PT1: 426 | PU1: 427 | PV1: 428 | PW1: 429 | PX1: 430 | PY1: 431 | PZ1: 432 | QA1: 433 | QB1: 434 | QC1: 435 | QD1: 436 | QE1: 437 | QF1: 438 | QG1: 439 | QH1: 440 | QI1: 441 | QJ1: 442 | QK1: 443 | QL1: 444 | QM1: 445 | QN1: 446 | QO1: 447 | QP1: 448 | QQ1: 449 | QR1: 450 | QS1: =QR1+1 -> 451 | QT1: 452 | QU1: 453 | QV1: 454 | QW1: 455 | QX1: 456 | QY1: 457 | QZ1: 458 | RA1: 459 | RB1: 460 | RC1: 461 | RD1: 462 | RE1: 463 | RF1: 464 | RG1: 465 | RH1: 466 | RI1: 467 | RJ1: 468 | RK1: 469 | RL1: 470 | RM1: 471 | RN1: 472 | RO1: 473 | RP1: 474 | RQ1: 475 | RR1: 476 | RS1: 477 | RT1: 478 | RU1: 479 | RV1: 480 | RW1: 481 | RX1: 482 | RY1: 483 | RZ1: 484 | SA1: 485 | SB1: 486 | SC1: 487 | SD1: 488 | SE1: 489 | SF1: 490 | SG1: 491 | SH1: 492 | SI1: 493 | SJ1: 494 | SK1: 495 | SL1: 496 | SM1: 497 | SN1: 498 | SO1: 499 | SP1: 500 | SQ1: 501 | SR1: 502 | SS1: 503 | ST1: 504 | SU1: 505 | SV1: 506 | SW1: 507 | SX1: 508 | SY1: 509 | SZ1: 510 | TA1: 511 | TB1: 512 | TC1: 513 | TD1: 514 | TE1: =TD1+1 -> 515 | TF1: 516 | TG1: 517 | TH1: 518 | TI1: 519 | TJ1: 520 | TK1: 521 | TL1: 522 | TM1: 523 | TN1: 524 | TO1: 525 | TP1: 526 | TQ1: 527 | TR1: 528 | TS1: 529 | TT1: 530 | TU1: 531 | TV1: 532 | TW1: 533 | TX1: 534 | TY1: 535 | TZ1: 536 | UA1: 537 | UB1: 538 | UC1: 539 | UD1: 540 | UE1: 541 | UF1: 542 | UG1: 543 | UH1: 544 | UI1: 545 | UJ1: 546 | UK1: 547 | UL1: 548 | UM1: 549 | UN1: 550 | UO1: 551 | UP1: 552 | UQ1: 553 | UR1: 554 | US1: 555 | UT1: 556 | UU1: 557 | UV1: 558 | UW1: 559 | UX1: 560 | UY1: 561 | UZ1: 562 | VA1: 563 | VB1: 564 | VC1: 565 | VD1: 566 | VE1: 567 | VF1: 568 | VG1: 569 | VH1: 570 | VI1: 571 | VJ1: 572 | VK1: 573 | VL1: 574 | VM1: 575 | VN1: 576 | VO1: 577 | VP1: 578 | VQ1: =VP1+1 -> 579 | VR1: 580 | VS1: 581 | VT1: 582 | VU1: 583 | VV1: 584 | VW1: 585 | VX1: 586 | VY1: 587 | VZ1: 588 | WA1: 589 | WB1: 590 | WC1: 591 | WD1: 592 | WE1: 593 | WF1: 594 | WG1: 595 | WH1: 596 | WI1: 597 | WJ1: 598 | WK1: 599 | WL1: 600 | WM1: 601 | WN1: 602 | WO1: 603 | WP1: 604 | WQ1: 605 | WR1: 606 | WS1: 607 | WT1: 608 | WU1: 609 | WV1: 610 | WW1: 611 | WX1: 612 | WY1: 613 | WZ1: 614 | XA1: 615 | XB1: 616 | XC1: 617 | XD1: 618 | XE1: 619 | XF1: 620 | XG1: 621 | XH1: 622 | XI1: 623 | XJ1: 624 | XK1: 625 | XL1: 626 | XM1: 627 | XN1: 628 | XO1: 629 | XP1: 630 | XQ1: 631 | XR1: 632 | XS1: 633 | XT1: 634 | XU1: 635 | XV1: 636 | XW1: 637 | XX1: 638 | XY1: 639 | XZ1: 640 | YA1: 641 | YB1: 642 | YC1: =YB1+1 -> 643 | YD1: 644 | YE1: 645 | YF1: 646 | YG1: 647 | YH1: 648 | YI1: 649 | YJ1: 650 | YK1: 651 | YL1: 652 | YM1: 653 | YN1: 654 | YO1: 655 | YP1: 656 | YQ1: 657 | YR1: 658 | YS1: 659 | YT1: 660 | YU1: 661 | YV1: 662 | YW1: 663 | YX1: 664 | YY1: 665 | YZ1: 666 | ZA1: 667 | ZB1: 668 | ZC1: 669 | ZD1: 670 | ZE1: 671 | ZF1: 672 | ZG1: 673 | ZH1: 674 | ZI1: 675 | ZJ1: 676 | ZK1: 677 | ZL1: 678 | ZM1: 679 | ZN1: 680 | ZO1: 681 | ZP1: 682 | ZQ1: 683 | ZR1: 684 | ZS1: 685 | ZT1: 686 | ZU1: 687 | ZV1: 688 | ZW1: 689 | ZX1: 690 | ZY1: 691 | ZZ1: 692 | AAA1: 693 | AAB1: 694 | AAC1: 695 | AAD1: 696 | AAE1: 697 | AAF1: 698 | AAG1: 699 | AAH1: 700 | AAI1: 701 | AAJ1: 702 | AAK1: 703 | AAL1: 704 | AAM1: 705 | AAN1: 706 | AAO1: =AAN1+1 -> 707 | AAP1: 708 | AAQ1: 709 | AAR1: 710 | AAS1: 711 | AAT1: 712 | AAU1: 713 | AAV1: 714 | AAW1: 715 | AAX1: 716 | AAY1: 717 | AAZ1: 718 | ABA1: 719 | ABB1: 720 | ABC1: 721 | ABD1: 722 | ABE1: 723 | ABF1: 724 | ABG1: 725 | ABH1: 726 | ABI1: 727 | ABJ1: 728 | ABK1: 729 | ABL1: 730 | ABM1: 731 | ABN1: 732 | ABO1: 733 | ABP1: 734 | ABQ1: 735 | ABR1: 736 | ABS1: 737 | ABT1: 738 | ABU1: 739 | ABV1: 740 | ABW1: 741 | ABX1: 742 | ABY1: 743 | ABZ1: 744 | ACA1: 745 | ACB1: 746 | ACC1: 747 | ACD1: 748 | ACE1: 749 | ACF1: 750 | ACG1: 751 | ACH1: 752 | ACI1: 753 | ACJ1: 754 | ACK1: 755 | ACL1: 756 | ACM1: 757 | ACN1: 758 | ACO1: 759 | ACP1: 760 | ACQ1: 761 | ACR1: 762 | ACS1: 763 | ACT1: 764 | ACU1: 765 | ACV1: 766 | ACW1: 767 | ACX1: 768 | ACY1: 769 | ACZ1: 770 | ADA1: =ACZ1+1 -> 771 | ADB1: 772 | ADC1: 773 | ADD1: 774 | ADE1: 775 | ADF1: 776 | ADG1: 777 | ADH1: 778 | ADI1: 779 | ADJ1: 780 | ADK1: 781 | ADL1: 782 | ADM1: 783 | ADN1: 784 | ADO1: 785 | ADP1: 786 | ADQ1: 787 | ADR1: 788 | ADS1: 789 | ADT1: 790 | ADU1: 791 | ADV1: 792 | ADW1: 793 | ADX1: 794 | ADY1: 795 | ADZ1: 796 | AEA1: 797 | AEB1: 798 | AEC1: 799 | AED1: 800 | AEE1: 801 | AEF1: 802 | AEG1: 803 | AEH1: 804 | AEI1: 805 | AEJ1: 806 | AEK1: 807 | AEL1: 808 | AEM1: 809 | AEN1: 810 | AEO1: 811 | AEP1: 812 | AEQ1: 813 | AER1: 814 | AES1: 815 | AET1: 816 | AEU1: 817 | AEV1: 818 | AEW1: 819 | AEX1: 820 | AEY1: 821 | AEZ1: 822 | AFA1: 823 | AFB1: 824 | AFC1: 825 | AFD1: 826 | AFE1: 827 | AFF1: 828 | AFG1: 829 | AFH1: 830 | AFI1: 831 | AFJ1: 832 | AFK1: 833 | AFL1: 834 | AFM1: =AFL1+1 -> 835 | AFN1: 836 | AFO1: 837 | AFP1: 838 | AFQ1: 839 | AFR1: 840 | AFS1: 841 | AFT1: 842 | AFU1: 843 | AFV1: 844 | AFW1: 845 | AFX1: 846 | AFY1: 847 | AFZ1: 848 | AGA1: 849 | AGB1: 850 | AGC1: 851 | AGD1: 852 | AGE1: 853 | AGF1: 854 | AGG1: 855 | AGH1: 856 | AGI1: 857 | AGJ1: 858 | AGK1: 859 | AGL1: 860 | AGM1: 861 | AGN1: 862 | AGO1: 863 | AGP1: 864 | AGQ1: 865 | AGR1: 866 | AGS1: 867 | AGT1: 868 | AGU1: 869 | AGV1: 870 | AGW1: 871 | AGX1: 872 | AGY1: 873 | AGZ1: 874 | AHA1: 875 | AHB1: 876 | AHC1: 877 | AHD1: 878 | AHE1: 879 | AHF1: 880 | AHG1: 881 | AHH1: 882 | AHI1: 883 | AHJ1: 884 | AHK1: 885 | AHL1: 886 | AHM1: 887 | AHN1: 888 | AHO1: 889 | AHP1: 890 | AHQ1: 891 | AHR1: 892 | AHS1: 893 | AHT1: 894 | AHU1: 895 | AHV1: 896 | AHW1: 897 | AHX1: 898 | AHY1: =AHX1+1 -> 899 | AHZ1: 900 | AIA1: 901 | AIB1: 902 | AIC1: 903 | AID1: 904 | AIE1: 905 | AIF1: 906 | AIG1: 907 | AIH1: 908 | AII1: 909 | AIJ1: 910 | AIK1: 911 | AIL1: 912 | AIM1: 913 | AIN1: 914 | AIO1: 915 | AIP1: 916 | AIQ1: 917 | AIR1: 918 | AIS1: 919 | AIT1: 920 | AIU1: 921 | AIV1: 922 | AIW1: 923 | AIX1: 924 | AIY1: 925 | AIZ1: 926 | AJA1: 927 | AJB1: 928 | AJC1: 929 | AJD1: 930 | AJE1: 931 | AJF1: 932 | AJG1: 933 | AJH1: 934 | AJI1: 935 | AJJ1: 936 | AJK1: 937 | AJL1: 938 | AJM1: 939 | AJN1: 940 | AJO1: 941 | AJP1: 942 | AJQ1: 943 | AJR1: 944 | AJS1: 945 | AJT1: 946 | AJU1: 947 | AJV1: 948 | AJW1: 949 | AJX1: 950 | AJY1: 951 | AJZ1: 952 | AKA1: 953 | AKB1: 954 | AKC1: 955 | AKD1: 956 | AKE1: 957 | AKF1: 958 | AKG1: 959 | AKH1: 960 | AKI1: 961 | AKJ1: 962 | AKK1: =AKJ1+1 -> 963 | AKL1: 964 | AKM1: 965 | AKN1: 966 | AKO1: 967 | AKP1: 968 | AKQ1: 969 | AKR1: 970 | AKS1: 971 | AKT1: 972 | AKU1: 973 | AKV1: 974 | AKW1: 975 | AKX1: 976 | AKY1: 977 | AKZ1: 978 | ALA1: 979 | ALB1: 980 | ALC1: 981 | ALD1: 982 | ALE1: 983 | ALF1: 984 | ALG1: 985 | ALH1: 986 | ALI1: 987 | ALJ1: 988 | ALK1: 989 | ALL1: 990 | ALM1: 991 | ALN1: 992 | ALO1: 993 | ALP1: 994 | ALQ1: 995 | ALR1: 996 | ALS1: 997 | ALT1: 998 | ALU1: 999 | ALV1: 1000
A2: 2013-04-29 | B2: 5904.100098 | E2: =AVERAGE(C3:C2456) -> 0.0004557169206 | F2: =_xlfn.STDEV.S(C3:C2456) -> 0.01089156243 | G2: =F2^2 -> 0.0001186261321 | I2: Estimate the Price | J2: Days
A3: 2013-04-30 | B3: 5930.200195 | C3: =LN(B3/B2) -> 0.004410930714 | E3: Today's Price | F3: =B2456 -> 18065 | J3: 0 | K3: =$F$3 -> 18065 | L3: =$F$3 -> 18065 | M3: 18065 | N3: 18065 | O3: 18065 | P3: 18065 | Q3: 18065 | R3: 18065 | S3: 18065 | T3: 18065 | U3: 18065 | V3: 18065 | W3: 18065 | X3: 18065 | Y3: 18065 | Z3: 18065 | AA3: 18065 | AB3: 18065 | AC3: 18065 | AD3: 18065 | AE3: 18065 | AF3: 18065 | AG3: 18065 | AH3: 18065 | AI3: 18065 | AJ3: 18065 | AK3: 18065 | AL3: 18065 | AM3: 18065 | AN3: 18065 | AO3: 18065 | AP3: 18065 | AQ3: 18065 | AR3: 18065 | AS3: 18065 | AT3: 18065 | AU3: 18065 | AV3: 18065 | AW3: 18065 | AX3: 18065 | AY3: 18065 | AZ3: 18065 | BA3: 18065 | BB3: 18065 | BC3: 18065 | BD3: 18065 | BE3: 18065 | BF3: 18065 | BG3: 18065 | BH3: 18065 | BI3: 18065 | BJ3: 18065 | BK3: 18065 | BL3: 18065 | BM3: 18065 | BN3: 18065 | BO3: 18065 | BP3: 18065 | BQ3: 18065 | BR3: 18065 | BS3: 18065 | BT3: 18065 | BU3: 18065 | BV3: 18065 | BW3: 18065 | BX3: =$F$3 -> 18065 | BY3: 18065 | BZ3: 18065 | CA3: 18065 | CB3: 18065 | CC3: 18065 | CD3: 18065 | CE3: 18065 | CF3: 18065 | CG3: 18065 | CH3: 18065 | CI3: 18065 | CJ3: 18065 | CK3: 18065 | CL3: 18065 | CM3: 18065 | CN3: 18065 | CO3: 18065 | CP3: 18065 | CQ3: 18065 | CR3: 18065 | CS3: 18065 | CT3: 18065 | CU3: 18065 | CV3: 18065 | CW3: 18065 | CX3: 18065 | CY3: 18065 | CZ3: 18065 | DA3: 18065 | DB3: 18065 | DC3: 18065 | DD3: 18065 | DE3: 18065 | DF3: 18065 | DG3: 18065 | DH3: 18065 | DI3: 18065 | DJ3: 18065 | DK3: 18065 | DL3: 18065 | DM3: 18065 | DN3: 18065 | DO3: 18065 | DP3: 18065 | DQ3: 18065 | DR3: 18065 | DS3: 18065 | DT3: 18065 | DU3: 18065 | DV3: 18065 | DW3: 18065 | DX3: 18065 | DY3: 18065 | DZ3: 18065 | EA3: 18065 | EB3: 18065 | EC3: 18065 | ED3: 18065 | EE3: 18065 | EF3: 18065 | EG3: 18065 | EH3: 18065 | EI3: 18065 | EJ3: =$F$3 -> 18065 | EK3: 18065 | EL3: 18065 | EM3: 18065 | EN3: 18065 | EO3: 18065 | EP3: 18065 | EQ3: 18065 | ER3: 18065 | ES3: 18065 | ET3: 18065 | EU3: 18065 | EV3: 18065 | EW3: 18065 | EX3: 18065 | EY3: 18065 | EZ3: 18065 | FA3: 18065 | FB3: 18065 | FC3: 18065 | FD3: 18065 | FE3: 18065 | FF3: 18065 | FG3: 18065 | FH3: 18065 | FI3: 18065 | FJ3: 18065 | FK3: 18065 | FL3: 18065 | FM3: 18065 | FN3: 18065 | FO3: 18065 | FP3: 18065 | FQ3: 18065 | FR3: 18065 | FS3: 18065 | FT3: 18065 | FU3: 18065 | FV3: 18065 | FW3: 18065 | FX3: 18065 | FY3: 18065 | FZ3: 18065 | GA3: 18065 | GB3: 18065 | GC3: 18065 | GD3: 18065 | GE3: 18065 | GF3: 18065 | GG3: 18065 | GH3: 18065 | GI3: 18065 | GJ3: 18065 | GK3: 18065 | GL3: 18065 | GM3: 18065 | GN3: 18065 | GO3: 18065 | GP3: 18065 | GQ3: 18065 | GR3: 18065 | GS3: 18065 | GT3: 18065 | GU3: 18065 | GV3: =$F$3 -> 18065 | GW3: 18065 | GX3: 18065 | GY3: 18065 | GZ3: 18065 | HA3: 18065 | HB3: 18065 | HC3: 18065 | HD3: 18065 | HE3: 18065 | HF3: 18065 | HG3: 18065 | HH3: 18065 | HI3: 18065 | HJ3: 18065 | HK3: 18065 | HL3: 18065 | HM3: 18065 | HN3: 18065 | HO3: 18065 | HP3: 18065 | HQ3: 18065 | HR3: 18065 | HS3: 18065 | HT3: 18065 | HU3: 18065 | HV3: 18065 | HW3: 18065 | HX3: 18065 | HY3: 18065 | HZ3: 18065 | IA3: 18065 | IB3: 18065 | IC3: 18065 | ID3: 18065 | IE3: 18065 | IF3: 18065 | IG3: 18065 | IH3: 18065 | II3: 18065 | IJ3: 18065 | IK3: 18065 | IL3: 18065 | IM3: 18065 | IN3: 18065 | IO3: 18065 | IP3: 18065 | IQ3: 18065 | IR3: 18065 | IS3: 18065 | IT3: 18065 | IU3: 18065 | IV3: 18065 | IW3: 18065 | IX3: 18065 | IY3: 18065 | IZ3: 18065 | JA3: 18065 | JB3: 18065 | JC3: 18065 | JD3: 18065 | JE3: 18065 | JF3: 18065 | JG3: 18065 | JH3: =$F$3 -> 18065 | JI3: 18065 | JJ3: 18065 | JK3: 18065 | JL3: 18065 | JM3: 18065 | JN3: 18065 | JO3: 18065 | JP3: 18065 | JQ3: 18065 | JR3: 18065 | JS3: 18065 | JT3: 18065 | JU3: 18065 | JV3: 18065 | JW3: 18065 | JX3: 18065 | JY3: 18065 | JZ3: 18065 | KA3: 18065 | KB3: 18065 | KC3: 18065 | KD3: 18065 | KE3: 18065 | KF3: 18065 | KG3: 18065 | KH3: 18065 | KI3: 18065 | KJ3: 18065 | KK3: 18065 | KL3: 18065 | KM3: 18065 | KN3: 18065 | KO3: 18065 | KP3: 18065 | KQ3: 18065 | KR3: 18065 | KS3: 18065 | KT3: 18065 | KU3: 18065 | KV3: 18065 | KW3: 18065 | KX3: 18065 | KY3: 18065 | KZ3: 18065 | LA3: 18065 | LB3: 18065 | LC3: 18065 | LD3: 18065 | LE3: 18065 | LF3: 18065 | LG3: 18065 | LH3: 18065 | LI3: 18065 | LJ3: 18065 | LK3: 18065 | LL3: 18065 | LM3: 18065 | LN3: 18065 | LO3: 18065 | LP3: 18065 | LQ3: 18065 | LR3: 18065 | LS3: 18065 | LT3: =$F$3 -> 18065 | LU3: 18065 | LV3: 18065 | LW3: 18065 | LX3: 18065 | LY3: 18065 | LZ3: 18065 | MA3: 18065 | MB3: 18065 | MC3: 18065 | MD3: 18065 | ME3: 18065 | MF3: 18065 | MG3: 18065 | MH3: 18065 | MI3: 18065 | MJ3: 18065 | MK3: 18065 | ML3: 18065 | MM3: 18065 | MN3: 18065 | MO3: 18065 | MP3: 18065 | MQ3: 18065 | MR3: 18065 | MS3: 18065 | MT3: 18065 | MU3: 18065 | MV3: 18065 | MW3: 18065 | MX3: 18065 | MY3: 18065 | MZ3: 18065 | NA3: 18065 | NB3: 18065 | NC3: 18065 | ND3: 18065 | NE3: 18065 | NF3: 18065 | NG3: 18065 | NH3: 18065 | NI3: 18065 | NJ3: 18065 | NK3: 18065 | NL3: 18065 | NM3: 18065 | NN3: 18065 | NO3: 18065 | NP3: 18065 | NQ3: 18065 | NR3: 18065 | NS3: 18065 | NT3: 18065 | NU3: 18065 | NV3: 18065 | NW3: 18065 | NX3: 18065 | NY3: 18065 | NZ3: 18065 | OA3: 18065 | OB3: 18065 | OC3: 18065 | OD3: 18065 | OE3: 18065 | OF3: =$F$3 -> 18065 | OG3: 18065 | OH3: 18065 | OI3: 18065 | OJ3: 18065 | OK3: 18065 | OL3: 18065 | OM3: 18065 | ON3: 18065 | OO3: 18065 | OP3: 18065 | OQ3: 18065 | OR3: 18065 | OS3: 18065 | OT3: 18065 | OU3: 18065 | OV3: 18065 | OW3: 18065 | OX3: 18065 | OY3: 18065 | OZ3: 18065 | PA3: 18065 | PB3: 18065 | PC3: 18065 | PD3: 18065 | PE3: 18065 | PF3: 18065 | PG3: 18065 | PH3: 18065 | PI3: 18065 | PJ3: 18065 | PK3: 18065 | PL3: 18065 | PM3: 18065 | PN3: 18065 | PO3: 18065 | PP3: 18065 | PQ3: 18065 | PR3: 18065 | PS3: 18065 | PT3: 18065 | PU3: 18065 | PV3: 18065 | PW3: 18065 | PX3: 18065 | PY3: 18065 | PZ3: 18065 | QA3: 18065 | QB3: 18065 | QC3: 18065 | QD3: 18065 | QE3: 18065 | QF3: 18065 | QG3: 18065 | QH3: 18065 | QI3: 18065 | QJ3: 18065 | QK3: 18065 | QL3: 18065 | QM3: 18065 | QN3: 18065 | QO3: 18065 | QP3: 18065 | QQ3: 18065 | QR3: =$F$3 -> 18065 | QS3: 18065 | QT3: 18065 | QU3: 18065 | QV3: 18065 | QW3: 18065 | QX3: 18065 | QY3: 18065 | QZ3: 18065 | RA3: 18065 | RB3: 18065 | RC3: 18065 | RD3: 18065 | RE3: 18065 | RF3: 18065 | RG3: 18065 | RH3: 18065 | RI3: 18065 | RJ3: 18065 | RK3: 18065 | RL3: 18065 | RM3: 18065 | RN3: 18065 | RO3: 18065 | RP3: 18065 | RQ3: 18065 | RR3: 18065 | RS3: 18065 | RT3: 18065 | RU3: 18065 | RV3: 18065 | RW3: 18065 | RX3: 18065 | RY3: 18065 | RZ3: 18065 | SA3: 18065 | SB3: 18065 | SC3: 18065 | SD3: 18065 | SE3: 18065 | SF3: 18065 | SG3: 18065 | SH3: 18065 | SI3: 18065 | SJ3: 18065 | SK3: 18065 | SL3: 18065 | SM3: 18065 | SN3: 18065 | SO3: 18065 | SP3: 18065 | SQ3: 18065 | SR3: 18065 | SS3: 18065 | ST3: 18065 | SU3: 18065 | SV3: 18065 | SW3: 18065 | SX3: 18065 | SY3: 18065 | SZ3: 18065 | TA3: 18065 | TB3: 18065 | TC3: 18065 | TD3: =$F$3 -> 18065 | TE3: 18065 | TF3: 18065 | TG3: 18065 | TH3: 18065 | TI3: 18065 | TJ3: 18065 | TK3: 18065 | TL3: 18065 | TM3: 18065 | TN3: 18065 | TO3: 18065 | TP3: 18065 | TQ3: 18065 | TR3: 18065 | TS3: 18065 | TT3: 18065 | TU3: 18065 | TV3: 18065 | TW3: 18065 | TX3: 18065 | TY3: 18065 | TZ3: 18065 | UA3: 18065 | UB3: 18065 | UC3: 18065 | UD3: 18065 | UE3: 18065 | UF3: 18065 | UG3: 18065 | UH3: 18065 | UI3: 18065 | UJ3: 18065 | UK3: 18065 | UL3: 18065 | UM3: 18065 | UN3: 18065 | UO3: 18065 | UP3: 18065 | UQ3: 18065 | UR3: 18065 | US3: 18065 | UT3: 18065 | UU3: 18065 | UV3: 18065 | UW3: 18065 | UX3: 18065 | UY3: 18065 | UZ3: 18065 | VA3: 18065 | VB3: 18065 | VC3: 18065 | VD3: 18065 | VE3: 18065 | VF3: 18065 | VG3: 18065 | VH3: 18065 | VI3: 18065 | VJ3: 18065 | VK3: 18065 | VL3: 18065 | VM3: 18065 | VN3: 18065 | VO3: 18065 | VP3: =$F$3 -> 18065 | VQ3: 18065 | VR3: 18065 | VS3: 18065 | VT3: 18065 | VU3: 18065 | VV3: 18065 | VW3: 18065 | VX3: 18065 | VY3: 18065 | VZ3: 18065 | WA3: 18065 | WB3: 18065 | WC3: 18065 | WD3: 18065 | WE3: 18065 | WF3: 18065 | WG3: 18065 | WH3: 18065 | WI3: 18065 | WJ3: 18065 | WK3: 18065 | WL3: 18065 | WM3: 18065 | WN3: 18065 | WO3: 18065 | WP3: 18065 | WQ3: 18065 | WR3: 18065 | WS3: 18065 | WT3: 18065 | WU3: 18065 | WV3: 18065 | WW3: 18065 | WX3: 18065 | WY3: 18065 | WZ3: 18065 | XA3: 18065 | XB3: 18065 | XC3: 18065 | XD3: 18065 | XE3: 18065 | XF3: 18065 | XG3: 18065 | XH3: 18065 | XI3: 18065 | XJ3: 18065 | XK3: 18065 | XL3: 18065 | XM3: 18065 | XN3: 18065 | XO3: 18065 | XP3: 18065 | XQ3: 18065 | XR3: 18065 | XS3: 18065 | XT3: 18065 | XU3: 18065 | XV3: 18065 | XW3: 18065 | XX3: 18065 | XY3: 18065 | XZ3: 18065 | YA3: 18065 | YB3: =$F$3 -> 18065 | YC3: 18065 | YD3: 18065 | YE3: 18065 | YF3: 18065 | YG3: 18065 | YH3: 18065 | YI3: 18065 | YJ3: 18065 | YK3: 18065 | YL3: 18065 | YM3: 18065 | YN3: 18065 | YO3: 18065 | YP3: 18065 | YQ3: 18065 | YR3: 18065 | YS3: 18065 | YT3: 18065 | YU3: 18065 | YV3: 18065 | YW3: 18065 | YX3: 18065 | YY3: 18065 | YZ3: 18065 | ZA3: 18065 | ZB3: 18065 | ZC3: 18065 | ZD3: 18065 | ZE3: 18065 | ZF3: 18065 | ZG3: 18065 | ZH3: 18065 | ZI3: 18065 | ZJ3: 18065 | ZK3: 18065 | ZL3: 18065 | ZM3: 18065 | ZN3: 18065 | ZO3: 18065 | ZP3: 18065 | ZQ3: 18065 | ZR3: 18065 | ZS3: 18065 | ZT3: 18065 | ZU3: 18065 | ZV3: 18065 | ZW3: 18065 | ZX3: 18065 | ZY3: 18065 | ZZ3: 18065 | AAA3: 18065 | AAB3: 18065 | AAC3: 18065 | AAD3: 18065 | AAE3: 18065 | AAF3: 18065 | AAG3: 18065 | AAH3: 18065 | AAI3: 18065 | AAJ3: 18065 | AAK3: 18065 | AAL3: 18065 | AAM3: 18065 | AAN3: =$F$3 -> 18065 | AAO3: 18065 | AAP3: 18065 | AAQ3: 18065 | AAR3: 18065 | AAS3: 18065 | AAT3: 18065 | AAU3: 18065 | AAV3: 18065 | AAW3: 18065 | AAX3: 18065 | AAY3: 18065 | AAZ3: 18065 | ABA3: 18065 | ABB3: 18065 | ABC3: 18065 | ABD3: 18065 | ABE3: 18065 | ABF3: 18065 | ABG3: 18065 | ABH3: 18065 | ABI3: 18065 | ABJ3: 18065 | ABK3: 18065 | ABL3: 18065 | ABM3: 18065 | ABN3: 18065 | ABO3: 18065 | ABP3: 18065 | ABQ3: 18065 | ABR3: 18065 | ABS3: 18065 | ABT3: 18065 | ABU3: 18065 | ABV3: 18065 | ABW3: 18065 | ABX3: 18065 | ABY3: 18065 | ABZ3: 18065 | ACA3: 18065 | ACB3: 18065 | ACC3: 18065 | ACD3: 18065 | ACE3: 18065 | ACF3: 18065 | ACG3: 18065 | ACH3: 18065 | ACI3: 18065 | ACJ3: 18065 | ACK3: 18065 | ACL3: 18065 | ACM3: 18065 | ACN3: 18065 | ACO3: 18065 | ACP3: 18065 | ACQ3: 18065 | ACR3: 18065 | ACS3: 18065 | ACT3: 18065 | ACU3: 18065 | ACV3: 18065 | ACW3: 18065 | ACX3: 18065 | ACY3: 18065 | ACZ3: =$F$3 -> 18065 | ADA3: 18065 | ADB3: 18065 | ADC3: 18065 | ADD3: 18065 | ADE3: 18065 | ADF3: 18065 | ADG3: 18065 | ADH3: 18065 | ADI3: 18065 | ADJ3: 18065 | ADK3: 18065 | ADL3: 18065 | ADM3: 18065 | ADN3: 18065 | ADO3: 18065 | ADP3: 18065 | ADQ3: 18065 | ADR3: 18065 | ADS3: 18065 | ADT3: 18065 | ADU3: 18065 | ADV3: 18065 | ADW3: 18065 | ADX3: 18065 | ADY3: 18065 | ADZ3: 18065 | AEA3: 18065 | AEB3: 18065 | AEC3: 18065 | AED3: 18065 | AEE3: 18065 | AEF3: 18065 | AEG3: 18065 | AEH3: 18065 | AEI3: 18065 | AEJ3: 18065 | AEK3: 18065 | AEL3: 18065 | AEM3: 18065 | AEN3: 18065 | AEO3: 18065 | AEP3: 18065 | AEQ3: 18065 | AER3: 18065 | AES3: 18065 | AET3: 18065 | AEU3: 18065 | AEV3: 18065 | AEW3: 18065 | AEX3: 18065 | AEY3: 18065 | AEZ3: 18065 | AFA3: 18065 | AFB3: 18065 | AFC3: 18065 | AFD3: 18065 | AFE3: 18065 | AFF3: 18065 | AFG3: 18065 | AFH3: 18065 | AFI3: 18065 | AFJ3: 18065 | AFK3: 18065 | AFL3: =$F$3 -> 18065 | AFM3: 18065 | AFN3: 18065 | AFO3: 18065 | AFP3: 18065 | AFQ3: 18065 | AFR3: 18065 | AFS3: 18065 | AFT3: 18065 | AFU3: 18065 | AFV3: 18065 | AFW3: 18065 | AFX3: 18065 | AFY3: 18065 | AFZ3: 18065 | AGA3: 18065 | AGB3: 18065 | AGC3: 18065 | AGD3: 18065 | AGE3: 18065 | AGF3: 18065 | AGG3: 18065 | AGH3: 18065 | AGI3: 18065 | AGJ3: 18065 | AGK3: 18065 | AGL3: 18065 | AGM3: 18065 | AGN3: 18065 | AGO3: 18065 | AGP3: 18065 | AGQ3: 18065 | AGR3: 18065 | AGS3: 18065 | AGT3: 18065 | AGU3: 18065 | AGV3: 18065 | AGW3: 18065 | AGX3: 18065 | AGY3: 18065 | AGZ3: 18065 | AHA3: 18065 | AHB3: 18065 | AHC3: 18065 | AHD3: 18065 | AHE3: 18065 | AHF3: 18065 | AHG3: 18065 | AHH3: 18065 | AHI3: 18065 | AHJ3: 18065 | AHK3: 18065 | AHL3: 18065 | AHM3: 18065 | AHN3: 18065 | AHO3: 18065 | AHP3: 18065 | AHQ3: 18065 | AHR3: 18065 | AHS3: 18065 | AHT3: 18065 | AHU3: 18065 | AHV3: 18065 | AHW3: 18065 | AHX3: =$F$3 -> 18065 | AHY3: 18065 | AHZ3: 18065 | AIA3: 18065 | AIB3: 18065 | AIC3: 18065 | AID3: 18065 | AIE3: 18065 | AIF3: 18065 | AIG3: 18065 | AIH3: 18065 | AII3: 18065 | AIJ3: 18065 | AIK3: 18065 | AIL3: 18065 | AIM3: 18065 | AIN3: 18065 | AIO3: 18065 | AIP3: 18065 | AIQ3: 18065 | AIR3: 18065 | AIS3: 18065 | AIT3: 18065 | AIU3: 18065 | AIV3: 18065 | AIW3: 18065 | AIX3: 18065 | AIY3: 18065 | AIZ3: 18065 | AJA3: 18065 | AJB3: 18065 | AJC3: 18065 | AJD3: 18065 | AJE3: 18065 | AJF3: 18065 | AJG3: 18065 | AJH3: 18065 | AJI3: 18065 | AJJ3: 18065 | AJK3: 18065 | AJL3: 18065 | AJM3: 18065 | AJN3: 18065 | AJO3: 18065 | AJP3: 18065 | AJQ3: 18065 | AJR3: 18065 | AJS3: 18065 | AJT3: 18065 | AJU3: 18065 | AJV3: 18065 | AJW3: 18065 | AJX3: 18065 | AJY3: 18065 | AJZ3: 18065 | AKA3: 18065 | AKB3: 18065 | AKC3: 18065 | AKD3: 18065 | AKE3: 18065 | AKF3: 18065 | AKG3: 18065 | AKH3: 18065 | AKI3: 18065 | AKJ3: =$F$3 -> 18065 | AKK3: 18065 | AKL3: 18065 | AKM3: 18065 | AKN3: 18065 | AKO3: 18065 | AKP3: 18065 | AKQ3: 18065 | AKR3: 18065 | AKS3: 18065 | AKT3: 18065 | AKU3: 18065 | AKV3: 18065 | AKW3: 18065 | AKX3: 18065 | AKY3: 18065 | AKZ3: 18065 | ALA3: 18065 | ALB3: 18065 | ALC3: 18065 | ALD3: 18065 | ALE3: 18065 | ALF3: 18065 | ALG3: 18065 | ALH3: 18065 | ALI3: 18065 | ALJ3: 18065 | ALK3: 18065 | ALL3: 18065 | ALM3: 18065 | ALN3: 18065 | ALO3: 18065 | ALP3: 18065 | ALQ3: 18065 | ALR3: 18065 | ALS3: 18065 | ALT3: 18065 | ALU3: 18065 | ALV3: 18065
A4: 2013-05-02 | B4: 5999.350098 | C4: =LN(B4/B3) -> 0.01159317423 | E4: Estimate the price of Nifty for the 20th day from today!! | J4: =J3+1 -> 1 | K4: =K3*EXP(NORMINV(RAND(),$E$2,$F$2)) -> 18064.88976 | L4: =L3*EXP(NORMINV(RAND(),$E$2,$F$2)) -> 17945.90089 | M4: 18111.60503 | N4: 18254.01306 | O4: 18270.21919 | P4: 17857.56468 | Q4: 18404.69686 | R4: 17639.27119 | S4: 17959.92396 | T4: 17694.14897 | U4: 18232.68377 | V4: 17974.38013 | W4: 18091.59408 | X4: 18037.70341 | Y4: 18088.43449 | Z4: 18151.94941 | AA4: 17883.79124 | AB4: 18471.85008 | AC4: 18039.46648 | AD4: 18160.65658 | AE4: 17982.7609 | AF4: 17949.01089 | AG4: 17867.85803 | AH4: 18283.43459 | AI4: 18214.32514 | AJ4: 18131.38038 | AK4: 18310.12177 | AL4: 18072.65924 | AM4: 18113.9887 | AN4: 18075.79049 | AO4: 17924.80461 | AP4: 18008.30614 | AQ4: 18000.0827 | AR4: 18254.9381 | AS4: 17905.87803 | AT4: 17780.96255 | AU4: 17770.73999 | AV4: 18110.17354 | AW4: 18142.98052 | AX4: 18115.87913 | AY4: 17967.98707 | AZ4: 18163.2407 | BA4: 18437.77123 | BB4: 18303.64933 | BC4: 18236.37921 | BD4: 18040.28888 | BE4: 17656.55774 | BF4: 18413.17872 | BG4: 17863.37542 | BH4: 17956.24568 | BI4: 18074.84224 | BJ4: 18043.19001 | BK4: 18174.07053 | BL4: 18083.48614 | BM4: 17951.47046 | BN4: 17970.55911 | BO4: 17892.9191 | BP4: 17978.66854 | BQ4: 18039.29893 | BR4: 17880.13047 | BS4: 18081.30529 | BT4: 17620.49248 | BU4: 18399.81576 | BV4: 18114.36794 | BW4: 17823.14002 | BX4: =BX3*EXP(NORMINV(RAND(),$E$2,$F$2)) -> 18125.5319 | BY4: 17825.85423 | BZ4: 18128.55995 | CA4: 17844.59534 | CB4: 18078.79233 | CC4: 18153.84948 | CD4: 18094.15949 | CE4: 17998.5695 | CF4: 18042.84171 | CG4: 18303.67184 | CH4: 17683.92683 | CI4: 18038.04924 | CJ4: 17989.50486 | CK4: 18040.79575 | CL4: 18124.21543 | CM4: 18199.18947 | CN4: 18459.56567 | CO4: 17968.65045 | CP4: 18168.37543 | CQ4: 18079.15108 | CR4: 18045.98163 | CS4: 17989.18595 | CT4: 18022.94161 | CU4: 17924.98644 | CV4: 18299.80784 | CW4: 18114.20566 | CX4: 18024.09295 | CY4: 18078.47983 | CZ4: 17865.65903 | DA4: 18184.50123 | DB4: 17868.03052 | DC4: 18330.59544 | DD4: 18038.22622 | DE4: 18177.78269 | DF4: 17914.83343 | DG4: 17934.98436 | DH4: 17834.73572 | DI4: 17980.34788 | DJ4: 18341.26293 | DK4: 17996.91465 | DL4: 18034.26585 | DM4: 17878.03421 | DN4: 18081.79614 | DO4: 17926.82983 | DP4: 18407.99854 | DQ4: 18342.54535 | DR4: 18401.28744 | DS4: 18524.76611 | DT4: 17960.63014 | DU4: 17931.6934 | DV4: 17680.16081 | DW4: 18296.61947 | DX4: 18101.47274 | DY4: 18273.45095 | DZ4: 17816.09248 | EA4: 17858.30971 | EB4: 17860.3178 | EC4: 18006.6505 | ED4: 18012.25344 | EE4: 18000.26653 | EF4: 18299.70275 | EG4: 17972.47266 | EH4: 18081.43794 | EI4: 18162.94448 | EJ4: =EJ3*EXP(NORMINV(RAND(),$E$2,$F$2)) -> 18362.16109 | EK4: 17781.3935 | EL4: 18087.15727 | EM4: 18053.1687 | EN4: 17529.3741 | EO4: 17853.29754 | EP4: 17862.08135 | EQ4: 17904.82216 | ER4: 17868.1751 | ES4: 17739.66021 | ET4: 18058.33371 | EU4: 18102.9199 | EV4: 18043.67125 | EW4: 18009.83746 | EX4: 18184.79455 | EY4: 17934.64808 | EZ4: 17962.18824 | FA4: 18219.09878 | FB4: 18058.62173 | FC4: 17801.92854 | FD4: 18151.83653 | FE4: 17781.56033 | FF4: 18144.23811 | FG4: 17802.6468 | FH4: 18125.18187 | FI4: 17932.7011 | FJ4: 17987.98608 | FK4: 18183.45815 | FL4: 17794.37262 | FM4: 18060.87946 | FN4: 17860.9522 | FO4: 18232.97472 | FP4: 18490.54356 | FQ4: 17978.43478 | FR4: 17886.93872 | FS4: 17893.93692 | FT4: 17894.42522 | FU4: 17632.75383 | FV4: 18320.30212 | FW4: 17985.79449 | FX4: 18214.87047 | FY4: 18207.23729 | FZ4: 18060.07296 | GA4: 17899.09871 | GB4: 18136.89461 | GC4: 17977.18667 | GD4: 17932.62845 | GE4: 17932.36982 | GF4: 18088.08572 | GG4: 18054.03379 | GH4: 18094.63562 | GI4: 18517.36322 | GJ4: 18145.11313 | GK4: 18445.19081 | GL4: 17907.75259 | GM4: 18089.49517 | GN4: 17975.76309 | GO4: 18288.09011 | GP4: 18113.97482 | GQ4: 18299.27755 | GR4: 18231.6895 | GS4: 17891.41843 | GT4: 18040.55881 | GU4: 18173.44875 | GV4: =GV3*EXP(NORMINV(RAND(),$E$2,$F$2)) -> 17950.75062 | GW4: 18138.01345 | GX4: 18429.89048 | GY4: 18246.76357 | GZ4: 18103.15038 | HA4: 17865.08745 | HB4: 18424.64597 | HC4: 17790.60443 | HD4: 18341.73479 | HE4: 18213.36311 | HF4: 18275.12215 | HG4: 17806.10862 | HH4: 17987.17901 | HI4: 18421.91384 | HJ4: 18560.70777 | HK4: 18154.91852 | HL4: 18520.94266 | HM4: 18187.62921 | HN4: 18257.01769 | HO4: 18105.47638 | HP4: 17943.13603 | HQ4: 17801.61557 | HR4: 18487.00054 | HS4: 18318.08445 | HT4: 17954.75086 | HU4: 18000.95064 | HV4: 18386.99649 | HW4: 18337.75674 | HX4: 18169.57131 | HY4: 18127.85513 | HZ4: 18050.48398 | IA4: 17841.47705 | IB4: 18062.74198 | IC4: 17831.11539 | ID4: 18202.8969 | IE4: 18079.46207 | IF4: 17841.22355 | IG4: 18240.39261 | IH4: 18184.79802 | II4: 17950.78649 | IJ4: 18024.96103 | IK4: 18214.02813 | IL4: 18596.59368 | IM4: 17857.0982 | IN4: 18043.39665 | IO4: 18054.00537 | IP4: 18045.39184 | IQ4: 18064.59339 | IR4: 18018.40401 | IS4: 18127.38948 | IT4: 18082.38003 | IU4: 18283.43746 | IV4: 17864.66848 | IW4: 18135.41395 | IX4: 18333.22616 | IY4: 18017.43855 | IZ4: 18201.14271 | JA4: 18362.87943 | JB4: 18064.04853 | JC4: 17930.71372 | JD4: 18211.2878 | JE4: 17989.96183 | JF4: 18063.80893 | JG4: 18015.42903 | JH4: =JH3*EXP(NORMINV(RAND(),$E$2,$F$2)) -> 17756.57384 | JI4: 18013.71293 | JJ4: 18072.78835 | JK4: 17743.03725 | JL4: 18000.87516 | JM4: 18191.70162 | JN4: 18150.03985 | JO4: 18164.69609 | JP4: 17982.34409 | JQ4: 18252.03327 | JR4: 18066.38335 | JS4: 17701.28336 | JT4: 18251.80338 | JU4: 18166.33609 | JV4: 18257.59314 | JW4: 18159.34801 | JX4: 17968.35094 | JY4: 18310.88719 | JZ4: 18259.35627 | KA4: 17825.81699 | KB4: 18258.26747 | KC4: 18137.04242 | KD4: 18372.92949 | KE4: 18549.7126 | KF4: 17914.50567 | KG4: 17955.3366 | KH4: 17779.39733 | KI4: 18190.50069 | KJ4: 17862.95077 | KK4: 17791.55368 | KL4: 18238.52719 | KM4: 18131.25405 | KN4: 17804.64543 | KO4: 17846.89883 | KP4: 18017.95671 | KQ4: 17828.86081 | KR4: 18044.20438 | KS4: 17713.29845 | KT4: 18310.31776 | KU4: 17725.04564 | KV4: 17955.21358 | KW4: 18012.36697 | KX4: 18089.97846 | KY4: 18056.52165 | KZ4: 18250.56206 | LA4: 17769.65714 | LB4: 18249.192 | LC4: 18139.19263 | LD4: 18105.47471 | LE4: 18243.19447 | LF4: 18635.69971 | LG4: 18127.84727 | LH4: 18045.54748 | LI4: 18249.61031 | LJ4: 17814.69099 | LK4: 17903.30547 | LL4: 17847.46102 | LM4: 18239.13476 | LN4: 18160.74271 | LO4: 17913.60738 | LP4: 18256.94612 | LQ4: 18336.30744 | LR4: 17900.9396 | LS4: 18222.5547 | LT4: =LT3*EXP(NORMINV(RAND(),$E$2,$F$2)) -> 17868.62503 | LU4: 18026.78427 | LV4: 17782.00995 | LW4: 17759.3779 | LX4: 17901.72988 | LY4: 18152.65868 | LZ4: 18212.93517 | MA4: 18188.95794 | MB4: 18019.2117 | MC4: 17756.75597 | MD4: 17879.859 | ME4: 18119.22631 | MF4: 17823.00618 | MG4: 17952.28771 | MH4: 18298.98045 | MI4: 18076.16106 | MJ4: 17741.37645 | MK4: 17856.68769 | ML4: 17744.93124 | MM4: 18156.5582 | MN4: 17751.22938 | MO4: 17971.87911 | MP4: 18118.21523 | MQ4: 18129.2346 | MR4: 18113.06633 | MS4: 17779.72478 | MT4: 18162.68884 | MU4: 18248.93643 | MV4: 18378.27525 | MW4: 17947.38051 | MX4: 18101.04737 | MY4: 18031.80658 | MZ4: 18018.85915 | NA4: 17793.58795 | NB4: 18223.94541 | NC4: 18201.84161 | ND4: 18060.61291 | NE4: 18260.9289 | NF4: 18052.4269 | NG4: 18582.10302 | NH4: 18151.11154 | NI4: 18149.775 | NJ4: 17805.05834 | NK4: 18323.29104 | NL4: 17892.74543 | NM4: 17962.00103 | NN4: 18070.00295 | NO4: 18117.49829 | NP4: 18463.95629 | NQ4: 18253.87486 | NR4: 18374.79438 | NS4: 17907.94861 | NT4: 18149.72796 | NU4: 18072.93084 | NV4: 18112.98098 | NW4: 18091.90043 | NX4: 18177.98574 | NY4: 18438.29869 | NZ4: 17849.04673 | OA4: 18185.99034 | OB4: 18057.99863 | OC4: 17720.99379 | OD4: 18075.81932 | OE4: 18349.07713 | OF4: =OF3*EXP(NORMINV(RAND(),$E$2,$F$2)) -> 18119.97103 | OG4: 18276.7384 | OH4: 17624.50563 | OI4: 18040.16398 | OJ4: 18172.27103 | OK4: 18115.30966 | OL4: 17741.59956 | OM4: 18000.30321 | ON4: 18014.70992 | OO4: 18134.96225 | OP4: 18128.62955 | OQ4: 17818.58899 | OR4: 17973.20357 | OS4: 17804.56604 | OT4: 17923.70724 | OU4: 18128.7604 | OV4: 18308.61545 | OW4: 18094.66545 | OX4: 18013.54165 | OY4: 17929.07024 | OZ4: 17949.59159 | PA4: 17981.36533 | PB4: 17988.11725 | PC4: 17811.81609 | PD4: 17522.35872 | PE4: 18052.83437 | PF4: 18100.84578 | PG4: 17879.97691 | PH4: 18418.51185 | PI4: 18243.47045 | PJ4: 18057.12763 | PK4: 18392.62435 | PL4: 17845.16378 | PM4: 17927.87967 | PN4: 17791.59476 | PO4: 18234.04575 | PP4: 18081.69822 | PQ4: 17683.7042 | PR4: 18053.48382 | PS4: 18210.35936 | PT4: 17941.80634 | PU4: 18097.73049 | PV4: 18304.8843 | PW4: 18196.17429 | PX4: 18378.15712 | PY4: 18522.8593 | PZ4: 17882.11681 | QA4: 18127.08848 | QB4: 17809.46112 | QC4: 17963.08705 | QD4: 18297.70665 | QE4: 18181.71017 | QF4: 18192.78499 | QG4: 18106.64084 | QH4: 17746.9628 | QI4: 17977.48853 | QJ4: 18268.36891 | QK4: 18017.97619 | QL4: 18097.31165 | QM4: 18130.79954 | QN4: 18237.90651 | QO4: 18416.44294 | QP4: 18144.40628 | QQ4: 18186.47902 | QR4: =QR3*EXP(NORMINV(RAND(),$E$2,$F$2)) -> 18044.20727 | QS4: 18049.60316 | QT4: 18076.27959 | QU4: 18195.33754 | QV4: 18368.52085 | QW4: 17830.18535 | QX4: 18096.12448 | QY4: 18244.16742 | QZ4: 18359.54442 | RA4: 17998.24703 | RB4: 18029.65001 | RC4: 17999.98177 | RD4: 17786.50354 | RE4: 18290.46084 | RF4: 17849.48541 | RG4: 18043.26327 | RH4: 18231.62897 | RI4: 17921.31997 | RJ4: 18092.66172 | RK4: 18058.50565 | RL4: 17885.24385 | RM4: 17862.35461 | RN4: 18097.46368 | RO4: 18242.97915 | RP4: 18009.32268 | RQ4: 17900.57183 | RR4: 18415.85707 | RS4: 18251.67544 | RT4: 18048.14933 | RU4: 18023.36719 | RV4: 18249.01425 | RW4: 18103.53136 | RX4: 18368.88337 | RY4: 18125.71658 | RZ4: 18231.11807 | SA4: 17783.22802 | SB4: 18078.19206 | SC4: 18282.80279 | SD4: 18037.62922 | SE4: 18289.3448 | SF4: 17678.13367 | SG4: 18112.96101 | SH4: 18195.06861 | SI4: 17695.36023 | SJ4: 17775.42362 | SK4: 18053.30045 | SL4: 17945.74141 | SM4: 18300.99564 | SN4: 18243.88604 | SO4: 18429.69216 | SP4: 18019.99271 | SQ4: 18208.67398 | SR4: 18250.09972 | SS4: 18088.75946 | ST4: 17937.08457 | SU4: 17861.1177 | SV4: 18022.21926 | SW4: 18113.09451 | SX4: 18222.3309 | SY4: 17914.16112 | SZ4: 18188.12645 | TA4: 17834.39751 | TB4: 17960.16706 | TC4: 18074.01228 | TD4: =TD3*EXP(NORMINV(RAND(),$E$2,$F$2)) -> 18349.29329 | TE4: 18295.71543 | TF4: 17808.79501 | TG4: 18163.4936 | TH4: 17933.48218 | TI4: 17959.38535 | TJ4: 18073.55492 | TK4: 17822.01494 | TL4: 18635.25942 | TM4: 18033.43822 | TN4: 18042.97302 | TO4: 17983.47745 | TP4: 17903.05032 | TQ4: 18321.42831 | TR4: 18219.06262 | TS4: 17982.62959 | TT4: 18105.17536 | TU4: 18082.20279 | TV4: 18083.04902 | TW4: 18130.53785 | TX4: 17947.30309 | TY4: 17936.10985 | TZ4: 18153.56725 | UA4: 18076.16227 | UB4: 18237.74882 | UC4: 18113.13183 | UD4: 17864.92658 | UE4: 18016.01281 | UF4: 18055.99091 | UG4: 18462.79463 | UH4: 17880.43075 | UI4: 17769.53683 | UJ4: 18183.90908 | UK4: 17866.07442 | UL4: 17931.55516 | UM4: 18446.37649 | UN4: 17737.71305 | UO4: 17945.40671 | UP4: 18515.24028 | UQ4: 17923.83211 | UR4: 17867.78924 | US4: 17922.03781 | UT4: 17933.64004 | UU4: 18082.54187 | UV4: 17854.01227 | UW4: 18112.87021 | UX4: 17899.52426 | UY4: 18170.55717 | UZ4: 17780.55823 | VA4: 17757.61825 | VB4: 18058.81634 | VC4: 18112.01335 | VD4: 18169.01717 | VE4: 17861.3125 | VF4: 18121.63923 | VG4: 17831.27122 | VH4: 17868.86183 | VI4: 17724.80338 | VJ4: 17937.35611 | VK4: 18025.36987 | VL4: 18079.0924 | VM4: 17943.68744 | VN4: 18289.54498 | VO4: 18351.51173 | VP4: =VP3*EXP(NORMINV(RAND(),$E$2,$F$2)) -> 18303.34603 | VQ4: 18172.64375 | VR4: 17778.53883 | VS4: 18007.30829 | VT4: 17798.84565 | VU4: 17805.9172 | VV4: 18102.03309 | VW4: 18107.11604 | VX4: 17913.7773 | VY4: 18119.10112 | VZ4: 17841.05773 | WA4: 18183.45995 | WB4: 18242.47028 | WC4: 18357.93342 | WD4: 18002.36171 | WE4: 18045.34462 | WF4: 18012.9695 | WG4: 18423.01052 | WH4: 17979.19231 | WI4: 18247.58569 | WJ4: 18162.49719 | WK4: 17974.82789 | WL4: 18155.58124 | WM4: 17531.10247 | WN4: 18115.75073 | WO4: 18062.66784 | WP4: 18158.42677 | WQ4: 18319.14717 | WR4: 18027.91665 | WS4: 18181.4173 | WT4: 18219.41215 | WU4: 18082.17074 | WV4: 17928.7072 | WW4: 17936.29367 | WX4: 18215.4705 | WY4: 18149.70045 | WZ4: 18103.85669 | XA4: 18111.93423 | XB4: 18021.15716 | XC4: 18198.81366 | XD4: 18130.51059 | XE4: 18172.98408 | XF4: 18190.977 | XG4: 18054.26663 | XH4: 18268.69746 | XI4: 18123.72949 | XJ4: 17881.59577 | XK4: 17834.57503 | XL4: 17947.44535 | XM4: 18142.53199 | XN4: 17970.09603 | XO4: 17924.60257 | XP4: 17735.23606 | XQ4: 17763.28708 | XR4: 18237.66455 | XS4: 18649.00428 | XT4: 17732.73791 | XU4: 17994.08914 | XV4: 18434.01984 | XW4: 18529.01898 | XX4: 18307.67772 | XY4: 18030.79215 | XZ4: 18159.41243 | YA4: 18263.81476 | YB4: =YB3*EXP(NORMINV(RAND(),$E$2,$F$2)) -> 17741.87209 | YC4: 17895.2358 | YD4: 18128.00809 | YE4: 18378.13837 | YF4: 18063.70399 | YG4: 17855.21216 | YH4: 18198.83747 | YI4: 18199.05872 | YJ4: 18096.54709 | YK4: 18143.30948 | YL4: 18213.54002 | YM4: 17878.24918 | YN4: 17941.54521 | YO4: 17986.96846 | YP4: 18304.45601 | YQ4: 18144.11705 | YR4: 18176.39642 | YS4: 18311.68267 | YT4: 17743.82228 | YU4: 18133.41982 | YV4: 18000.07199 | YW4: 17728.49543 | YX4: 17789.51221 | YY4: 17909.54592 | YZ4: 18178.34656 | ZA4: 17958.17138 | ZB4: 18276.03122 | ZC4: 18057.27174 | ZD4: 17678.28783 | ZE4: 18337.20578 | ZF4: 18088.29055 | ZG4: 18520.45263 | ZH4: 18316.62764 | ZI4: 17981.75777 | ZJ4: 18277.34417 | ZK4: 18308.63993 | ZL4: 18283.6916 | ZM4: 17741.92747 | ZN4: 17812.76414 | ZO4: 17946.82094 | ZP4: 17986.97729 | ZQ4: 18325.56549 | ZR4: 17729.82329 | ZS4: 17546.64124 | ZT4: 17836.81868 | ZU4: 17935.27291 | ZV4: 18354.81558 | ZW4: 18090.49215 | ZX4: 18084.90304 | ZY4: 18166.42022 | ZZ4: 18334.90005 | AAA4: 17994.92326 | AAB4: 18288.64075 | AAC4: 17913.21706 | AAD4: 18067.51199 | AAE4: 18628.0609 | AAF4: 17909.2567 | AAG4: 18353.1309 | AAH4: 18381.02715 | AAI4: 18276.94433 | AAJ4: 18335.99363 | AAK4: 18317.38634 | AAL4: 18349.17901 | AAM4: 18107.5936 | AAN4: =AAN3*EXP(NORMINV(RAND(),$E$2,$F$2)) -> 18239.24344 | AAO4: 18439.20731 | AAP4: 18253.28997 | AAQ4: 18308.19814 | AAR4: 17821.44466 | AAS4: 18215.34896 | AAT4: 18346.04023 | AAU4: 17923.6547 | AAV4: 17880.53988 | AAW4: 18155.63468 | AAX4: 18100.21992 | AAY4: 18005.22909 | AAZ4: 18213.44085 | ABA4: 18028.43154 | ABB4: 18147.84395 | ABC4: 18160.27294 | ABD4: 18407.94257 | ABE4: 17836.33261 | ABF4: 18095.10613 | ABG4: 18139.51449 | ABH4: 17794.09539 | ABI4: 18436.87279 | ABJ4: 18213.25629 | ABK4: 18204.66061 | ABL4: 18058.32757 | ABM4: 18128.41158 | ABN4: 18275.48233 | ABO4: 18304.43125 | ABP4: 17755.43454 | ABQ4: 18253.3446 | ABR4: 18278.56495 | ABS4: 17898.67926 | ABT4: 18360.2835 | ABU4: 18259.29601 | ABV4: 17990.40248 | ABW4: 18248.7875 | ABX4: 18163.83734 | ABY4: 18153.34479 | ABZ4: 18073.12017 | ACA4: 17779.29089 | ACB4: 18179.33332 | ACC4: 18119.4457 | ACD4: 18092.66634 | ACE4: 18063.5763 | ACF4: 17935.38267 | ACG4: 18250.8888 | ACH4: 18051.76097 | ACI4: 17911.58631 | ACJ4: 18004.68139 | ACK4: 17867.49513 | ACL4: 18269.1755 | ACM4: 18023.1579 | ACN4: 17909.57837 | ACO4: 17876.49054 | ACP4: 18086.3051 | ACQ4: 18109.2173 | ACR4: 18244.82397 | ACS4: 18270.84416 | ACT4: 17891.65911 | ACU4: 17908.34998 | ACV4: 18576.84939 | ACW4: 18181.90456 | ACX4: 18001.27786 | ACY4: 17728.22909 | ACZ4: =ACZ3*EXP(NORMINV(RAND(),$E$2,$F$2)) -> 17895.65043 | ADA4: 18042.96826 | ADB4: 17923.37332 | ADC4: 17909.86947 | ADD4: 17755.21929 | ADE4: 18133.44609 | ADF4: 18232.21016 | ADG4: 18355.99207 | ADH4: 17868.81325 | ADI4: 18020.03178 | ADJ4: 18248.78224 | ADK4: 18094.19127 | ADL4: 18080.60299 | ADM4: 18105.38981 | ADN4: 18199.093 | ADO4: 18208.25945 | ADP4: 18172.17935 | ADQ4: 17990.45604 | ADR4: 18038.42304 | ADS4: 18246.1743 | ADT4: 18466.17578 | ADU4: 18027.10092 | ADV4: 18263.03146 | ADW4: 18390.14601 | ADX4: 17942.80016 | ADY4: 17992.56625 | ADZ4: 17930.21494 | AEA4: 18220.23725 | AEB4: 18464.96044 | AEC4: 17855.20018 | AED4: 18156.29984 | AEE4: 18091.02261 | AEF4: 18167.3466 | AEG4: 18236.93166 | AEH4: 17983.68221 | AEI4: 18107.19386 | AEJ4: 17892.95158 | AEK4: 18023.30798 | AEL4: 17795.12985 | AEM4: 17918.79472 | AEN4: 18025.85386 | AEO4: 17693.14035 | AEP4: 18323.7272 | AEQ4: 18207.95997 | AER4: 18212.15218 | AES4: 18335.22899 | AET4: 17945.41383 | AEU4: 17947.51172 | AEV4: 18048.30591 | AEW4: 18394.74824 | AEX4: 18112.49472 | AEY4: 17861.40602 | AEZ4: 18069.01038 | AFA4: 17712.42739 | AFB4: 18116.78613 | AFC4: 18388.19177 | AFD4: 18124.68503 | AFE4: 17980.95806 | AFF4: 18266.43295 | AFG4: 18275.93928 | AFH4: 17653.86311 | AFI4: 17812.43194 | AFJ4: 18083.69881 | AFK4: 17776.58113 | AFL4: =AFL3*EXP(NORMINV(RAND(),$E$2,$F$2)) -> 18507.87471 | AFM4: 18311.63953 | AFN4: 18005.85649 | AFO4: 18136.19129 | AFP4: 17997.48074 | AFQ4: 18211.61906 | AFR4: 18160.53325 | AFS4: 18096.77646 | AFT4: 17970.6508 | AFU4: 18128.50621 | AFV4: 17920.42189 | AFW4: 17797.02879 | AFX4: 17645.83341 | AFY4: 18132.62203 | AFZ4: 18221.74686 | AGA4: 18427.43908 | AGB4: 18052.79187 | AGC4: 18129.90372 | AGD4: 18170.72924 | AGE4: 17987.125 | AGF4: 18128.0163 | AGG4: 18149.31173 | AGH4: 18077.01292 | AGI4: 17932.28268 | AGJ4: 17590.88174 | AGK4: 18008.98686 | AGL4: 17957.26134 | AGM4: 18212.00342 | AGN4: 17909.35568 | AGO4: 17999.15093 | AGP4: 18295.04936 | AGQ4: 17415.60402 | AGR4: 17902.42364 | AGS4: 18141.29423 | AGT4: 18226.44989 | AGU4: 18083.08213 | AGV4: 17968.59384 | AGW4: 18178.63277 | AGX4: 18204.21504 | AGY4: 18190.07438 | AGZ4: 18031.41405 | AHA4: 18290.17756 | AHB4: 18294.30276 | AHC4: 17877.47738 | AHD4: 18197.9748 | AHE4: 18433.79638 | AHF4: 18306.54589 | AHG4: 17925.90769 | AHH4: 17748.12957 | AHI4: 18107.78978 | AHJ4: 17842.54571 | AHK4: 18237.88097 | AHL4: 18273.14513 | AHM4: 17976.98708 | AHN4: 18027.64853 | AHO4: 17960.17047 | AHP4: 18509.45362 | AHQ4: 17883.56038 | AHR4: 18293.03711 | AHS4: 18273.05739 | AHT4: 18466.9344 | AHU4: 18053.30173 | AHV4: 18191.88816 | AHW4: 18016.05082 | AHX4: =AHX3*EXP(NORMINV(RAND(),$E$2,$F$2)) -> 18257.44096 | AHY4: 17968.01066 | AHZ4: 17715.49911 | AIA4: 18090.27943 | AIB4: 18034.04247 | AIC4: 18071.08646 | AID4: 18022.86267 | AIE4: 18510.53118 | AIF4: 18143.94452 | AIG4: 17722.23489 | AIH4: 18260.80659 | AII4: 18561.90619 | AIJ4: 18095.01105 | AIK4: 17967.84275 | AIL4: 18097.89406 | AIM4: 18279.86408 | AIN4: 18283.8311 | AIO4: 18239.14682 | AIP4: 18084.55633 | AIQ4: 18108.70519 | AIR4: 18075.69251 | AIS4: 18010.28832 | AIT4: 18000.21456 | AIU4: 17879.1863 | AIV4: 18362.98786 | AIW4: 17869.67577 | AIX4: 18177.23897 | AIY4: 18123.38249 | AIZ4: 18029.2166 | AJA4: 18165.40147 | AJB4: 18368.7477 | AJC4: 17977.13979 | AJD4: 17925.11615 | AJE4: 17837.48717 | AJF4: 17992.35362 | AJG4: 17921.36412 | AJH4: 17941.89011 | AJI4: 18019.52602 | AJJ4: 18219.7184 | AJK4: 18047.26051 | AJL4: 17885.18148 | AJM4: 18243.87881 | AJN4: 17735.8134 | AJO4: 18470.42203 | AJP4: 17912.52269 | AJQ4: 17886.82873 | AJR4: 18192.35629 | AJS4: 18191.38886 | AJT4: 17909.82125 | AJU4: 17864.24466 | AJV4: 17984.95125 | AJW4: 18197.83361 | AJX4: 17890.29951 | AJY4: 17847.29698 | AJZ4: 18361.63226 | AKA4: 17828.43977 | AKB4: 17662.88563 | AKC4: 17938.75936 | AKD4: 18037.07808 | AKE4: 18034.49386 | AKF4: 18005.0213 | AKG4: 18136.56226 | AKH4: 18133.85523 | AKI4: 17976.13749 | AKJ4: =AKJ3*EXP(NORMINV(RAND(),$E$2,$F$2)) -> 18128.64656 | AKK4: 17946.68278 | AKL4: 18215.32207 | AKM4: 18003.13692 | AKN4: 18013.90445 | AKO4: 18004.36651 | AKP4: 18265.67766 | AKQ4: 17970.05534 | AKR4: 17856.48001 | AKS4: 18216.26667 | AKT4: 18301.37046 | AKU4: 18333.7624 | AKV4: 18080.96845 | AKW4: 18105.44338 | AKX4: 17799.02131 | AKY4: 18014.03018 | AKZ4: 18071.48846 | ALA4: 17746.73418 | ALB4: 17943.89463 | ALC4: 18218.92976 | ALD4: 18134.76871 | ALE4: 18187.22928 | ALF4: 17866.09434 | ALG4: 18009.20391 | ALH4: 18009.66781 | ALI4: 18378.20609 | ALJ4: 18156.02325 | ALK4: 18421.23721 | ALL4: 18333.45077 | ALM4: 18129.90067 | ALN4: 17895.20837 | ALO4: 18092.37987 | ALP4: 18372.14518 | ALQ4: 18176.09008 | ALR4: 18005.88693 | ALS4: 18176.85675 | ALT4: 18190.14918 | ALU4: 18403.47358 | ALV4: 18060.54649
A5: 2013-05-03 | B5: 5944 | C5: -0.009268838946 | J5: =J4+1 -> 2 | K5: =K4*EXP(NORMINV(RAND(),$E$2,$F$2)) -> 17959.25523 | L5: =L4*EXP(NORMINV(RAND(),$E$2,$F$2)) -> 17853.64817 | M5: =M4*EXP(NORMINV(RAND(),$E$2,$F$2)) -> 18408.0213 | N5: =N4*EXP(NORMINV(RAND(),$E$2,$F$2)) -> 18010.013 | O5: =O4*EXP(NORMINV(RAND(),$E$2,$F$2)) -> 18470.68952 | P5: =P4*EXP(NORMINV(RAND(),$E$2,$F$2)) -> 17745.60174 | Q5: =Q4*EXP(NORMINV(RAND(),$E$2,$F$2)) -> 18167.39939 | R5: =R4*EXP(NORMINV(RAND(),$E$2,$F$2)) -> 17808.3235 | S5: =S4*EXP(NORMINV(RAND(),$E$2,$F$2)) -> 17836.62621 | T5: =T4*EXP(NORMINV(RAND(),$E$2,$F$2)) -> 17764.69527 | U5: =U4*EXP(NORMINV(RAND(),$E$2,$F$2)) -> 18169.62588 | V5: =V4*EXP(NORMINV(RAND(),$E$2,$F$2)) -> 17974.60983 | W5: =W4*EXP(NORMINV(RAND(),$E$2,$F$2)) -> 18062.25225 | X5: =X4*EXP(NORMINV(RAND(),$E$2,$F$2)) -> 18160.76882 | Y5: =Y4*EXP(NORMINV(RAND(),$E$2,$F$2)) -> 18074.72928 | Z5: =Z4*EXP(NORMINV(RAND(),$E$2,$F$2)) -> 18370.71952 | AA5: =AA4*EXP(NORMINV(RAND(),$E$2,$F$2)) -> 17937.02072 | AB5: =AB4*EXP(NORMINV(RAND(),$E$2,$F$2)) -> 18558.43567 | AC5: =AC4*EXP(NORMINV(RAND(),$E$2,$F$2)) -> 17800.75352 | AD5: =AD4*EXP(NORMINV(RAND(),$E$2,$F$2)) -> 18458.92539 | AE5: =AE4*EXP(NORMINV(RAND(),$E$2,$F$2)) -> 17781.1823 | AF5: =AF4*EXP(NORMINV(RAND(),$E$2,$F$2)) -> 17914.95158 | AG5: =AG4*EXP(NORMINV(RAND(),$E$2,$F$2)) -> 17874.29659 | AH5: =AH4*EXP(NORMINV(RAND(),$E$2,$F$2)) -> 17634.53268 | AI5: =AI4*EXP(NORMINV(RAND(),$E$2,$F$2)) -> 18120.89677 | AJ5: =AJ4*EXP(NORMINV(RAND(),$E$2,$F$2)) -> 17878.9437 | AK5: =AK4*EXP(NORMINV(RAND(),$E$2,$F$2)) -> 18447.81537 | AL5: =AL4*EXP(NORMINV(RAND(),$E$2,$F$2)) -> 17779.09097 | AM5: =AM4*EXP(NORMINV(RAND(),$E$2,$F$2)) -> 18158.61325 | AN5: =AN4*EXP(NORMINV(RAND(),$E$2,$F$2)) -> 17993.69234 | AO5: =AO4*EXP(NORMINV(RAND(),$E$2,$F$2)) -> 17749.30501 | AP5: =AP4*EXP(NORMINV(RAND(),$E$2,$F$2)) -> 17845.38741 | AQ5: =AQ4*EXP(NORMINV(RAND(),$E$2,$F$2)) -> 18131.71364 | AR5: =AR4*EXP(NORMINV(RAND(),$E$2,$F$2)) -> 18362.08001 | AS5: =AS4*EXP(NORMINV(RAND(),$E$2,$F$2)) -> 17710.68864 | AT5: =AT4*EXP(NORMINV(RAND(),$E$2,$F$2)) -> 17862.09743 | AU5: =AU4*EXP(NORMINV(RAND(),$E$2,$F$2)) -> 17581.14085 | AV5: =AV4*EXP(NORMINV(RAND(),$E$2,$F$2)) -> 18163.2055 | AW5: =AW4*EXP(NORMINV(RAND(),$E$2,$F$2)) -> 18100.90936 | AX5: =AX4*EXP(NORMINV(RAND(),$E$2,$F$2)) -> 18072.76928 | AY5: =AY4*EXP(NORMINV(RAND(),$E$2,$F$2)) -> 18055.9888 | AZ5: =AZ4*EXP(NORMINV(RAND(),$E$2,$F$2)) -> 17986.54972 | BA5: =BA4*EXP(NORMINV(RAND(),$E$2,$F$2)) -> 18726.33992 | BB5: =BB4*EXP(NORMINV(RAND(),$E$2,$F$2)) -> 18070.47969 | BC5: =BC4*EXP(NORMINV(RAND(),$E$2,$F$2)) -> 17849.59836 | BD5: =BD4*EXP(NORMINV(RAND(),$E$2,$F$2)) -> 18418.76222 | BE5: =BE4*EXP(NORMINV(RAND(),$E$2,$F$2)) -> 17397.43713 | BF5: =BF4*EXP(NORMINV(RAND(),$E$2,$F$2)) -> 18125.47384 | BG5: =BG4*EXP(NORMINV(RAND(),$E$2,$F$2)) -> 18095.77257 | BH5: =BH4*EXP(NORMINV(RAND(),$E$2,$F$2)) -> 18203.63787 | BI5: =BI4*EXP(NORMINV(RAND(),$E$2,$F$2)) -> 18069.44233 | BJ5: =BJ4*EXP(NORMINV(RAND(),$E$2,$F$2)) -> 18298.94523 | BK5: =BK4*EXP(NORMINV(RAND(),$E$2,$F$2)) -> 18201.2908 | BL5: =BL4*EXP(NORMINV(RAND(),$E$2,$F$2)) -> 18167.793 | BM5: =BM4*EXP(NORMINV(RAND(),$E$2,$F$2)) -> 18220.12899 | BN5: =BN4*EXP(NORMINV(RAND(),$E$2,$F$2)) -> 17817.55628 | BO5: =BO4*EXP(NORMINV(RAND(),$E$2,$F$2)) -> 18179.72415 | BP5: =BP4*EXP(NORMINV(RAND(),$E$2,$F$2)) -> 17782.36293 | BQ5: =BQ4*EXP(NORMINV(RAND(),$E$2,$F$2)) -> 18350.55498 | BR5: =BR4*EXP(NORMINV(RAND(),$E$2,$F$2)) -> 17866.7813 | BS5: =BS4*EXP(NORMINV(RAND(),$E$2,$F$2)) -> 18088.63069 | BT5: =BT4*EXP(NORMINV(RAND(),$E$2,$F$2)) -> 17619.5081 | BU5: =BU4*EXP(NORMINV(RAND(),$E$2,$F$2)) -> 18391.85698 | BV5: =BV4*EXP(NORMINV(RAND(),$E$2,$F$2)) -> 17983.29084 | BW5: =BW4*EXP(NORMINV(RAND(),$E$2,$F$2)) -> 18034.51851 | BX5: =BX4*EXP(NORMINV(RAND(),$E$2,$F$2)) -> 18060.95133 | BY5: =BY4*EXP(NORMINV(RAND(),$E$2,$F$2)) -> 18079.54392 | BZ5: =BZ4*EXP(NORMINV(RAND(),$E$2,$F$2)) -> 18019.95627 | CA5: =CA4*EXP(NORMINV(RAND(),$E$2,$F$2)) -> 17859.37429 | CB5: =CB4*EXP(NORMINV(RAND(),$E$2,$F$2)) -> 18039.50504 | CC5: =CC4*EXP(NORMINV(RAND(),$E$2,$F$2)) -> 18274.90915 | CD5: =CD4*EXP(NORMINV(RAND(),$E$2,$F$2)) -> 18113.93309 | CE5: =CE4*EXP(NORMINV(RAND(),$E$2,$F$2)) -> 18004.18107 | CF5: =CF4*EXP(NORMINV(RAND(),$E$2,$F$2)) -> 18241.33247 | CG5: =CG4*EXP(NORMINV(RAND(),$E$2,$F$2)) -> 18346.69806 | CH5: =CH4*EXP(NORMINV(RAND(),$E$2,$F$2)) -> 18021.93394 | CI5: =CI4*EXP(NORMINV(RAND(),$E$2,$F$2)) -> 18013.87002 | CJ5: =CJ4*EXP(NORMINV(RAND(),$E$2,$F$2)) -> 17798.73814 | CK5: =CK4*EXP(NORMINV(RAND(),$E$2,$F$2)) -> 18270.89462 | CL5: =CL4*EXP(NORMINV(RAND(),$E$2,$F$2)) -> 18136.37013 | CM5: =CM4*EXP(NORMINV(RAND(),$E$2,$F$2)) -> 18615.71775 | CN5: =CN4*EXP(NORMINV(RAND(),$E$2,$F$2)) -> 18491.09037 | CO5: =CO4*EXP(NORMINV(RAND(),$E$2,$F$2)) -> 17656.88315 | CP5: =CP4*EXP(NORMINV(RAND(),$E$2,$F$2)) -> 18198.92647 | CQ5: =CQ4*EXP(NORMINV(RAND(),$E$2,$F$2)) -> 17872.72006 | CR5: =CR4*EXP(NORMINV(RAND(),$E$2,$F$2)) -> 17778.69325 | CS5: =CS4*EXP(NORMINV(RAND(),$E$2,$F$2)) -> 17709.11737 | CT5: =CT4*EXP(NORMINV(RAND(),$E$2,$F$2)) -> 17782.7594 | CU5: =CU4*EXP(NORMINV(RAND(),$E$2,$F$2)) -> 17658.66326 | CV5: =CV4*EXP(NORMINV(RAND(),$E$2,$F$2)) -> 18332.38624 | CW5: =CW4*EXP(NORMINV(RAND(),$E$2,$F$2)) -> 18029.47838 | CX5: =CX4*EXP(NORMINV(RAND(),$E$2,$F$2)) -> 17944.33258 | CY5: =CY4*EXP(NORMINV(RAND(),$E$2,$F$2)) -> 18095.09396 | CZ5: =CZ4*EXP(NORMINV(RAND(),$E$2,$F$2)) -> 17435.94237 | DA5: =DA4*EXP(NORMINV(RAND(),$E$2,$F$2)) -> 18377.54353 | DB5: =DB4*EXP(NORMINV(RAND(),$E$2,$F$2)) -> 17826.3415 | DC5: =DC4*EXP(NORMINV(RAND(),$E$2,$F$2)) -> 18255.66743 | DD5: =DD4*EXP(NORMINV(RAND(),$E$2,$F$2)) -> 17757.15389 | DE5: =DE4*EXP(NORMINV(RAND(),$E$2,$F$2)) -> 18029.93851 | DF5: =DF4*EXP(NORMINV(RAND(),$E$2,$F$2)) -> 17937.96648 | DG5: =DG4*EXP(NORMINV(RAND(),$E$2,$F$2)) -> 17685.4055 | DH5: =DH4*EXP(NORMINV(RAND(),$E$2,$F$2)) -> 17563.93371 | DI5: =DI4*EXP(NORMINV(RAND(),$E$2,$F$2)) -> 18110.14006 | DJ5: =DJ4*EXP(NORMINV(RAND(),$E$2,$F$2)) -> 18417.65072 | DK5: =DK4*EXP(NORMINV(RAND(),$E$2,$F$2)) -> 17792.46098 | DL5: =DL4*EXP(NORMINV(RAND(),$E$2,$F$2)) -> 18011.83001 | DM5: =DM4*EXP(NORMINV(RAND(),$E$2,$F$2)) -> 17615.0876 | DN5: =DN4*EXP(NORMINV(RAND(),$E$2,$F$2)) -> 17830.47449 | DO5: =DO4*EXP(NORMINV(RAND(),$E$2,$F$2)) -> 17986.42787 | DP5: =DP4*EXP(NORMINV(RAND(),$E$2,$F$2)) -> 18490.88652 | DQ5: =DQ4*EXP(NORMINV(RAND(),$E$2,$F$2)) -> 17854.37496 | DR5: =DR4*EXP(NORMINV(RAND(),$E$2,$F$2)) -> 18221.58088 | DS5: =DS4*EXP(NORMINV(RAND(),$E$2,$F$2)) -> 18534.70443 | DT5: =DT4*EXP(NORMINV(RAND(),$E$2,$F$2)) -> 18032.39229 | DU5: =DU4*EXP(NORMINV(RAND(),$E$2,$F$2)) -> 17847.42273 | DV5: =DV4*EXP(NORMINV(RAND(),$E$2,$F$2)) -> 17890.09983 | DW5: =DW4*EXP(NORMINV(RAND(),$E$2,$F$2)) -> 18214.61616 | DX5: =DX4*EXP(NORMINV(RAND(),$E$2,$F$2)) -> 18151.22018 | DY5: =DY4*EXP(NORMINV(RAND(),$E$2,$F$2)) -> 18439.97866 | DZ5: =DZ4*EXP(NORMINV(RAND(),$E$2,$F$2)) -> 18009.09992 | EA5: =EA4*EXP(NORMINV(RAND(),$E$2,$F$2)) -> 17789.34681 | EB5: =EB4*EXP(NORMINV(RAND(),$E$2,$F$2)) -> 18012.42848 | EC5: =EC4*EXP(NORMINV(RAND(),$E$2,$F$2)) -> 17906.82749 | ED5: =ED4*EXP(NORMINV(RAND(),$E$2,$F$2)) -> 17967.26635 | EE5: =EE4*EXP(NORMINV(RAND(),$E$2,$F$2)) -> 17973.2516 | EF5: =EF4*EXP(NORMINV(RAND(),$E$2,$F$2)) -> 18268.55765 | EG5: =EG4*EXP(NORMINV(RAND(),$E$2,$F$2)) -> 17820.5161 | EH5: =EH4*EXP(NORMINV(RAND(),$E$2,$F$2)) -> 17790.3179 | EI5: =EI4*EXP(NORMINV(RAND(),$E$2,$F$2)) -> 18179.90003 | EJ5: =EJ4*EXP(NORMINV(RAND(),$E$2,$F$2)) -> 18218.74446 | EK5: =EK4*EXP(NORMINV(RAND(),$E$2,$F$2)) -> 18135.68851 | EL5: =EL4*EXP(NORMINV(RAND(),$E$2,$F$2)) -> 17973.70031 | EM5: =EM4*EXP(NORMINV(RAND(),$E$2,$F$2)) -> 17935.42209 | EN5: =EN4*EXP(NORMINV(RAND(),$E$2,$F$2)) -> 17533.6638 | EO5: =EO4*EXP(NORMINV(RAND(),$E$2,$F$2)) -> 17590.19753 | EP5: =EP4*EXP(NORMINV(RAND(),$E$2,$F$2)) -> 18087.7895 | EQ5: =EQ4*EXP(NORMINV(RAND(),$E$2,$F$2)) -> 18035.77591 | ER5: =ER4*EXP(NORMINV(RAND(),$E$2,$F$2)) -> 17631.72286 | ES5: =ES4*EXP(NORMINV(RAND(),$E$2,$F$2)) -> 17174.21557 | ET5: =ET4*EXP(NORMINV(RAND(),$E$2,$F$2)) -> 17769.13247 | EU5: =EU4*EXP(NORMINV(RAND(),$E$2,$F$2)) -> 18575.56657 | EV5: =EV4*EXP(NORMINV(RAND(),$E$2,$F$2)) -> 18222.2425 | EW5: =EW4*EXP(NORMINV(RAND(),$E$2,$F$2)) -> 18050.5849 | EX5: =EX4*EXP(NORMINV(RAND(),$E$2,$F$2)) -> 17854.53169 | EY5: =EY4*EXP(NORMINV(RAND(),$E$2,$F$2)) -> 17724.7567 | EZ5: =EZ4*EXP(NORMINV(RAND(),$E$2,$F$2)) -> 17882.0879 | FA5: =FA4*EXP(NORMINV(RAND(),$E$2,$F$2)) -> 18108.96668 | FB5: =FB4*EXP(NORMINV(RAND(),$E$2,$F$2)) -> 18167.09493 | FC5: =FC4*EXP(NORMINV(RAND(),$E$2,$F$2)) -> 17701.95272 | FD5: =FD4*EXP(NORMINV(RAND(),$E$2,$F$2)) -> 18133.62189 | FE5: =FE4*EXP(NORMINV(RAND(),$E$2,$F$2)) -> 17841.69195 | FF5: =FF4*EXP(NORMINV(RAND(),$E$2,$F$2)) -> 18055.61356 | FG5: =FG4*EXP(NORMINV(RAND(),$E$2,$F$2)) -> 17573.30618 | FH5: =FH4*EXP(NORMINV(RAND(),$E$2,$F$2)) -> 17916.15176 | FI5: =FI4*EXP(NORMINV(RAND(),$E$2,$F$2)) -> 18038.67352 | FJ5: =FJ4*EXP(NORMINV(RAND(),$E$2,$F$2)) -> 18292.38323 | FK5: =FK4*EXP(NORMINV(RAND(),$E$2,$F$2)) -> 18505.50374 | FL5: =FL4*EXP(NORMINV(RAND(),$E$2,$F$2)) -> 18102.87517 | FM5: =FM4*EXP(NORMINV(RAND(),$E$2,$F$2)) -> 18407.15526 | FN5: =FN4*EXP(NORMINV(RAND(),$E$2,$F$2)) -> 17708.63724 | FO5: =FO4*EXP(NORMINV(RAND(),$E$2,$F$2)) -> 18174.69085 | FP5: =FP4*EXP(NORMINV(RAND(),$E$2,$F$2)) -> 18736.51838 | FQ5: =FQ4*EXP(NORMINV(RAND(),$E$2,$F$2)) -> 17803.64584 | FR5: =FR4*EXP(NORMINV(RAND(),$E$2,$F$2)) -> 17824.19007 | FS5: =FS4*EXP(NORMINV(RAND(),$E$2,$F$2)) -> 17961.17741 | FT5: =FT4*EXP(NORMINV(RAND(),$E$2,$F$2)) -> 17943.39359 | FU5: =FU4*EXP(NORMINV(RAND(),$E$2,$F$2)) -> 17393.43672 | FV5: =FV4*EXP(NORMINV(RAND(),$E$2,$F$2)) -> 18179.61607 | FW5: =FW4*EXP(NORMINV(RAND(),$E$2,$F$2)) -> 18083.64412 | FX5: =FX4*EXP(NORMINV(RAND(),$E$2,$F$2)) -> 18282.01535 | FY5: =FY4*EXP(NORMINV(RAND(),$E$2,$F$2)) -> 18314.96411 | FZ5: =FZ4*EXP(NORMINV(RAND(),$E$2,$F$2)) -> 17834.73743 | GA5: =GA4*EXP(NORMINV(RAND(),$E$2,$F$2)) -> 17737.06768 | GB5: =GB4*EXP(NORMINV(RAND(),$E$2,$F$2)) -> 18144.98504 | GC5: =GC4*EXP(NORMINV(RAND(),$E$2,$F$2)) -> 17829.33343 | GD5: =GD4*EXP(NORMINV(RAND(),$E$2,$F$2)) -> 18086.02394 | GE5: =GE4*EXP(NORMINV(RAND(),$E$2,$F$2)) -> 18083.4749 | GF5: =GF4*EXP(NORMINV(RAND(),$E$2,$F$2)) -> 18325.87999 | GG5: =GG4*EXP(NORMINV(RAND(),$E$2,$F$2)) -> 18169.50918 | GH5: =GH4*EXP(NORMINV(RAND(),$E$2,$F$2)) -> 18037.66714 | GI5: =GI4*EXP(NORMINV(RAND(),$E$2,$F$2)) -> 18603.669 | GJ5: =GJ4*EXP(NORMINV(RAND(),$E$2,$F$2)) -> 17990.14064 | GK5: =GK4*EXP(NORMINV(RAND(),$E$2,$F$2)) -> 18494.65495 | GL5: =GL4*EXP(NORMINV(RAND(),$E$2,$F$2)) -> 17972.61115 | GM5: =GM4*EXP(NORMINV(RAND(),$E$2,$F$2)) -> 18070.47068 | GN5: =GN4*EXP(NORMINV(RAND(),$E$2,$F$2)) -> 17930.89998 | GO5: =GO4*EXP(NORMINV(RAND(),$E$2,$F$2)) -> 18536.11736 | GP5: =GP4*EXP(NORMINV(RAND(),$E$2,$F$2)) -> 18158.34146 | GQ5: =GQ4*EXP(NORMINV(RAND(),$E$2,$F$2)) -> 18279.27985 | GR5: =GR4*EXP(NORMINV(RAND(),$E$2,$F$2)) -> 18113.59389 | GS5: =GS4*EXP(NORMINV(RAND(),$E$2,$F$2)) -> 17665.76581 | GT5: =GT4*EXP(NORMINV(RAND(),$E$2,$F$2)) -> 18385.3106 | GU5: =GU4*EXP(NORMINV(RAND(),$E$2,$F$2)) -> 18438.82901 | GV5: =GV4*EXP(NORMINV(RAND(),$E$2,$F$2)) -> 17838.76993 | GW5: =GW4*EXP(NORMINV(RAND(),$E$2,$F$2)) -> 17918.56497 | GX5: =GX4*EXP(NORMINV(RAND(),$E$2,$F$2)) -> 18604.50856 | GY5: =GY4*EXP(NORMINV(RAND(),$E$2,$F$2)) -> 18394.07102 | GZ5: =GZ4*EXP(NORMINV(RAND(),$E$2,$F$2)) -> 18173.17475 | HA5: =HA4*EXP(NORMINV(RAND(),$E$2,$F$2)) -> 18119.11369 | HB5: =HB4*EXP(NORMINV(RAND(),$E$2,$F$2)) -> 18230.78805 | HC5: =HC4*EXP(NORMINV(RAND(),$E$2,$F$2)) -> 17472.97512 | HD5: =HD4*EXP(NORMINV(RAND(),$E$2,$F$2)) -> 18426.1453 | HE5: =HE4*EXP(NORMINV(RAND(),$E$2,$F$2)) -> 18258.86416 | HF5: =HF4*EXP(NORMINV(RAND(),$E$2,$F$2)) -> 18517.88913 | HG5: =HG4*EXP(NORMINV(RAND(),$E$2,$F$2)) -> 17474.83536 | HH5: =HH4*EXP(NORMINV(RAND(),$E$2,$F$2)) -> 18156.50215 | HI5: =HI4*EXP(NORMINV(RAND(),$E$2,$F$2)) -> 18037.15715 | HJ5: =HJ4*EXP(NORMINV(RAND(),$E$2,$F$2)) -> 18671.6647 | HK5: =HK4*EXP(NORMINV(RAND(),$E$2,$F$2)) -> 17908.4316 | HL5: =HL4*EXP(NORMINV(RAND(),$E$2,$F$2)) -> 18108.3213 | HM5: =HM4*EXP(NORMINV(RAND(),$E$2,$F$2)) -> 18462.21428 | HN5: =HN4*EXP(NORMINV(RAND(),$E$2,$F$2)) -> 18134.88973 | HO5: =HO4*EXP(NORMINV(RAND(),$E$2,$F$2)) -> 17992.6861 | HP5: =HP4*EXP(NORMINV(RAND(),$E$2,$F$2)) -> 18242.01258 | HQ5: =HQ4*EXP(NORMINV(RAND(),$E$2,$F$2)) -> 17770.14711 | HR5: =HR4*EXP(NORMINV(RAND(),$E$2,$F$2)) -> 18523.71028 | HS5: =HS4*EXP(NORMINV(RAND(),$E$2,$F$2)) -> 17772.25671 | HT5: =HT4*EXP(NORMINV(RAND(),$E$2,$F$2)) -> 17671.22974 | HU5: =HU4*EXP(NORMINV(RAND(),$E$2,$F$2)) -> 18121.10819 | HV5: =HV4*EXP(NORMINV(RAND(),$E$2,$F$2)) -> 18738.32239 | HW5: =HW4*EXP(NORMINV(RAND(),$E$2,$F$2)) -> 18287.52108 | HX5: =HX4*EXP(NORMINV(RAND(),$E$2,$F$2)) -> 18388.1136 | HY5: =HY4*EXP(NORMINV(RAND(),$E$2,$F$2)) -> 18035.86331 | HZ5: =HZ4*EXP(NORMINV(RAND(),$E$2,$F$2)) -> 18509.61705 | IA5: =IA4*EXP(NORMINV(RAND(),$E$2,$F$2)) -> 17838.72639 | IB5: =IB4*EXP(NORMINV(RAND(),$E$2,$F$2)) -> 17944.33956 | IC5: =IC4*EXP(NORMINV(RAND(),$E$2,$F$2)) -> 18091.62845 | ID5: =ID4*EXP(NORMINV(RAND(),$E$2,$F$2)) -> 18477.54267 | IE5: =IE4*EXP(NORMINV(RAND(),$E$2,$F$2)) -> 18145.98252 | IF5: =IF4*EXP(NORMINV(RAND(),$E$2,$F$2)) -> 17708.74112 | IG5: =IG4*EXP(NORMINV(RAND(),$E$2,$F$2)) -> 18044.65879 | IH5: =IH4*EXP(NORMINV(RAND(),$E$2,$F$2)) -> 18129.98579 | II5: =II4*EXP(NORMINV(RAND(),$E$2,$F$2)) -> 18509.87114 | IJ5: =IJ4*EXP(NORMINV(RAND(),$E$2,$F$2)) -> 17890.35449 | IK5: =IK4*EXP(NORMINV(RAND(),$E$2,$F$2)) -> 18378.61305 | IL5: =IL4*EXP(NORMINV(RAND(),$E$2,$F$2)) -> 18615.27537 | IM5: =IM4*EXP(NORMINV(RAND(),$E$2,$F$2)) -> 18198.52513 | IN5: =IN4*EXP(NORMINV(RAND(),$E$2,$F$2)) -> 18098.32244 | IO5: =IO4*EXP(NORMINV(RAND(),$E$2,$F$2)) -> 17864.56667 | IP5: =IP4*EXP(NORMINV(RAND(),$E$2,$F$2)) -> 17950.7092 | IQ5: =IQ4*EXP(NORMINV(RAND(),$E$2,$F$2)) -> 18294.18835 | IR5: =IR4*EXP(NORMINV(RAND(),$E$2,$F$2)) -> 17902.91677 | IS5: =IS4*EXP(NORMINV(RAND(),$E$2,$F$2)) -> 17976.25728 | IT5: =IT4*EXP(NORMINV(RAND(),$E$2,$F$2)) -> 17926.4463 | IU5: =IU4*EXP(NORMINV(RAND(),$E$2,$F$2)) -> 17956.55748 | IV5: =IV4*EXP(NORMINV(RAND(),$E$2,$F$2)) -> 18059.74297 | IW5: =IW4*EXP(NORMINV(RAND(),$E$2,$F$2)) -> 17971.79796 | IX5: =IX4*EXP(NORMINV(RAND(),$E$2,$F$2)) -> 18461.66513 | IY5: =IY4*EXP(NORMINV(RAND(),$E$2,$F$2)) -> 18119.94779 | IZ5: =IZ4*EXP(NORMINV(RAND(),$E$2,$F$2)) -> 18441.31597 | JA5: =JA4*EXP(NORMINV(RAND(),$E$2,$F$2)) -> 18512.27972 | JB5: =JB4*EXP(NORMINV(RAND(),$E$2,$F$2)) -> 18434.33338 | JC5: =JC4*EXP(NORMINV(RAND(),$E$2,$F$2)) -> 17852.50071 | JD5: =JD4*EXP(NORMINV(RAND(),$E$2,$F$2)) -> 18216.65978 | JE5: =JE4*EXP(NORMINV(RAND(),$E$2,$F$2)) -> 18010.62022 | JF5: =JF4*EXP(NORMINV(RAND(),$E$2,$F$2)) -> 18151.0175 | JG5: =JG4*EXP(NORMINV(RAND(),$E$2,$F$2)) -> 17595.9706 | JH5: =JH4*EXP(NORMINV(RAND(),$E$2,$F$2)) -> 18031.19406 | JI5: =JI4*EXP(NORMINV(RAND(),$E$2,$F$2)) -> 17982.09191 | JJ5: =JJ4*EXP(NORMINV(RAND(),$E$2,$F$2)) -> 18127.6562 | JK5: =JK4*EXP(NORMINV(RAND(),$E$2,$F$2)) -> 17797.7387 | JL5: =JL4*EXP(NORMINV(RAND(),$E$2,$F$2)) -> 18164.17545 | JM5: =JM4*EXP(NORMINV(RAND(),$E$2,$F$2)) -> 18160.66968 | JN5: =JN4*EXP(NORMINV(RAND(),$E$2,$F$2)) -> 17984.43924 | JO5: =JO4*EXP(NORMINV(RAND(),$E$2,$F$2)) -> 18213.96024 | JP5: =JP4*EXP(NORMINV(RAND(),$E$2,$F$2)) -> 17833.91959 | JQ5: =JQ4*EXP(NORMINV(RAND(),$E$2,$F$2)) -> 18479.49817 | JR5: =JR4*EXP(NORMINV(RAND(),$E$2,$F$2)) -> 18057.4706 | JS5: =JS4*EXP(NORMINV(RAND(),$E$2,$F$2)) -> 17687.56792 | JT5: =JT4*EXP(NORMINV(RAND(),$E$2,$F$2)) -> 18425.59369 | JU5: =JU4*EXP(NORMINV(RAND(),$E$2,$F$2)) -> 18103.97687 | JV5: =JV4*EXP(NORMINV(RAND(),$E$2,$F$2)) -> 18199.00908 | JW5: =JW4*EXP(NORMINV(RAND(),$E$2,$F$2)) -> 17974.48139 | JX5: =JX4*EXP(NORMINV(RAND(),$E$2,$F$2)) -> 17831.89146 | JY5: =JY4*EXP(NORMINV(RAND(),$E$2,$F$2)) -> 18627.34093 | JZ5: =JZ4*EXP(NORMINV(RAND(),$E$2,$F$2)) -> 18028.87527 | KA5: =KA4*EXP(NORMINV(RAND(),$E$2,$F$2)) -> 17574.49172 | KB5: =KB4*EXP(NORMINV(RAND(),$E$2,$F$2)) -> 18345.49394 | KC5: =KC4*EXP(NORMINV(RAND(),$E$2,$F$2)) -> 18110.1196 | KD5: =KD4*EXP(NORMINV(RAND(),$E$2,$F$2)) -> 18453.80503 | KE5: =KE4*EXP(NORMINV(RAND(),$E$2,$F$2)) -> 18394.83531 | KF5: =KF4*EXP(NORMINV(RAND(),$E$2,$F$2)) -> 18045.05192 | KG5: =KG4*EXP(NORMINV(RAND(),$E$2,$F$2)) -> 18019.4848 | KH5: =KH4*EXP(NORMINV(RAND(),$E$2,$F$2)) -> 17719.67005 | KI5: =KI4*EXP(NORMINV(RAND(),$E$2,$F$2)) -> 18257.42737 | KJ5: =KJ4*EXP(NORMINV(RAND(),$E$2,$F$2)) -> 17711.64444 | KK5: =KK4*EXP(NORMINV(RAND(),$E$2,$F$2)) -> 17756.51336 | KL5: =KL4*EXP(NORMINV(RAND(),$E$2,$F$2)) -> 18024.35269 | KM5: =KM4*EXP(NORMINV(RAND(),$E$2,$F$2)) -> 18493.16323 | KN5: =KN4*EXP(NORMINV(RAND(),$E$2,$F$2)) -> 18206.01543 | KO5: =KO4*EXP(NORMINV(RAND(),$E$2,$F$2)) -> 17657.04095 | KP5: =KP4*EXP(NORMINV(RAND(),$E$2,$F$2)) -> 17746.09887 | KQ5: =KQ4*EXP(NORMINV(RAND(),$E$2,$F$2)) -> 17852.98062 | KR5: =KR4*EXP(NORMINV(RAND(),$E$2,$F$2)) -> 18195.25512 | KS5: =KS4*EXP(NORMINV(RAND(),$E$2,$F$2)) -> 17743.27148 | KT5: =KT4*EXP(NORMINV(RAND(),$E$2,$F$2)) -> 18088.78247 | KU5: =KU4*EXP(NORMINV(RAND(),$E$2,$F$2)) -> 17470.08611 | KV5: =KV4*EXP(NORMINV(RAND(),$E$2,$F$2)) -> 18257.9202 | KW5: =KW4*EXP(NORMINV(RAND(),$E$2,$F$2)) -> 17878.84796 | KX5: =KX4*EXP(NORMINV(RAND(),$E$2,$F$2)) -> 18246.95509 | KY5: =KY4*EXP(NORMINV(RAND(),$E$2,$F$2)) -> 18092.83707 | KZ5: =KZ4*EXP(NORMINV(RAND(),$E$2,$F$2)) -> 18418.99893 | LA5: =LA4*EXP(NORMINV(RAND(),$E$2,$F$2)) -> 17969.32403 | LB5: =LB4*EXP(NORMINV(RAND(),$E$2,$F$2)) -> 18375.67558 | LC5: =LC4*EXP(NORMINV(RAND(),$E$2,$F$2)) -> 18009.52874 | LD5: =LD4*EXP(NORMINV(RAND(),$E$2,$F$2)) -> 18045.79488 | LE5: =LE4*EXP(NORMINV(RAND(),$E$2,$F$2)) -> 18139.0544 | LF5: =LF4*EXP(NORMINV(RAND(),$E$2,$F$2)) -> 18515.63134 | LG5: =LG4*EXP(NORMINV(RAND(),$E$2,$F$2)) -> 18407.42801 | LH5: =LH4*EXP(NORMINV(RAND(),$E$2,$F$2)) -> 18197.34654 | LI5: =LI4*EXP(NORMINV(RAND(),$E$2,$F$2)) -> 18537.53681 | LJ5: =LJ4*EXP(NORMINV(RAND(),$E$2,$F$2)) -> 17646.20982 | LK5: =LK4*EXP(NORMINV(RAND(),$E$2,$F$2)) -> 17943.51836 | LL5: =LL4*EXP(NORMINV(RAND(),$E$2,$F$2)) -> 17731.61214 | LM5: =LM4*EXP(NORMINV(RAND(),$E$2,$F$2)) -> 18020.0603 | LN5: =LN4*EXP(NORMINV(RAND(),$E$2,$F$2)) -> 18090.72057 | LO5: =LO4*EXP(NORMINV(RAND(),$E$2,$F$2)) -> 18069.777 | LP5: =LP4*EXP(NORMINV(RAND(),$E$2,$F$2)) -> 18119.95327 | LQ5: =LQ4*EXP(NORMINV(RAND(),$E$2,$F$2)) -> 18544.11984 | LR5: =LR4*EXP(NORMINV(RAND(),$E$2,$F$2)) -> 17876.36098 | LS5: =LS4*EXP(NORMINV(RAND(),$E$2,$F$2)) -> 18240.44057 | LT5: =LT4*EXP(NORMINV(RAND(),$E$2,$F$2)) -> 17879.75962 | LU5: =LU4*EXP(NORMINV(RAND(),$E$2,$F$2)) -> 17858.05103 | LV5: =LV4*EXP(NORMINV(RAND(),$E$2,$F$2)) -> 17925.14362 | LW5: =LW4*EXP(NORMINV(RAND(),$E$2,$F$2)) -> 17487.11421 | LX5: =LX4*EXP(NORMINV(RAND(),$E$2,$F$2)) -> 18233.07034 | LY5: =LY4*EXP(NORMINV(RAND(),$E$2,$F$2)) -> 18112.87138 | LZ5: =LZ4*EXP(NORMINV(RAND(),$E$2,$F$2)) -> 18197.38614 | MA5: =MA4*EXP(NORMINV(RAND(),$E$2,$F$2)) -> 18124.93155 | MB5: =MB4*EXP(NORMINV(RAND(),$E$2,$F$2)) -> 17899.11797 | MC5: =MC4*EXP(NORMINV(RAND(),$E$2,$F$2)) -> 17915.83177 | MD5: =MD4*EXP(NORMINV(RAND(),$E$2,$F$2)) -> 17641.94901 | ME5: =ME4*EXP(NORMINV(RAND(),$E$2,$F$2)) -> 18082.66434 | MF5: =MF4*EXP(NORMINV(RAND(),$E$2,$F$2)) -> 17485.86575 | MG5: =MG4*EXP(NORMINV(RAND(),$E$2,$F$2)) -> 17862.49756 | MH5: =MH4*EXP(NORMINV(RAND(),$E$2,$F$2)) -> 18649.7662 | MI5: =MI4*EXP(NORMINV(RAND(),$E$2,$F$2)) -> 17520.2295 | MJ5: =MJ4*EXP(NORMINV(RAND(),$E$2,$F$2)) -> 17736.7274 | MK5: =MK4*EXP(NORMINV(RAND(),$E$2,$F$2)) -> 17843.02908 | ML5: =ML4*EXP(NORMINV(RAND(),$E$2,$F$2)) -> 17832.54527 | MM5: =MM4*EXP(NORMINV(RAND(),$E$2,$F$2)) -> 18261.83018 | MN5: =MN4*EXP(NORMINV(RAND(),$E$2,$F$2)) -> 17882.07116 | MO5: =MO4*EXP(NORMINV(RAND(),$E$2,$F$2)) -> 18137.05133 | MP5: =MP4*EXP(NORMINV(RAND(),$E$2,$F$2)) -> 17943.09562 | MQ5: =MQ4*EXP(NORMINV(RAND(),$E$2,$F$2)) -> 18470.80144 | MR5: =MR4*EXP(NORMINV(RAND(),$E$2,$F$2)) -> 17983.82629 | MS5: =MS4*EXP(NORMINV(RAND(),$E$2,$F$2)) -> 17615.71922 | MT5: =MT4*EXP(NORMINV(RAND(),$E$2,$F$2)) -> 17954.32669 | MU5: =MU4*EXP(NORMINV(RAND(),$E$2,$F$2)) -> 18378.95411 | MV5: =MV4*EXP(NORMINV(RAND(),$E$2,$F$2)) -> 18256.04615 | MW5: =MW4*EXP(NORMINV(RAND(),$E$2,$F$2)) -> 17992.52981 | MX5: =MX4*EXP(NORMINV(RAND(),$E$2,$F$2)) -> 17989.16132 | MY5: =MY4*EXP(NORMINV(RAND(),$E$2,$F$2)) -> 18090.79747 | MZ5: =MZ4*EXP(NORMINV(RAND(),$E$2,$F$2)) -> 18066.13111 | NA5: =NA4*EXP(NORMINV(RAND(),$E$2,$F$2)) -> 17491.42948 | NB5: =NB4*EXP(NORMINV(RAND(),$E$2,$F$2)) -> 18487.49355 | NC5: =NC4*EXP(NORMINV(RAND(),$E$2,$F$2)) -> 18041.39292 | ND5: =ND4*EXP(NORMINV(RAND(),$E$2,$F$2)) -> 18370.64297 | NE5: =NE4*EXP(NORMINV(RAND(),$E$2,$F$2)) -> 17924.69489 | NF5: =NF4*EXP(NORMINV(RAND(),$E$2,$F$2)) -> 18415.06299 | NG5: =NG4*EXP(NORMINV(RAND(),$E$2,$F$2)) -> 18705.90484 | NH5: =NH4*EXP(NORMINV(RAND(),$E$2,$F$2)) -> 18415.73736 | NI5: =NI4*EXP(NORMINV(RAND(),$E$2,$F$2)) -> 18233.91877 | NJ5: =NJ4*EXP(NORMINV(RAND(),$E$2,$F$2)) -> 18050.58712 | NK5: =NK4*EXP(NORMINV(RAND(),$E$2,$F$2)) -> 18202.59857 | NL5: =NL4*EXP(NORMINV(RAND(),$E$2,$F$2)) -> 17945.54659 | NM5: =NM4*EXP(NORMINV(RAND(),$E$2,$F$2)) -> 17862.51625 | NN5: =NN4*EXP(NORMINV(RAND(),$E$2,$F$2)) -> 18056.42705 | NO5: =NO4*EXP(NORMINV(RAND(),$E$2,$F$2)) -> 17954.78673 | NP5: =NP4*EXP(NORMINV(RAND(),$E$2,$F$2)) -> 18615.74425 | NQ5: =NQ4*EXP(NORMINV(RAND(),$E$2,$F$2)) -> 18266.838 | NR5: =NR4*EXP(NORMINV(RAND(),$E$2,$F$2)) -> 18274.28689 | NS5: =NS4*EXP(NORMINV(RAND(),$E$2,$F$2)) -> 17941.4199 | NT5: =NT4*EXP(NORMINV(RAND(),$E$2,$F$2)) -> 18328.72716 | NU5: =NU4*EXP(NORMINV(RAND(),$E$2,$F$2)) -> 18112.78981 | NV5: =NV4*EXP(NORMINV(RAND(),$E$2,$F$2)) -> 17855.69702 | NW5: =NW4*EXP(NORMINV(RAND(),$E$2,$F$2)) -> 18263.32895 | NX5: =NX4*EXP(NORMINV(RAND(),$E$2,$F$2)) -> 18405.28599 | NY5: =NY4*EXP(NORMINV(RAND(),$E$2,$F$2)) -> 18355.91271 | NZ5: =NZ4*EXP(NORMINV(RAND(),$E$2,$F$2)) -> 17844.53474 | OA5: =OA4*EXP(NORMINV(RAND(),$E$2,$F$2)) -> 18191.49213 | OB5: =OB4*EXP(NORMINV(RAND(),$E$2,$F$2)) -> 18269.44488 | OC5: =OC4*EXP(NORMINV(RAND(),$E$2,$F$2)) -> 17799.16705 | OD5: =OD4*EXP(NORMINV(RAND(),$E$2,$F$2)) -> 18183.76683 | OE5: =OE4*EXP(NORMINV(RAND(),$E$2,$F$2)) -> 18003.64172 | OF5: =OF4*EXP(NORMINV(RAND(),$E$2,$F$2)) -> 18339.33611 | OG5: =OG4*EXP(NORMINV(RAND(),$E$2,$F$2)) -> 18346.82956 | OH5: =OH4*EXP(NORMINV(RAND(),$E$2,$F$2)) -> 17938.60518 | OI5: =OI4*EXP(NORMINV(RAND(),$E$2,$F$2)) -> 18329.29611 | OJ5: =OJ4*EXP(NORMINV(RAND(),$E$2,$F$2)) -> 17989.51842 | OK5: =OK4*EXP(NORMINV(RAND(),$E$2,$F$2)) -> 17815.1157 | OL5: =OL4*EXP(NORMINV(RAND(),$E$2,$F$2)) -> 17529.19833 | OM5: =OM4*EXP(NORMINV(RAND(),$E$2,$F$2)) -> 17925.06591 | ON5: =ON4*EXP(NORMINV(RAND(),$E$2,$F$2)) -> 17984.90564 | OO5: =OO4*EXP(NORMINV(RAND(),$E$2,$F$2)) -> 18313.38257 | OP5: =OP4*EXP(NORMINV(RAND(),$E$2,$F$2)) -> 18196.27003 | OQ5: =OQ4*EXP(NORMINV(RAND(),$E$2,$F$2)) -> 17589.09205 | OR5: =OR4*EXP(NORMINV(RAND(),$E$2,$F$2)) -> 18216.5343 | OS5: =OS4*EXP(NORMINV(RAND(),$E$2,$F$2)) -> 17426.46054 | OT5: =OT4*EXP(NORMINV(RAND(),$E$2,$F$2)) -> 18098.03248 | OU5: =OU4*EXP(NORMINV(RAND(),$E$2,$F$2)) -> 17679.10287 | OV5: =OV4*EXP(NORMINV(RAND(),$E$2,$F$2)) -> 18277.14933 | OW5: =OW4*EXP(NORMINV(RAND(),$E$2,$F$2)) -> 17869.76165 | OX5: =OX4*EXP(NORMINV(RAND(),$E$2,$F$2)) -> 17800.50537 | OY5: =OY4*EXP(NORMINV(RAND(),$E$2,$F$2)) -> 17941.25284 | OZ5: =OZ4*EXP(NORMINV(RAND(),$E$2,$F$2)) -> 17938.83051 | PA5: =PA4*EXP(NORMINV(RAND(),$E$2,$F$2)) -> 18023.40577 | PB5: =PB4*EXP(NORMINV(RAND(),$E$2,$F$2)) -> 18063.01902 | PC5: =PC4*EXP(NORMINV(RAND(),$E$2,$F$2)) -> 18049.46964 | PD5: =PD4*EXP(NORMINV(RAND(),$E$2,$F$2)) -> 17477.77062 | PE5: =PE4*EXP(NORMINV(RAND(),$E$2,$F$2)) -> 17837.46892 | PF5: =PF4*EXP(NORMINV(RAND(),$E$2,$F$2)) -> 18316.57356 | PG5: =PG4*EXP(NORMINV(RAND(),$E$2,$F$2)) -> 17866.07985 | PH5: =PH4*EXP(NORMINV(RAND(),$E$2,$F$2)) -> 17921.11473 | PI5: =PI4*EXP(NORMINV(RAND(),$E$2,$F$2)) -> 18807.58149 | PJ5: =PJ4*EXP(NORMINV(RAND(),$E$2,$F$2)) -> 17940.68834 | PK5: =PK4*EXP(NORMINV(RAND(),$E$2,$F$2)) -> 18332.4867 | PL5: =PL4*EXP(NORMINV(RAND(),$E$2,$F$2)) -> 17777.9308 | PM5: =PM4*EXP(NORMINV(RAND(),$E$2,$F$2)) -> 17779.23564 | PN5: =PN4*EXP(NORMINV(RAND(),$E$2,$F$2)) -> 17711.58481 | PO5: =PO4*EXP(NORMINV(RAND(),$E$2,$F$2)) -> 18294.89993 | PP5: =PP4*EXP(NORMINV(RAND(),$E$2,$F$2)) -> 17541.46417 | PQ5: =PQ4*EXP(NORMINV(RAND(),$E$2,$F$2)) -> 17519.14218 | PR5: =PR4*EXP(NORMINV(RAND(),$E$2,$F$2)) -> 17760.13585 | PS5: =PS4*EXP(NORMINV(RAND(),$E$2,$F$2)) -> 18448.76461 | PT5: =PT4*EXP(NORMINV(RAND(),$E$2,$F$2)) -> 17920.25902 | PU5: =PU4*EXP(NORMINV(RAND(),$E$2,$F$2)) -> 18117.86235 | PV5: =PV4*EXP(NORMINV(RAND(),$E$2,$F$2)) -> 18896.0985 | PW5: =PW4*EXP(NORMINV(RAND(),$E$2,$F$2)) -> 17992.50431 | PX5: =PX4*EXP(NORMINV(RAND(),$E$2,$F$2)) -> 18233.84047 | PY5: =PY4*EXP(NORMINV(RAND(),$E$2,$F$2)) -> 18562.88786 | PZ5: =PZ4*EXP(NORMINV(RAND(),$E$2,$F$2)) -> 17710.03066 | QA5: =QA4*EXP(NORMINV(RAND(),$E$2,$F$2)) -> 17793.44381 | QB5: =QB4*EXP(NORMINV(RAND(),$E$2,$F$2)) -> 17848.904 | QC5: =QC4*EXP(NORMINV(RAND(),$E$2,$F$2)) -> 17944.91169 | QD5: =QD4*EXP(NORMINV(RAND(),$E$2,$F$2)) -> 18165.99525 | QE5: =QE4*EXP(NORMINV(RAND(),$E$2,$F$2)) -> 18243.55174 | QF5: =QF4*EXP(NORMINV(RAND(),$E$2,$F$2)) -> 18002.89715 | QG5: =QG4*EXP(NORMINV(RAND(),$E$2,$F$2)) -> 17796.16206 | QH5: =QH4*EXP(NORMINV(RAND(),$E$2,$F$2)) -> 18160.2691 | QI5: =QI4*EXP(NORMINV(RAND(),$E$2,$F$2)) -> 17911.51759 | QJ5: =QJ4*EXP(NORMINV(RAND(),$E$2,$F$2)) -> 18251.68699 | QK5: =QK4*EXP(NORMINV(RAND(),$E$2,$F$2)) -> 18073.22051 | QL5: =QL4*EXP(NORMINV(RAND(),$E$2,$F$2)) -> 18134.11887 | QM5: =QM4*EXP(NORMINV(RAND(),$E$2,$F$2)) -> 18228.2901 | QN5: =QN4*EXP(NORMINV(RAND(),$E$2,$F$2)) -> 18123.51097 | QO5: =QO4*EXP(NORMINV(RAND(),$E$2,$F$2)) -> 18492.73327 | QP5: =QP4*EXP(NORMINV(RAND(),$E$2,$F$2)) -> 18352.58344 | QQ5: =QQ4*EXP(NORMINV(RAND(),$E$2,$F$2)) -> 18037.77062 | QR5: =QR4*EXP(NORMINV(RAND(),$E$2,$F$2)) -> 18145.49649 | QS5: =QS4*EXP(NORMINV(RAND(),$E$2,$F$2)) -> 18111.70544 | QT5: =QT4*EXP(NORMINV(RAND(),$E$2,$F$2)) -> 18166.84442 | QU5: =QU4*EXP(NORMINV(RAND(),$E$2,$F$2)) -> 18505.69981 | QV5: =QV4*EXP(NORMINV(RAND(),$E$2,$F$2)) -> 18628.10813 | QW5: =QW4*EXP(NORMINV(RAND(),$E$2,$F$2)) -> 17827.97347 | QX5: =QX4*EXP(NORMINV(RAND(),$E$2,$F$2)) -> 18187.12048 | QY5: =QY4*EXP(NORMINV(RAND(),$E$2,$F$2)) -> 18134.58178 | QZ5: =QZ4*EXP(NORMINV(RAND(),$E$2,$F$2)) -> 18260.8647 | RA5: =RA4*EXP(NORMINV(RAND(),$E$2,$F$2)) -> 17783.46866 | RB5: =RB4*EXP(NORMINV(RAND(),$E$2,$F$2)) -> 18055.40928 | RC5: =RC4*EXP(NORMINV(RAND(),$E$2,$F$2)) -> 17851.62488 | RD5: =RD4*EXP(NORMINV(RAND(),$E$2,$F$2)) -> 17630.64463 | RE5: =RE4*EXP(NORMINV(RAND(),$E$2,$F$2)) -> 18347.96883 | RF5: =RF4*EXP(NORMINV(RAND(),$E$2,$F$2)) -> 17891.83324 | RG5: =RG4*EXP(NORMINV(RAND(),$E$2,$F$2)) -> 17655.74196 | RH5: =RH4*EXP(NORMINV(RAND(),$E$2,$F$2)) -> 18094.33991 | RI5: =RI4*EXP(NORMINV(RAND(),$E$2,$F$2)) -> 18343.18308 | RJ5: =RJ4*EXP(NORMINV(RAND(),$E$2,$F$2)) -> 18028.65705 | RK5: =RK4*EXP(NORMINV(RAND(),$E$2,$F$2)) -> 18246.3456 | RL5: =RL4*EXP(NORMINV(RAND(),$E$2,$F$2)) -> 17913.46304 | RM5: =RM4*EXP(NORMINV(RAND(),$E$2,$F$2)) -> 18263.43569 | RN5: =RN4*EXP(NORMINV(RAND(),$E$2,$F$2)) -> 17982.39757 | RO5: =RO4*EXP(NORMINV(RAND(),$E$2,$F$2)) -> 18246.86687 | RP5: =RP4*EXP(NORMINV(RAND(),$E$2,$F$2)) -> 18078.88315 | RQ5: =RQ4*EXP(NORMINV(RAND(),$E$2,$F$2)) -> 18139.28587 | RR5: =RR4*EXP(NORMINV(RAND(),$E$2,$F$2)) -> 18783.40806 | RS5: =RS4*EXP(NORMINV(RAND(),$E$2,$F$2)) -> 18233.25558 | RT5: =RT4*EXP(NORMINV(RAND(),$E$2,$F$2)) -> 18217.16255 | RU5: =RU4*EXP(NORMINV(RAND(),$E$2,$F$2)) -> 18289.11074 | RV5: =RV4*EXP(NORMINV(RAND(),$E$2,$F$2)) -> 18232.74711 | RW5: =RW4*EXP(NORMINV(RAND(),$E$2,$F$2)) -> 18290.62252 | RX5: =RX4*EXP(NORMINV(RAND(),$E$2,$F$2)) -> 18576.92007 | RY5: =RY4*EXP(NORMINV(RAND(),$E$2,$F$2)) -> 17826.54567 | RZ5: =RZ4*EXP(NORMINV(RAND(),$E$2,$F$2)) -> 18325.84373 | SA5: =SA4*EXP(NORMINV(RAND(),$E$2,$F$2)) -> 17832.54051 | SB5: =SB4*EXP(NORMINV(RAND(),$E$2,$F$2)) -> 18259.51063 | SC5: =SC4*EXP(NORMINV(RAND(),$E$2,$F$2)) -> 18499.95418 | SD5: =SD4*EXP(NORMINV(RAND(),$E$2,$F$2)) -> 18161.60207 | SE5: =SE4*EXP(NORMINV(RAND(),$E$2,$F$2)) -> 18000.55762 | SF5: =SF4*EXP(NORMINV(RAND(),$E$2,$F$2)) -> 17833.99378 | SG5: =SG4*EXP(NORMINV(RAND(),$E$2,$F$2)) -> 18069.93646 | SH5: =SH4*EXP(NORMINV(RAND(),$E$2,$F$2)) -> 18400.55641 | SI5: =SI4*EXP(NORMINV(RAND(),$E$2,$F$2)) -> 18126.20532 | SJ5: =SJ4*EXP(NORMINV(RAND(),$E$2,$F$2)) -> 17894.6221 | SK5: =SK4*EXP(NORMINV(RAND(),$E$2,$F$2)) -> 18035.16776 | SL5: =SL4*EXP(NORMINV(RAND(),$E$2,$F$2)) -> 18263.65713 | SM5: =SM4*EXP(NORMINV(RAND(),$E$2,$F$2)) -> 18248.01371 | SN5: =SN4*EXP(NORMINV(RAND(),$E$2,$F$2)) -> 17935.33297 | SO5: =SO4*EXP(NORMINV(RAND(),$E$2,$F$2)) -> 18634.5748 | SP5: =SP4*EXP(NORMINV(RAND(),$E$2,$F$2)) -> 18258.45333 | SQ5: =SQ4*EXP(NORMINV(RAND(),$E$2,$F$2)) -> 17841.93566 | SR5: =SR4*EXP(NORMINV(RAND(),$E$2,$F$2)) -> 18069.50188 | SS5: =SS4*EXP(NORMINV(RAND(),$E$2,$F$2)) -> 18285.21174 | ST5: =ST4*EXP(NORMINV(RAND(),$E$2,$F$2)) -> 18102.06689 | SU5: =SU4*EXP(NORMINV(RAND(),$E$2,$F$2)) -> 17912.52962 | SV5: =SV4*EXP(NORMINV(RAND(),$E$2,$F$2)) -> 17879.1139 | SW5: =SW4*EXP(NORMINV(RAND(),$E$2,$F$2)) -> 17993.88908 | SX5: =SX4*EXP(NORMINV(RAND(),$E$2,$F$2)) -> 18292.13051 | SY5: =SY4*EXP(NORMINV(RAND(),$E$2,$F$2)) -> 18104.41567 | SZ5: =SZ4*EXP(NORMINV(RAND(),$E$2,$F$2)) -> 18311.70103 | TA5: =TA4*EXP(NORMINV(RAND(),$E$2,$F$2)) -> 18096.68737 | TB5: =TB4*EXP(NORMINV(RAND(),$E$2,$F$2)) -> 18064.23996 | TC5: =TC4*EXP(NORMINV(RAND(),$E$2,$F$2)) -> 18006.3143 | TD5: =TD4*EXP(NORMINV(RAND(),$E$2,$F$2)) -> 18698.0005 | TE5: =TE4*EXP(NORMINV(RAND(),$E$2,$F$2)) -> 18452.62486 | TF5: =TF4*EXP(NORMINV(RAND(),$E$2,$F$2)) -> 17840.05045 | TG5: =TG4*EXP(NORMINV(RAND(),$E$2,$F$2)) -> 17868.49647 | TH5: =TH4*EXP(NORMINV(RAND(),$E$2,$F$2)) -> 17668.13305 | TI5: =TI4*EXP(NORMINV(RAND(),$E$2,$F$2)) -> 18129.27881 | TJ5: =TJ4*EXP(NORMINV(RAND(),$E$2,$F$2)) -> 18036.89175 | TK5: =TK4*EXP(NORMINV(RAND(),$E$2,$F$2)) -> 17714.07762 | TL5: =TL4*EXP(NORMINV(RAND(),$E$2,$F$2)) -> 18507.23132 | TM5: =TM4*EXP(NORMINV(RAND(),$E$2,$F$2)) -> 18005.38939 | TN5: =TN4*EXP(NORMINV(RAND(),$E$2,$F$2)) -> 17904.82921 | TO5: =TO4*EXP(NORMINV(RAND(),$E$2,$F$2)) -> 17915.32202 | TP5: =TP4*EXP(NORMINV(RAND(),$E$2,$F$2)) -> 17963.66158 | TQ5: =TQ4*EXP(NORMINV(RAND(),$E$2,$F$2)) -> 18374.74536 | TR5: =TR4*EXP(NORMINV(RAND(),$E$2,$F$2)) -> 18028.9588 | TS5: =TS4*EXP(NORMINV(RAND(),$E$2,$F$2)) -> 18006.49775 | TT5: =TT4*EXP(NORMINV(RAND(),$E$2,$F$2)) -> 17794.59141 | TU5: =TU4*EXP(NORMINV(RAND(),$E$2,$F$2)) -> 17988.88596 | TV5: =TV4*EXP(NORMINV(RAND(),$E$2,$F$2)) -> 18242.72432 | TW5: =TW4*EXP(NORMINV(RAND(),$E$2,$F$2)) -> 18292.9254 | TX5: =TX4*EXP(NORMINV(RAND(),$E$2,$F$2)) -> 17962.15839 | TY5: =TY4*EXP(NORMINV(RAND(),$E$2,$F$2)) -> 18175.02464 | TZ5: =TZ4*EXP(NORMINV(RAND(),$E$2,$F$2)) -> 18284.84556 | UA5: =UA4*EXP(NORMINV(RAND(),$E$2,$F$2)) -> 17998.6526 | UB5: =UB4*EXP(NORMINV(RAND(),$E$2,$F$2)) -> 18179.7409 | UC5: =UC4*EXP(NORMINV(RAND(),$E$2,$F$2)) -> 18201.74199 | UD5: =UD4*EXP(NORMINV(RAND(),$E$2,$F$2)) -> 17901.61145 | UE5: =UE4*EXP(NORMINV(RAND(),$E$2,$F$2)) -> 18372.67091 | UF5: =UF4*EXP(NORMINV(RAND(),$E$2,$F$2)) -> 17867.69096 | UG5: =UG4*EXP(NORMINV(RAND(),$E$2,$F$2)) -> 18302.6556 | UH5: =UH4*EXP(NORMINV(RAND(),$E$2,$F$2)) -> 17737.73905 | UI5: =UI4*EXP(NORMINV(RAND(),$E$2,$F$2)) -> 17840.75514 | UJ5: =UJ4*EXP(NORMINV(RAND(),$E$2,$F$2)) -> 18411.81329 | UK5: =UK4*EXP(NORMINV(RAND(),$E$2,$F$2)) -> 17991.01399 | UL5: =UL4*EXP(NORMINV(RAND(),$E$2,$F$2)) -> 17885.56429 | UM5: =UM4*EXP(NORMINV(RAND(),$E$2,$F$2)) -> 18415.13404 | UN5: =UN4*EXP(NORMINV(RAND(),$E$2,$F$2)) -> 18039.86643 | UO5: =UO4*EXP(NORMINV(RAND(),$E$2,$F$2)) -> 18165.21637 | UP5: =UP4*EXP(NORMINV(RAND(),$E$2,$F$2)) -> 18496.15595 | UQ5: =UQ4*EXP(NORMINV(RAND(),$E$2,$F$2)) -> 18002.46082 | UR5: =UR4*EXP(NORMINV(RAND(),$E$2,$F$2)) -> 17573.15596 | US5: =US4*EXP(NORMINV(RAND(),$E$2,$F$2)) -> 18283.16568 | UT5: =UT4*EXP(NORMINV(RAND(),$E$2,$F$2)) -> 17576.89559 | UU5: =UU4*EXP(NORMINV(RAND(),$E$2,$F$2)) -> 18280.80123 | UV5: =UV4*EXP(NORMINV(RAND(),$E$2,$F$2)) -> 17721.29122 | UW5: =UW4*EXP(NORMINV(RAND(),$E$2,$F$2)) -> 18002.23756 | UX5: =UX4*EXP(NORMINV(RAND(),$E$2,$F$2)) -> 17765.9715 | UY5: =UY4*EXP(NORMINV(RAND(),$E$2,$F$2)) -> 17988.43346 | UZ5: =UZ4*EXP(NORMINV(RAND(),$E$2,$F$2)) -> 17811.69159 | VA5: =VA4*EXP(NORMINV(RAND(),$E$2,$F$2)) -> 17524.97525 | VB5: =VB4*EXP(NORMINV(RAND(),$E$2,$F$2)) -> 17909.99537 | VC5: =VC4*EXP(NORMINV(RAND(),$E$2,$F$2)) -> 18247.88958 | VD5: =VD4*EXP(NORMINV(RAND(),$E$2,$F$2)) -> 17998.01763 | VE5: =VE4*EXP(NORMINV(RAND(),$E$2,$F$2)) -> 18093.28063 | VF5: =VF4*EXP(NORMINV(RAND(),$E$2,$F$2)) -> 18286.54263 | VG5: =VG4*EXP(NORMINV(RAND(),$E$2,$F$2)) -> 17860.25732 | VH5: =VH4*EXP(NORMINV(RAND(),$E$2,$F$2)) -> 17906.26027 | VI5: =VI4*EXP(NORMINV(RAND(),$E$2,$F$2)) -> 17648.11288 | VJ5: =VJ4*EXP(NORMINV(RAND(),$E$2,$F$2)) -> 17838.07934 | VK5: =VK4*EXP(NORMINV(RAND(),$E$2,$F$2)) -> 18147.31947 | VL5: =VL4*EXP(NORMINV(RAND(),$E$2,$F$2)) -> 18291.02612 | VM5: =VM4*EXP(NORMINV(RAND(),$E$2,$F$2)) -> 17944.45022 | VN5: =VN4*EXP(NORMINV(RAND(),$E$2,$F$2)) -> 18507.24702 | VO5: =VO4*EXP(NORMINV(RAND(),$E$2,$F$2)) -> 18428.72124 | VP5: =VP4*EXP(NORMINV(RAND(),$E$2,$F$2)) -> 18602.76065 | VQ5: =VQ4*EXP(NORMINV(RAND(),$E$2,$F$2)) -> 18200.07874 | VR5: =VR4*EXP(NORMINV(RAND(),$E$2,$F$2)) -> 17863.37877 | VS5: =VS4*EXP(NORMINV(RAND(),$E$2,$F$2)) -> 17989.30481 | VT5: =VT4*EXP(NORMINV(RAND(),$E$2,$F$2)) -> 17604.56735 | VU5: =VU4*EXP(NORMINV(RAND(),$E$2,$F$2)) -> 17668.12262 | VV5: =VV4*EXP(NORMINV(RAND(),$E$2,$F$2)) -> 18306.1924 | VW5: =VW4*EXP(NORMINV(RAND(),$E$2,$F$2)) -> 17965.76935 | VX5: =VX4*EXP(NORMINV(RAND(),$E$2,$F$2)) -> 17529.1171 | VY5: =VY4*EXP(NORMINV(RAND(),$E$2,$F$2)) -> 17958.24551 | VZ5: =VZ4*EXP(NORMINV(RAND(),$E$2,$F$2)) -> 18155.81929 | WA5: =WA4*EXP(NORMINV(RAND(),$E$2,$F$2)) -> 18312.17022 | WB5: =WB4*EXP(NORMINV(RAND(),$E$2,$F$2)) -> 18299.83855 | WC5: =WC4*EXP(NORMINV(RAND(),$E$2,$F$2)) -> 18240.04706 | WD5: =WD4*EXP(NORMINV(RAND(),$E$2,$F$2)) -> 17921.67836 | WE5: =WE4*EXP(NORMINV(RAND(),$E$2,$F$2)) -> 18123.78462 | WF5: =WF4*EXP(NORMINV(RAND(),$E$2,$F$2)) -> 18044.35124 | WG5: =WG4*EXP(NORMINV(RAND(),$E$2,$F$2)) -> 18162.02853 | WH5: =WH4*EXP(NORMINV(RAND(),$E$2,$F$2)) -> 17970.9903 | WI5: =WI4*EXP(NORMINV(RAND(),$E$2,$F$2)) -> 18253.27403 | WJ5: =WJ4*EXP(NORMINV(RAND(),$E$2,$F$2)) -> 18174.61632 | WK5: =WK4*EXP(NORMINV(RAND(),$E$2,$F$2)) -> 17889.60141 | WL5: =WL4*EXP(NORMINV(RAND(),$E$2,$F$2)) -> 18206.92569 | WM5: =WM4*EXP(NORMINV(RAND(),$E$2,$F$2)) -> 17409.18897 | WN5: =WN4*EXP(NORMINV(RAND(),$E$2,$F$2)) -> 18160.2192 | WO5: =WO4*EXP(NORMINV(RAND(),$E$2,$F$2)) -> 18120.44145 | WP5: =WP4*EXP(NORMINV(RAND(),$E$2,$F$2)) -> 18026.31764 | WQ5: =WQ4*EXP(NORMINV(RAND(),$E$2,$F$2)) -> 18305.40342 | WR5: =WR4*EXP(NORMINV(RAND(),$E$2,$F$2)) -> 18286.65688 | WS5: =WS4*EXP(NORMINV(RAND(),$E$2,$F$2)) -> 18291.63255 | WT5: =WT4*EXP(NORMINV(RAND(),$E$2,$F$2)) -> 18086.41813 | WU5: =WU4*EXP(NORMINV(RAND(),$E$2,$F$2)) -> 17936.04106 | WV5: =WV4*EXP(NORMINV(RAND(),$E$2,$F$2)) -> 17865.80955 | WW5: =WW4*EXP(NORMINV(RAND(),$E$2,$F$2)) -> 18390.03794 | WX5: =WX4*EXP(NORMINV(RAND(),$E$2,$F$2)) -> 18242.55845 | WY5: =WY4*EXP(NORMINV(RAND(),$E$2,$F$2)) -> 18535.65742 | WZ5: =WZ4*EXP(NORMINV(RAND(),$E$2,$F$2)) -> 17930.357 | XA5: =XA4*EXP(NORMINV(RAND(),$E$2,$F$2)) -> 18083.72602 | XB5: =XB4*EXP(NORMINV(RAND(),$E$2,$F$2)) -> 18009.14704 | XC5: =XC4*EXP(NORMINV(RAND(),$E$2,$F$2)) -> 18121.2115 | XD5: =XD4*EXP(NORMINV(RAND(),$E$2,$F$2)) -> 17945.35798 | XE5: =XE4*EXP(NORMINV(RAND(),$E$2,$F$2)) -> 18581.22939 | XF5: =XF4*EXP(NORMINV(RAND(),$E$2,$F$2)) -> 18262.15458 | XG5: =XG4*EXP(NORMINV(RAND(),$E$2,$F$2)) -> 17929.38981 | XH5: =XH4*EXP(NORMINV(RAND(),$E$2,$F$2)) -> 18263.11006 | XI5: =XI4*EXP(NORMINV(RAND(),$E$2,$F$2)) -> 17904.0333 | XJ5: =XJ4*EXP(NORMINV(RAND(),$E$2,$F$2)) -> 17771.40565 | XK5: =XK4*EXP(NORMINV(RAND(),$E$2,$F$2)) -> 17770.06853 | XL5: =XL4*EXP(NORMINV(RAND(),$E$2,$F$2)) -> 18165.54958 | XM5: =XM4*EXP(NORMINV(RAND(),$E$2,$F$2)) -> 17995.61556 | XN5: =XN4*EXP(NORMINV(RAND(),$E$2,$F$2)) -> 17894.83742 | XO5: =XO4*EXP(NORMINV(RAND(),$E$2,$F$2)) -> 18042.81065 | XP5: =XP4*EXP(NORMINV(RAND(),$E$2,$F$2)) -> 17613.95375 | XQ5: =XQ4*EXP(NORMINV(RAND(),$E$2,$F$2)) -> 17752.98507 | XR5: =XR4*EXP(NORMINV(RAND(),$E$2,$F$2)) -> 18414.73668 | XS5: =XS4*EXP(NORMINV(RAND(),$E$2,$F$2)) -> 19115.52592 | XT5: =XT4*EXP(NORMINV(RAND(),$E$2,$F$2)) -> 18056.69458 | XU5: =XU4*EXP(NORMINV(RAND(),$E$2,$F$2)) -> 17762.19242 | XV5: =XV4*EXP(NORMINV(RAND(),$E$2,$F$2)) -> 18399.64475 | XW5: =XW4*EXP(NORMINV(RAND(),$E$2,$F$2)) -> 18309.93391 | XX5: =XX4*EXP(NORMINV(RAND(),$E$2,$F$2)) -> 18359.02241 | XY5: =XY4*EXP(NORMINV(RAND(),$E$2,$F$2)) -> 18208.82576 | XZ5: =XZ4*EXP(NORMINV(RAND(),$E$2,$F$2)) -> 18179.10111 | YA5: =YA4*EXP(NORMINV(RAND(),$E$2,$F$2)) -> 18422.463 | YB5: =YB4*EXP(NORMINV(RAND(),$E$2,$F$2)) -> 17973.63357 | YC5: =YC4*EXP(NORMINV(RAND(),$E$2,$F$2)) -> 17956.71718 | YD5: =YD4*EXP(NORMINV(RAND(),$E$2,$F$2)) -> 18793.9371 | YE5: =YE4*EXP(NORMINV(RAND(),$E$2,$F$2)) -> 18356.85121 | YF5: =YF4*EXP(NORMINV(RAND(),$E$2,$F$2)) -> 18121.02611 | YG5: =YG4*EXP(NORMINV(RAND(),$E$2,$F$2)) -> 17787.38634 | YH5: =YH4*EXP(NORMINV(RAND(),$E$2,$F$2)) -> 17856.86602 | YI5: =YI4*EXP(NORMINV(RAND(),$E$2,$F$2)) -> 18399.26807 | YJ5: =YJ4*EXP(NORMINV(RAND(),$E$2,$F$2)) -> 18242.5689 | YK5: =YK4*EXP(NORMINV(RAND(),$E$2,$F$2)) -> 17963.65286 | YL5: =YL4*EXP(NORMINV(RAND(),$E$2,$F$2)) -> 18582.58397 | YM5: =YM4*EXP(NORMINV(RAND(),$E$2,$F$2)) -> 17774.66571 | YN5: =YN4*EXP(NORMINV(RAND(),$E$2,$F$2)) -> 17472.04183 | YO5: =YO4*EXP(NORMINV(RAND(),$E$2,$F$2)) -> 18064.70228 | YP5: =YP4*EXP(NORMINV(RAND(),$E$2,$F$2)) -> 18550.20976 | YQ5: =YQ4*EXP(NORMINV(RAND(),$E$2,$F$2)) -> 18191.03812 | YR5: =YR4*EXP(NORMINV(RAND(),$E$2,$F$2)) -> 17982.45635 | YS5: =YS4*EXP(NORMINV(RAND(),$E$2,$F$2)) -> 18358.26555 | YT5: =YT4*EXP(NORMINV(RAND(),$E$2,$F$2)) -> 17735.6847 | YU5: =YU4*EXP(NORMINV(RAND(),$E$2,$F$2)) -> 17969.85317 | YV5: =YV4*EXP(NORMINV(RAND(),$E$2,$F$2)) -> 18106.21025 | YW5: =YW4*EXP(NORMINV(RAND(),$E$2,$F$2)) -> 17388.96296 | YX5: =YX4*EXP(NORMINV(RAND(),$E$2,$F$2)) -> 17443.17285 | YY5: =YY4*EXP(NORMINV(RAND(),$E$2,$F$2)) -> 17679.9517 | YZ5: =YZ4*EXP(NORMINV(RAND(),$E$2,$F$2)) -> 18045.99119 | ZA5: =ZA4*EXP(NORMINV(RAND(),$E$2,$F$2)) -> 17637.12182 | ZB5: =ZB4*EXP(NORMINV(RAND(),$E$2,$F$2)) -> 18072.37647 | ZC5: =ZC4*EXP(NORMINV(RAND(),$E$2,$F$2)) -> 18365.33143 | ZD5: =ZD4*EXP(NORMINV(RAND(),$E$2,$F$2)) -> 17802.83283 | ZE5: =ZE4*EXP(NORMINV(RAND(),$E$2,$F$2)) -> 18428.60017 | ZF5: =ZF4*EXP(NORMINV(RAND(),$E$2,$F$2)) -> 17932.90535 | ZG5: =ZG4*EXP(NORMINV(RAND(),$E$2,$F$2)) -> 18464.71238 | ZH5: =ZH4*EXP(NORMINV(RAND(),$E$2,$F$2)) -> 18542.21958 | ZI5: =ZI4*EXP(NORMINV(RAND(),$E$2,$F$2)) -> 17961.88473 | ZJ5: =ZJ4*EXP(NORMINV(RAND(),$E$2,$F$2)) -> 18150.80833 | ZK5: =ZK4*EXP(NORMINV(RAND(),$E$2,$F$2)) -> 18437.41346 | ZL5: =ZL4*EXP(NORMINV(RAND(),$E$2,$F$2)) -> 18086.81496 | ZM5: =ZM4*EXP(NORMINV(RAND(),$E$2,$F$2)) -> 18047.40082 | ZN5: =ZN4*EXP(NORMINV(RAND(),$E$2,$F$2)) -> 18049.30848 | ZO5: =ZO4*EXP(NORMINV(RAND(),$E$2,$F$2)) -> 17994.08723 | ZP5: =ZP4*EXP(NORMINV(RAND(),$E$2,$F$2)) -> 18173.31327 | ZQ5: =ZQ4*EXP(NORMINV(RAND(),$E$2,$F$2)) -> 18141.73946 | ZR5: =ZR4*EXP(NORMINV(RAND(),$E$2,$F$2)) -> 17581.93782 | ZS5: =ZS4*EXP(NORMINV(RAND(),$E$2,$F$2)) -> 17427.8408 | ZT5: =ZT4*EXP(NORMINV(RAND(),$E$2,$F$2)) -> 17913.51687 | ZU5: =ZU4*EXP(NORMINV(RAND(),$E$2,$F$2)) -> 17863.11626 | ZV5: =ZV4*EXP(NORMINV(RAND(),$E$2,$F$2)) -> 18446.92234 | ZW5: =ZW4*EXP(NORMINV(RAND(),$E$2,$F$2)) -> 18108.05278 | ZX5: =ZX4*EXP(NORMINV(RAND(),$E$2,$F$2)) -> 18440.62304 | ZY5: =ZY4*EXP(NORMINV(RAND(),$E$2,$F$2)) -> 18020.0886 | ZZ5: =ZZ4*EXP(NORMINV(RAND(),$E$2,$F$2)) -> 18661.50661 | AAA5: =AAA4*EXP(NORMINV(RAND(),$E$2,$F$2)) -> 17939.96393 | AAB5: =AAB4*EXP(NORMINV(RAND(),$E$2,$F$2)) -> 18240.37928 | AAC5: =AAC4*EXP(NORMINV(RAND(),$E$2,$F$2)) -> 17758.4248 | AAD5: =AAD4*EXP(NORMINV(RAND(),$E$2,$F$2)) -> 18380.07398 | AAE5: =AAE4*EXP(NORMINV(RAND(),$E$2,$F$2)) -> 18748.50751 | AAF5: =AAF4*EXP(NORMINV(RAND(),$E$2,$F$2)) -> 17868.08689 | AAG5: =AAG4*EXP(NORMINV(RAND(),$E$2,$F$2)) -> 18407.13327 | AAH5: =AAH4*EXP(NORMINV(RAND(),$E$2,$F$2)) -> 18502.68647 | AAI5: =AAI4*EXP(NORMINV(RAND(),$E$2,$F$2)) -> 18418.83767 | AAJ5: =AAJ4*EXP(NORMINV(RAND(),$E$2,$F$2)) -> 18533.05391 | AAK5: =AAK4*EXP(NORMINV(RAND(),$E$2,$F$2)) -> 18246.33634 | AAL5: =AAL4*EXP(NORMINV(RAND(),$E$2,$F$2)) -> 18479.9697 | AAM5: =AAM4*EXP(NORMINV(RAND(),$E$2,$F$2)) -> 18045.19015 | AAN5: =AAN4*EXP(NORMINV(RAND(),$E$2,$F$2)) -> 18073.1216 | AAO5: =AAO4*EXP(NORMINV(RAND(),$E$2,$F$2)) -> 18685.64489 | AAP5: =AAP4*EXP(NORMINV(RAND(),$E$2,$F$2)) -> 18192.80511 | AAQ5: =AAQ4*EXP(NORMINV(RAND(),$E$2,$F$2)) -> 18219.99621 | AAR5: =AAR4*EXP(NORMINV(RAND(),$E$2,$F$2)) -> 18001.6278 | AAS5: =AAS4*EXP(NORMINV(RAND(),$E$2,$F$2)) -> 18239.01072 | AAT5: =AAT4*EXP(NORMINV(RAND(),$E$2,$F$2)) -> 18427.08203 | AAU5: =AAU4*EXP(NORMINV(RAND(),$E$2,$F$2)) -> 17872.6258 | AAV5: =AAV4*EXP(NORMINV(RAND(),$E$2,$F$2)) -> 17719.90916 | AAW5: =AAW4*EXP(NORMINV(RAND(),$E$2,$F$2)) -> 18206.61229 | AAX5: =AAX4*EXP(NORMINV(RAND(),$E$2,$F$2)) -> 18264.30781 | AAY5: =AAY4*EXP(NORMINV(RAND(),$E$2,$F$2)) -> 18429.95875 | AAZ5: =AAZ4*EXP(NORMINV(RAND(),$E$2,$F$2)) -> 18203.40287 | ABA5: =ABA4*EXP(NORMINV(RAND(),$E$2,$F$2)) -> 17975.60355 | ABB5: =ABB4*EXP(NORMINV(RAND(),$E$2,$F$2)) -> 18282.12124 | ABC5: =ABC4*EXP(NORMINV(RAND(),$E$2,$F$2)) -> 18478.95593 | ABD5: =ABD4*EXP(NORMINV(RAND(),$E$2,$F$2)) -> 18378.39678 | ABE5: =ABE4*EXP(NORMINV(RAND(),$E$2,$F$2)) -> 17784.04352 | ABF5: =ABF4*EXP(NORMINV(RAND(),$E$2,$F$2)) -> 17777.23115 | ABG5: =ABG4*EXP(NORMINV(RAND(),$E$2,$F$2)) -> 18254.45647 | ABH5: =ABH4*EXP(NORMINV(RAND(),$E$2,$F$2)) -> 17804.38965 | ABI5: =ABI4*EXP(NORMINV(RAND(),$E$2,$F$2)) -> 18312.98166 | ABJ5: =ABJ4*EXP(NORMINV(RAND(),$E$2,$F$2)) -> 18168.31364 | ABK5: =ABK4*EXP(NORMINV(RAND(),$E$2,$F$2)) -> 18039.53653 | ABL5: =ABL4*EXP(NORMINV(RAND(),$E$2,$F$2)) -> 17898.17155 | ABM5: =ABM4*EXP(NORMINV(RAND(),$E$2,$F$2)) -> 18318.484 | ABN5: =ABN4*EXP(NORMINV(RAND(),$E$2,$F$2)) -> 18479.4042 | ABO5: =ABO4*EXP(NORMINV(RAND(),$E$2,$F$2)) -> 18346.7467 | ABP5: =ABP4*EXP(NORMINV(RAND(),$E$2,$F$2)) -> 17868.53949 | ABQ5: =ABQ4*EXP(NORMINV(RAND(),$E$2,$F$2)) -> 18224.68684 | ABR5: =ABR4*EXP(NORMINV(RAND(),$E$2,$F$2)) -> 18444.35663 | ABS5: =ABS4*EXP(NORMINV(RAND(),$E$2,$F$2)) -> 18054.41273 | ABT5: =ABT4*EXP(NORMINV(RAND(),$E$2,$F$2)) -> 18511.78805 | ABU5: =ABU4*EXP(NORMINV(RAND(),$E$2,$F$2)) -> 18270.07528 | ABV5: =ABV4*EXP(NORMINV(RAND(),$E$2,$F$2)) -> 17719.79395 | ABW5: =ABW4*EXP(NORMINV(RAND(),$E$2,$F$2)) -> 18185.92894 | ABX5: =ABX4*EXP(NORMINV(RAND(),$E$2,$F$2)) -> 18067.3648 | ABY5: =ABY4*EXP(NORMINV(RAND(),$E$2,$F$2)) -> 18724.51399 | ABZ5: =ABZ4*EXP(NORMINV(RAND(),$E$2,$F$2)) -> 18147.25175 | ACA5: =ACA4*EXP(NORMINV(RAND(),$E$2,$F$2)) -> 17691.66825 | ACB5: =ACB4*EXP(NORMINV(RAND(),$E$2,$F$2)) -> 18125.07447 | ACC5: =ACC4*EXP(NORMINV(RAND(),$E$2,$F$2)) -> 18054.99374 | ACD5: =ACD4*EXP(NORMINV(RAND(),$E$2,$F$2)) -> 18068.13637 | ACE5: =ACE4*EXP(NORMINV(RAND(),$E$2,$F$2)) -> 17929.30251 | ACF5: =ACF4*EXP(NORMINV(RAND(),$E$2,$F$2)) -> 18148.36591 | ACG5: =ACG4*EXP(NORMINV(RAND(),$E$2,$F$2)) -> 18290.6275 | ACH5: =ACH4*EXP(NORMINV(RAND(),$E$2,$F$2)) -> 18206.96534 | ACI5: =ACI4*EXP(NORMINV(RAND(),$E$2,$F$2)) -> 18047.56866 | ACJ5: =ACJ4*EXP(NORMINV(RAND(),$E$2,$F$2)) -> 17771.5229 | ACK5: =ACK4*EXP(NORMINV(RAND(),$E$2,$F$2)) -> 18104.26099 | ACL5: =ACL4*EXP(NORMINV(RAND(),$E$2,$F$2)) -> 18339.21776 | ACM5: =ACM4*EXP(NORMINV(RAND(),$E$2,$F$2)) -> 17939.61501 | ACN5: =ACN4*EXP(NORMINV(RAND(),$E$2,$F$2)) -> 18006.15962 | ACO5: =ACO4*EXP(NORMINV(RAND(),$E$2,$F$2)) -> 18102.3389 | ACP5: =ACP4*EXP(NORMINV(RAND(),$E$2,$F$2)) -> 17836.60101 | ACQ5: =ACQ4*EXP(NORMINV(RAND(),$E$2,$F$2)) -> 17944.72181 | ACR5: =ACR4*EXP(NORMINV(RAND(),$E$2,$F$2)) -> 18332.02111 | ACS5: =ACS4*EXP(NORMINV(RAND(),$E$2,$F$2)) -> 17980.92219 | ACT5: =ACT4*EXP(NORMINV(RAND(),$E$2,$F$2)) -> 18030.09975 | ACU5: =ACU4*EXP(NORMINV(RAND(),$E$2,$F$2)) -> 18274.05063 | ACV5: =ACV4*EXP(NORMINV(RAND(),$E$2,$F$2)) -> 18597.30902 | ACW5: =ACW4*EXP(NORMINV(RAND(),$E$2,$F$2)) -> 18159.17795 | ACX5: =ACX4*EXP(NORMINV(RAND(),$E$2,$F$2)) -> 18254.0118 | ACY5: =ACY4*EXP(NORMINV(RAND(),$E$2,$F$2)) -> 17744.77659 | ACZ5: =ACZ4*EXP(NORMINV(RAND(),$E$2,$F$2)) -> 17983.76607 | ADA5: =ADA4*EXP(NORMINV(RAND(),$E$2,$F$2)) -> 17913.45681 | ADB5: =ADB4*EXP(NORMINV(RAND(),$E$2,$F$2)) -> 17781.34452 | ADC5: =ADC4*EXP(NORMINV(RAND(),$E$2,$F$2)) -> 17719.8514 | ADD5: =ADD4*EXP(NORMINV(RAND(),$E$2,$F$2)) -> 17629.29629 | ADE5: =ADE4*EXP(NORMINV(RAND(),$E$2,$F$2)) -> 17865.93186 | ADF5: =ADF4*EXP(NORMINV(RAND(),$E$2,$F$2)) -> 18191.01353 | ADG5: =ADG4*EXP(NORMINV(RAND(),$E$2,$F$2)) -> 18243.30324 | ADH5: =ADH4*EXP(NORMINV(RAND(),$E$2,$F$2)) -> 17972.71376 | ADI5: =ADI4*EXP(NORMINV(RAND(),$E$2,$F$2)) -> 18032.49515 | ADJ5: =ADJ4*EXP(NORMINV(RAND(),$E$2,$F$2)) -> 18368.51187 | ADK5: =ADK4*EXP(NORMINV(RAND(),$E$2,$F$2)) -> 18336.9976 | ADL5: =ADL4*EXP(NORMINV(RAND(),$E$2,$F$2)) -> 18002.16333 | ADM5: =ADM4*EXP(NORMINV(RAND(),$E$2,$F$2)) -> 17777.77455 | ADN5: =ADN4*EXP(NORMINV(RAND(),$E$2,$F$2)) -> 18147.86932 | ADO5: =ADO4*EXP(NORMINV(RAND(),$E$2,$F$2)) -> 18160.13943 | ADP5: =ADP4*EXP(NORMINV(RAND(),$E$2,$F$2)) -> 18320.5182 | ADQ5: =ADQ4*EXP(NORMINV(RAND(),$E$2,$F$2)) -> 17928.1911 | ADR5: =ADR4*EXP(NORMINV(RAND(),$E$2,$F$2)) -> 18295.62826 | ADS5: =ADS4*EXP(NORMINV(RAND(),$E$2,$F$2)) -> 18176.4157 | ADT5: =ADT4*EXP(NORMINV(RAND(),$E$2,$F$2)) -> 18445.79408 | ADU5: =ADU4*EXP(NORMINV(RAND(),$E$2,$F$2)) -> 17932.14954 | ADV5: =ADV4*EXP(NORMINV(RAND(),$E$2,$F$2)) -> 18524.80303 | ADW5: =ADW4*EXP(NORMINV(RAND(),$E$2,$F$2)) -> 18236.08771 | ADX5: =ADX4*EXP(NORMINV(RAND(),$E$2,$F$2)) -> 17692.49553 | ADY5: =ADY4*EXP(NORMINV(RAND(),$E$2,$F$2)) -> 18030.90931 | ADZ5: =ADZ4*EXP(NORMINV(RAND(),$E$2,$F$2)) -> 18010.19385 | AEA5: =AEA4*EXP(NORMINV(RAND(),$E$2,$F$2)) -> 17923.64134 | AEB5: =AEB4*EXP(NORMINV(RAND(),$E$2,$F$2)) -> 18364.49986 | AEC5: =AEC4*EXP(NORMINV(RAND(),$E$2,$F$2)) -> 17763.70881 | AED5: =AED4*EXP(NORMINV(RAND(),$E$2,$F$2)) -> 18302.95907 | AEE5: =AEE4*EXP(NORMINV(RAND(),$E$2,$F$2)) -> 17879.94495 | AEF5: =AEF4*EXP(NORMINV(RAND(),$E$2,$F$2)) -> 18055.94923 | AEG5: =AEG4*EXP(NORMINV(RAND(),$E$2,$F$2)) -> 18092.64456 | AEH5: =AEH4*EXP(NORMINV(RAND(),$E$2,$F$2)) -> 18000.53487 | AEI5: =AEI4*EXP(NORMINV(RAND(),$E$2,$F$2)) -> 17721.52506 | AEJ5: =AEJ4*EXP(NORMINV(RAND(),$E$2,$F$2)) -> 17812.46736 | AEK5: =AEK4*EXP(NORMINV(RAND(),$E$2,$F$2)) -> 18270.78338 | AEL5: =AEL4*EXP(NORMINV(RAND(),$E$2,$F$2)) -> 17847.0875 | AEM5: =AEM4*EXP(NORMINV(RAND(),$E$2,$F$2)) -> 18182.18687 | AEN5: =AEN4*EXP(NORMINV(RAND(),$E$2,$F$2)) -> 18198.24935 | AEO5: =AEO4*EXP(NORMINV(RAND(),$E$2,$F$2)) -> 17578.61213 | AEP5: =AEP4*EXP(NORMINV(RAND(),$E$2,$F$2)) -> 18349.05184 | AEQ5: =AEQ4*EXP(NORMINV(RAND(),$E$2,$F$2)) -> 18151.52082 | AER5: =AER4*EXP(NORMINV(RAND(),$E$2,$F$2)) -> 18577.69065 | AES5: =AES4*EXP(NORMINV(RAND(),$E$2,$F$2)) -> 18782.01182 | AET5: =AET4*EXP(NORMINV(RAND(),$E$2,$F$2)) -> 17876.15909 | AEU5: =AEU4*EXP(NORMINV(RAND(),$E$2,$F$2)) -> 18110.88126 | AEV5: =AEV4*EXP(NORMINV(RAND(),$E$2,$F$2)) -> 18316.91589 | AEW5: =AEW4*EXP(NORMINV(RAND(),$E$2,$F$2)) -> 18542.78944 | AEX5: =AEX4*EXP(NORMINV(RAND(),$E$2,$F$2)) -> 18481.06496 | AEY5: =AEY4*EXP(NORMINV(RAND(),$E$2,$F$2)) -> 17904.51724 | AEZ5: =AEZ4*EXP(NORMINV(RAND(),$E$2,$F$2)) -> 18198.87652 | AFA5: =AFA4*EXP(NORMINV(RAND(),$E$2,$F$2)) -> 17336.12991 | AFB5: =AFB4*EXP(NORMINV(RAND(),$E$2,$F$2)) -> 18185.05466 | AFC5: =AFC4*EXP(NORMINV(RAND(),$E$2,$F$2)) -> 18367.79363 | AFD5: =AFD4*EXP(NORMINV(RAND(),$E$2,$F$2)) -> 18057.76136 | AFE5: =AFE4*EXP(NORMINV(RAND(),$E$2,$F$2)) -> 18224.06841 | AFF5: =AFF4*EXP(NORMINV(RAND(),$E$2,$F$2)) -> 17807.77686 | AFG5: =AFG4*EXP(NORMINV(RAND(),$E$2,$F$2)) -> 18119.80956 | AFH5: =AFH4*EXP(NORMINV(RAND(),$E$2,$F$2)) -> 17946.98346 | AFI5: =AFI4*EXP(NORMINV(RAND(),$E$2,$F$2)) -> 17618.95906 | AFJ5: =AFJ4*EXP(NORMINV(RAND(),$E$2,$F$2)) -> 18023.84227 | AFK5: =AFK4*EXP(NORMINV(RAND(),$E$2,$F$2)) -> 18082.77477 | AFL5: =AFL4*EXP(NORMINV(RAND(),$E$2,$F$2)) -> 18652.15981 | AFM5: =AFM4*EXP(NORMINV(RAND(),$E$2,$F$2)) -> 18029.58912 | AFN5: =AFN4*EXP(NORMINV(RAND(),$E$2,$F$2)) -> 18080.66952 | AFO5: =AFO4*EXP(NORMINV(RAND(),$E$2,$F$2)) -> 18276.90729 | AFP5: =AFP4*EXP(NORMINV(RAND(),$E$2,$F$2)) -> 18182.49785 | AFQ5: =AFQ4*EXP(NORMINV(RAND(),$E$2,$F$2)) -> 18011.1199 | AFR5: =AFR4*EXP(NORMINV(RAND(),$E$2,$F$2)) -> 18190.07426 | AFS5: =AFS4*EXP(NORMINV(RAND(),$E$2,$F$2)) -> 18037.03542 | AFT5: =AFT4*EXP(NORMINV(RAND(),$E$2,$F$2)) -> 17864.51817 | AFU5: =AFU4*EXP(NORMINV(RAND(),$E$2,$F$2)) -> 18325.53907 | AFV5: =AFV4*EXP(NORMINV(RAND(),$E$2,$F$2)) -> 18005.03415 | AFW5: =AFW4*EXP(NORMINV(RAND(),$E$2,$F$2)) -> 17842.27142 | AFX5: =AFX4*EXP(NORMINV(RAND(),$E$2,$F$2)) -> 17827.47803 | AFY5: =AFY4*EXP(NORMINV(RAND(),$E$2,$F$2)) -> 18195.04065 | AFZ5: =AFZ4*EXP(NORMINV(RAND(),$E$2,$F$2)) -> 18566.33353 | AGA5: =AGA4*EXP(NORMINV(RAND(),$E$2,$F$2)) -> 18386.10208 | AGB5: =AGB4*EXP(NORMINV(RAND(),$E$2,$F$2)) -> 17878.10792 | AGC5: =AGC4*EXP(NORMINV(RAND(),$E$2,$F$2)) -> 18238.51879 | AGD5: =AGD4*EXP(NORMINV(RAND(),$E$2,$F$2)) -> 18201.22191 | AGE5: =AGE4*EXP(NORMINV(RAND(),$E$2,$F$2)) -> 18258.29242 | AGF5: =AGF4*EXP(NORMINV(RAND(),$E$2,$F$2)) -> 18177.58145 | AGG5: =AGG4*EXP(NORMINV(RAND(),$E$2,$F$2)) -> 17768.69092 | AGH5: =AGH4*EXP(NORMINV(RAND(),$E$2,$F$2)) -> 18060.79101 | AGI5: =AGI4*EXP(NORMINV(RAND(),$E$2,$F$2)) -> 17863.92012 | AGJ5: =AGJ4*EXP(NORMINV(RAND(),$E$2,$F$2)) -> 17497.83762 | AGK5: =AGK4*EXP(NORMINV(RAND(),$E$2,$F$2)) -> 18262.58431 | AGL5: =AGL4*EXP(NORMINV(RAND(),$E$2,$F$2)) -> 17815.50948 | AGM5: =AGM4*EXP(NORMINV(RAND(),$E$2,$F$2)) -> 18413.72488 | AGN5: =AGN4*EXP(NORMINV(RAND(),$E$2,$F$2)) -> 17874.3004 | AGO5: =AGO4*EXP(NORMINV(RAND(),$E$2,$F$2)) -> 17854.14148 | AGP5: =AGP4*EXP(NORMINV(RAND(),$E$2,$F$2)) -> 18270.55094 | AGQ5: =AGQ4*EXP(NORMINV(RAND(),$E$2,$F$2)) -> 17477.81555 | AGR5: =AGR4*EXP(NORMINV(RAND(),$E$2,$F$2)) -> 17819.24015 | AGS5: =AGS4*EXP(NORMINV(RAND(),$E$2,$F$2)) -> 17822.34808 | AGT5: =AGT4*EXP(NORMINV(RAND(),$E$2,$F$2)) -> 18499.84876 | AGU5: =AGU4*EXP(NORMINV(RAND(),$E$2,$F$2)) -> 17956.79195 | AGV5: =AGV4*EXP(NORMINV(RAND(),$E$2,$F$2)) -> 17794.77531 | AGW5: =AGW4*EXP(NORMINV(RAND(),$E$2,$F$2)) -> 18133.81064 | AGX5: =AGX4*EXP(NORMINV(RAND(),$E$2,$F$2)) -> 18239.07571 | AGY5: =AGY4*EXP(NORMINV(RAND(),$E$2,$F$2)) -> 18221.18398 | AGZ5: =AGZ4*EXP(NORMINV(RAND(),$E$2,$F$2)) -> 18454.15721 | AHA5: =AHA4*EXP(NORMINV(RAND(),$E$2,$F$2)) -> 18106.23973 | AHB5: =AHB4*EXP(NORMINV(RAND(),$E$2,$F$2)) -> 18202.99032 | AHC5: =AHC4*EXP(NORMINV(RAND(),$E$2,$F$2)) -> 17820.28906 | AHD5: =AHD4*EXP(NORMINV(RAND(),$E$2,$F$2)) -> 18205.6447 | AHE5: =AHE4*EXP(NORMINV(RAND(),$E$2,$F$2)) -> 18837.25569 | AHF5: =AHF4*EXP(NORMINV(RAND(),$E$2,$F$2)) -> 18139.71792 | AHG5: =AHG4*EXP(NORMINV(RAND(),$E$2,$F$2)) -> 17802.463 | AHH5: =AHH4*EXP(NORMINV(RAND(),$E$2,$F$2)) -> 17528.58776 | AHI5: =AHI4*EXP(NORMINV(RAND(),$E$2,$F$2)) -> 18351.81779 | AHJ5: =AHJ4*EXP(NORMINV(RAND(),$E$2,$F$2)) -> 17840.85801 | AHK5: =AHK4*EXP(NORMINV(RAND(),$E$2,$F$2)) -> 18089.65059 | AHL5: =AHL4*EXP(NORMINV(RAND(),$E$2,$F$2)) -> 18537.40944 | AHM5: =AHM4*EXP(NORMINV(RAND(),$E$2,$F$2)) -> 18242.59206 | AHN5: =AHN4*EXP(NORMINV(RAND(),$E$2,$F$2)) -> 18093.49319 | AHO5: =AHO4*EXP(NORMINV(RAND(),$E$2,$F$2)) -> 18137.58275 | AHP5: =AHP4*EXP(NORMINV(RAND(),$E$2,$F$2)) -> 18616.26421 | AHQ5: =AHQ4*EXP(NORMINV(RAND(),$E$2,$F$2)) -> 17984.94211 | AHR5: =AHR4*EXP(NORMINV(RAND(),$E$2,$F$2)) -> 18607.22594 | AHS5: =AHS4*EXP(NORMINV(RAND(),$E$2,$F$2)) -> 17706.17493 | AHT5: =AHT4*EXP(NORMINV(RAND(),$E$2,$F$2)) -> 17980.06441 | AHU5: =AHU4*EXP(NORMINV(RAND(),$E$2,$F$2)) -> 17856.72803 | AHV5: =AHV4*EXP(NORMINV(RAND(),$E$2,$F$2)) -> 18273.05399 | AHW5: =AHW4*EXP(NORMINV(RAND(),$E$2,$F$2)) -> 17705.36599 | AHX5: =AHX4*EXP(NORMINV(RAND(),$E$2,$F$2)) -> 18362.35764 | AHY5: =AHY4*EXP(NORMINV(RAND(),$E$2,$F$2)) -> 18238.9423 | AHZ5: =AHZ4*EXP(NORMINV(RAND(),$E$2,$F$2)) -> 17808.30048 | AIA5: =AIA4*EXP(NORMINV(RAND(),$E$2,$F$2)) -> 18065.75168 | AIB5: =AIB4*EXP(NORMINV(RAND(),$E$2,$F$2)) -> 18246.40904 | AIC5: =AIC4*EXP(NORMINV(RAND(),$E$2,$F$2)) -> 18003.37029 | AID5: =AID4*EXP(NORMINV(RAND(),$E$2,$F$2)) -> 17864.16394 | AIE5: =AIE4*EXP(NORMINV(RAND(),$E$2,$F$2)) -> 18180.38679 | AIF5: =AIF4*EXP(NORMINV(RAND(),$E$2,$F$2)) -> 17991.9221 | AIG5: =AIG4*EXP(NORMINV(RAND(),$E$2,$F$2)) -> 17798.12509 | AIH5: =AIH4*EXP(NORMINV(RAND(),$E$2,$F$2)) -> 18122.29784 | AII5: =AII4*EXP(NORMINV(RAND(),$E$2,$F$2)) -> 18791.4797 | AIJ5: =AIJ4*EXP(NORMINV(RAND(),$E$2,$F$2)) -> 18358.11942 | AIK5: =AIK4*EXP(NORMINV(RAND(),$E$2,$F$2)) -> 18066.63262 | AIL5: =AIL4*EXP(NORMINV(RAND(),$E$2,$F$2)) -> 17897.97722 | AIM5: =AIM4*EXP(NORMINV(RAND(),$E$2,$F$2)) -> 18227.24414 | AIN5: =AIN4*EXP(NORMINV(RAND(),$E$2,$F$2)) -> 18323.10029 | AIO5: =AIO4*EXP(NORMINV(RAND(),$E$2,$F$2)) -> 18260.01116 | AIP5: =AIP4*EXP(NORMINV(RAND(),$E$2,$F$2)) -> 18379.33607 | AIQ5: =AIQ4*EXP(NORMINV(RAND(),$E$2,$F$2)) -> 18309.66673 | AIR5: =AIR4*EXP(NORMINV(RAND(),$E$2,$F$2)) -> 18059.30104 | AIS5: =AIS4*EXP(NORMINV(RAND(),$E$2,$F$2)) -> 17887.45269 | AIT5: =AIT4*EXP(NORMINV(RAND(),$E$2,$F$2)) -> 18084.13161 | AIU5: =AIU4*EXP(NORMINV(RAND(),$E$2,$F$2)) -> 18070.88658 | AIV5: =AIV4*EXP(NORMINV(RAND(),$E$2,$F$2)) -> 18124.58647 | AIW5: =AIW4*EXP(NORMINV(RAND(),$E$2,$F$2)) -> 18105.16389 | AIX5: =AIX4*EXP(NORMINV(RAND(),$E$2,$F$2)) -> 18345.76007 | AIY5: =AIY4*EXP(NORMINV(RAND(),$E$2,$F$2)) -> 17958.42361 | AIZ5: =AIZ4*EXP(NORMINV(RAND(),$E$2,$F$2)) -> 17781.43781 | AJA5: =AJA4*EXP(NORMINV(RAND(),$E$2,$F$2)) -> 18172.35705 | AJB5: =AJB4*EXP(NORMINV(RAND(),$E$2,$F$2)) -> 18106.9973 | AJC5: =AJC4*EXP(NORMINV(RAND(),$E$2,$F$2)) -> 18299.28123 | AJD5: =AJD4*EXP(NORMINV(RAND(),$E$2,$F$2)) -> 17744.68381 | AJE5: =AJE4*EXP(NORMINV(RAND(),$E$2,$F$2)) -> 17721.70417 | AJF5: =AJF4*EXP(NORMINV(RAND(),$E$2,$F$2)) -> 18108.5525 | AJG5: =AJG4*EXP(NORMINV(RAND(),$E$2,$F$2)) -> 18233.61814 | AJH5: =AJH4*EXP(NORMINV(RAND(),$E$2,$F$2)) -> 18354.72089 | AJI5: =AJI4*EXP(NORMINV(RAND(),$E$2,$F$2)) -> 17929.53441 | AJJ5: =AJJ4*EXP(NORMINV(RAND(),$E$2,$F$2)) -> 18504.74943 | AJK5: =AJK4*EXP(NORMINV(RAND(),$E$2,$F$2)) -> 18034.14379 | AJL5: =AJL4*EXP(NORMINV(RAND(),$E$2,$F$2)) -> 17961.65128 | AJM5: =AJM4*EXP(NORMINV(RAND(),$E$2,$F$2)) -> 18384.78644 | AJN5: =AJN4*EXP(NORMINV(RAND(),$E$2,$F$2)) -> 17718.17244 | AJO5: =AJO4*EXP(NORMINV(RAND(),$E$2,$F$2)) -> 18518.72303 | AJP5: =AJP4*EXP(NORMINV(RAND(),$E$2,$F$2)) -> 18147.78215 | AJQ5: =AJQ4*EXP(NORMINV(RAND(),$E$2,$F$2)) -> 17674.43006 | AJR5: =AJR4*EXP(NORMINV(RAND(),$E$2,$F$2)) -> 18110.24495 | AJS5: =AJS4*EXP(NORMINV(RAND(),$E$2,$F$2)) -> 18366.04625 | AJT5: =AJT4*EXP(NORMINV(RAND(),$E$2,$F$2)) -> 17900.82834 | AJU5: =AJU4*EXP(NORMINV(RAND(),$E$2,$F$2)) -> 17789.77359 | AJV5: =AJV4*EXP(NORMINV(RAND(),$E$2,$F$2)) -> 17754.72 | AJW5: =AJW4*EXP(NORMINV(RAND(),$E$2,$F$2)) -> 18163.17926 | AJX5: =AJX4*EXP(NORMINV(RAND(),$E$2,$F$2)) -> 17703.06123 | AJY5: =AJY4*EXP(NORMINV(RAND(),$E$2,$F$2)) -> 17463.23488 | AJZ5: =AJZ4*EXP(NORMINV(RAND(),$E$2,$F$2)) -> 18463.33431 | AKA5: =AKA4*EXP(NORMINV(RAND(),$E$2,$F$2)) -> 18075.74401 | AKB5: =AKB4*EXP(NORMINV(RAND(),$E$2,$F$2)) -> 17576.94768 | AKC5: =AKC4*EXP(NORMINV(RAND(),$E$2,$F$2)) -> 18191.06053 | AKD5: =AKD4*EXP(NORMINV(RAND(),$E$2,$F$2)) -> 18191.47419 | AKE5: =AKE4*EXP(NORMINV(RAND(),$E$2,$F$2)) -> 17961.31133 | AKF5: =AKF4*EXP(NORMINV(RAND(),$E$2,$F$2)) -> 17975.82681 | AKG5: =AKG4*EXP(NORMINV(RAND(),$E$2,$F$2)) -> 18220.1013 | AKH5: =AKH4*EXP(NORMINV(RAND(),$E$2,$F$2)) -> 18110.26317 | AKI5: =AKI4*EXP(NORMINV(RAND(),$E$2,$F$2)) -> 18082.52542 | AKJ5: =AKJ4*EXP(NORMINV(RAND(),$E$2,$F$2)) -> 18116.86252 | AKK5: =AKK4*EXP(NORMINV(RAND(),$E$2,$F$2)) -> 17951.38973 | AKL5: =AKL4*EXP(NORMINV(RAND(),$E$2,$F$2)) -> 18413.07655 | AKM5: =AKM4*EXP(NORMINV(RAND(),$E$2,$F$2)) -> 17725.75098 | AKN5: =AKN4*EXP(NORMINV(RAND(),$E$2,$F$2)) -> 18149.36483 | AKO5: =AKO4*EXP(NORMINV(RAND(),$E$2,$F$2)) -> 17619.11037 | AKP5: =AKP4*EXP(NORMINV(RAND(),$E$2,$F$2)) -> 18416.67748 | AKQ5: =AKQ4*EXP(NORMINV(RAND(),$E$2,$F$2)) -> 17901.45535 | AKR5: =AKR4*EXP(NORMINV(RAND(),$E$2,$F$2)) -> 17738.28221 | AKS5: =AKS4*EXP(NORMINV(RAND(),$E$2,$F$2)) -> 18438.95609 | AKT5: =AKT4*EXP(NORMINV(RAND(),$E$2,$F$2)) -> 18350.996 | AKU5: =AKU4*EXP(NORMINV(RAND(),$E$2,$F$2)) -> 18077.27548 | AKV5: =AKV4*EXP(NORMINV(RAND(),$E$2,$F$2)) -> 18195.41851 | AKW5: =AKW4*EXP(NORMINV(RAND(),$E$2,$F$2)) -> 18278.44018 | AKX5: =AKX4*EXP(NORMINV(RAND(),$E$2,$F$2)) -> 17835.68297 | AKY5: =AKY4*EXP(NORMINV(RAND(),$E$2,$F$2)) -> 18009.00752 | AKZ5: =AKZ4*EXP(NORMINV(RAND(),$E$2,$F$2)) -> 17966.21906 | ALA5: =ALA4*EXP(NORMINV(RAND(),$E$2,$F$2)) -> 18050.97844 | ALB5: =ALB4*EXP(NORMINV(RAND(),$E$2,$F$2)) -> 18075.77971 | ALC5: =ALC4*EXP(NORMINV(RAND(),$E$2,$F$2)) -> 18249.38775 | ALD5: =ALD4*EXP(NORMINV(RAND(),$E$2,$F$2)) -> 18128.34767 | ALE5: =ALE4*EXP(NORMINV(RAND(),$E$2,$F$2)) -> 18121.23321 | ALF5: =ALF4*EXP(NORMINV(RAND(),$E$2,$F$2)) -> 17685.65981 | ALG5: =ALG4*EXP(NORMINV(RAND(),$E$2,$F$2)) -> 17859.92739 | ALH5: =ALH4*EXP(NORMINV(RAND(),$E$2,$F$2)) -> 18104.3546 | ALI5: =ALI4*EXP(NORMINV(RAND(),$E$2,$F$2)) -> 18109.33523 | ALJ5: =ALJ4*EXP(NORMINV(RAND(),$E$2,$F$2)) -> 18097.14623 | ALK5: =ALK4*EXP(NORMINV(RAND(),$E$2,$F$2)) -> 18356.94669 | ALL5: =ALL4*EXP(NORMINV(RAND(),$E$2,$F$2)) -> 18177.50332 | ALM5: =ALM4*EXP(NORMINV(RAND(),$E$2,$F$2)) -> 18363.43846 | ALN5: =ALN4*EXP(NORMINV(RAND(),$E$2,$F$2)) -> 18277.5093 | ALO5: =ALO4*EXP(NORMINV(RAND(),$E$2,$F$2)) -> 18170.86328 | ALP5: =ALP4*EXP(NORMINV(RAND(),$E$2,$F$2)) -> 18195.27774 | ALQ5: =ALQ4*EXP(NORMINV(RAND(),$E$2,$F$2)) -> 17932.50553 | ALR5: =ALR4*EXP(NORMINV(RAND(),$E$2,$F$2)) -> 17825.02077 | ALS5: =ALS4*EXP(NORMINV(RAND(),$E$2,$F$2)) -> 18047.12661 | ALT5: =ALT4*EXP(NORMINV(RAND(),$E$2,$F$2)) -> 18633.62946 | ALU5: =ALU4*EXP(NORMINV(RAND(),$E$2,$F$2)) -> 18551.74792 | ALV5: =ALV4*EXP(NORMINV(RAND(),$E$2,$F$2)) -> 18136.21146
A6: 2013-05-06 | B6: 5971.049805 | C6: 0.004540451263 | E6: =(E2-(F2^2/2))*20 | F6: =G2*20 | G6: =SQRT(F8) | J6: 3 | K6: 17845.66451 | L6: 17915.55872 | M6: 18382.89568 | N6: 17737.23495 | O6: 18424.53948 | P6: 17679.17149 | Q6: 18413.51672 | R6: 17645.32294 | S6: 18007.74779 | T6: 18219.23756 | U6: 18189.86534 | V6: 18012.60536 | W6: 17844.65003 | X6: 18173.34189 | Y6: 18267.94192 | Z6: 18173.14017 | AA6: 18153.1631 | AB6: 18436.84492 | AC6: 17477.83129 | AD6: 18168.64557 | AE6: 17779.01751 | AF6: 17825.46934 | AG6: 18013.31547 | AH6: 17692.88397 | AI6: 17733.35661 | AJ6: 17814.13299 | AK6: 18412.10101 | AL6: 17745.36917 | AM6: 18411.33326 | AN6: 17983.80163 | AO6: 17594.46743 | AP6: 17867.81635 | AQ6: 18067.6121 | AR6: 18241.39271 | AS6: 17811.70745 | AT6: 17419.80741 | AU6: 17509.85617 | AV6: 18121.14487 | AW6: 17984.03721 | AX6: 18070.12653 | AY6: 18400.05546 | AZ6: 17633.49756 | BA6: 18665.46496 | BB6: 18156.67088 | BC6: 17653.0991 | BD6: 18833.81138 | BE6: 17214.92093 | BF6: 18503.95716 | BG6: 17946.26662 | BH6: 18064.60945 | BI6: 18168.56365 | BJ6: 18242.24021 | BK6: 17980.28757 | BL6: 18120.82051 | BM6: 18282.89922 | BN6: 17743.56371 | BO6: 18135.92847 | BP6: 17875.19398 | BQ6: 18288.57309 | BR6: 17861.56282 | BS6: 18039.95172 | BT6: 17567.53619 | BU6: 18578.83722 | BV6: 17940.90897 | BW6: 18453.47534 | BX6: 17900.35928 | BY6: 18152.19431 | BZ6: 18156.52669 | CA6: 17912.07352 | CB6: 17921.45952 | CC6: 17966.34113 | CD6: 17953.75885 | CE6: 17975.79862 | CF6: 18375.2979 | CG6: 18439.96562 | CH6: 18092.1318 | CI6: 17799.25569 | CJ6: 17913.37493 | CK6: 18417.97421 | CL6: 18004.66315 | CM6: 18216.47399 | CN6: 18414.30388 | CO6: 17699.5104 | CP6: 18354.08853 | CQ6: 17439.3126 | CR6: 17480.23606 | CS6: 17700.59289 | CT6: 17686.8252 | CU6: 17449.33849 | CV6: 18018.82336 | CW6: 17921.97111 | CX6: 18029.61426 | CY6: 18415.448 | CZ6: 17300.95459 | DA6: 18070.11525 | DB6: 18086.66379 | DC6: 18124.76515 | DD6: 17555.54821 | DE6: 17904.68045 | DF6: 18202.45197 | DG6: 17684.7217 | DH6: 17502.47767 | DI6: 18218.7893 | DJ6: 18508.7451 | DK6: 17981.77767 | DL6: 17928.44883 | DM6: 17601.13257 | DN6: 17520.51463 | DO6: 18030.72338 | DP6: 18236.53223 | DQ6: 17868.94735 | DR6: 18255.54587 | DS6: 18531.29161 | DT6: 18126.82654 | DU6: 17574.61986 | DV6: 17775.94808 | DW6: 18174.74362 | DX6: 18325.42311 | DY6: 18571.30249 | DZ6: 18180.26771 | EA6: 17877.47675 | EB6: 17908.75466 | EC6: 18145.71888 | ED6: 17716.95576 | EE6: 18008.24558 | EF6: 18055.23642 | EG6: 17874.70857 | EH6: 17666.67933 | EI6: 18319.95622 | EJ6: 18703.44757 | EK6: 18033.98422 | EL6: 17954.57856 | EM6: 17795.06562 | EN6: 17568.31951 | EO6: 17507.28275 | EP6: 18365.97289 | EQ6: 18263.336 | ER6: 17853.41088 | ES6: 17252.68029 | ET6: 17799.40631 | EU6: 18400.9032 | EV6: 18291.89421 | EW6: 17879.77729 | EX6: 17681.14169 | EY6: 17890.78927 | EZ6: 17942.53878 | FA6: 18167.54599 | FB6: 17909.08549 | FC6: 18146.73124 | FD6: 18125.93657 | FE6: 18145.14742 | FF6: 17993.89548 | FG6: 17844.67019 | FH6: 17829.9751 | FI6: 18128.6624 | FJ6: 18770.21278 | FK6: 18293.77427 | FL6: 17903.0321 | FM6: 18594.78915 | FN6: 17835.49086 | FO6: 18494.93907 | FP6: 18568.78546 | FQ6: 18149.14119 | FR6: 17870.82892 | FS6: 18239.00279 | FT6: 17918.60157 | FU6: 17327.27041 | FV6: 18050.78343 | FW6: 17996.23341 | FX6: 18226.88604 | FY6: 18256.35015 | FZ6: 17892.66441 | GA6: 17672.46694 | GB6: 17961.07094 | GC6: 18049.53288 | GD6: 18379.31649 | GE6: 18107.5354 | GF6: 18493.24072 | GG6: 18161.85061 | GH6: 18178.58568 | GI6: 18584.33401 | GJ6: 17799.2767 | GK6: 18365.12192 | GL6: 18091.06399 | GM6: 18257.67606 | GN6: 17950.41304 | GO6: 18625.25336 | GP6: 18215.24738 | GQ6: 18163.09695 | GR6: 17930.24146 | GS6: 17703.62589 | GT6: 18152.75782 | GU6: 18499.82542 | GV6: 17713.07189 | GW6: 18105.44161 | GX6: 18675.92267 | GY6: 18427.6652 | GZ6: 18018.34728 | HA6: 18134.69644 | HB6: 18084.09541 | HC6: 18128.76576 | HD6: 18512.4961 | HE6: 18364.31021 | HF6: 18145.94683 | HG6: 17238.72729 | HH6: 18008.02188 | HI6: 17898.27121 | HJ6: 18801.60689 | HK6: 17884.14073 | HL6: 17737.60385 | HM6: 18447.9393 | HN6: 18561.35855 | HO6: 18453.2593 | HP6: 18478.33236 | HQ6: 17715.42041 | HR6: 18452.9904 | HS6: 17661.78074 | HT6: 17771.782 | HU6: 18090.19624 | HV6: 18648.83697 | HW6: 18203.4235 | HX6: 18487.82326 | HY6: 17898.71056 | HZ6: 18749.54608 | IA6: 17785.93802 | IB6: 18170.57729 | IC6: 18418.58143 | ID6: 18728.26867 | IE6: 18083.22081 | IF6: 17851.97909 | IG6: 18179.69115 | IH6: 17996.27339 | II6: 18696.70973 | IJ6: 17835.69873 | IK6: 18457.54067 | IL6: 18421.37032 | IM6: 18223.54977 | IN6: 18068.13607 | IO6: 17787.22143 | IP6: 17835.9947 | IQ6: 18211.91653 | IR6: 17785.98913 | IS6: 17871.48807 | IT6: 17938.14564 | IU6: 18048.82383 | IV6: 18197.46486 | IW6: 18023.76422 | IX6: 18319.21858 | IY6: 18134.48572 | IZ6: 18201.45775 | JA6: 18391.76027 | JB6: 18343.97383 | JC6: 17612.06024 | JD6: 18403.76588 | JE6: 18199.01188 | JF6: 18339.39584 | JG6: 17703.45479 | JH6: 17987.5267 | JI6: 18169.80081 | JJ6: 18176.33579 | JK6: 18007.19202 | JL6: 18294.2791 | JM6: 17978.01884 | JN6: 18238.45877 | JO6: 18288.74889 | JP6: 18010.01674 | JQ6: 18586.577 | JR6: 18242.4106 | JS6: 17601.65839 | JT6: 18456.46445 | JU6: 18488.88585 | JV6: 18114.55285 | JW6: 18063.09274 | JX6: 17791.34713 | JY6: 18491.92572 | JZ6: 18047.51889 | KA6: 17517.89044 | KB6: 18171.27309 | KC6: 18076.04072 | KD6: 18617.23848 | KE6: 18190.62196 | KF6: 18234.665 | KG6: 18115.93951 | KH6: 17690.61456 | KI6: 18588.55026 | KJ6: 17501.56975 | KK6: 18025.44314 | KL6: 17932.55991 | KM6: 18310.41429 | KN6: 18290.03475 | KO6: 17493.08764 | KP6: 17580.76072 | KQ6: 17591.75391 | KR6: 18500.65948 | KS6: 17646.2802 | KT6: 18144.58992 | KU6: 17384.63198 | KV6: 17935.9974 | KW6: 18001.06193 | KX6: 18425.91097 | KY6: 18495.42299 | KZ6: 18375.16005 | LA6: 18016.98276 | LB6: 18508.27019 | LC6: 17938.27657 | LD6: 17758.31182 | LE6: 18054.75602 | LF6: 18666.59837 | LG6: 18150.2156 | LH6: 18436.51611 | LI6: 18535.05747 | LJ6: 17560.19584 | LK6: 18036.2362 | LL6: 18169.19602 | LM6: 17908.9393 | LN6: 17836.80365 | LO6: 18139.25412 | LP6: 18589.40998 | LQ6: 18264.07258 | LR6: 18046.51631 | LS6: 18105.52913 | LT6: 17665.18209 | LU6: 17757.97504 | LV6: 17809.02505 | LW6: 17396.49229 | LX6: 18520.28687 | LY6: 18159.72559 | LZ6: 18482.9881 | MA6: 18166.34409 | MB6: 17938.18335 | MC6: 18045.60245 | MD6: 17875.4142 | ME6: 17949.32675 | MF6: 17427.83046 | MG6: 18025.04018 | MH6: 18835.25733 | MI6: 17624.88966 | MJ6: 17646.2913 | MK6: 17793.45573 | ML6: 17698.30482 | MM6: 18297.84742 | MN6: 17861.25433 | MO6: 17972.7423 | MP6: 17954.32481 | MQ6: 18567.02566 | MR6: 17796.5129 | MS6: 17560.10418 | MT6: 17912.02109 | MU6: 18593.54516 | MV6: 18107.08514 | MW6: 17755.38551 | MX6: 18058.3692 | MY6: 18111.91129 | MZ6: 18009.57852 | NA6: 17218.67044 | NB6: 18636.28825 | NC6: 18255.70146 | ND6: 18478.28616 | NE6: 18038.15008 | NF6: 18168.64832 | NG6: 18531.53859 | NH6: 18450.89046 | NI6: 17956.39806 | NJ6: 17808.88523 | NK6: 18157.24758 | NL6: 17784.52612 | NM6: 18169.02511 | NN6: 18228.00168 | NO6: 17909.6663 | NP6: 18142.43164 | NQ6: 18281.9193 | NR6: 18261.74435 | NS6: 17890.70991 | NT6: 18442.10897 | NU6: 18613.9961 | NV6: 17951.03897 | NW6: 18258.43042 | NX6: 18481.13416 | NY6: 18664.16438 | NZ6: 17669.64273 | OA6: 18083.88792 | OB6: 18285.74516 | OC6: 17930.90127 | OD6: 18263.21236 | OE6: 17357.60368 | OF6: 18270.75847 | OG6: 18260.38208 | OH6: 18160.66461 | OI6: 18342.47344 | OJ6: 18106.29203 | OK6: 18002.50789 | OL6: 17509.07871 | OM6: 17792.88474 | ON6: 18061.3145 | OO6: 18465.56088 | OP6: 18559.82332 | OQ6: 17659.32063 | OR6: 18402.68879 | OS6: 17451.5506 | OT6: 17733.65562 | OU6: 17702.15412 | OV6: 18608.07231 | OW6: 17797.32461 | OX6: 17782.55533 | OY6: 17863.74198 | OZ6: 17872.35875 | PA6: 17889.44243 | PB6: 17910.3165 | PC6: 18021.50276 | PD6: 17413.55944 | PE6: 17957.398 | PF6: 18119.44247 | PG6: 18133.21049 | PH6: 17582.09719 | PI6: 18953.43315 | PJ6: 17693.96107 | PK6: 18140.66083 | PL6: 17834.7752 | PM6: 17692.44152 | PN6: 17509.68797 | PO6: 18386.96073 | PP6: 17444.3327 | PQ6: 17554.7031 | PR6: 17424.71517 | PS6: 17908.66303 | PT6: 17670.76056 | PU6: 17749.03093 | PV6: 19081.5911 | PW6: 18103.21411 | PX6: 18123.73619 | PY6: 18504.17089 | PZ6: 17930.86501 | QA6: 17899.00287 | QB6: 17849.92586 | QC6: 18025.67181 | QD6: 18142.82233 | QE6: 18298.21342 | QF6: 18013.82031 | QG6: 18069.99264 | QH6: 18040.50022 | QI6: 17983.97485 | QJ6: 18561.47065 | QK6: 18269.4558 | QL6: 18226.08277 | QM6: 18537.65222 | QN6: 18073.36534 | QO6: 18253.16415 | QP6: 18132.49658 | QQ6: 17891.96992 | QR6: 17748.12066 | QS6: 18154.16069 | QT6: 18206.22703 | QU6: 18286.79831 | QV6: 18773.67403 | QW6: 17834.11945 | QX6: 17965.81498 | QY6: 18637.00999 | QZ6: 18742.14055 | RA6: 17623.93537 | RB6: 18129.08539 | RC6: 17617.75832 | RD6: 17405.34984 | RE6: 18285.83644 | RF6: 17870.70522 | RG6: 17557.73799 | RH6: 17881.62662 | RI6: 17998.45622 | RJ6: 18397.30625 | RK6: 18160.3276 | RL6: 17919.83788 | RM6: 18080.00408 | RN6: 18341.50896 | RO6: 18360.61969 | RP6: 17765.31673 | RQ6: 17919.80503 | RR6: 18725.95939 | RS6: 18030.55301 | RT6: 18341.87736 | RU6: 18486.53299 | RV6: 18367.09442 | RW6: 18273.35546 | RX6: 18520.42545 | RY6: 17612.94747 | RZ6: 18136.00855 | SA6: 17590.16856 | SB6: 18242.52989 | SC6: 18523.68905 | SD6: 18525.84864 | SE6: 18149.9518 | SF6: 17973.36743 | SG6: 18195.20958 | SH6: 18239.68818 | SI6: 17885.95507 | SJ6: 17940.31096 | SK6: 18203.44241 | SL6: 18033.48132 | SM6: 18442.93112 | SN6: 18045.18883 | SO6: 18739.42718 | SP6: 18376.89229 | SQ6: 17821.59869 | SR6: 18185.13948 | SS6: 18271.67665 | ST6: 18086.90645 | SU6: 17859.87212 | SV6: 17958.06041 | SW6: 18067.86362 | SX6: 18418.44448 | SY6: 17681.51681 | SZ6: 18030.46536 | TA6: 17955.31003 | TB6: 17908.06675 | TC6: 17671.51976 | TD6: 18659.80081 | TE6: 18810.67074 | TF6: 17932.16353 | TG6: 17927.24396 | TH6: 17728.43071 | TI6: 17948.28639 | TJ6: 18004.61566 | TK6: 17830.7385 | TL6: 18511.33078 | TM6: 17956.28022 | TN6: 17841.15553 | TO6: 17829.78106 | TP6: 18069.72302 | TQ6: 18186.2213 | TR6: 17534.48034 | TS6: 17870.17528 | TT6: 17880.64805 | TU6: 17965.0428 | TV6: 17954.6372 | TW6: 18379.62685 | TX6: 18111.90149 | TY6: 18220.8966 | TZ6: 18388.95327 | UA6: 17804.11711 | UB6: 18100.343 | UC6: 18659.15169 | UD6: 17883.5308 | UE6: 18207.59067 | UF6: 18053.44116 | UG6: 18410.64437 | UH6: 17529.49806 | UI6: 17683.1464 | UJ6: 18662.56498 | UK6: 18119.72278 | UL6: 17727.68154 | UM6: 18101.63671 | UN6: 18222.76322 | UO6: 18284.41186 | UP6: 18218.95953 | UQ6: 18067.70286 | UR6: 17779.97001 | US6: 18576.30991 | UT6: 17471.19934 | UU6: 17975.78139 | UV6: 17729.71273 | UW6: 17827.06373 | UX6: 18100.0752 | UY6: 18031.21425 | UZ6: 18120.91026 | VA6: 17334.7819 | VB6: 18102.83141 | VC6: 18347.99882 | VD6: 17818.79844 | VE6: 18084.01376 | VF6: 18364.56915 | VG6: 18035.73715 | VH6: 17877.70434 | VI6: 17706.55839 | VJ6: 17931.624 | VK6: 17996.93089 | VL6: 18512.96407 | VM6: 17895.14786 | VN6: 18869.04901 | VO6: 18528.70601 | VP6: 18536.55195 | VQ6: 18259.43401 | VR6: 17627.35107 | VS6: 18163.56239 | VT6: 17286.39801 | VU6: 17905.57522 | VV6: 18134.54097 | VW6: 17814.89746 | VX6: 17519.2232 | VY6: 17910.38574 | VZ6: 18064.21206 | WA6: 18545.05655 | WB6: 18443.10598 | WC6: 18302.03676 | WD6: 17854.67272 | WE6: 18173.78106 | WF6: 18147.04851 | WG6: 18152.36898 | WH6: 18082.45794 | WI6: 18162.15807 | WJ6: 18073.81704 | WK6: 18125.19087 | WL6: 18065.26622 | WM6: 17234.96196 | WN6: 18100.8224 | WO6: 18106.9907 | WP6: 17834.50861 | WQ6: 18771.57933 | WR6: 18347.71077 | WS6: 18369.74382 | WT6: 18380.56368 | WU6: 17895.38345 | WV6: 18040.8578 | WW6: 18433.72867 | WX6: 18412.14487 | WY6: 18491.07761 | WZ6: 18187.92736 | XA6: 18413.06129 | XB6: 18128.5209 | XC6: 18382.11112 | XD6: 17846.6273 | XE6: 18421.56591 | XF6: 18065.62978 | XG6: 17794.72233 | XH6: 18033.94665 | XI6: 17970.53194 | XJ6: 17617.31252 | XK6: 17973.1524 | XL6: 18306.11795 | XM6: 17957.40438 | XN6: 17881.73446 | XO6: 18361.85249 | XP6: 17382.41278 | XQ6: 17924.44561 | XR6: 18381.95103 | XS6: 19195.90075 | XT6: 17908.79231 | XU6: 17730.16275 | XV6: 18522.10686 | XW6: 17972.98764 | XX6: 18208.31987 | XY6: 18120.80384 | XZ6: 18116.55385 | YA6: 18944.05593 | YB6: 17790.38492 | YC6: 18024.09523 | YD6: 18725.82871 | YE6: 18083.58943 | YF6: 18255.29932 | YG6: 17578.53568 | YH6: 17643.30466 | YI6: 18279.66909 | YJ6: 18278.53943 | YK6: 17937.67475 | YL6: 18882.31242 | YM6: 17686.73063 | YN6: 17264.05512 | YO6: 17929.4063 | YP6: 18345.67922 | YQ6: 18051.98375 | YR6: 17911.01458 | YS6: 18420.71093 | YT6: 17825.55752 | YU6: 18458.17521 | YV6: 17995.5994 | YW6: 17360.71653 | YX6: 17002.84295 | YY6: 17569.2198 | YZ6: 17986.70684 | ZA6: 17634.79867 | ZB6: 17978.52737 | ZC6: 18347.69152 | ZD6: 18017.92133 | ZE6: 18523.24773 | ZF6: 17724.28363 | ZG6: 18456.01496 | ZH6: 18428.9267 | ZI6: 17637.34656 | ZJ6: 18256.11139 | ZK6: 18418.09708 | ZL6: 18036.59923 | ZM6: 18320.60496 | ZN6: 18154.46038 | ZO6: 17953.37431 | ZP6: 17746.40258 | ZQ6: 18452.06279 | ZR6: 17595.94616 | ZS6: 17294.10063 | ZT6: 17664.7901 | ZU6: 17897.34843 | ZV6: 18141.89285 | ZW6: 17710.71099 | ZX6: 18670.55126 | ZY6: 18286.61411 | ZZ6: 18630.80575 | AAA6: 18161.01688 | AAB6: 18824.86963 | AAC6: 17762.06377 | AAD6: 18617.18351 | AAE6: 19023.52981 | AAF6: 18068.29087 | AAG6: 18167.68973 | AAH6: 18468.3715 | AAI6: 18495.76437 | AAJ6: 18584.70099 | AAK6: 18450.55984 | AAL6: 18589.11945 | AAM6: 18037.73273 | AAN6: 18038.21718 | AAO6: 18548.85601 | AAP6: 18197.71668 | AAQ6: 17961.08054 | AAR6: 18124.80621 | AAS6: 17845.01762 | AAT6: 18427.08854 | AAU6: 17817.9126 | AAV6: 17849.31388 | AAW6: 18141.00309 | AAX6: 17992.82148 | AAY6: 18225.68259 | AAZ6: 18215.10125 | ABA6: 17901.1848 | ABB6: 17972.08118 | ABC6: 18327.70007 | ABD6: 18358.47263 | ABE6: 17569.74748 | ABF6: 17773.36261 | ABG6: 18209.52125 | ABH6: 17954.30966 | ABI6: 18019.34628 | ABJ6: 18175.03266 | ABK6: 17997.51912 | ABL6: 17492.83652 | ABM6: 18220.41931 | ABN6: 18899.24708 | ABO6: 18299.42978 | ABP6: 18128.69126 | ABQ6: 18366.79401 | ABR6: 18364.09234 | ABS6: 17967.37053 | ABT6: 18241.35103 | ABU6: 18214.21023 | ABV6: 17591.88081 | ABW6: 18044.13784 | ABX6: 17967.91454 | ABY6: 18755.6649 | ABZ6: 18147.75439 | ACA6: 17648.90759 | ACB6: 18016.25963 | ACC6: 18258.06402 | ACD6: 18136.57649 | ACE6: 17860.66712 | ACF6: 17965.69236 | ACG6: 18087.54601 | ACH6: 18087.06338 | ACI6: 17800.58237 | ACJ6: 17742.93638 | ACK6: 17888.80509 | ACL6: 18211.85456 | ACM6: 17859.73157 | ACN6: 18125.17726 | ACO6: 17680.09874 | ACP6: 17709.67819 | ACQ6: 18083.47194 | ACR6: 18484.08225 | ACS6: 17966.06725 | ACT6: 18227.24291 | ACU6: 18078.05118 | ACV6: 18865.46262 | ACW6: 18154.16478 | ACX6: 18198.96422 | ACY6: 17615.82387 | ACZ6: 17866.21895 | ADA6: 17999.60444 | ADB6: 17679.27577 | ADC6: 17794.11532 | ADD6: 17573.46169 | ADE6: 17866.41617 | ADF6: 18511.89188 | ADG6: 17990.40969 | ADH6: 18351.94858 | ADI6: 18277.48225 | ADJ6: 18339.5364 | ADK6: 18241.75549 | ADL6: 17909.83698 | ADM6: 17539.35282 | ADN6: 18256.95884 | ADO6: 18443.61676 | ADP6: 18665.89378 | ADQ6: 17624.11794 | ADR6: 18304.66011 | ADS6: 18307.38374 | ADT6: 18822.61828 | ADU6: 17922.68047 | ADV6: 18354.96073 | ADW6: 18032.00193 | ADX6: 17664.62473 | ADY6: 18240.27221 | ADZ6: 18271.56843 | AEA6: 18031.19625 | AEB6: 18181.56081 | AEC6: 17634.97366 | AED6: 18512.80155 | AEE6: 18202.342 | AEF6: 18216.91717 | AEG6: 18328.67221 | AEH6: 17940.59967 | AEI6: 18005.2891 | AEJ6: 17813.5109 | AEK6: 17890.65094 | AEL6: 17832.52612 | AEM6: 18176.35573 | AEN6: 18382.63108 | AEO6: 17689.65886 | AEP6: 18407.31153 | AEQ6: 18159.22005 | AER6: 18660.5657 | AES6: 18842.52974 | AET6: 18105.72044 | AEU6: 18139.84798 | AEV6: 18277.98816 | AEW6: 18606.59545 | AEX6: 18545.01219 | AEY6: 17859.29011 | AEZ6: 18184.24421 | AFA6: 17234.06686 | AFB6: 17833.07806 | AFC6: 18396.63123 | AFD6: 18050.92813 | AFE6: 18295.14158 | AFF6: 17689.63478 | AFG6: 18208.27236 | AFH6: 17596.45269 | AFI6: 17731.60963 | AFJ6: 18078.64337 | AFK6: 18185.53824 | AFL6: 18940.51397 | AFM6: 18003.31687 | AFN6: 17763.08276 | AFO6: 18118.35312 | AFP6: 18291.30202 | AFQ6: 17701.0366 | AFR6: 18330.53013 | AFS6: 17875.86031 | AFT6: 18119.41048 | AFU6: 18439.83205 | AFV6: 18182.86247 | AFW6: 18084.87626 | AFX6: 17409.38103 | AFY6: 18394.91623 | AFZ6: 18468.33173 | AGA6: 18205.33829 | AGB6: 17872.8391 | AGC6: 18029.56771 | AGD6: 18168.97215 | AGE6: 18148.88598 | AGF6: 18499.14845 | AGG6: 17877.47286 | AGH6: 18013.96112 | AGI6: 17876.95055 | AGJ6: 17747.65599 | AGK6: 18152.74458 | AGL6: 17850.86643 | AGM6: 18170.2112 | AGN6: 17996.70541 | AGO6: 18112.17042 | AGP6: 18157.93263 | AGQ6: 17455.98585 | AGR6: 18196.7536 | AGS6: 17594.96795 | AGT6: 18408.43105 | AGU6: 17725.67243 | AGV6: 17826.05799 | AGW6: 18166.71018 | AGX6: 18113.62072 | AGY6: 18078.00267 | AGZ6: 18288.0719 | AHA6: 17647.32782 | AHB6: 18266.9746 | AHC6: 18231.74931 | AHD6: 18196.36609 | AHE6: 18847.34383 | AHF6: 18175.21986 | AHG6: 18262.62435 | AHH6: 17763.70552 | AHI6: 18261.84224 | AHJ6: 17919.83876 | AHK6: 18060.95415 | AHL6: 18351.72112 | AHM6: 18069.81929 | AHN6: 18083.45396 | AHO6: 18023.33787 | AHP6: 18547.88523 | AHQ6: 17993.91549 | AHR6: 18570.84352 | AHS6: 17621.78889 | AHT6: 17987.83712 | AHU6: 17500.6618 | AHV6: 17868.39015 | AHW6: 17476.19413 | AHX6: 18485.9852 | AHY6: 18026.86319 | AHZ6: 17851.03287 | AIA6: 18190.77253 | AIB6: 18326.19724 | AIC6: 18252.43633 | AID6: 17463.76236 | AIE6: 18417.25936 | AIF6: 18038.58627 | AIG6: 17534.27583 | AIH6: 18508.52406 | AII6: 19025.209 | AIJ6: 18463.94986 | AIK6: 18429.21551 | AIL6: 17785.86827 | AIM6: 18070.013 | AIN6: 18479.57154 | AIO6: 17821.24986 | AIP6: 18326.07329 | AIQ6: 18363.16337 | AIR6: 18457.93161 | AIS6: 17743.62421 | AIT6: 18055.77738 | AIU6: 18150.43254 | AIV6: 18302.95357 | AIW6: 18050.41425 | AIX6: 18356.24209 | AIY6: 18154.9181 | AIZ6: 18047.17333 | AJA6: 18124.7937 | AJB6: 17912.86506 | AJC6: 18243.20372 | AJD6: 17652.07373 | AJE6: 18298.90415 | AJF6: 18170.87057 | AJG6: 18193.87025 | AJH6: 18337.19688 | AJI6: 17789.0041 | AJJ6: 18320.59591 | AJK6: 17882.01434 | AJL6: 17803.1304 | AJM6: 18774.16093 | AJN6: 17828.62103 | AJO6: 18414.02853 | AJP6: 18189.4463 | AJQ6: 17800.88226 | AJR6: 17873.03082 | AJS6: 18018.0379 | AJT6: 17783.74763 | AJU6: 17853.73089 | AJV6: 17483.89902 | AJW6: 18304.05076 | AJX6: 17563.27117 | AJY6: 17299.6446 | AJZ6: 18596.85995 | AKA6: 17793.42061 | AKB6: 17756.92152 | AKC6: 18270.50662 | AKD6: 18127.92817 | AKE6: 17589.15506 | AKF6: 18202.74848 | AKG6: 17800.13457 | AKH6: 17942.02852 | AKI6: 17459.24995 | AKJ6: 18225.51528 | AKK6: 17620.07988 | AKL6: 18491.06928 | AKM6: 17747.51164 | AKN6: 18228.31469 | AKO6: 17790.04428 | AKP6: 18634.0402 | AKQ6: 17521.86147 | AKR6: 17660.82805 | AKS6: 18556.92491 | AKT6: 18393.40951 | AKU6: 18066.98249 | AKV6: 18215.35853 | AKW6: 18162.84031 | AKX6: 17718.41972 | AKY6: 18008.52622 | AKZ6: 17858.1034 | ALA6: 18149.57568 | ALB6: 18035.73671 | ALC6: 17682.79012 | ALD6: 17831.48512 | ALE6: 17778.83915 | ALF6: 18090.11895 | ALG6: 17770.74131 | ALH6: 17939.61182 | ALI6: 18122.09999 | ALJ6: 18207.36557 | ALK6: 18449.03707 | ALL6: 17902.17716 | ALM6: 18552.3542 | ALN6: 18365.89615 | ALO6: 17835.66458 | ALP6: 18110.67248 | ALQ6: 18309.67469 | ALR6: 18084.69327 | ALS6: 18401.58217 | ALT6: 18867.43308 | ALU6: 18742.74923 | ALV6: 18456.51054
A7: 2013-05-07 | B7: 6043.549805 | C7: 0.01206879669 | E7: Drift of 20 days (Average 20 day return) | F7: Variance of 20 Days | G7: Std Dev of 20 days | J7: 4 | K7: 17574.29555 | L7: 17783.31558 | M7: 18246.18902 | N7: 17660.47291 | O7: 18453.38299 | P7: 17751.03115 | Q7: 18363.35387 | R7: 17664.20624 | S7: 18084.30405 | T7: 18209.51924 | U7: 18233.60257 | V7: 18092.38154 | W7: 17966.22022 | X7: 18071.38505 | Y7: 18420.36559 | Z7: 18025.31817 | AA7: 18054.83774 | AB7: 18315.11156 | AC7: 17278.43883 | AD7: 17828.31818 | AE7: 17477.99003 | AF7: 18160.13106 | AG7: 18007.24608 | AH7: 17633.48272 | AI7: 17601.38115 | AJ7: 17650.34685 | AK7: 18047.96478 | AL7: 17399.62433 | AM7: 18441.93652 | AN7: 18012.78154 | AO7: 17283.78272 | AP7: 18168.21338 | AQ7: 17897.4476 | AR7: 18337.82777 | AS7: 17816.57906 | AT7: 17292.4296 | AU7: 17629.48985 | AV7: 18044.75496 | AW7: 18260.08752 | AX7: 18063.50765 | AY7: 18900.56236 | AZ7: 17915.27946 | BA7: 18441.00256 | BB7: 18179.63508 | BC7: 17576.03352 | BD7: 18844.03877 | BE7: 17408.72903 | BF7: 18506.7384 | BG7: 18107.48756 | BH7: 18399.54875 | BI7: 18001.43254 | BJ7: 18495.8007 | BK7: 17986.4546 | BL7: 17787.10425 | BM7: 18218.95902 | BN7: 17645.32866 | BO7: 17726.4782 | BP7: 17996.31902 | BQ7: 17895.47176 | BR7: 18054.52189 | BS7: 18147.84761 | BT7: 17298.20282 | BU7: 18819.18273 | BV7: 18041.59746 | BW7: 18541.66795 | BX7: 17535.61663 | BY7: 17876.77099 | BZ7: 17834.25326 | CA7: 17688.90096 | CB7: 18072.18043 | CC7: 18086.86319 | CD7: 17996.13427 | CE7: 18012.15282 | CF7: 18186.4725 | CG7: 18364.37417 | CH7: 17976.86728 | CI7: 17974.29533 | CJ7: 18001.54497 | CK7: 18440.73478 | CL7: 17795.86417 | CM7: 18175.52095 | CN7: 18037.13532 | CO7: 17723.85758 | CP7: 18336.49206 | CQ7: 17383.35176 | CR7: 17571.76855 | CS7: 17708.5659 | CT7: 17589.18856 | CU7: 17256.99736 | CV7: 17890.93796 | CW7: 18349.34114 | CX7: 18218.05306 | CY7: 18389.74217 | CZ7: 17378.3686 | DA7: 18382.34648 | DB7: 18262.76015 | DC7: 18136.46631 | DD7: 17688.85716 | DE7: 18021.17037 | DF7: 18273.47091 | DG7: 17728.51836 | DH7: 17527.11957 | DI7: 17879.25073 | DJ7: 18682.01403 | DK7: 17559.32069 | DL7: 18149.29479 | DM7: 17631.37729 | DN7: 17746.55589 | DO7: 18006.92837 | DP7: 18321.8517 | DQ7: 17710.0448 | DR7: 18249.55804 | DS7: 18612.35087 | DT7: 18073.56324 | DU7: 17435.36988 | DV7: 17693.02169 | DW7: 18268.80471 | DX7: 18325.39366 | DY7: 18611.5277 | DZ7: 18104.53225 | EA7: 18216.69204 | EB7: 17857.0649 | EC7: 18316.17167 | ED7: 17532.34599 | EE7: 18213.00347 | EF7: 18125.31313 | EG7: 18164.85509 | EH7: 17832.82181 | EI7: 18284.14941 | EJ7: 18798.64943 | EK7: 17929.39123 | EL7: 17881.8575 | EM7: 17993.51236 | EN7: 17406.07064 | EO7: 17381.90567 | EP7: 18546.4727 | EQ7: 18307.93068 | ER7: 17736.49887 | ES7: 17078.50508 | ET7: 17828.32272 | EU7: 18452.75713 | EV7: 18305.81642 | EW7: 17929.0037 | EX7: 17716.13015 | EY7: 17703.48525 | EZ7: 18026.57171 | FA7: 17893.16545 | FB7: 17679.15732 | FC7: 17975.88312 | FD7: 17955.83912 | FE7: 18291.71469 | FF7: 17857.89787 | FG7: 17751.72672 | FH7: 17939.49969 | FI7: 18256.01316 | FJ7: 18700.65394 | FK7: 18375.4946 | FL7: 18094.13632 | FM7: 18273.95326 | FN7: 18005.40693 | FO7: 18718.02607 | FP7: 18720.88226 | FQ7: 17988.607 | FR7: 17778.15201 | FS7: 18387.42626 | FT7: 18187.14344 | FU7: 17278.10478 | FV7: 18050.65824 | FW7: 18141.77014 | FX7: 18528.30732 | FY7: 18499.82155 | FZ7: 17800.70163 | GA7: 17387.36073 | GB7: 17948.51731 | GC7: 17986.59174 | GD7: 18637.42644 | GE7: 18156.15678 | GF7: 18397.6479 | GG7: 18262.08615 | GH7: 18307.31725 | GI7: 18513.57804 | GJ7: 17994.03313 | GK7: 18038.2372 | GL7: 18280.17859 | GM7: 18446.72763 | GN7: 18127.62865 | GO7: 18742.3724 | GP7: 18571.43569 | GQ7: 18447.92868 | GR7: 17992.28122 | GS7: 17737.89813 | GT7: 18289.02354 | GU7: 18652.12716 | GV7: 17888.25834 | GW7: 18497.51165 | GX7: 18551.07739 | GY7: 18336.08514 | GZ7: 18166.49473 | HA7: 18203.27176 | HB7: 17933.77689 | HC7: 18113.64495 | HD7: 18131.92354 | HE7: 18240.5913 | HF7: 18137.46506 | HG7: 17519.23733 | HH7: 17860.48372 | HI7: 17877.81385 | HJ7: 19161.52136 | HK7: 18056.96851 | HL7: 17946.39181 | HM7: 18230.51326 | HN7: 18889.22818 | HO7: 18233.90562 | HP7: 18201.05575 | HQ7: 17756.29823 | HR7: 18391.52898 | HS7: 17573.76425 | HT7: 17560.83074 | HU7: 18404.65162 | HV7: 18897.12951 | HW7: 18121.65528 | HX7: 18333.7781 | HY7: 17918.48156 | HZ7: 18768.32917 | IA7: 17623.54048 | IB7: 18207.86722 | IC7: 18539.83814 | ID7: 18883.88381 | IE7: 17859.27665 | IF7: 17891.55913 | IG7: 18172.9184 | IH7: 18090.70348 | II7: 19115.02309 | IJ7: 17962.78592 | IK7: 18577.85791 | IL7: 18271.58981 | IM7: 18611.50202 | IN7: 18191.10087 | IO7: 17809.85051 | IP7: 17944.72227 | IQ7: 18300.91916 | IR7: 17719.80829 | IS7: 17922.74094 | IT7: 17602.3992 | IU7: 18140.79213 | IV7: 18313.58875 | IW7: 18172.49579 | IX7: 17888.75007 | IY7: 18307.0419 | IZ7: 18334.25488 | JA7: 18420.89114 | JB7: 18114.54367 | JC7: 17707.85681 | JD7: 18597.28679 | JE7: 18292.14653 | JF7: 18234.06722 | JG7: 18024.3572 | JH7: 17979.05926 | JI7: 18213.04406 | JJ7: 18280.8628 | JK7: 17917.84472 | JL7: 18478.37592 | JM7: 17928.02262 | JN7: 18239.70823 | JO7: 18183.31282 | JP7: 18006.74881 | JQ7: 18751.46627 | JR7: 18317.05637 | JS7: 17327.29336 | JT7: 18518.97518 | JU7: 18682.65164 | JV7: 18087.32006 | JW7: 17579.12409 | JX7: 17900.26302 | JY7: 18487.7444 | JZ7: 17790.91046 | KA7: 17477.13863 | KB7: 18122.9843 | KC7: 18269.45945 | KD7: 18332.01172 | KE7: 18584.69703 | KF7: 18083.84003 | KG7: 18245.68972 | KH7: 17659.22538 | KI7: 18672.9066 | KJ7: 17755.62701 | KK7: 17669.88683 | KL7: 18089.7125 | KM7: 18366.98402 | KN7: 17954.37427 | KO7: 17644.94061 | KP7: 17029.62796 | KQ7: 17520.36502 | KR7: 18910.99964 | KS7: 17680.5497 | KT7: 17814.73659 | KU7: 17290.76357 | KV7: 17786.19034 | KW7: 17785.74378 | KX7: 18543.0264 | KY7: 18763.74653 | KZ7: 17976.4169 | LA7: 18276.38545 | LB7: 18420.52725 | LC7: 17548.42541 | LD7: 17556.17363 | LE7: 17813.11215 | LF7: 18528.93175 | LG7: 18175.5858 | LH7: 18692.13299 | LI7: 18822.99081 | LJ7: 17584.8161 | LK7: 18016.98951 | LL7: 18359.47205 | LM7: 18307.15387 | LN7: 17771.82914 | LO7: 18101.24792 | LP7: 18795.08268 | LQ7: 18386.26015 | LR7: 18049.97029 | LS7: 18125.68017 | LT7: 17991.5353 | LU7: 18017.21107 | LV7: 17813.48179 | LW7: 17782.92948 | LX7: 18383.20326 | LY7: 18167.70233 | LZ7: 18471.19609 | MA7: 18177.83828 | MB7: 17822.82582 | MC7: 18189.45498 | MD7: 17873.01027 | ME7: 17616.72985 | MF7: 17238.07038 | MG7: 17870.20445 | MH7: 19153.10703 | MI7: 17999.85487 | MJ7: 17424.62055 | MK7: 17847.06431 | ML7: 17283.74892 | MM7: 18323.02348 | MN7: 18324.55384 | MO7: 17905.20659 | MP7: 18188.91952 | MQ7: 18821.57695 | MR7: 17851.81567 | MS7: 17567.93789 | MT7: 17902.67736 | MU7: 18188.98978 | MV7: 18409.76644 | MW7: 17614.79422 | MX7: 18318.1876 | MY7: 18206.61319 | MZ7: 17973.96023 | NA7: 17162.69386 | NB7: 18533.37537 | NC7: 18670.25102 | ND7: 19084.63253 | NE7: 17664.17941 | NF7: 18299.54069 | NG7: 18798.49636 | NH7: 18614.17526 | NI7: 18220.43271 | NJ7: 18002.95733 | NK7: 18187.57772 | NL7: 17976.0495 | NM7: 18128.80245 | NN7: 18460.53508 | NO7: 18120.09407 | NP7: 18180.27032 | NQ7: 18350.92884 | NR7: 17991.2811 | NS7: 18022.73593 | NT7: 18307.6913 | NU7: 18432.13441 | NV7: 18218.51449 | NW7: 18284.92076 | NX7: 18686.64805 | NY7: 18931.48054 | NZ7: 17856.49722 | OA7: 18067.8339 | OB7: 18265.05321 | OC7: 17938.63392 | OD7: 18230.54972 | OE7: 17261.46361 | OF7: 18698.59247 | OG7: 18261.3036 | OH7: 18302.99695 | OI7: 18086.91233 | OJ7: 18120.19897 | OK7: 17899.00597 | OL7: 17483.45959 | OM7: 18030.22123 | ON7: 17977.84452 | OO7: 18419.3743 | OP7: 18381.14469 | OQ7: 17853.80508 | OR7: 18110.55389 | OS7: 17447.40652 | OT7: 17580.93752 | OU7: 17822.84889 | OV7: 18492.65941 | OW7: 17908.49515 | OX7: 17876.98379 | OY7: 17938.08337 | OZ7: 17902.55161 | PA7: 17993.00369 | PB7: 17902.47777 | PC7: 17898.23065 | PD7: 17308.55835 | PE7: 17959.18996 | PF7: 18327.3041 | PG7: 18441.7309 | PH7: 17732.45934 | PI7: 19380.56346 | PJ7: 17629.5669 | PK7: 17961.1972 | PL7: 18163.13618 | PM7: 17434.1225 | PN7: 17947.55693 | PO7: 18424.55682 | PP7: 17363.17172 | PQ7: 17321.64424 | PR7: 17248.28662 | PS7: 18137.19834 | PT7: 17507.07187 | PU7: 17601.70945 | PV7: 19188.1609 | PW7: 18383.05318 | PX7: 17913.83179 | PY7: 18290.66445 | PZ7: 17937.56087 | QA7: 17529.52555 | QB7: 17799.81166 | QC7: 18216.94475 | QD7: 18089.22314 | QE7: 18150.12164 | QF7: 17881.48668 | QG7: 18206.75532 | QH7: 17873.10667 | QI7: 18050.72231 | QJ7: 18791.22828 | QK7: 18392.6039 | QL7: 18289.74672 | QM7: 18618.90194 | QN7: 18255.33728 | QO7: 18277.96575 | QP7: 18526.53399 | QQ7: 17919.54488 | QR7: 17999.37051 | QS7: 18233.35007 | QT7: 18280.91812 | QU7: 17949.52887 | QV7: 18840.9009 | QW7: 17811.14439 | QX7: 18122.2417 | QY7: 18545.42678 | QZ7: 18662.51032 | RA7: 17772.53525 | RB7: 18044.31026 | RC7: 17666.86872 | RD7: 17323.15867 | RE7: 18354.324 | RF7: 17638.6405 | RG7: 17550.41223 | RH7: 17687.93343 | RI7: 17916.08724 | RJ7: 18405.72177 | RK7: 18489.17119 | RL7: 18142.18915 | RM7: 17973.0148 | RN7: 17817.12034 | RO7: 18215.14485 | RP7: 17499.57043 | RQ7: 17950.62454 | RR7: 18792.74726 | RS7: 17885.59684 | RT7: 18355.31561 | RU7: 18457.35825 | RV7: 18432.20386 | RW7: 18358.58508 | RX7: 18534.02523 | RY7: 17441.18999 | RZ7: 17831.66268 | SA7: 17589.38952 | SB7: 18387.36275 | SC7: 18623.53103 | SD7: 18601.98693 | SE7: 18480.47417 | SF7: 17964.21491 | SG7: 18173.71138 | SH7: 17636.08283 | SI7: 18177.29036 | SJ7: 17651.48475 | SK7: 18170.06102 | SL7: 18111.11505 | SM7: 18486.14533 | SN7: 18131.9535 | SO7: 19224.64236 | SP7: 18485.66213 | SQ7: 17803.48002 | SR7: 18255.61879 | SS7: 18590.95257 | ST7: 17900.62956 | SU7: 17861.10923 | SV7: 18325.33291 | SW7: 18079.41329 | SX7: 18477.14269 | SY7: 17646.86979 | SZ7: 18361.94591 | TA7: 17735.13013 | TB7: 17841.90611 | TC7: 17583.9837 | TD7: 18652.86877 | TE7: 18930.81746 | TF7: 17822.75312 | TG7: 17981.36223 | TH7: 17862.28081 | TI7: 18031.54501 | TJ7: 17996.06963 | TK7: 17566.74315 | TL7: 18761.92699 | TM7: 17922.66758 | TN7: 17820.65252 | TO7: 17765.82629 | TP7: 18086.72394 | TQ7: 17971.40736 | TR7: 17587.41897 | TS7: 17856.64923 | TT7: 17604.3596 | TU7: 17862.97491 | TV7: 18297.51746 | TW7: 18508.78924 | TX7: 18508.1081 | TY7: 18385.24803 | TZ7: 18435.19821 | UA7: 18054.73852 | UB7: 17915.55453 | UC7: 18720.64555 | UD7: 18373.90404 | UE7: 17631.64702 | UF7: 18115.48575 | UG7: 18552.62267 | UH7: 17539.36752 | UI7: 17809.48309 | UJ7: 18275.53141 | UK7: 18078.88296 | UL7: 17731.34195 | UM7: 18286.52749 | UN7: 18020.91097 | UO7: 17827.87487 | UP7: 18115.13757 | UQ7: 18036.24214 | UR7: 17674.89834 | US7: 18330.59189 | UT7: 17665.7522 | UU7: 18305.40994 | UV7: 17807.29143 | UW7: 17995.42916 | UX7: 17881.25471 | UY7: 18041.37975 | UZ7: 18039.61079 | VA7: 17705.07745 | VB7: 18436.41386 | VC7: 18509.34343 | VD7: 17993.3391 | VE7: 17964.55168 | VF7: 18281.36141 | VG7: 17946.36642 | VH7: 17539.20809 | VI7: 17938.08685 | VJ7: 17910.2336 | VK7: 18314.20655 | VL7: 18934.03094 | VM7: 17763.39259 | VN7: 18995.58738 | VO7: 18396.36199 | VP7: 18353.5328 | VQ7: 17791.44533 | VR7: 17431.08398 | VS7: 18246.22729 | VT7: 17233.58739 | VU7: 17671.94916 | VV7: 18601.04004 | VW7: 17926.59528 | VX7: 17427.4211 | VY7: 17790.10905 | VZ7: 18018.79854 | WA7: 18578.70336 | WB7: 18736.51687 | WC7: 18567.89603 | WD7: 17888.59568 | WE7: 18364.43945 | WF7: 18406.5727 | WG7: 17943.0297 | WH7: 17990.14903 | WI7: 17984.49697 | WJ7: 17824.96953 | WK7: 18361.57244 | WL7: 18147.45827 | WM7: 17087.8515 | WN7: 17942.99038 | WO7: 18057.58837 | WP7: 17865.03322 | WQ7: 18644.29112 | WR7: 18261.57508 | WS7: 18545.43922 | WT7: 18289.73292 | WU7: 18161.04047 | WV7: 18000.48812 | WW7: 18252.94045 | WX7: 18451.80904 | WY7: 18641.43442 | WZ7: 18517.78832 | XA7: 18335.54357 | XB7: 18226.47068 | XC7: 18787.60442 | XD7: 17623.68897 | XE7: 18511.29574 | XF7: 18040.65929 | XG7: 17708.72691 | XH7: 18309.63095 | XI7: 17973.46446 | XJ7: 17536.3756 | XK7: 18196.52899 | XL7: 18226.37978 | XM7: 17761.67288 | XN7: 17887.60829 | XO7: 18410.54044 | XP7: 17517.44036 | XQ7: 17870.31148 | XR7: 18863.85629 | XS7: 19142.80877 | XT7: 18111.62467 | XU7: 18305.77185 | XV7: 18204.78524 | XW7: 18042.08738 | XX7: 18461.07725 | XY7: 18204.76851 | XZ7: 18110.92069 | YA7: 19106.87983 | YB7: 17507.61738 | YC7: 17911.75506 | YD7: 18633.23918 | YE7: 18297.66576 | YF7: 18218.01725 | YG7: 17682.90828 | YH7: 17447.97649 | YI7: 18415.34312 | YJ7: 18545.49047 | YK7: 18038.71271 | YL7: 18910.03835 | YM7: 17826.81382 | YN7: 17211.26406 | YO7: 17908.56036 | YP7: 18286.07115 | YQ7: 17961.32734 | YR7: 18253.66845 | YS7: 18375.4903 | YT7: 17953.3054 | YU7: 18549.58836 | YV7: 18382.51713 | YW7: 17396.31215 | YX7: 16980.69762 | YY7: 17693.03142 | YZ7: 18128.13924 | ZA7: 17926.4431 | ZB7: 18082.16046 | ZC7: 18559.78529 | ZD7: 17958.39865 | ZE7: 18336.05071 | ZF7: 18022.20774 | ZG7: 17955.56508 | ZH7: 18804.04266 | ZI7: 17220.15691 | ZJ7: 18236.47316 | ZK7: 18069.09684 | ZL7: 18325.36342 | ZM7: 18372.73352 | ZN7: 18014.65005 | ZO7: 17972.80912 | ZP7: 17739.41655 | ZQ7: 18662.98172 | ZR7: 17168.53763 | ZS7: 17230.29766 | ZT7: 17754.37114 | ZU7: 17641.20737 | ZV7: 18175.6323 | ZW7: 17897.30508 | ZX7: 18775.44205 | ZY7: 18255.38375 | ZZ7: 18530.273 | AAA7: 18378.08915 | AAB7: 18738.27689 | AAC7: 17877.86393 | AAD7: 18878.59077 | AAE7: 19138.11292 | AAF7: 18093.66613 | AAG7: 18306.11317 | AAH7: 18197.88846 | AAI7: 18568.60519 | AAJ7: 18540.75739 | AAK7: 18419.98285 | AAL7: 18579.66099 | AAM7: 18245.74478 | AAN7: 17939.65651 | AAO7: 18798.98385 | AAP7: 17951.36498 | AAQ7: 18114.45905 | AAR7: 17999.2338 | AAS7: 17681.25175 | AAT7: 18011.92491 | AAU7: 18008.26745 | AAV7: 17845.24229 | AAW7: 18319.66942 | AAX7: 18343.66508 | AAY7: 18045.26157 | AAZ7: 18113.30089 | ABA7: 17915.54702 | ABB7: 18239.97734 | ABC7: 18622.14994 | ABD7: 18564.41896 | ABE7: 17691.16801 | ABF7: 17867.48227 | ABG7: 18222.15973 | ABH7: 18020.91741 | ABI7: 17980.09229 | ABJ7: 18362.83879 | ABK7: 17755.27084 | ABL7: 17765.53245 | ABM7: 18214.01255 | ABN7: 18726.87604 | ABO7: 18257.67651 | ABP7: 18314.85051 | ABQ7: 18485.38525 | ABR7: 18512.15296 | ABS7: 18272.93441 | ABT7: 18486.08749 | ABU7: 18093.65275 | ABV7: 17579.08302 | ABW7: 18210.4455 | ABX7: 17733.22537 | ABY7: 18910.40704 | ABZ7: 18047.3023 | ACA7: 17746.26023 | ACB7: 18108.51705 | ACC7: 18383.90901 | ACD7: 18041.77627 | ACE7: 17972.55771 | ACF7: 18103.44934 | ACG7: 18043.50044 | ACH7: 17853.45057 | ACI7: 17772.79875 | ACJ7: 17780.36113 | ACK7: 17704.5873 | ACL7: 18666.73171 | ACM7: 18323.04239 | ACN7: 18373.41512 | ACO7: 17776.92372 | ACP7: 17751.91728 | ACQ7: 17743.57453 | ACR7: 18389.26135 | ACS7: 18122.62453 | ACT7: 18146.85484 | ACU7: 18016.81731 | ACV7: 18817.04183 | ACW7: 18159.22305 | ACX7: 17762.03459 | ACY7: 17311.27814 | ACZ7: 18202.57514 | ADA7: 18096.50717 | ADB7: 17831.96498 | ADC7: 18168.34122 | ADD7: 17745.83259 | ADE7: 17712.59081 | ADF7: 18216.07043 | ADG7: 18125.35894 | ADH7: 18518.44514 | ADI7: 18315.12966 | ADJ7: 18496.91114 | ADK7: 18606.82225 | ADL7: 18316.89463 | ADM7: 17542.7584 | ADN7: 18187.31267 | ADO7: 18525.73048 | ADP7: 18643.10429 | ADQ7: 17892.49651 | ADR7: 18201.87133 | ADS7: 18179.35939 | ADT7: 18643.34273 | ADU7: 17711.17272 | ADV7: 18247.74986 | ADW7: 18014.21402 | ADX7: 17348.07118 | ADY7: 18215.74339 | ADZ7: 18165.59215 | AEA7: 17950.48769 | AEB7: 18010.63882 | AEC7: 17558.58935 | AED7: 18611.72303 | AEE7: 18133.7082 | AEF7: 18310.76631 | AEG7: 18198.63127 | AEH7: 18059.20071 | AEI7: 18123.73227 | AEJ7: 17672.19806 | AEK7: 18088.29133 | AEL7: 17956.38408 | AEM7: 17583.51681 | AEN7: 18420.13989 | AEO7: 17266.48699 | AEP7: 18318.89763 | AEQ7: 18175.17107 | AER7: 18667.9692 | AES7: 18858.19769 | AET7: 18169.3163 | AEU7: 18116.70431 | AEV7: 18272.99545 | AEW7: 18565.76821 | AEX7: 18734.80869 | AEY7: 18087.83086 | AEZ7: 18130.85562 | AFA7: 17269.47489 | AFB7: 17836.81584 | AFC7: 18426.63925 | AFD7: 18372.11959 | AFE7: 18055.59317 | AFF7: 17507.89378 | AFG7: 18528.82772 | AFH7: 17504.20833 | AFI7: 17470.82208 | AFJ7: 18156.26386 | AFK7: 18209.46738 | AFL7: 19024.71214 | AFM7: 17848.98315 | AFN7: 17547.43251 | AFO7: 18186.84895 | AFP7: 18089.94495 | AFQ7: 17864.2292 | AFR7: 18177.13578 | AFS7: 18012.86325 | AFT7: 18105.01923 | AFU7: 18095.54796 | AFV7: 18047.44217 | AFW7: 18183.07554 | AFX7: 17017.31265 | AFY7: 18322.90945 | AFZ7: 18484.6581 | AGA7: 18349.64316 | AGB7: 17663.70538 | AGC7: 18254.41055 | AGD7: 18193.28284 | AGE7: 18591.57902 | AGF7: 18687.57416 | AGG7: 18039.67993 | AGH7: 18381.09966 | AGI7: 17799.77435 | AGJ7: 17822.34643 | AGK7: 17933.08772 | AGL7: 17958.01052 | AGM7: 18502.64753 | AGN7: 17918.54181 | AGO7: 17927.7344 | AGP7: 18048.93008 | AGQ7: 17557.91372 | AGR7: 18216.92874 | AGS7: 17598.4045 | AGT7: 18630.28502 | AGU7: 17988.69807 | AGV7: 17719.25318 | AGW7: 18328.84629 | AGX7: 18055.68034 | AGY7: 18102.14838 | AGZ7: 18251.56619 | AHA7: 17465.28463 | AHB7: 18394.23485 | AHC7: 18443.82567 | AHD7: 18134.26465 | AHE7: 18936.56995 | AHF7: 17988.78515 | AHG7: 18117.65456 | AHH7: 17490.54067 | AHI7: 18108.17677 | AHJ7: 18077.24649 | AHK7: 18196.29578 | AHL7: 18005.66357 | AHM7: 17651.86177 | AHN7: 18058.66824 | AHO7: 18257.58754 | AHP7: 18545.88463 | AHQ7: 17905.24193 | AHR7: 19012.33022 | AHS7: 17681.82313 | AHT7: 18108.40267 | AHU7: 17338.44965 | AHV7: 17819.91949 | AHW7: 17405.08464 | AHX7: 18605.28112 | AHY7: 18052.33875 | AHZ7: 17753.71855 | AIA7: 18213.06804 | AIB7: 18624.13618 | AIC7: 18509.32492 | AID7: 17264.55796 | AIE7: 18063.55499 | AIF7: 18213.86719 | AIG7: 17414.15256 | AIH7: 18240.56706 | AII7: 19199.76667 | AIJ7: 18673.15116 | AIK7: 18406.7218 | AIL7: 17496.75938 | AIM7: 17925.45788 | AIN7: 17919.33429 | AIO7: 17558.3453 | AIP7: 18399.46983 | AIQ7: 18362.01251 | AIR7: 18122.68769 | AIS7: 18093.60213 | AIT7: 17592.68807 | AIU7: 18529.52372 | AIV7: 18218.19196 | AIW7: 17887.5808 | AIX7: 18788.64707 | AIY7: 18022.17021 | AIZ7: 17760.14 | AJA7: 18072.65393 | AJB7: 17963.36338 | AJC7: 18383.85697 | AJD7: 17764.72453 | AJE7: 18636.4057 | AJF7: 18611.16695 | AJG7: 18550.05588 | AJH7: 18240.0937 | AJI7: 17902.06279 | AJJ7: 18541.50511 | AJK7: 18044.70126 | AJL7: 17551.43726 | AJM7: 18649.34894 | AJN7: 17744.513 | AJO7: 18363.0237 | AJP7: 18076.2269 | AJQ7: 17897.20887 | AJR7: 17870.40719 | AJS7: 17975.05165 | AJT7: 17624.73002 | AJU7: 17997.14308 | AJV7: 17410.27084 | AJW7: 18294.35806 | AJX7: 17769.41069 | AJY7: 17456.36367 | AJZ7: 18909.97 | AKA7: 17688.44074 | AKB7: 17506.16339 | AKC7: 18386.04788 | AKD7: 18380.01893 | AKE7: 17507.96595 | AKF7: 17940.75291 | AKG7: 17799.24812 | AKH7: 18006.41909 | AKI7: 17581.48514 | AKJ7: 18396.95026 | AKK7: 17639.89733 | AKL7: 18417.5804 | AKM7: 17702.15951 | AKN7: 17994.05483 | AKO7: 17854.62744 | AKP7: 18313.62333 | AKQ7: 17423.2012 | AKR7: 17491.76721 | AKS7: 18907.45713 | AKT7: 18575.33233 | AKU7: 17723.73152 | AKV7: 18070.80989 | AKW7: 17853.87962 | AKX7: 17925.27071 | AKY7: 18181.19408 | AKZ7: 17780.8857 | ALA7: 18028.30294 | ALB7: 18194.7056 | ALC7: 17943.74032 | ALD7: 17614.57684 | ALE7: 18090.45655 | ALF7: 18225.33951 | ALG7: 18003.30706 | ALH7: 18136.45401 | ALI7: 18289.20793 | ALJ7: 18176.66901 | ALK7: 18571.46812 | ALL7: 18070.79532 | ALM7: 18475.4899 | ALN7: 18537.10721 | ALO7: 17871.35586 | ALP7: 17994.3257 | ALQ7: 18568.94891 | ALR7: 17993.61072 | ALS7: 18200.68854 | ALT7: 18727.72511 | ALU7: 18635.90532 | ALV7: 18337.78989
A8: 2013-05-08 | B8: 6069.299805 | C8: 0.004251689672 | E8: =(E2-(F2^2)/2)*20 -> 0.007928077091 | F8: =G2*20 -> 0.002372522642 | G8: =SQRT(F8) -> 0.04870854793 | J8: 5 | K8: 17567.56212 | L8: 17897.96357 | M8: 18519.0398 | N8: 17599.30626 | O8: 18466.46072 | P8: 17762.38251 | Q8: 18689.49713 | R8: 17763.81802 | S8: 18530.0398 | T8: 18229.93442 | U8: 18241.19723 | V8: 18072.52736 | W8: 17939.3364 | X8: 18060.66813 | Y8: 18363.29851 | Z8: 17981.07936 | AA8: 18106.68017 | AB8: 18123.18674 | AC8: 17042.82809 | AD8: 17414.89327 | AE8: 17522.97526 | AF8: 18208.29475 | AG8: 18380.80023 | AH8: 17517.6897 | AI8: 17794.04131 | AJ8: 17266.11195 | AK8: 17660.9349 | AL8: 17389.54183 | AM8: 18636.44907 | AN8: 17889.04886 | AO8: 17441.56453 | AP8: 18488.36611 | AQ8: 17806.42301 | AR8: 18238.2507 | AS8: 17637.38815 | AT8: 17529.06436 | AU8: 17585.2715 | AV8: 17936.2413 | AW8: 18360.74478 | AX8: 18043.254 | AY8: 18925.97411 | AZ8: 18124.33655 | BA8: 18331.9123 | BB8: 17958.69916 | BC8: 17281.21284 | BD8: 19178.26258 | BE8: 17577.72318 | BF8: 18921.72933 | BG8: 18049.28971 | BH8: 18639.06513 | BI8: 17954.26172 | BJ8: 18386.18276 | BK8: 18146.26101 | BL8: 17537.19726 | BM8: 18434.11463 | BN8: 17409.8826 | BO8: 17837.35927 | BP8: 18136.20209 | BQ8: 18000.63397 | BR8: 17958.84397 | BS8: 18264.3918 | BT8: 17330.43704 | BU8: 18651.72692 | BV8: 17728.61146 | BW8: 18566.53971 | BX8: 17491.10207 | BY8: 17781.88324 | BZ8: 17840.372 | CA8: 17706.07102 | CB8: 18011.27654 | CC8: 17939.09043 | CD8: 17829.96976 | CE8: 18085.47823 | CF8: 18160.14967 | CG8: 18323.6862 | CH8: 18318.32214 | CI8: 17534.95621 | CJ8: 17947.47113 | CK8: 18681.26303 | CL8: 18083.06691 | CM8: 18148.94599 | CN8: 17683.96837 | CO8: 17497.1604 | CP8: 18283.44538 | CQ8: 17493.63709 | CR8: 17628.75623 | CS8: 17593.51748 | CT8: 17829.27413 | CU8: 17448.8615 | CV8: 18063.60833 | CW8: 18629.95045 | CX8: 18124.41797 | CY8: 18397.54377 | CZ8: 17170.85987 | DA8: 18104.87092 | DB8: 18145.8266 | DC8: 18335.29491 | DD8: 17631.47763 | DE8: 18187.41697 | DF8: 18641.56033 | DG8: 17540.72326 | DH8: 17710.00456 | DI8: 17632.93742 | DJ8: 18300.46459 | DK8: 17555.7581 | DL8: 18069.18383 | DM8: 18087.84717 | DN8: 17552.10238 | DO8: 17810.42756 | DP8: 18119.36408 | DQ8: 17497.66917 | DR8: 18576.51887 | DS8: 18806.70527 | DT8: 18507.41777 | DU8: 17109.60022 | DV8: 17868.43269 | DW8: 18146.30359 | DX8: 18369.3868 | DY8: 18507.68811 | DZ8: 18044.6948 | EA8: 18043.3629 | EB8: 17852.42697 | EC8: 18311.67082 | ED8: 17737.58679 | EE8: 18123.75896 | EF8: 18129.20487 | EG8: 18200.52439 | EH8: 17487.82462 | EI8: 18524.90478 | EJ8: 18868.07505 | EK8: 18046.91723 | EL8: 17921.29272 | EM8: 17900.00485 | EN8: 17616.61113 | EO8: 17332.67095 | EP8: 18609.00616 | EQ8: 18650.78386 | ER8: 18175.0562 | ES8: 17401.42682 | ET8: 17752.44857 | EU8: 18435.5427 | EV8: 18618.91808 | EW8: 17795.71869 | EX8: 17673.82163 | EY8: 17668.7877 | EZ8: 18066.84759 | FA8: 17767.95298 | FB8: 17552.7813 | FC8: 17943.49396 | FD8: 17658.43892 | FE8: 18494.82247 | FF8: 18106.98943 | FG8: 17533.37306 | FH8: 17957.20332 | FI8: 18466.29338 | FJ8: 18474.21751 | FK8: 18403.09109 | FL8: 17908.66209 | FM8: 18086.76785 | FN8: 18104.04139 | FO8: 18803.16234 | FP8: 19075.39087 | FQ8: 18185.37597 | FR8: 17769.39775 | FS8: 18584.00923 | FT8: 18203.79037 | FU8: 17204.28674 | FV8: 17910.2256 | FW8: 18100.03536 | FX8: 18477.72552 | FY8: 18843.21601 | FZ8: 17949.81283 | GA8: 17518.97247 | GB8: 18085.89946 | GC8: 18235.66671 | GD8: 18529.89107 | GE8: 17941.64124 | GF8: 18469.97271 | GG8: 18293.19805 | GH8: 18119.35866 | GI8: 18428.6327 | GJ8: 17753.54437 | GK8: 18153.99943 | GL8: 18190.08951 | GM8: 18535.5085 | GN8: 18420.61665 | GO8: 18479.1362 | GP8: 18254.43701 | GQ8: 18639.42505 | GR8: 17741.90975 | GS8: 17585.531 | GT8: 18210.8402 | GU8: 18857.51132 | GV8: 18072.10401 | GW8: 18487.706 | GX8: 18770.06481 | GY8: 18185.15302 | GZ8: 18388.6787 | HA8: 18169.84138 | HB8: 18333.76457 | HC8: 17705.24924 | HD8: 18451.25634 | HE8: 18307.89991 | HF8: 17947.97002 | HG8: 17710.76524 | HH8: 17898.81625 | HI8: 17828.74957 | HJ8: 19242.34911 | HK8: 17976.69347 | HL8: 17661.8849 | HM8: 18236.40542 | HN8: 19111.02714 | HO8: 18030.64943 | HP8: 18202.97404 | HQ8: 17873.46056 | HR8: 18565.5231 | HS8: 17902.89214 | HT8: 17830.21479 | HU8: 18533.79091 | HV8: 18914.03813 | HW8: 17929.93808 | HX8: 18234.40136 | HY8: 17834.92222 | HZ8: 18421.51368 | IA8: 17751.73905 | IB8: 18387.59342 | IC8: 18782.64234 | ID8: 18870.71276 | IE8: 17876.2159 | IF8: 17442.27419 | IG8: 18421.96299 | IH8: 17825.14951 | II8: 19047.23889 | IJ8: 17806.38945 | IK8: 18474.79043 | IL8: 18152.80573 | IM8: 18713.2803 | IN8: 17923.96929 | IO8: 18126.77659 | IP8: 17811.09563 | IQ8: 18034.67589 | IR8: 17699.92384 | IS8: 18041.59047 | IT8: 17621.27947 | IU8: 17882.2799 | IV8: 18073.74708 | IW8: 17997.85816 | IX8: 18049.1361 | IY8: 18685.53054 | IZ8: 18504.85431 | JA8: 18638.12271 | JB8: 18115.78531 | JC8: 17611.52765 | JD8: 18401.90813 | JE8: 17904.31209 | JF8: 18028.38796 | JG8: 17684.77433 | JH8: 18033.8479 | JI8: 18096.07493 | JJ8: 18208.67858 | JK8: 17864.77781 | JL8: 18516.805 | JM8: 18019.76919 | JN8: 17885.65301 | JO8: 18052.02784 | JP8: 18034.938 | JQ8: 18535.33386 | JR8: 18322.14332 | JS8: 17495.1767 | JT8: 19051.81433 | JU8: 18511.73705 | JV8: 18192.74638 | JW8: 17506.41077 | JX8: 18156.74729 | JY8: 18375.74991 | JZ8: 17664.4623 | KA8: 17344.44952 | KB8: 18264.39101 | KC8: 18443.87627 | KD8: 18265.56206 | KE8: 18514.36573 | KF8: 18083.23322 | KG8: 18120.89451 | KH8: 17765.70621 | KI8: 18931.74049 | KJ8: 17486.55946 | KK8: 17579.42288 | KL8: 18018.73794 | KM8: 18205.80458 | KN8: 17983.99442 | KO8: 17384.78153 | KP8: 17206.78007 | KQ8: 17654.42331 | KR8: 18783.91407 | KS8: 17679.62833 | KT8: 17918.09386 | KU8: 17122.75258 | KV8: 18030.33601 | KW8: 17462.04544 | KX8: 18599.22068 | KY8: 18650.8499 | KZ8: 17620.47173 | LA8: 17936.67473 | LB8: 18684.11047 | LC8: 17619.83691 | LD8: 17652.30399 | LE8: 17722.90257 | LF8: 18641.65708 | LG8: 18263.1034 | LH8: 18667.60683 | LI8: 18509.62111 | LJ8: 17341.73056 | LK8: 18102.95735 | LL8: 18028.48484 | LM8: 18062.83356 | LN8: 17742.11363 | LO8: 18361.0684 | LP8: 19225.11951 | LQ8: 18418.02704 | LR8: 17842.26678 | LS8: 17911.57893 | LT8: 17877.37383 | LU8: 18119.72735 | LV8: 17544.52683 | LW8: 17941.79826 | LX8: 18465.79472 | LY8: 18183.36941 | LZ8: 18705.57919 | MA8: 18030.36102 | MB8: 18084.79329 | MC8: 18337.74188 | MD8: 17904.55814 | ME8: 17627.37771 | MF8: 17242.57728 | MG8: 17604.88013 | MH8: 19388.52441 | MI8: 18133.06021 | MJ8: 17360.07298 | MK8: 18022.19609 | ML8: 17182.8433 | MM8: 18135.94241 | MN8: 18315.17317 | MO8: 17863.30368 | MP8: 17907.92683 | MQ8: 18555.63442 | MR8: 17689.18158 | MS8: 17240.65415 | MT8: 18239.26322 | MU8: 18235.29545 | MV8: 18290.72752 | MW8: 17725.95049 | MX8: 18304.20273 | MY8: 18497.13441 | MZ8: 17887.64749 | NA8: 17409.19824 | NB8: 18533.33876 | NC8: 18714.62389 | ND8: 19195.38749 | NE8: 17608.75045 | NF8: 18010.72684 | NG8: 18950.97891 | NH8: 18728.47265 | NI8: 18198.43502 | NJ8: 18327.71705 | NK8: 18217.82822 | NL8: 17852.33142 | NM8: 18246.58044 | NN8: 18039.35069 | NO8: 18113.96725 | NP8: 18073.73538 | NQ8: 18563.34445 | NR8: 17840.63209 | NS8: 18286.26907 | NT8: 18123.93558 | NU8: 18159.57986 | NV8: 18192.31516 | NW8: 18143.25397 | NX8: 18903.50206 | NY8: 19124.49353 | NZ8: 18372.05262 | OA8: 18353.05287 | OB8: 18333.69225 | OC8: 17954.15318 | OD8: 17975.47519 | OE8: 17279.32144 | OF8: 18801.11871 | OG8: 18444.17721 | OH8: 18397.77907 | OI8: 17691.68274 | OJ8: 17809.36829 | OK8: 17709.4426 | OL8: 17101.48916 | OM8: 17982.23452 | ON8: 18017.91506 | OO8: 18193.698 | OP8: 18255.74974 | OQ8: 17735.30095 | OR8: 17866.58465 | OS8: 17590.05551 | OT8: 17747.55193 | OU8: 18085.97491 | OV8: 18645.34116 | OW8: 17927.55096 | OX8: 17919.44139 | OY8: 17769.53617 | OZ8: 17940.76184 | PA8: 17903.0507 | PB8: 18158.23411 | PC8: 17814.8712 | PD8: 17444.43935 | PE8: 18093.02656 | PF8: 18072.51829 | PG8: 18082.58836 | PH8: 17473.05551 | PI8: 19346.8983 | PJ8: 17570.82786 | PK8: 18099.63824 | PL8: 18379.27375 | PM8: 17259.59224 | PN8: 17696.37483 | PO8: 18474.57062 | PP8: 17528.26654 | PQ8: 17223.53209 | PR8: 17467.15184 | PS8: 18254.52568 | PT8: 17461.43782 | PU8: 17771.79291 | PV8: 19121.52723 | PW8: 18352.49663 | PX8: 18092.88763 | PY8: 18213.22255 | PZ8: 17833.76028 | QA8: 17270.14674 | QB8: 17733.97365 | QC8: 18131.90392 | QD8: 17643.44514 | QE8: 18088.37386 | QF8: 17998.84558 | QG8: 18271.17368 | QH8: 18028.27306 | QI8: 17697.41176 | QJ8: 18555.61666 | QK8: 18356.63217 | QL8: 18418.18602 | QM8: 18464.03222 | QN8: 18337.5996 | QO8: 17959.5883 | QP8: 18303.79196 | QQ8: 17917.67506 | QR8: 18119.35266 | QS8: 18101.71444 | QT8: 17892.82123 | QU8: 17852.27251 | QV8: 19016.83195 | QW8: 17786.8758 | QX8: 18078.32956 | QY8: 18872.21287 | QZ8: 18437.82023 | RA8: 17730.74086 | RB8: 17977.27288 | RC8: 17604.29882 | RD8: 17397.81873 | RE8: 18488.44769 | RF8: 17866.7716 | RG8: 17639.91431 | RH8: 17662.6583 | RI8: 18247.17253 | RJ8: 18166.67243 | RK8: 18645.04524 | RL8: 18184.53653 | RM8: 18287.63067 | RN8: 17702.75887 | RO8: 18055.79113 | RP8: 17486.20987 | RQ8: 18133.3831 | RR8: 18739.47011 | RS8: 18028.00406 | RT8: 18309.74408 | RU8: 18480.59851 | RV8: 18121.16397 | RW8: 18641.83745 | RX8: 18436.02463 | RY8: 17665.56711 | RZ8: 17836.1258 | SA8: 17390.90139 | SB8: 18263.53411 | SC8: 18718.0445 | SD8: 18820.28415 | SE8: 18792.25291 | SF8: 17740.26546 | SG8: 18510.69307 | SH8: 17366.1792 | SI8: 18147.18268 | SJ8: 17553.03455 | SK8: 18111.95023 | SL8: 17822.61159 | SM8: 18406.64932 | SN8: 18115.4652 | SO8: 19375.28935 | SP8: 18647.9298 | SQ8: 17952.63767 | SR8: 18511.05576 | SS8: 18792.81676 | ST8: 18014.62325 | SU8: 17733.14623 | SV8: 18359.86566 | SW8: 18110.01647 | SX8: 18247.97997 | SY8: 17664.24373 | SZ8: 18570.65992 | TA8: 17848.93657 | TB8: 17856.48341 | TC8: 17434.7763 | TD8: 18573.2041 | TE8: 18722.4134 | TF8: 18055.77345 | TG8: 17790.68506 | TH8: 18149.50426 | TI8: 18039.58964 | TJ8: 17875.05959 | TK8: 17474.08171 | TL8: 18969.80627 | TM8: 17967.61485 | TN8: 18047.67516 | TO8: 17839.98606 | TP8: 18255.37841 | TQ8: 17861.05932 | TR8: 17625.59966 | TS8: 17712.52139 | TT8: 17571.97469 | TU8: 17714.33459 | TV8: 18471.33679 | TW8: 18519.44576 | TX8: 18486.56178 | TY8: 18349.15545 | TZ8: 18329.93888 | UA8: 17682.67063 | UB8: 18082.85426 | UC8: 18418.34077 | UD8: 18349.27059 | UE8: 17650.35841 | UF8: 18208.03303 | UG8: 18856.55387 | UH8: 17960.61738 | UI8: 17667.52062 | UJ8: 18277.10453 | UK8: 17851.13649 | UL8: 17679.9866 | UM8: 18240.21969 | UN8: 18215.91908 | UO8: 17695.83209 | UP8: 18235.44662 | UQ8: 18117.94761 | UR8: 17466.90166 | US8: 18311.75068 | UT8: 17626.00574 | UU8: 18521.53081 | UV8: 17828.20145 | UW8: 17489.33868 | UX8: 18202.72673 | UY8: 17815.65268 | UZ8: 17807.43077 | VA8: 17576.5241 | VB8: 18682.40588 | VC8: 18577.71896 | VD8: 18142.12117 | VE8: 17814.41501 | VF8: 18486.9878 | VG8: 17758.49149 | VH8: 17310.26604 | VI8: 18003.63113 | VJ8: 17902.13615 | VK8: 18581.95103 | VL8: 19100.27186 | VM8: 17579.40235 | VN8: 19197.01094 | VO8: 18465.24364 | VP8: 18294.24991 | VQ8: 17853.40189 | VR8: 17263.74617 | VS8: 18301.3474 | VT8: 17308.96387 | VU8: 17727.45912 | VV8: 18347.64731 | VW8: 18087.16703 | VX8: 17376.57736 | VY8: 18178.70812 | VZ8: 18069.69315 | WA8: 18470.9994 | WB8: 18619.23101 | WC8: 18627.34973 | WD8: 17703.74757 | WE8: 18605.61387 | WF8: 18583.12771 | WG8: 18032.9224 | WH8: 17684.44105 | WI8: 18050.09652 | WJ8: 17757.68677 | WK8: 17914.41778 | WL8: 18220.8993 | WM8: 16994.58544 | WN8: 18005.93706 | WO8: 17862.63143 | WP8: 17768.05366 | WQ8: 18720.11398 | WR8: 18095.78385 | WS8: 18302.14009 | WT8: 18355.49499 | WU8: 18158.3204 | WV8: 17930.85583 | WW8: 17831.29863 | WX8: 18667.85212 | WY8: 18651.92349 | WZ8: 18631.10274 | XA8: 18278.46333 | XB8: 18181.47277 | XC8: 18597.92891 | XD8: 17228.78294 | XE8: 19080.14658 | XF8: 17764.46588 | XG8: 17779.8625 | XH8: 18083.58056 | XI8: 17929.06096 | XJ8: 17738.36496 | XK8: 17979.74009 | XL8: 18535.69267 | XM8: 17690.14774 | XN8: 17948.90195 | XO8: 18473.74898 | XP8: 17121.42218 | XQ8: 17723.7226 | XR8: 18881.00356 | XS8: 19311.63273 | XT8: 18109.63709 | XU8: 18366.42383 | XV8: 18210.26248 | XW8: 18023.49352 | XX8: 18426.19042 | XY8: 18080.67454 | XZ8: 18213.83005 | YA8: 19219.96269 | YB8: 17470.68086 | YC8: 17628.97954 | YD8: 18888.1699 | YE8: 18262.79606 | YF8: 18290.49932 | YG8: 17538.35277 | YH8: 17463.39372 | YI8: 18545.58031 | YJ8: 18288.25047 | YK8: 18237.233 | YL8: 18765.32602 | YM8: 17721.8118 | YN8: 17378.37801 | YO8: 17981.91285 | YP8: 18337.04507 | YQ8: 17681.88001 | YR8: 17943.45039 | YS8: 18416.86452 | YT8: 17993.33751 | YU8: 18431.41327 | YV8: 18514.25631 | YW8: 17173.94293 | YX8: 16795.2479 | YY8: 17499.83597 | YZ8: 18344.03516 | ZA8: 17710.47169 | ZB8: 18149.73142 | ZC8: 18622.3057 | ZD8: 18051.59436 | ZE8: 18634.65061 | ZF8: 18181.57495 | ZG8: 18257.38933 | ZH8: 18680.83294 | ZI8: 17356.69623 | ZJ8: 18109.69444 | ZK8: 17998.90915 | ZL8: 18313.7698 | ZM8: 18481.31591 | ZN8: 17784.35944 | ZO8: 18150.77998 | ZP8: 17797.3607 | ZQ8: 18991.58767 | ZR8: 16995.51434 | ZS8: 17399.75862 | ZT8: 17673.71632 | ZU8: 18073.73453 | ZV8: 18275.07133 | ZW8: 17777.71202 | ZX8: 18539.19011 | ZY8: 18240.86799 | ZZ8: 18776.84621 | AAA8: 18565.98352 | AAB8: 19043.13945 | AAC8: 18159.35524 | AAD8: 18653.32559 | AAE8: 18988.51283 | AAF8: 18417.81953 | AAG8: 18152.95994 | AAH8: 17739.22659 | AAI8: 18570.12174 | AAJ8: 18813.19051 | AAK8: 18595.63996 | AAL8: 18418.02135 | AAM8: 18176.65765 | AAN8: 18066.88556 | AAO8: 18902.45111 | AAP8: 18088.58184 | AAQ8: 18084.06215 | AAR8: 17980.62974 | AAS8: 17920.08276 | AAT8: 17927.40034 | AAU8: 17726.4342 | AAV8: 18008.06254 | AAW8: 18136.44722 | AAX8: 18426.24811 | AAY8: 18262.42267 | AAZ8: 18385.1097 | ABA8: 18210.886 | ABB8: 18057.48442 | ABC8: 18496.08204 | ABD8: 18050.16609 | ABE8: 17544.50725 | ABF8: 17994.97396 | ABG8: 18212.72992 | ABH8: 18142.35024 | ABI8: 18000.58346 | ABJ8: 18337.83745 | ABK8: 17948.8612 | ABL8: 17742.37735 | ABM8: 17931.10847 | ABN8: 18739.16576 | ABO8: 18344.25299 | ABP8: 18274.43147 | ABQ8: 18489.43815 | ABR8: 18279.36071 | ABS8: 18104.23978 | ABT8: 18335.37842 | ABU8: 18387.31304 | ABV8: 17478.44001 | ABW8: 18348.05485 | ABX8: 17580.37783 | ABY8: 19274.26866 | ABZ8: 17708.89022 | ACA8: 17424.89754 | ACB8: 18021.5545 | ACC8: 18366.96863 | ACD8: 18272.77258 | ACE8: 17945.21473 | ACF8: 18169.65779 | ACG8: 17874.58701 | ACH8: 17725.2575 | ACI8: 17533.19239 | ACJ8: 17786.08705 | ACK8: 17617.22278 | ACL8: 18472.01618 | ACM8: 18398.58326 | ACN8: 18204.58281 | ACO8: 17755.79799 | ACP8: 17415.18523 | ACQ8: 17691.46307 | ACR8: 18163.53152 | ACS8: 18514.35859 | ACT8: 18406.83636 | ACU8: 17914.86479 | ACV8: 19191.56259 | ACW8: 18073.55684 | ACX8: 17746.78428 | ACY8: 17138.37719 | ACZ8: 18000.1765 | ADA8: 18109.52098 | ADB8: 17746.98812 | ADC8: 18312.75148 | ADD8: 17672.23597 | ADE8: 17432.89563 | ADF8: 17993.49621 | ADG8: 17888.60136 | ADH8: 18464.00047 | ADI8: 18239.56759 | ADJ8: 18452.99429 | ADK8: 18302.79738 | ADL8: 18385.38819 | ADM8: 17227.26198 | ADN8: 18087.07598 | ADO8: 18575.90974 | ADP8: 18671.0867 | ADQ8: 18114.64558 | ADR8: 18105.78694 | ADS8: 18209.7849 | ADT8: 18810.11259 | ADU8: 17524.55597 | ADV8: 18372.62117 | ADW8: 18243.75483 | ADX8: 17445.92987 | ADY8: 18286.15235 | ADZ8: 18187.28018 | AEA8: 17676.32649 | AEB8: 17517.78801 | AEC8: 17654.07162 | AED8: 18583.46831 | AEE8: 18040.80588 | AEF8: 18371.64416 | AEG8: 18563.7392 | AEH8: 18166.3724 | AEI8: 17932.49218 | AEJ8: 17661.82448 | AEK8: 18043.82674 | AEL8: 17894.40073 | AEM8: 17628.31219 | AEN8: 18422.43206 | AEO8: 17102.38273 | AEP8: 18546.44958 | AEQ8: 18127.73159 | AER8: 18811.09721 | AES8: 18302.69038 | AET8: 18169.3109 | AEU8: 18189.79462 | AEV8: 18469.1977 | AEW8: 18249.48397 | AEX8: 18578.83829 | AEY8: 17834.80246 | AEZ8: 18243.57648 | AFA8: 17334.4123 | AFB8: 17863.45301 | AFC8: 18380.43098 | AFD8: 18673.68797 | AFE8: 18149.73993 | AFF8: 17520.69524 | AFG8: 18526.9487 | AFH8: 17613.05888 | AFI8: 17433.06221 | AFJ8: 18434.98204 | AFK8: 18022.86053 | AFL8: 19028.74863 | AFM8: 17874.03609 | AFN8: 17594.39794 | AFO8: 18600.22272 | AFP8: 18110.23809 | AFQ8: 18004.96636 | AFR8: 18405.19013 | AFS8: 18404.36073 | AFT8: 18129.548 | AFU8: 17965.69171 | AFV8: 18155.59732 | AFW8: 18189.49797 | AFX8: 16916.59384 | AFY8: 18210.22279 | AFZ8: 18442.30425 | AGA8: 18190.22354 | AGB8: 17526.2347 | AGC8: 18165.38764 | AGD8: 18296.35245 | AGE8: 18452.02852 | AGF8: 18831.19563 | AGG8: 17792.35673 | AGH8: 18455.92453 | AGI8: 17900.42103 | AGJ8: 17782.65393 | AGK8: 17748.74599 | AGL8: 18243.63075 | AGM8: 18219.89014 | AGN8: 18061.24747 | AGO8: 17659.28202 | AGP8: 17890.59629 | AGQ8: 17547.31259 | AGR8: 18275.71765 | AGS8: 17471.98876 | AGT8: 18331.19318 | AGU8: 17954.5087 | AGV8: 17544.6539 | AGW8: 18458.25031 | AGX8: 17736.05964 | AGY8: 18152.1322 | AGZ8: 18274.9239 | AHA8: 17346.69361 | AHB8: 18410.60482 | AHC8: 18764.19083 | AHD8: 17952.21482 | AHE8: 18716.2293 | AHF8: 18084.22378 | AHG8: 18416.38983 | AHH8: 17316.14758 | AHI8: 18024.32058 | AHJ8: 17925.14648 | AHK8: 17978.04848 | AHL8: 18001.92316 | AHM8: 17512.39131 | AHN8: 18147.19903 | AHO8: 18346.5568 | AHP8: 18411.3711 | AHQ8: 17995.06497 | AHR8: 18977.34252 | AHS8: 17556.43484 | AHT8: 18394.27563 | AHU8: 17110.72466 | AHV8: 17720.956 | AHW8: 17054.04928 | AHX8: 18799.12118 | AHY8: 18070.16109 | AHZ8: 17963.55131 | AIA8: 18294.78963 | AIB8: 18668.95105 | AIC8: 18695.76534 | AID8: 17327.1579 | AIE8: 18346.12288 | AIF8: 18260.82977 | AIG8: 17164.82365 | AIH8: 18088.00231 | AII8: 19216.39134 | AIJ8: 18563.05108 | AIK8: 18727.27026 | AIL8: 17265.33449 | AIM8: 18351.33312 | AIN8: 17661.60519 | AIO8: 17726.07579 | AIP8: 18612.9041 | AIQ8: 18500.5844 | AIR8: 18263.07951 | AIS8: 18193.57892 | AIT8: 17650.94983 | AIU8: 18532.59391 | AIV8: 18211.41789 | AIW8: 18198.16977 | AIX8: 19065.42203 | AIY8: 18107.00017 | AIZ8: 17880.44749 | AJA8: 18066.18511 | AJB8: 17910.45754 | AJC8: 18558.59915 | AJD8: 17756.15682 | AJE8: 18571.33111 | AJF8: 18890.35018 | AJG8: 18586.09995 | AJH8: 18524.70441 | AJI8: 17892.03018 | AJJ8: 18524.10238 | AJK8: 17979.27363 | AJL8: 17917.69377 | AJM8: 18870.9397 | AJN8: 17611.67076 | AJO8: 18421.76831 | AJP8: 18070.94836 | AJQ8: 17861.4511 | AJR8: 18035.27944 | AJS8: 18208.56477 | AJT8: 17562.27089 | AJU8: 17913.60655 | AJV8: 17396.29652 | AJW8: 17898.54965 | AJX8: 18112.86389 | AJY8: 17521.14662 | AJZ8: 18832.12203 | AKA8: 17124.54998 | AKB8: 17281.62324 | AKC8: 18206.87798 | AKD8: 18411.23398 | AKE8: 17786.59734 | AKF8: 17987.70525 | AKG8: 17665.46973 | AKH8: 18145.21359 | AKI8: 17660.67751 | AKJ8: 18413.46383 | AKK8: 17494.62043 | AKL8: 18609.01958 | AKM8: 17657.31059 | AKN8: 18501.63557 | AKO8: 17929.24072 | AKP8: 18136.86236 | AKQ8: 17203.61772 | AKR8: 17367.4962 | AKS8: 18805.40333 | AKT8: 18474.36693 | AKU8: 17935.2404 | AKV8: 17853.0685 | AKW8: 17773.75659 | AKX8: 18070.36661 | AKY8: 18072.28909 | AKZ8: 17827.24053 | ALA8: 18066.99648 | ALB8: 17923.65511 | ALC8: 17909.55329 | ALD8: 17568.00915 | ALE8: 18265.50804 | ALF8: 18431.93649 | ALG8: 17754.02828 | ALH8: 18297.91531 | ALI8: 18470.47885 | ALJ8: 18207.17854 | ALK8: 18682.1393 | ALL8: 18089.37921 | ALM8: 18319.12532 | ALN8: 18341.44073 | ALO8: 18037.7788 | ALP8: 17812.1962 | ALQ8: 18356.79311 | ALR8: 18161.01368 | ALS8: 17991.33765 | ALT8: 18507.11716 | ALU8: 18421.28523 | ALV8: 18458.47974
A9: 2013-05-09 | B9: 6050.149902 | C9: -0.003160196115 | E9: ln(ST/So) | F9: = | G9: Normal[(μ-σ2/2)*T,σ2T) | J9: 6 | K9: 17740.11514 | L9: 17772.52863 | M9: 18155.39386 | N9: 17909.03056 | O9: 18257.66093 | P9: 17335.35898 | Q9: 18735.27031 | R9: 17728.98964 | S9: 18828.05945 | T9: 18321.80158 | U9: 18414.80601 | V9: 17741.38106 | W9: 17727.89393 | X9: 17802.45982 | Y9: 18331.47981 | Z9: 17845.93396 | AA9: 17848.68842 | AB9: 18130.89203 | AC9: 16620.96261 | AD9: 17424.68809 | AE9: 17551.55956 | AF9: 17709.92173 | AG9: 18442.15004 | AH9: 17598.42742 | AI9: 17864.98853 | AJ9: 17145.11379 | AK9: 17716.16218 | AL9: 17684.57287 | AM9: 18748.48096 | AN9: 18201.00635 | AO9: 17564.08759 | AP9: 18263.64324 | AQ9: 17854.9929 | AR9: 18356.82889 | AS9: 17823.79204 | AT9: 17613.41361 | AU9: 17560.29709 | AV9: 18188.37883 | AW9: 18378.35166 | AX9: 18165.76418 | AY9: 19117.60157 | AZ9: 18033.81502 | BA9: 18421.87638 | BB9: 18306.69148 | BC9: 17628.92723 | BD9: 19165.72419 | BE9: 17761.30982 | BF9: 18994.84177 | BG9: 17906.58592 | BH9: 18764.37855 | BI9: 18056.75011 | BJ9: 18592.49569 | BK9: 18171.0712 | BL9: 17532.59093 | BM9: 18332.34393 | BN9: 17237.04598 | BO9: 17824.43207 | BP9: 18027.57554 | BQ9: 17877.20468 | BR9: 18042.92687 | BS9: 18589.69235 | BT9: 17493.811 | BU9: 18651.46265 | BV9: 17741.60612 | BW9: 18481.09401 | BX9: 17399.98619 | BY9: 17565.07557 | BZ9: 17664.64853 | CA9: 17540.18074 | CB9: 18369.94415 | CC9: 17725.08854 | CD9: 17728.09161 | CE9: 17831.23802 | CF9: 18026.4816 | CG9: 18032.75086 | CH9: 18544.1074 | CI9: 17565.0919 | CJ9: 17604.86852 | CK9: 18747.75924 | CL9: 18443.74386 | CM9: 18090.77459 | CN9: 17485.97534 | CO9: 17658.78986 | CP9: 18488.75338 | CQ9: 17690.70109 | CR9: 17668.8541 | CS9: 17422.13247 | CT9: 17688.24666 | CU9: 17630.6207 | CV9: 18098.28878 | CW9: 18809.4062 | CX9: 18212.41971 | CY9: 18447.95319 | CZ9: 17152.38533 | DA9: 18243.51965 | DB9: 18187.2754 | DC9: 18280.34503 | DD9: 17477.8175 | DE9: 18349.07299 | DF9: 18892.30009 | DG9: 17352.41948 | DH9: 17791.4421 | DI9: 17547.07709 | DJ9: 18359.21903 | DK9: 17436.64856 | DL9: 18260.91721 | DM9: 18340.40568 | DN9: 17012.24134 | DO9: 17714.85444 | DP9: 18319.66172 | DQ9: 17740.10277 | DR9: 18598.25724 | DS9: 18624.3947 | DT9: 18788.12757 | DU9: 17064.44909 | DV9: 17902.71566 | DW9: 18293.26239 | DX9: 18528.23674 | DY9: 18492.96259 | DZ9: 18103.77537 | EA9: 17699.24053 | EB9: 17849.97895 | EC9: 17906.11976 | ED9: 17551.85735 | EE9: 18271.86955 | EF9: 18116.69223 | EG9: 18452.11023 | EH9: 17653.29447 | EI9: 18557.25614 | EJ9: 19235.0939 | EK9: 17950.08768 | EL9: 17777.88035 | EM9: 17752.9816 | EN9: 17542.1645 | EO9: 17267.88762 | EP9: 18405.63741 | EQ9: 18745.24779 | ER9: 17869.92946 | ES9: 17159.48251 | ET9: 17935.38073 | EU9: 18636.36116 | EV9: 18296.77265 | EW9: 17415.96199 | EX9: 17626.01645 | EY9: 17440.5781 | EZ9: 17878.39751 | FA9: 17704.21147 | FB9: 17568.40106 | FC9: 18143.35641 | FD9: 17804.36943 | FE9: 18466.79256 | FF9: 17998.27612 | FG9: 17472.74872 | FH9: 17841.37292 | FI9: 18534.72485 | FJ9: 18518.89384 | FK9: 18493.59511 | FL9: 18086.87352 | FM9: 18616.5214 | FN9: 18166.13135 | FO9: 18845.58368 | FP9: 19360.48985 | FQ9: 17721.83544 | FR9: 17962.25084 | FS9: 18814.02576 | FT9: 18107.27388 | FU9: 17081.35727 | FV9: 17848.28933 | FW9: 18081.37932 | FX9: 18310.73431 | FY9: 18399.50921 | FZ9: 17953.97929 | GA9: 17677.68251 | GB9: 17997.88467 | GC9: 18261.83183 | GD9: 18417.45407 | GE9: 17759.04344 | GF9: 18373.11512 | GG9: 18125.1329 | GH9: 18114.97172 | GI9: 18317.02451 | GJ9: 18205.3248 | GK9: 18260.2838 | GL9: 18500.15048 | GM9: 18890.15292 | GN9: 18439.40769 | GO9: 18146.22384 | GP9: 18397.77023 | GQ9: 18809.93567 | GR9: 17929.4522 | GS9: 17669.18132 | GT9: 18291.56403 | GU9: 18798.23605 | GV9: 17958.2743 | GW9: 18403.52261 | GX9: 18880.66166 | GY9: 18150.39839 | GZ9: 18124.31447 | HA9: 18144.38838 | HB9: 18247.41861 | HC9: 17646.4599 | HD9: 18773.39626 | HE9: 17997.75637 | HF9: 17771.45603 | HG9: 17829.08102 | HH9: 17873.74197 | HI9: 17570.64514 | HJ9: 18917.57381 | HK9: 18182.52187 | HL9: 17441.38073 | HM9: 17963.77203 | HN9: 18995.68323 | HO9: 17902.49453 | HP9: 18191.70889 | HQ9: 17970.58311 | HR9: 18340.37472 | HS9: 18001.60994 | HT9: 18031.92135 | HU9: 18499.97673 | HV9: 18881.31075 | HW9: 18082.16876 | HX9: 18188.99523 | HY9: 18066.1098 | HZ9: 18618.77984 | IA9: 17751.79831 | IB9: 18433.99181 | IC9: 18952.19467 | ID9: 18830.03925 | IE9: 17524.87567 | IF9: 17364.12611 | IG9: 18775.1026 | IH9: 17615.79631 | II9: 19392.44105 | IJ9: 17863.16882 | IK9: 18724.35861 | IL9: 18080.47877 | IM9: 18683.25089 | IN9: 18094.00731 | IO9: 17992.75382 | IP9: 18130.3977 | IQ9: 18224.01286 | IR9: 17625.9873 | IS9: 18341.85348 | IT9: 17807.89392 | IU9: 18040.21715 | IV9: 18335.55131 | IW9: 18095.76076 | IX9: 17710.91228 | IY9: 18550.58248 | IZ9: 18657.90413 | JA9: 18691.00606 | JB9: 18281.88962 | JC9: 17716.32566 | JD9: 18127.5874 | JE9: 18076.05875 | JF9: 17920.35788 | JG9: 17727.14216 | JH9: 17965.39269 | JI9: 18083.39824 | JJ9: 18423.57004 | JK9: 17845.45768 | JL9: 18400.4502 | JM9: 18203.18741 | JN9: 17804.11693 | JO9: 18125.06612 | JP9: 18199.97102 | JQ9: 18422.54377 | JR9: 18406.52807 | JS9: 17494.81411 | JT9: 18832.93289 | JU9: 18477.61807 | JV9: 18106.49118 | JW9: 17307.56639 | JX9: 18238.35061 | JY9: 18454.61653 | JZ9: 17984.30503 | KA9: 17494.49537 | KB9: 18679.82177 | KC9: 18526.69863 | KD9: 18648.67023 | KE9: 18910.90139 | KF9: 18129.59522 | KG9: 17777.92266 | KH9: 17890.87801 | KI9: 19037.25367 | KJ9: 17469.73279 | KK9: 17657.42272 | KL9: 18137.40876 | KM9: 17941.01467 | KN9: 17737.98625 | KO9: 17534.26749 | KP9: 17088.05718 | KQ9: 17887.17254 | KR9: 18726.89543 | KS9: 17846.50148 | KT9: 17820.81674 | KU9: 17394.26055 | KV9: 18183.52118 | KW9: 17432.41446 | KX9: 18828.85233 | KY9: 18250.70319 | KZ9: 17543.16385 | LA9: 17866.81793 | LB9: 18517.11646 | LC9: 17459.58546 | LD9: 17618.98671 | LE9: 17868.28649 | LF9: 18466.99109 | LG9: 18286.5342 | LH9: 18466.1289 | LI9: 18461.10265 | LJ9: 17374.23315 | LK9: 18227.51613 | LL9: 18121.78594 | LM9: 17665.90697 | LN9: 17756.35876 | LO9: 18486.41188 | LP9: 19647.90237 | LQ9: 18230.33766 | LR9: 17651.95472 | LS9: 17873.44499 | LT9: 18229.50602 | LU9: 18027.96593 | LV9: 17692.44375 | LW9: 17995.89865 | LX9: 18407.06512 | LY9: 18026.38537 | LZ9: 18670.78115 | MA9: 17903.03938 | MB9: 17828.75546 | MC9: 18507.89018 | MD9: 17871.91412 | ME9: 17897.17497 | MF9: 17001.53182 | MG9: 17622.07774 | MH9: 19190.43924 | MI9: 17911.53954 | MJ9: 17664.27495 | MK9: 17849.52276 | ML9: 17106.81512 | MM9: 18016.45167 | MN9: 18274.27864 | MO9: 18024.72225 | MP9: 18208.66198 | MQ9: 18493.54473 | MR9: 17725.90424 | MS9: 17241.90686 | MT9: 18240.08446 | MU9: 18297.00907 | MV9: 18280.55156 | MW9: 17496.12657 | MX9: 18038.86486 | MY9: 18355.765 | MZ9: 17806.15126 | NA9: 17434.91344 | NB9: 18351.25811 | NC9: 18814.89552 | ND9: 19228.01096 | NE9: 17614.29685 | NF9: 17827.06025 | NG9: 18800.39809 | NH9: 18844.25235 | NI9: 18028.0828 | NJ9: 17957.13656 | NK9: 18447.64319 | NL9: 17716.26139 | NM9: 17937.43654 | NN9: 18078.25656 | NO9: 18209.43134 | NP9: 17999.66686 | NQ9: 18490.96174 | NR9: 17806.15636 | NS9: 18185.96641 | NT9: 18229.08126 | NU9: 18072.91013 | NV9: 17834.24307 | NW9: 18288.34595 | NX9: 18984.95923 | NY9: 19223.04016 | NZ9: 18767.47363 | OA9: 18199.20446 | OB9: 18387.91998 | OC9: 18192.56865 | OD9: 18176.26916 | OE9: 17257.69122 | OF9: 18825.29884 | OG9: 18659.8494 | OH9: 18510.44675 | OI9: 17701.70289 | OJ9: 17557.95605 | OK9: 17894.67458 | OL9: 17049.91691 | OM9: 17975.16567 | ON9: 18097.59467 | OO9: 18182.96946 | OP9: 18106.06003 | OQ9: 17769.44584 | OR9: 17843.30404 | OS9: 17822.61162 | OT9: 17628.82957 | OU9: 17933.38944 | OV9: 18702.9054 | OW9: 17891.66346 | OX9: 17801.84618 | OY9: 17482.09815 | OZ9: 18126.1366 | PA9: 17775.40326 | PB9: 18364.07172 | PC9: 18403.60899 | PD9: 17664.26764 | PE9: 18097.75258 | PF9: 17956.08616 | PG9: 17941.43324 | PH9: 17603.12741 | PI9: 19031.99297 | PJ9: 17380.96254 | PK9: 18326.28736 | PL9: 18171.73953 | PM9: 17241.96365 | PN9: 17439.25574 | PO9: 18410.9977 | PP9: 17375.43858 | PQ9: 17104.34017 | PR9: 17586.48628 | PS9: 17963.42326 | PT9: 17613.60419 | PU9: 17771.00228 | PV9: 19154.5011 | PW9: 18248.90295 | PX9: 17647.36442 | PY9: 18301.76624 | PZ9: 17792.68026 | QA9: 17402.21953 | QB9: 17924.29636 | QC9: 18312.82672 | QD9: 17682.36849 | QE9: 18083.70797 | QF9: 18446.83745 | QG9: 18209.14495 | QH9: 17920.99096 | QI9: 17777.75066 | QJ9: 18430.73846 | QK9: 18365.59172 | QL9: 18464.13696 | QM9: 18410.63771 | QN9: 18553.18992 | QO9: 17978.65948 | QP9: 18348.39761 | QQ9: 18177.44989 | QR9: 17820.00368 | QS9: 18128.205 | QT9: 18007.09307 | QU9: 18211.12644 | QV9: 18984.76039 | QW9: 17840.14778 | QX9: 18307.03467 | QY9: 18675.89069 | QZ9: 18537.40893 | RA9: 17761.2253 | RB9: 17922.70389 | RC9: 17401.54179 | RD9: 17275.49239 | RE9: 18760.55173 | RF9: 18111.86733 | RG9: 17456.58499 | RH9: 17571.70482 | RI9: 18350.52108 | RJ9: 17936.776 | RK9: 18626.19498 | RL9: 17734.69199 | RM9: 18286.84813 | RN9: 17794.40367 | RO9: 17911.9601 | RP9: 17709.77808 | RQ9: 18493.12957 | RR9: 18785.1849 | RS9: 17937.47748 | RT9: 18178.54848 | RU9: 18510.0131 | RV9: 17949.85702 | RW9: 18150.4431 | RX9: 18476.30769 | RY9: 17534.8205 | RZ9: 17408.9798 | SA9: 17494.87748 | SB9: 18070.26415 | SC9: 18615.61563 | SD9: 19237.8916 | SE9: 19012.36347 | SF9: 17390.95164 | SG9: 18751.98134 | SH9: 17118.93307 | SI9: 17996.74416 | SJ9: 17574.15752 | SK9: 18041.62311 | SL9: 18106.41734 | SM9: 18771.56126 | SN9: 18083.94231 | SO9: 19645.9184 | SP9: 18775.66107 | SQ9: 17963.67968 | SR9: 18240.49353 | SS9: 18885.70603 | ST9: 17863.95492 | SU9: 17906.7201 | SV9: 17975.82371 | SW9: 18103.84409 | SX9: 18258.9222 | SY9: 17907.51144 | SZ9: 18448.55907 | TA9: 17729.23878 | TB9: 17363.14079 | TC9: 17758.44219 | TD9: 18474.70354 | TE9: 18588.37268 | TF9: 17783.41653 | TG9: 17466.19812 | TH9: 18317.8359 | TI9: 18217.40817 | TJ9: 17731.42306 | TK9: 17573.845 | TL9: 18582.4152 | TM9: 17937.54169 | TN9: 18293.45408 | TO9: 17350.51799 | TP9: 18424.98019 | TQ9: 17845.57163 | TR9: 17597.91579 | TS9: 17697.33715 | TT9: 17416.77057 | TU9: 17782.2752 | TV9: 18526.21959 | TW9: 18362.48745 | TX9: 18342.74346 | TY9: 18320.14209 | TZ9: 18258.07996 | UA9: 17630.67614 | UB9: 18012.47431 | UC9: 18401.03678 | UD9: 18121.18654 | UE9: 17788.96135 | UF9: 17992.60711 | UG9: 19066.29351 | UH9: 18002.23758 | UI9: 17814.52097 | UJ9: 18505.69898 | UK9: 17954.0798 | UL9: 17401.37743 | UM9: 17974.37002 | UN9: 18069.34912 | UO9: 18042.21342 | UP9: 18350.46763 | UQ9: 18503.16035 | UR9: 17472.16485 | US9: 18222.99172 | UT9: 17175.14492 | UU9: 18143.50795 | UV9: 17567.24207 | UW9: 17323.20539 | UX9: 18033.18561 | UY9: 17821.75052 | UZ9: 17692.98709 | VA9: 17381.42047 | VB9: 18970.41359 | VC9: 18450.08044 | VD9: 18011.34799 | VE9: 18106.22536 | VF9: 18354.01523 | VG9: 17673.90863 | VH9: 17381.27188 | VI9: 18078.21031 | VJ9: 18068.78432 | VK9: 18543.48013 | VL9: 19205.56772 | VM9: 17150.70755 | VN9: 19286.27514 | VO9: 18649.42127 | VP9: 18572.6585 | VQ9: 18219.90954 | VR9: 17251.29926 | VS9: 18395.79799 | VT9: 17221.74568 | VU9: 17831.60539 | VV9: 18357.52653 | VW9: 18035.88225 | VX9: 17282.54428 | VY9: 18213.68399 | VZ9: 17925.52416 | WA9: 18395.36802 | WB9: 18693.93835 | WC9: 18458.95069 | WD9: 17512.0102 | WE9: 18221.02578 | WF9: 18501.00733 | WG9: 17889.06258 | WH9: 17761.70391 | WI9: 18509.68239 | WJ9: 17943.49227 | WK9: 18117.56162 | WL9: 17942.06309 | WM9: 17038.1244 | WN9: 17966.08088 | WO9: 17983.55332 | WP9: 17846.56138 | WQ9: 18568.9917 | WR9: 17634.61876 | WS9: 18374.26279 | WT9: 18218.22071 | WU9: 17783.79535 | WV9: 18204.63937 | WW9: 17887.90001 | WX9: 18923.31881 | WY9: 18755.30686 | WZ9: 18273.75408 | XA9: 18259.34635 | XB9: 18081.0275 | XC9: 18752.03186 | XD9: 16934.31975 | XE9: 19186.0569 | XF9: 17734.7422 | XG9: 17937.56389 | XH9: 18452.52897 | XI9: 17888.29359 | XJ9: 17684.57938 | XK9: 18086.93521 | XL9: 18619.32947 | XM9: 17703.8696 | XN9: 17883.91522 | XO9: 18502.36437 | XP9: 17114.88781 | XQ9: 17548.22761 | XR9: 18930.54678 | XS9: 19468.45118 | XT9: 18305.79138 | XU9: 18150.57177 | XV9: 18057.49123 | XW9: 18017.70068 | XX9: 18777.32756 | XY9: 18067.30363 | XZ9: 18081.87963 | YA9: 19212.27794 | YB9: 17609.56989 | YC9: 17451.88702 | YD9: 18967.7734 | YE9: 18465.08896 | YF9: 18829.65358 | YG9: 17450.71129 | YH9: 17406.10781 | YI9: 18668.27708 | YJ9: 18342.44274 | YK9: 18506.8167 | YL9: 18918.1246 | YM9: 17798.31882 | YN9: 17166.46994 | YO9: 18026.98342 | YP9: 18252.03756 | YQ9: 17690.06826 | YR9: 18217.09193 | YS9: 18746.50037 | YT9: 17899.61266 | YU9: 18045.09584 | YV9: 18299.71525 | YW9: 17150.7324 | YX9: 16858.86585 | YY9: 17668.13422 | YZ9: 18185.3172 | ZA9: 17702.30759 | ZB9: 18151.4182 | ZC9: 18655.48825 | ZD9: 17976.57246 | ZE9: 18926.99922 | ZF9: 18302.21099 | ZG9: 18398.17341 | ZH9: 18335.45021 | ZI9: 17031.69319 | ZJ9: 17768.20371 | ZK9: 18139.59133 | ZL9: 17929.39875 | ZM9: 18577.31818 | ZN9: 17806.5363 | ZO9: 18186.74597 | ZP9: 17778.57046 | ZQ9: 19051.59567 | ZR9: 16970.17902 | ZS9: 17642.06262 | ZT9: 17861.63375 | ZU9: 18027.12398 | ZV9: 17818.36789 | ZW9: 17532.53002 | ZX9: 18947.07498 | ZY9: 18206.89024 | ZZ9: 18665.89591 | AAA9: 18616.96388 | AAB9: 18993.61025 | AAC9: 18135.97503 | AAD9: 18624.85334 | AAE9: 19284.11485 | AAF9: 18440.86551 | AAG9: 18091.1194 | AAH9: 17894.48764 | AAI9: 18653.07642 | AAJ9: 18529.63989 | AAK9: 18725.71764 | AAL9: 18549.57072 | AAM9: 17920.3539 | AAN9: 18013.28964 | AAO9: 18829.56195 | AAP9: 18109.13865 | AAQ9: 17982.31017 | AAR9: 17888.32623 | AAS9: 17985.3517 | AAT9: 18029.63456 | AAU9: 17688.87849 | AAV9: 17966.21513 | AAW9: 18766.05135 | AAX9: 18318.72815 | AAY9: 18294.23746 | AAZ9: 18301.83462 | ABA9: 18668.01944 | ABB9: 17865.45625 | ABC9: 18326.67303 | ABD9: 18163.21386 | ABE9: 17724.45203 | ABF9: 18027.21411 | ABG9: 18015.97575 | ABH9: 17883.1101 | ABI9: 17658.25849 | ABJ9: 18553.71961 | ABK9: 18050.43299 | ABL9: 17596.08643 | ABM9: 18003.86373 | ABN9: 18489.73401 | ABO9: 18532.66698 | ABP9: 18405.24898 | ABQ9: 18545.45604 | ABR9: 18249.30685 | ABS9: 17846.48266 | ABT9: 18140.17563 | ABU9: 18178.82765 | ABV9: 17660.65083 | ABW9: 18432.8974 | ABX9: 17325.00769 | ABY9: 18806.01269 | ABZ9: 18030.72534 | ACA9: 17508.25782 | ACB9: 18109.60699 | ACC9: 18385.17522 | ACD9: 18265.23997 | ACE9: 17951.83465 | ACF9: 18192.3507 | ACG9: 17853.17308 | ACH9: 17870.93367 | ACI9: 17736.75644 | ACJ9: 17892.76511 | ACK9: 17344.82636 | ACL9: 18327.52143 | ACM9: 18118.80888 | ACN9: 18144.98512 | ACO9: 17706.0027 | ACP9: 17768.88706 | ACQ9: 17815.25438 | ACR9: 17660.41672 | ACS9: 18606.47241 | ACT9: 18668.50532 | ACU9: 17787.95601 | ACV9: 18902.34154 | ACW9: 18079.74042 | ACX9: 17432.32969 | ACY9: 16880.19857 | ACZ9: 17928.96493 | ADA9: 17969.00433 | ADB9: 17682.40056 | ADC9: 18469.53382 | ADD9: 17861.97871 | ADE9: 17253.42518 | ADF9: 18086.90055 | ADG9: 18042.59222 | ADH9: 18380.79664 | ADI9: 18447.68434 | ADJ9: 18359.54886 | ADK9: 18166.24115 | ADL9: 17952.13784 | ADM9: 17703.00225 | ADN9: 18049.64804 | ADO9: 18299.8836 | ADP9: 18625.798 | ADQ9: 18142.77605 | ADR9: 18386.21456 | ADS9: 18028.61352 | ADT9: 18799.17373 | ADU9: 17393.77668 | ADV9: 18555.88057 | ADW9: 18354.50037 | ADX9: 17559.67694 | ADY9: 18432.57783 | ADZ9: 18267.90494 | AEA9: 17938.53369 | AEB9: 17071.95372 | AEC9: 17895.50217 | AED9: 18910.10571 | AEE9: 17933.79508 | AEF9: 18403.34608 | AEG9: 18516.66048 | AEH9: 18375.35687 | AEI9: 17565.86699 | AEJ9: 17789.64446 | AEK9: 18093.88613 | AEL9: 17647.43244 | AEM9: 17478.53123 | AEN9: 18373.07313 | AEO9: 17058.46613 | AEP9: 18732.91054 | AEQ9: 17853.42255 | AER9: 18974.41729 | AES9: 18324.08241 | AET9: 17959.87924 | AEU9: 18499.12409 | AEV9: 18509.61054 | AEW9: 18117.72602 | AEX9: 18367.44881 | AEY9: 17452.20626 | AEZ9: 18222.9246 | AFA9: 17325.43 | AFB9: 17738.13467 | AFC9: 18679.45174 | AFD9: 19005.82482 | AFE9: 17924.48579 | AFF9: 17610.08462 | AFG9: 18700.85985 | AFH9: 17607.17482 | AFI9: 17512.41571 | AFJ9: 18060.31187 | AFK9: 18054.13074 | AFL9: 19121.71425 | AFM9: 17718.54687 | AFN9: 17824.81553 | AFO9: 18635.30142 | AFP9: 18427.20138 | AFQ9: 17750.99721 | AFR9: 18494.63347 | AFS9: 18222.36923 | AFT9: 18057.565 | AFU9: 18055.1269 | AFV9: 18251.46741 | AFW9: 18310.17793 | AFX9: 17093.84342 | AFY9: 18558.98227 | AFZ9: 18543.92071 | AGA9: 18127.51168 | AGB9: 17469.83123 | AGC9: 18049.04429 | AGD9: 18172.32147 | AGE9: 18475.79354 | AGF9: 18577.5922 | AGG9: 17599.9387 | AGH9: 18149.6775 | AGI9: 17975.32836 | AGJ9: 17682.74463 | AGK9: 17705.88694 | AGL9: 18060.86926 | AGM9: 18352.25239 | AGN9: 17959.07159 | AGO9: 17669.61019 | AGP9: 17608.85374 | AGQ9: 17419.70598 | AGR9: 18073.70479 | AGS9: 17835.82779 | AGT9: 18488.11798 | AGU9: 18093.32309 | AGV9: 17698.89771 | AGW9: 18577.80728 | AGX9: 17769.18828 | AGY9: 18231.32751 | AGZ9: 18199.15463 | AHA9: 17356.01145 | AHB9: 18123.08328 | AHC9: 19130.15814 | AHD9: 17693.45474 | AHE9: 18784.83413 | AHF9: 18037.83471 | AHG9: 18137.68713 | AHH9: 17642.10491 | AHI9: 17719.08356 | AHJ9: 17941.43176 | AHK9: 18282.49358 | AHL9: 18321.47543 | AHM9: 17395.97912 | AHN9: 18259.03832 | AHO9: 18180.26992 | AHP9: 18335.18453 | AHQ9: 17903.71095 | AHR9: 19023.75335 | AHS9: 17768.4947 | AHT9: 18385.15163 | AHU9: 17209.55097 | AHV9: 17701.93092 | AHW9: 16622.4646 | AHX9: 18845.17371 | AHY9: 18119.35927 | AHZ9: 18246.55238 | AIA9: 18524.32076 | AIB9: 18666.43543 | AIC9: 18801.052 | AID9: 17870.4968 | AIE9: 18231.58422 | AIF9: 18022.67138 | AIG9: 17069.7814 | AIH9: 18319.79465 | AII9: 19320.91257 | AIJ9: 18473.42984 | AIK9: 18784.33176 | AIL9: 17015.10587 | AIM9: 18120.09746 | AIN9: 17761.00783 | AIO9: 17641.22059 | AIP9: 18415.58152 | AIQ9: 18468.221 | AIR9: 18098.94846 | AIS9: 18006.74283 | AIT9: 17442.86698 | AIU9: 18557.75233 | AIV9: 18417.97359 | AIW9: 18166.71281 | AIX9: 19332.83295 | AIY9: 18074.95648 | AIZ9: 18054.72388 | AJA9: 17692.15865 | AJB9: 17362.52179 | AJC9: 18501.24701 | AJD9: 17917.41276 | AJE9: 18484.9094 | AJF9: 18683.98197 | AJG9: 18936.18045 | AJH9: 18343.9183 | AJI9: 17785.44227 | AJJ9: 18685.854 | AJK9: 17946.65734 | AJL9: 18144.79443 | AJM9: 18924.05163 | AJN9: 17514.12334 | AJO9: 18407.96511 | AJP9: 18098.32532 | AJQ9: 18238.71848 | AJR9: 17846.72851 | AJS9: 18126.72021 | AJT9: 17323.24044 | AJU9: 17914.28731 | AJV9: 17496.34486 | AJW9: 17844.15562 | AJX9: 18065.68221 | AJY9: 17672.94729 | AJZ9: 18418.40635 | AKA9: 17030.12721 | AKB9: 17646.36497 | AKC9: 18011.64879 | AKD9: 18333.49135 | AKE9: 17888.07705 | AKF9: 17710.59895 | AKG9: 18065.94547 | AKH9: 17945.30466 | AKI9: 17609.50809 | AKJ9: 18242.43822 | AKK9: 17792.20673 | AKL9: 18926.16293 | AKM9: 17721.38277 | AKN9: 18470.37712 | AKO9: 17733.7904 | AKP9: 18147.32722 | AKQ9: 17160.42949 | AKR9: 17119.04425 | AKS9: 18805.54253 | AKT9: 18614.9714 | AKU9: 18163.79225 | AKV9: 17976.25103 | AKW9: 17644.44724 | AKX9: 18033.98141 | AKY9: 18142.81526 | AKZ9: 17588.46454 | ALA9: 17959.41772 | ALB9: 17944.2297 | ALC9: 17730.02407 | ALD9: 17539.13383 | ALE9: 18110.2501 | ALF9: 18129.22102 | ALG9: 17911.74846 | ALH9: 18207.23456 | ALI9: 18432.43765 | ALJ9: 18340.17179 | ALK9: 18323.11235 | ALL9: 18117.89649 | ALM9: 18181.89601 | ALN9: 18530.71901 | ALO9: 17856.25976 | ALP9: 17715.49251 | ALQ9: 18317.38794 | ALR9: 18134.56719 | ALS9: 17990.00215 | ALT9: 18608.80384 | ALU9: 18604.47474 | ALV9: 18536.39146
A10: 2013-05-10 | B10: 6094.75 | C10: 0.007344695939 | E10: 95% chance that | J10: 7 | K10: 17426.78641 | L10: 17621.23722 | M10: 18135.67203 | N10: 18060.50419 | O10: 18380.68974 | P10: 17056.44669 | Q10: 18892.0218 | R10: 17615.14155 | S10: 19023.15396 | T10: 18314.98859 | U10: 18446.28513 | V10: 17708.76635 | W10: 17562.29695 | X10: 17605.59764 | Y10: 18381.48216 | Z10: 17642.27665 | AA10: 17765.65491 | AB10: 18071.17418 | AC10: 16630.69485 | AD10: 17368.36169 | AE10: 17377.5704 | AF10: 17756.9785 | AG10: 18393.19464 | AH10: 17919.63319 | AI10: 18107.76216 | AJ10: 17005.18628 | AK10: 17679.84884 | AL10: 17911.40301 | AM10: 18598.4575 | AN10: 18198.32527 | AO10: 17643.11554 | AP10: 18307.14192 | AQ10: 17651.8529 | AR10: 18441.80316 | AS10: 17821.80113 | AT10: 17680.18516 | AU10: 17706.41251 | AV10: 18306.44558 | AW10: 18787.54796 | AX10: 17989.92689 | AY10: 19471.23617 | AZ10: 17963.10951 | BA10: 18599.58896 | BB10: 18586.34263 | BC10: 17779.04701 | BD10: 18994.96816 | BE10: 17944.19499 | BF10: 19270.61029 | BG10: 17966.5686 | BH10: 19115.48437 | BI10: 18193.46149 | BJ10: 18904.46135 | BK10: 18283.29371 | BL10: 17168.50303 | BM10: 18340.59519 | BN10: 17126.62571 | BO10: 18178.89161 | BP10: 17944.94435 | BQ10: 18017.75449 | BR10: 17688.82666 | BS10: 18393.62112 | BT10: 17730.43746 | BU10: 18709.9825 | BV10: 17671.62984 | BW10: 18500.68373 | BX10: 17591.99945 | BY10: 17563.85229 | BZ10: 17242.21709 | CA10: 17313.72147 | CB10: 18287.39872 | CC10: 18000.10691 | CD10: 17639.34058 | CE10: 17621.38763 | CF10: 18155.06673 | CG10: 18298.75285 | CH10: 18727.95089 | CI10: 17435.09032 | CJ10: 17816.37698 | CK10: 18962.20871 | CL10: 18203.88519 | CM10: 18082.0893 | CN10: 17451.61165 | CO10: 17676.15043 | CP10: 18305.67494 | CQ10: 17556.9554 | CR10: 17725.32072 | CS10: 17381.35673 | CT10: 17814.88622 | CU10: 17688.26162 | CV10: 18109.55668 | CW10: 18731.34446 | CX10: 18211.65437 | CY10: 18681.24851 | CZ10: 17292.72385 | DA10: 18402.22097 | DB10: 18203.23895 | DC10: 18578.92267 | DD10: 17428.93745 | DE10: 18457.86165 | DF10: 18883.28339 | DG10: 17269.56574 | DH10: 17648.11704 | DI10: 17782.1406 | DJ10: 18210.79913 | DK10: 17218.1369 | DL10: 18184.78768 | DM10: 17943.60353 | DN10: 17324.54346 | DO10: 17575.02818 | DP10: 18177.30952 | DQ10: 17488.51427 | DR10: 18411.3344 | DS10: 18583.38838 | DT10: 19044.22561 | DU10: 17053.70934 | DV10: 17837.10065 | DW10: 18179.07 | DX10: 18597.93427 | DY10: 18328.73618 | DZ10: 18140.38988 | EA10: 17693.89968 | EB10: 17692.15591 | EC10: 17953.29327 | ED10: 17778.72914 | EE10: 18496.10307 | EF10: 18232.18207 | EG10: 18307.22039 | EH10: 17768.2655 | EI10: 18544.67315 | EJ10: 19118.46037 | EK10: 17834.96494 | EL10: 17587.90864 | EM10: 17503.42192 | EN10: 17800.44161 | EO10: 17137.37001 | EP10: 18395.10947 | EQ10: 18720.08951 | ER10: 18076.77223 | ES10: 17094.70554 | ET10: 17965.49316 | EU10: 18372.11913 | EV10: 18220.2819 | EW10: 17401.74602 | EX10: 17615.39819 | EY10: 17502.45095 | EZ10: 18193.99908 | FA10: 17365.09439 | FB10: 17964.15497 | FC10: 18133.29861 | FD10: 17502.72018 | FE10: 18625.70242 | FF10: 18033.85149 | FG10: 17642.498 | FH10: 17873.51379 | FI10: 18325.52895 | FJ10: 18741.49871 | FK10: 18459.5145 | FL10: 17992.77606 | FM10: 18845.72027 | FN10: 18389.61891 | FO10: 18877.02122 | FP10: 19355.99152 | FQ10: 17647.3473 | FR10: 18299.25697 | FS10: 18820.02347 | FT10: 18098.63186 | FU10: 17159.99796 | FV10: 17654.30499 | FW10: 18014.68383 | FX10: 18259.24193 | FY10: 18328.82668 | FZ10: 17925.1773 | GA10: 18037.59902 | GB10: 18040.92169 | GC10: 18360.96862 | GD10: 18596.42802 | GE10: 18035.8022 | GF10: 18572.66593 | GG10: 18011.18655 | GH10: 17929.17771 | GI10: 18389.56411 | GJ10: 18498.73182 | GK10: 18406.58952 | GL10: 18679.44072 | GM10: 19022.19394 | GN10: 18281.31732 | GO10: 18027.55341 | GP10: 18427.81358 | GQ10: 18747.54087 | GR10: 18053.22944 | GS10: 18040.30793 | GT10: 18169.31651 | GU10: 18787.24851 | GV10: 17827.61828 | GW10: 18453.29023 | GX10: 18976.13095 | GY10: 17803.31342 | GZ10: 18495.81434 | HA10: 18300.67938 | HB10: 18124.11371 | HC10: 17809.96445 | HD10: 18758.21311 | HE10: 17889.39128 | HF10: 17942.92802 | HG10: 17921.98897 | HH10: 18241.84518 | HI10: 17634.49469 | HJ10: 18924.62906 | HK10: 18439.97372 | HL10: 17530.06803 | HM10: 18174.47178 | HN10: 19005.44299 | HO10: 17818.59002 | HP10: 18314.5991 | HQ10: 17941.7225 | HR10: 18026.0854 | HS10: 18203.44641 | HT10: 18094.12276 | HU10: 18460.48338 | HV10: 18860.12526 | HW10: 18194.80937 | HX10: 18276.68638 | HY10: 18016.61111 | HZ10: 18505.0726 | IA10: 17393.89008 | IB10: 18333.44603 | IC10: 19032.65668 | ID10: 18829.5773 | IE10: 17532.02671 | IF10: 17538.9915 | IG10: 18977.90775 | IH10: 17460.86193 | II10: 19183.20531 | IJ10: 17842.96882 | IK10: 18336.80847 | IL10: 18327.93118 | IM10: 18603.13711 | IN10: 17757.70517 | IO10: 18070.88145 | IP10: 17928.76061 | IQ10: 18538.81132 | IR10: 17415.62875 | IS10: 18178.14555 | IT10: 18141.64913 | IU10: 17940.83458 | IV10: 18502.319 | IW10: 18117.89385 | IX10: 17818.05257 | IY10: 18329.7076 | IZ10: 18562.82919 | JA10: 19068.78685 | JB10: 18154.75361 | JC10: 18004.80238 | JD10: 18268.49889 | JE10: 18015.79199 | JF10: 17690.81459 | JG10: 17671.18742 | JH10: 18075.8289 | JI10: 18612.79061 | JJ10: 18546.12335 | JK10: 17857.26961 | JL10: 18085.45563 | JM10: 17923.39258 | JN10: 17587.87692 | JO10: 17853.69969 | JP10: 18218.2763 | JQ10: 18315.7946 | JR10: 18311.76135 | JS10: 17113.08401 | JT10: 18903.03478 | JU10: 18486.62729 | JV10: 17970.08559 | JW10: 17357.40812 | JX10: 18089.51964 | JY10: 18573.06564 | JZ10: 18252.05973 | KA10: 17120.56474 | KB10: 18886.21616 | KC10: 19006.70379 | KD10: 18730.95948 | KE10: 18707.86218 | KF10: 18392.49025 | KG10: 17795.95009 | KH10: 18002.41462 | KI10: 19023.91842 | KJ10: 17485.65181 | KK10: 17646.24086 | KL10: 18368.35172 | KM10: 17986.86952 | KN10: 17675.72637 | KO10: 17405.83416 | KP10: 17197.81017 | KQ10: 17795.07259 | KR10: 18633.13677 | KS10: 17979.61347 | KT10: 17887.26286 | KU10: 17513.83828 | KV10: 18581.26001 | KW10: 17446.21532 | KX10: 19028.59241 | KY10: 18483.53596 | KZ10: 17654.33678 | LA10: 17917.33813 | LB10: 18576.01544 | LC10: 17637.18674 | LD10: 17617.13111 | LE10: 18184.55666 | LF10: 18210.32806 | LG10: 18090.45346 | LH10: 18243.88489 | LI10: 18839.36917 | LJ10: 17387.0356 | LK10: 17946.6153 | LL10: 18292.24558 | LM10: 17367.95077 | LN10: 17824.85666 | LO10: 18564.67189 | LP10: 19567.6296 | LQ10: 18065.11629 | LR10: 17547.91559 | LS10: 17771.46356 | LT10: 18004.87841 | LU10: 17790.43179 | LV10: 17849.05567 | LW10: 17975.40106 | LX10: 18423.81504 | LY10: 18130.52489 | LZ10: 18724.12214 | MA10: 17675.91469 | MB10: 17688.52938 | MC10: 18292.96636 | MD10: 17943.09234 | ME10: 17636.98814 | MF10: 17233.1877 | MG10: 17568.39966 | MH10: 19276.05909 | MI10: 18090.51925 | MJ10: 17766.11124 | MK10: 17529.71152 | ML10: 17045.38816 | MM10: 18023.81146 | MN10: 18380.5977 | MO10: 17961.61387 | MP10: 18386.83746 | MQ10: 18480.6378 | MR10: 17709.61637 | MS10: 17684.6313 | MT10: 18378.4055 | MU10: 18178.78961 | MV10: 18411.28331 | MW10: 17635.9807 | MX10: 18148.16245 | MY10: 18720.32981 | MZ10: 17754.11458 | NA10: 17210.92353 | NB10: 19094.64232 | NC10: 18768.16448 | ND10: 19172.44799 | NE10: 17458.01834 | NF10: 18045.6607 | NG10: 18660.08208 | NH10: 18866.22901 | NI10: 18145.32623 | NJ10: 17889.61489 | NK10: 18561.86064 | NL10: 18052.81439 | NM10: 17931.04537 | NN10: 17938.80745 | NO10: 17859.83044 | NP10: 17673.38518 | NQ10: 18530.26352 | NR10: 17805.57561 | NS10: 18383.63757 | NT10: 18538.92078 | NU10: 18029.13066 | NV10: 17948.89654 | NW10: 18448.0639 | NX10: 18927.44947 | NY10: 19424.37736 | NZ10: 18812.60309 | OA10: 18422.36586 | OB10: 18649.27965 | OC10: 18084.38096 | OD10: 18210.42946 | OE10: 17354.59944 | OF10: 19025.99157 | OG10: 18672.09022 | OH10: 18415.84329 | OI10: 17835.81884 | OJ10: 17639.56109 | OK10: 18145.49302 | OL10: 17402.16742 | OM10: 17983.9469 | ON10: 18092.59416 | OO10: 17718.40886 | OP10: 18237.97486 | OQ10: 17983.32012 | OR10: 17937.545 | OS10: 17933.41889 | OT10: 17839.28534 | OU10: 18044.66601 | OV10: 18920.78395 | OW10: 18002.97753 | OX10: 17934.77493 | OY10: 17306.2846 | OZ10: 18089.73588 | PA10: 17839.64771 | PB10: 18251.30239 | PC10: 18371.88411 | PD10: 17721.59638 | PE10: 18212.5141 | PF10: 17728.79563 | PG10: 17695.27208 | PH10: 17765.44438 | PI10: 19106.25366 | PJ10: 17104.76411 | PK10: 18309.40079 | PL10: 18325.46676 | PM10: 17165.43408 | PN10: 17464.22939 | PO10: 18613.29462 | PP10: 17559.75809 | PQ10: 16866.70726 | PR10: 17321.27401 | PS10: 18123.31184 | PT10: 17581.87472 | PU10: 17516.11325 | PV10: 19152.27651 | PW10: 18271.54765 | PX10: 17895.31798 | PY10: 18131.65792 | PZ10: 18370.72514 | QA10: 17730.44185 | QB10: 17555.47219 | QC10: 18227.91479 | QD10: 17722.37386 | QE10: 18409.47965 | QF10: 18647.1573 | QG10: 18258.82564 | QH10: 17780.64638 | QI10: 17993.79692 | QJ10: 18195.69975 | QK10: 18201.67829 | QL10: 18492.22246 | QM10: 18975.40986 | QN10: 18588.17104 | QO10: 18011.28022 | QP10: 18222.48976 | QQ10: 18310.70859 | QR10: 17879.57567 | QS10: 17869.75422 | QT10: 17952.87505 | QU10: 18500.56305 | QV10: 19213.01935 | QW10: 17519.57506 | QX10: 18402.48399 | QY10: 18678.35748 | QZ10: 18539.54659 | RA10: 17649.59196 | RB10: 18197.97429 | RC10: 17156.09636 | RD10: 17537.51571 | RE10: 18774.44637 | RF10: 17786.56186 | RG10: 17100.86756 | RH10: 17621.61442 | RI10: 18227.82144 | RJ10: 18153.36732 | RK10: 18435.85819 | RL10: 17621.67617 | RM10: 18056.50339 | RN10: 17595.268 | RO10: 17895.73067 | RP10: 17680.53167 | RQ10: 18452.42507 | RR10: 18530.17937 | RS10: 18130.57265 | RT10: 18245.94447 | RU10: 18242.6695 | RV10: 17995.31262 | RW10: 17861.95294 | RX10: 18531.86325 | RY10: 17594.15716 | RZ10: 17115.54471 | SA10: 17654.99255 | SB10: 17945.55477 | SC10: 18586.91043 | SD10: 19136.15004 | SE10: 18584.62621 | SF10: 17377.34665 | SG10: 18836.21196 | SH10: 17427.4973 | SI10: 17913.80205 | SJ10: 17304.9249 | SK10: 18293.27883 | SL10: 18098.64928 | SM10: 19024.25262 | SN10: 17947.5564 | SO10: 19815.77871 | SP10: 18364.86713 | SQ10: 17971.89114 | SR10: 18352.6042 | SS10: 18887.96544 | ST10: 17849.25714 | SU10: 18084.07113 | SV10: 17985.9341 | SW10: 17885.6573 | SX10: 18185.99629 | SY10: 18303.54779 | SZ10: 18422.75614 | TA10: 17353.6626 | TB10: 17657.63125 | TC10: 17686.09764 | TD10: 18421.6271 | TE10: 18716.60989 | TF10: 17609.84098 | TG10: 17771.38004 | TH10: 18589.13713 | TI10: 18319.22781 | TJ10: 17881.309 | TK10: 17573.81102 | TL10: 18486.15745 | TM10: 18088.13413 | TN10: 18203.90466 | TO10: 17380.78005 | TP10: 18350.90453 | TQ10: 17635.87459 | TR10: 17699.49395 | TS10: 17842.27646 | TT10: 17749.95417 | TU10: 18106.7654 | TV10: 18400.11395 | TW10: 18622.82198 | TX10: 18278.42889 | TY10: 18304.00037 | TZ10: 18246.87585 | UA10: 17193.00111 | UB10: 18138.99788 | UC10: 18470.02424 | UD10: 18055.71162 | UE10: 17578.84931 | UF10: 18062.10736 | UG10: 18807.61131 | UH10: 18128.58873 | UI10: 17742.89559 | UJ10: 18591.80423 | UK10: 18006.76737 | UL10: 17514.97735 | UM10: 18022.13653 | UN10: 18295.16658 | UO10: 17991.69425 | UP10: 18388.73305 | UQ10: 18536.68399 | UR10: 17565.31429 | US10: 18217.23866 | UT10: 16747.61124 | UU10: 17885.78113 | UV10: 17497.44927 | UW10: 17582.77185 | UX10: 18037.86552 | UY10: 17841.01035 | UZ10: 17852.13884 | VA10: 17504.03545 | VB10: 19025.14016 | VC10: 18518.70556 | VD10: 18432.32736 | VE10: 17971.39633 | VF10: 18291.24235 | VG10: 17933.79907 | VH10: 17430.62459 | VI10: 18273.28545 | VJ10: 18340.40511 | VK10: 18316.41251 | VL10: 19292.50302 | VM10: 17434.17724 | VN10: 19301.72018 | VO10: 18661.05758 | VP10: 18349.6326 | VQ10: 18277.13785 | VR10: 17191.59359 | VS10: 18489.16887 | VT10: 17180.22258 | VU10: 17757.56146 | VV10: 18471.96527 | VW10: 18063.04631 | VX10: 16943.86232 | VY10: 17956.60184 | VZ10: 18159.72111 | WA10: 18552.71568 | WB10: 18710.31824 | WC10: 18524.36112 | WD10: 17644.12129 | WE10: 18149.06141 | WF10: 18350.29999 | WG10: 17646.42665 | WH10: 17941.33208 | WI10: 18207.37418 | WJ10: 17768.91451 | WK10: 18206.19828 | WL10: 18064.1561 | WM10: 17042.86083 | WN10: 18007.64354 | WO10: 17773.04597 | WP10: 18004.19043 | WQ10: 18409.83859 | WR10: 17618.17255 | WS10: 18220.81063 | WT10: 18530.54922 | WU10: 17727.37131 | WV10: 18528.8839 | WW10: 17950.79403 | WX10: 19360.14619 | WY10: 19227.45212 | WZ10: 18417.57358 | XA10: 18385.04538 | XB10: 18369.38106 | XC10: 18657.89695 | XD10: 16671.24209 | XE10: 19680.946 | XF10: 17643.08961 | XG10: 17961.46792 | XH10: 18424.12673 | XI10: 18085.69931 | XJ10: 17600.8086 | XK10: 18067.05002 | XL10: 18578.88386 | XM10: 17546.57633 | XN10: 18000.47856 | XO10: 18294.66207 | XP10: 16901.28199 | XQ10: 17409.97479 | XR10: 18923.09354 | XS10: 19874.21736 | XT10: 18151.9073 | XU10: 18266.57907 | XV10: 18191.53394 | XW10: 17874.82962 | XX10: 18985.10294 | XY10: 17901.45545 | XZ10: 18012.83781 | YA10: 19282.65737 | YB10: 17925.10911 | YC10: 17546.97221 | YD10: 18989.33968 | YE10: 18694.00565 | YF10: 18900.51725 | YG10: 17600.89712 | YH10: 17722.02494 | YI10: 18590.50893 | YJ10: 17962.95947 | YK10: 18866.8747 | YL10: 18767.22295 | YM10: 17790.03659 | YN10: 17081.56462 | YO10: 18197.32571 | YP10: 18432.65896 | YQ10: 17756.20513 | YR10: 18123.27321 | YS10: 18573.15768 | YT10: 17990.34454 | YU10: 18181.51415 | YV10: 18182.92061 | YW10: 17016.80962 | YX10: 16698.09374 | YY10: 17574.8492 | YZ10: 18051.23883 | ZA10: 17824.88727 | ZB10: 17945.8193 | ZC10: 18424.19688 | ZD10: 18314.8773 | ZE10: 19042.73996 | ZF10: 17905.22313 | ZG10: 18253.71435 | ZH10: 18372.81809 | ZI10: 17130.03554 | ZJ10: 17936.62024 | ZK10: 18033.46909 | ZL10: 18375.80121 | ZM10: 18710.94291 | ZN10: 17980.94677 | ZO10: 18586.17647 | ZP10: 17828.18765 | ZQ10: 19381.43801 | ZR10: 16943.63157 | ZS10: 17783.53468 | ZT10: 18207.31097 | ZU10: 18449.07897 | ZV10: 18038.71113 | ZW10: 17698.46213 | ZX10: 19138.65582 | ZY10: 18128.75029 | ZZ10: 18829.19845 | AAA10: 19079.83818 | AAB10: 19129.31938 | AAC10: 18568.31311 | AAD10: 18786.57311 | AAE10: 19010.52289 | AAF10: 18351.74462 | AAG10: 17850.84171 | AAH10: 18401.13093 | AAI10: 18781.03467 | AAJ10: 18726.66562 | AAK10: 18579.93315 | AAL10: 18884.83742 | AAM10: 18179.28729 | AAN10: 18317.8205 | AAO10: 18994.6057 | AAP10: 17987.86582 | AAQ10: 17971.32699 | AAR10: 17703.15864 | AAS10: 18242.05406 | AAT10: 18088.4828 | AAU10: 17579.63339 | AAV10: 18077.44212 | AAW10: 18449.15284 | AAX10: 18445.65479 | AAY10: 18213.37237 | AAZ10: 18633.25211 | ABA10: 18754.71559 | ABB10: 17892.56737 | ABC10: 18442.52015 | ABD10: 17898.77209 | ABE10: 17489.77878 | ABF10: 18055.19284 | ABG10: 18076.80328 | ABH10: 18120.21927 | ABI10: 17953.48479 | ABJ10: 18369.92205 | ABK10: 17797.35824 | ABL10: 17457.75839 | ABM10: 18062.61649 | ABN10: 18886.13697 | ABO10: 18170.60447 | ABP10: 18522.2116 | ABQ10: 19011.01028 | ABR10: 18302.721 | ABS10: 17967.3079 | ABT10: 18111.97589 | ABU10: 18563.36076 | ABV10: 17603.85589 | ABW10: 18654.56335 | ABX10: 17204.97991 | ABY10: 18804.43742 | ABZ10: 18101.22106 | ACA10: 17315.67292 | ACB10: 18211.80554 | ACC10: 18745.73793 | ACD10: 18544.4498 | ACE10: 18048.18484 | ACF10: 17898.1273 | ACG10: 18141.01826 | ACH10: 17468.40943 | ACI10: 17852.0557 | ACJ10: 17694.41317 | ACK10: 16992.04706 | ACL10: 18127.66632 | ACM10: 17804.43877 | ACN10: 18012.25792 | ACO10: 17587.48034 | ACP10: 17866.29522 | ACQ10: 17792.1521 | ACR10: 17528.11784 | ACS10: 18225.49799 | ACT10: 18965.55895 | ACU10: 17250.80939 | ACV10: 19362.55894 | ACW10: 17821.30937 | ACX10: 17282.03029 | ACY10: 16691.22733 | ACZ10: 18041.43051 | ADA10: 18039.06306 | ADB10: 17386.32014 | ADC10: 18410.78339 | ADD10: 17812.19442 | ADE10: 17666.64709 | ADF10: 17867.32305 | ADG10: 17969.26961 | ADH10: 18958.12634 | ADI10: 18478.40209 | ADJ10: 18328.96811 | ADK10: 18234.18158 | ADL10: 17980.67943 | ADM10: 17947.8179 | ADN10: 17898.98076 | ADO10: 18328.67772 | ADP10: 18920.4159 | ADQ10: 17938.4714 | ADR10: 18305.10948 | ADS10: 17930.48478 | ADT10: 18798.09965 | ADU10: 17541.31317 | ADV10: 18539.1185 | ADW10: 18220.5799 | ADX10: 17738.25674 | ADY10: 18241.16449 | ADZ10: 18424.59077 | AEA10: 18023.09656 | AEB10: 16886.56171 | AEC10: 17881.17111 | AED10: 19180.39641 | AEE10: 17648.96192 | AEF10: 18831.73548 | AEG10: 18666.36482 | AEH10: 18369.17862 | AEI10: 17768.90162 | AEJ10: 17884.54216 | AEK10: 18084.85193 | AEL10: 18077.19005 | AEM10: 17525.08331 | AEN10: 18473.75915 | AEO10: 16955.99727 | AEP10: 18605.06261 | AEQ10: 17860.51272 | AER10: 19209.67088 | AES10: 18321.34674 | AET10: 17891.1918 | AEU10: 18222.68404 | AEV10: 17784.23045 | AEW10: 18060.86534 | AEX10: 18043.07933 | AEY10: 17417.12339 | AEZ10: 18427.71068 | AFA10: 17089.58021 | AFB10: 17352.21446 | AFC10: 18867.16279 | AFD10: 19286.58263 | AFE10: 17834.08373 | AFF10: 17505.90225 | AFG10: 18706.63824 | AFH10: 18030.01756 | AFI10: 17456.47328 | AFJ10: 17957.17502 | AFK10: 18284.28847 | AFL10: 18825.56795 | AFM10: 17835.58843 | AFN10: 17939.6243 | AFO10: 18775.59604 | AFP10: 18514.65954 | AFQ10: 17567.72323 | AFR10: 18724.66092 | AFS10: 18529.22637 | AFT10: 17967.27188 | AFU10: 18188.81377 | AFV10: 17689.00207 | AFW10: 18262.74835 | AFX10: 16914.78183 | AFY10: 18358.52272 | AFZ10: 18696.36477 | AGA10: 17726.79111 | AGB10: 17801.70255 | AGC10: 18375.65675 | AGD10: 17836.20793 | AGE10: 18589.93099 | AGF10: 18545.03084 | AGG10: 17688.33329 | AGH10: 18370.41417 | AGI10: 17987.11011 | AGJ10: 18004.29616 | AGK10: 18394.5462 | AGL10: 18092.96562 | AGM10: 18255.48225 | AGN10: 17774.78623 | AGO10: 17753.76254 | AGP10: 17361.29865 | AGQ10: 17511.80186 | AGR10: 17995.40678 | AGS10: 17976.76376 | AGT10: 18084.78543 | AGU10: 18137.4749 | AGV10: 17473.2587 | AGW10: 18178.5368 | AGX10: 17975.20789 | AGY10: 18288.62042 | AGZ10: 18116.66719 | AHA10: 17292.88339 | AHB10: 17885.43064 | AHC10: 18860.81371 | AHD10: 17451.02396 | AHE10: 18948.47406 | AHF10: 18100.30497 | AHG10: 17993.8172 | AHH10: 17755.44273 | AHI10: 17679.28319 | AHJ10: 17612.35549 | AHK10: 18110.7177 | AHL10: 18316.45665 | AHM10: 17373.42921 | AHN10: 18287.87878 | AHO10: 17826.08294 | AHP10: 18449.70785 | AHQ10: 18084.34649 | AHR10: 19155.32555 | AHS10: 17879.84919 | AHT10: 18458.29418 | AHU10: 17417.27672 | AHV10: 17809.01586 | AHW10: 16672.33952 | AHX10: 18912.60874 | AHY10: 18524.51949 | AHZ10: 18035.09157 | AIA10: 18308.43973 | AIB10: 18457.48415 | AIC10: 18555.83539 | AID10: 18064.46864 | AIE10: 18127.01094 | AIF10: 17656.73322 | AIG10: 17178.3351 | AIH10: 18612.08705 | AII10: 19212.68339 | AIJ10: 18289.52901 | AIK10: 18543.05532 | AIL10: 16850.71915 | AIM10: 18278.42947 | AIN10: 17525.44494 | AIO10: 17552.09673 | AIP10: 18132.73527 | AIQ10: 18144.14702 | AIR10: 17974.44151 | AIS10: 18013.42908 | AIT10: 17534.32364 | AIU10: 18873.75262 | AIV10: 18614.09347 | AIW10: 18352.0281 | AIX10: 19194.70504 | AIY10: 18090.93497 | AIZ10: 18036.5681 | AJA10: 17707.84591 | AJB10: 17221.35882 | AJC10: 18739.24183 | AJD10: 17698.64065 | AJE10: 18337.86574 | AJF10: 18691.29094 | AJG10: 18930.756 | AJH10: 18310.22899 | AJI10: 18009.43164 | AJJ10: 18539.99659 | AJK10: 17722.01318 | AJL10: 18013.87064 | AJM10: 18972.02641 | AJN10: 17682.43326 | AJO10: 18217.2843 | AJP10: 18289.98906 | AJQ10: 18376.79782 | AJR10: 17566.54724 | AJS10: 18190.82231 | AJT10: 17388.38623 | AJU10: 17899.5177 | AJV10: 17498.30179 | AJW10: 17824.96647 | AJX10: 17990.69563 | AJY10: 17773.1374 | AJZ10: 18250.73663 | AKA10: 17055.33804 | AKB10: 17739.98 | AKC10: 18033.98182 | AKD10: 18569.12506 | AKE10: 17638.22953 | AKF10: 17645.34408 | AKG10: 18131.9403 | AKH10: 18271.75362 | AKI10: 17623.87874 | AKJ10: 18559.63588 | AKK10: 17569.5116 | AKL10: 18795.82497 | AKM10: 17973.70263 | AKN10: 18887.9704 | AKO10: 17706.4686 | AKP10: 17849.5623 | AKQ10: 16980.59752 | AKR10: 17021.72954 | AKS10: 18740.17217 | AKT10: 18844.1607 | AKU10: 18203.82648 | AKV10: 17804.02502 | AKW10: 18068.59546 | AKX10: 18029.46463 | AKY10: 18466.60178 | AKZ10: 17584.90056 | ALA10: 18083.4749 | ALB10: 18217.55748 | ALC10: 17855.51333 | ALD10: 17394.87524 | ALE10: 18025.24016 | ALF10: 18216.9584 | ALG10: 18358.24366 | ALH10: 18862.31116 | ALI10: 18512.61161 | ALJ10: 18553.66962 | ALK10: 18308.92113 | ALL10: 17989.32878 | ALM10: 18318.67904 | ALN10: 18252.17167 | ALO10: 17919.81449 | ALP10: 17837.43397 | ALQ10: 18360.56955 | ALR10: 18232.39547 | ALS10: 17935.85385 | ALT10: 18585.51072 | ALU10: 18823.93191 | ALV10: 18607.28905
A11: 2013-05-13 | B11: 5980.450195 | C11: -0.01893189629 | E11: ln(ST/So) | F11: will lie between (mean returns -2*std dev) and (mean returns +2*std dev) | J11: 8 | K11: 17609.59353 | L11: 17539.17168 | M11: 18267.11302 | N11: 17849.21379 | O11: 18332.804 | P11: 17408.06964 | Q11: 18796.62126 | R11: 17714.35706 | S11: 18907.18353 | T11: 18320.25 | U11: 18564.69832 | V11: 17801.06793 | W11: 17710.54111 | X11: 17653.82732 | Y11: 18603.1007 | Z11: 17780.16918 | AA11: 17712.33453 | AB11: 18059.2382 | AC11: 16945.01815 | AD11: 17367.16174 | AE11: 17370.84825 | AF11: 17830.6452 | AG11: 18266.35789 | AH11: 18324.21939 | AI11: 18079.34389 | AJ11: 17095.08872 | AK11: 17838.83607 | AL11: 18100.27026 | AM11: 18502.55553 | AN11: 18142.44246 | AO11: 17692.217 | AP11: 18235.17371 | AQ11: 17752.21935 | AR11: 18418.25516 | AS11: 17667.90258 | AT11: 17696.81651 | AU11: 17809.72119 | AV11: 18102.82671 | AW11: 18518.48409 | AX11: 17845.26725 | AY11: 19248.40671 | AZ11: 17692.19466 | BA11: 19107.38679 | BB11: 18484.19656 | BC11: 17648.80362 | BD11: 19284.14945 | BE11: 17729.75793 | BF11: 19305.27433 | BG11: 17905.72304 | BH11: 19087.53052 | BI11: 18114.05341 | BJ11: 18619.59281 | BK11: 18163.93393 | BL11: 17205.04965 | BM11: 18421.50861 | BN11: 17231.41282 | BO11: 18340.74752 | BP11: 17762.85608 | BQ11: 17975.58946 | BR11: 17682.61865 | BS11: 18776.699 | BT11: 17604.90263 | BU11: 18585.08938 | BV11: 17867.24515 | BW11: 18839.60517 | BX11: 17309.26987 | BY11: 17712.07424 | BZ11: 17102.14375 | CA11: 17473.66183 | CB11: 18269.23431 | CC11: 18204.8759 | CD11: 17891.51822 | CE11: 17648.8903 | CF11: 18420.36555 | CG11: 18263.33243 | CH11: 18936.16334 | CI11: 17360.85913 | CJ11: 17772.40747 | CK11: 18889.95766 | CL11: 18256.35304 | CM11: 17882.4117 | CN11: 17263.33076 | CO11: 17704.22243 | CP11: 18463.49652 | CQ11: 17377.49787 | CR11: 17681.62813 | CS11: 17490.01242 | CT11: 17964.38986 | CU11: 17610.69283 | CV11: 18155.89185 | CW11: 18892.97454 | CX11: 18135.55016 | CY11: 19010.3745 | CZ11: 17147.44965 | DA11: 18557.83473 | DB11: 18119.64914 | DC11: 18571.73618 | DD11: 17437.50671 | DE11: 18282.95656 | DF11: 18758.87696 | DG11: 17750.68867 | DH11: 18070.07702 | DI11: 17680.05991 | DJ11: 18551.8492 | DK11: 17357.04388 | DL11: 18257.5398 | DM11: 17838.1006 | DN11: 17191.40674 | DO11: 17511.93844 | DP11: 18565.69902 | DQ11: 17234.44637 | DR11: 18476.74551 | DS11: 18509.86976 | DT11: 19075.20611 | DU11: 16922.90478 | DV11: 17989.23911 | DW11: 18025.83391 | DX11: 18169.7362 | DY11: 18658.89538 | DZ11: 17898.23519 | EA11: 17601.95629 | EB11: 17285.8497 | EC11: 18065.18472 | ED11: 17673.80106 | EE11: 18361.73472 | EF11: 18284.41456 | EG11: 18374.54837 | EH11: 18090.52651 | EI11: 18481.37498 | EJ11: 19085.69627 | EK11: 17537.78487 | EL11: 17420.96119 | EM11: 17553.70232 | EN11: 17799.21321 | EO11: 17338.37199 | EP11: 18476.53837 | EQ11: 18479.07285 | ER11: 18204.18655 | ES11: 17125.42936 | ET11: 17685.90731 | EU11: 18332.51701 | EV11: 18515.68062 | EW11: 17460.00906 | EX11: 17565.3764 | EY11: 17606.51694 | EZ11: 18251.14896 | FA11: 17431.51733 | FB11: 18010.90856 | FC11: 18127.03326 | FD11: 17443.45228 | FE11: 18597.6953 | FF11: 17821.03565 | FG11: 17564.01101 | FH11: 18434.35946 | FI11: 18218.60356 | FJ11: 18703.22735 | FK11: 18636.68558 | FL11: 17986.28213 | FM11: 18529.13382 | FN11: 18351.76406 | FO11: 18631.58494 | FP11: 19421.58474 | FQ11: 17787.41165 | FR11: 18605.59559 | FS11: 19099.6449 | FT11: 18267.16681 | FU11: 16992.56718 | FV11: 17803.61315 | FW11: 17969.90664 | FX11: 18229.77989 | FY11: 18148.51326 | FZ11: 18248.41007 | GA11: 17887.69871 | GB11: 18133.41073 | GC11: 18507.82175 | GD11: 18498.54991 | GE11: 17719.4364 | GF11: 18567.57333 | GG11: 18093.8128 | GH11: 18012.52189 | GI11: 18190.00629 | GJ11: 18404.77021 | GK11: 18428.59734 | GL11: 18859.51907 | GM11: 18568.19369 | GN11: 18406.17253 | GO11: 18205.21248 | GP11: 18656.32643 | GQ11: 19281.97404 | GR11: 18518.23735 | GS11: 17883.57351 | GT11: 18073.31185 | GU11: 18886.02467 | GV11: 18227.7555 | GW11: 18085.68064 | GX11: 18941.06516 | GY11: 17740.72974 | GZ11: 18334.43943 | HA11: 18426.71303 | HB11: 18263.42023 | HC11: 17698.58727 | HD11: 18669.05494 | HE11: 18277.60876 | HF11: 17983.33666 | HG11: 18125.17726 | HH11: 18090.30681 | HI11: 17822.1501 | HJ11: 19107.4995 | HK11: 18445.76747 | HL11: 16972.55952 | HM11: 18134.14693 | HN11: 18909.9674 | HO11: 17858.79861 | HP11: 18558.60249 | HQ11: 18040.33481 | HR11: 18159.99061 | HS11: 18017.875 | HT11: 17815.85435 | HU11: 18337.69541 | HV11: 18717.2288 | HW11: 18164.07983 | HX11: 17971.10246 | HY11: 17889.31024 | HZ11: 18506.0333 | IA11: 17769.53926 | IB11: 18062.27769 | IC11: 18826.27727 | ID11: 19031.23535 | IE11: 17576.58231 | IF11: 17824.44474 | IG11: 19230.66014 | IH11: 17202.72757 | II11: 19021.49251 | IJ11: 17972.95695 | IK11: 18508.1827 | IL11: 18145.85863 | IM11: 18462.06925 | IN11: 17868.39892 | IO11: 17942.01679 | IP11: 18092.77405 | IQ11: 18201.44005 | IR11: 17377.2879 | IS11: 18420.04602 | IT11: 18255.82811 | IU11: 17983.67406 | IV11: 18340.90869 | IW11: 18324.38481 | IX11: 17754.61279 | IY11: 18084.6927 | IZ11: 18696.90809 | JA11: 19011.55698 | JB11: 18382.76073 | JC11: 17996.37427 | JD11: 18284.2837 | JE11: 18589.89895 | JF11: 17787.50749 | JG11: 17604.64461 | JH11: 18110.02927 | JI11: 18490.06822 | JJ11: 18488.05815 | JK11: 17842.17547 | JL11: 17888.29579 | JM11: 17887.0043 | JN11: 17743.67688 | JO11: 18154.1407 | JP11: 18400.48385 | JQ11: 18570.62489 | JR11: 18603.10883 | JS11: 17145.18933 | JT11: 18938.4896 | JU11: 18362.23898 | JV11: 17953.8439 | JW11: 17242.98753 | JX11: 18133.91832 | JY11: 18823.19302 | JZ11: 18524.00998 | KA11: 16933.33762 | KB11: 19088.03078 | KC11: 19244.2958 | KD11: 18807.87193 | KE11: 18711.37447 | KF11: 18462.29906 | KG11: 17626.17938 | KH11: 17957.27291 | KI11: 18938.98455 | KJ11: 17512.13824 | KK11: 17844.3886 | KL11: 18062.00095 | KM11: 17988.84353 | KN11: 17879.41433 | KO11: 17231.10308 | KP11: 17028.8113 | KQ11: 17825.12253 | KR11: 18697.20974 | KS11: 17679.79086 | KT11: 18077.88646 | KU11: 17654.03144 | KV11: 18531.51886 | KW11: 17433.26691 | KX11: 19583.56232 | KY11: 18348.27092 | KZ11: 17666.6744 | LA11: 17643.84042 | LB11: 18805.23351 | LC11: 17798.15847 | LD11: 17756.25898 | LE11: 18434.79824 | LF11: 18194.73203 | LG11: 17980.79278 | LH11: 18194.1081 | LI11: 18932.79197 | LJ11: 17310.96209 | LK11: 18259.63339 | LL11: 18343.63464 | LM11: 17233.96504 | LN11: 18082.96241 | LO11: 18681.68886 | LP11: 19441.03949 | LQ11: 18090.09376 | LR11: 17466.54574 | LS11: 17667.14323 | LT11: 17883.05354 | LU11: 18031.37427 | LV11: 18118.65622 | LW11: 17883.72026 | LX11: 18258.81858 | LY11: 18458.6876 | LZ11: 18874.58389 | MA11: 17384.65374 | MB11: 17636.38685 | MC11: 18315.10378 | MD11: 18063.22598 | ME11: 17807.70716 | MF11: 17341.12496 | MG11: 17812.48939 | MH11: 19621.88871 | MI11: 18424.18364 | MJ11: 18082.05478 | MK11: 17702.92326 | ML11: 17123.78072 | MM11: 18033.52985 | MN11: 18320.89324 | MO11: 17891.0578 | MP11: 18219.02493 | MQ11: 18517.11124 | MR11: 17581.91333 | MS11: 17807.90132 | MT11: 17919.81452 | MU11: 18337.9513 | MV11: 18467.19083 | MW11: 17891.70134 | MX11: 17894.00106 | MY11: 19099.75379 | MZ11: 17910.10883 | NA11: 17242.37705 | NB11: 19213.24145 | NC11: 18797.4084 | ND11: 19082.37893 | NE11: 17181.48625 | NF11: 18109.13399 | NG11: 18751.39391 | NH11: 18793.3896 | NI11: 17814.44153 | NJ11: 17940.27008 | NK11: 18813.35448 | NL11: 17923.55999 | NM11: 18118.67578 | NN11: 17690.70599 | NO11: 18180.39874 | NP11: 17780.72416 | NQ11: 18530.8863 | NR11: 17702.94338 | NS11: 18754.88528 | NT11: 18176.07664 | NU11: 18112.42814 | NV11: 17595.66545 | NW11: 18175.81776 | NX11: 19098.40917 | NY11: 19457.71419 | NZ11: 18507.2155 | OA11: 18151.41016 | OB11: 18861.07365 | OC11: 17855.70264 | OD11: 18050.18667 | OE11: 17168.84029 | OF11: 19095.30652 | OG11: 18856.44429 | OH11: 18384.09492 | OI11: 17389.11111 | OJ11: 17421.37952 | OK11: 18266.53356 | OL11: 17149.64766 | OM11: 17751.35644 | ON11: 18360.08993 | OO11: 17862.38014 | OP11: 17932.90651 | OQ11: 17993.58702 | OR11: 17891.73322 | OS11: 17780.22145 | OT11: 18148.79048 | OU11: 18143.75593 | OV11: 18778.8258 | OW11: 18002.12869 | OX11: 17968.42914 | OY11: 17203.8012 | OZ11: 18167.1291 | PA11: 17654.82002 | PB11: 18306.33498 | PC11: 18303.18257 | PD11: 17933.34587 | PE11: 18009.95444 | PF11: 17494.39062 | PG11: 17684.96344 | PH11: 17590.3745 | PI11: 19034.34852 | PJ11: 17306.37838 | PK11: 18253.15213 | PL11: 18358.08704 | PM11: 17155.13551 | PN11: 17164.49685 | PO11: 18674.50119 | PP11: 17897.98422 | PQ11: 17150.99757 | PR11: 17213.81775 | PS11: 18179.16582 | PT11: 17802.21262 | PU11: 17548.63414 | PV11: 18940.82739 | PW11: 18047.37659 | PX11: 17958.03544 | PY11: 18127.49723 | PZ11: 18192.01148 | QA11: 17386.70778 | QB11: 17503.36716 | QC11: 18470.24399 | QD11: 17988.14115 | QE11: 18553.43289 | QF11: 18409.87795 | QG11: 18674.86139 | QH11: 17727.43575 | QI11: 17682.16012 | QJ11: 18108.89678 | QK11: 18375.32368 | QL11: 18440.04677 | QM11: 19268.78733 | QN11: 18561.97987 | QO11: 18112.53753 | QP11: 18228.60653 | QQ11: 18260.46926 | QR11: 18140.94404 | QS11: 17859.02042 | QT11: 18011.63701 | QU11: 18292.39278 | QV11: 19403.59002 | QW11: 17376.58015 | QX11: 18237.62248 | QY11: 18686.06009 | QZ11: 18829.87918 | RA11: 17657.21169 | RB11: 18308.13961 | RC11: 17378.21601 | RD11: 17473.29907 | RE11: 18420.70724 | RF11: 17804.30703 | RG11: 17396.12889 | RH11: 17443.06079 | RI11: 18244.41274 | RJ11: 18158.90454 | RK11: 18702.13624 | RL11: 17660.00827 | RM11: 18016.30282 | RN11: 17428.71402 | RO11: 17941.59578 | RP11: 17622.0797 | RQ11: 18707.58263 | RR11: 17961.57182 | RS11: 18127.34868 | RT11: 18104.37998 | RU11: 18407.03226 | RV11: 18192.71187 | RW11: 17771.98209 | RX11: 18739.498 | RY11: 17553.8815 | RZ11: 17071.36653 | SA11: 17608.36804 | SB11: 18024.40986 | SC11: 18790.55955 | SD11: 18997.84138 | SE11: 18554.26639 | SF11: 17329.13455 | SG11: 18986.70024 | SH11: 17340.91287 | SI11: 17939.64458 | SJ11: 17636.21058 | SK11: 18284.3767 | SL11: 17989.68069 | SM11: 19128.07383 | SN11: 17865.85999 | SO11: 19842.3632 | SP11: 18553.78432 | SQ11: 17599.1866 | SR11: 18402.08052 | SS11: 18980.01869 | ST11: 18051.82654 | SU11: 18095.62738 | SV11: 17752.73628 | SW11: 18034.06352 | SX11: 18349.29465 | SY11: 18295.9763 | SZ11: 18368.25612 | TA11: 17300.60265 | TB11: 17727.86844 | TC11: 17882.56739 | TD11: 18665.21156 | TE11: 18458.77847 | TF11: 17683.77306 | TG11: 17952.06074 | TH11: 18571.81013 | TI11: 18161.2775 | TJ11: 18067.24912 | TK11: 17512.44978 | TL11: 18230.85624 | TM11: 17940.05672 | TN11: 18330.79077 | TO11: 17416.66108 | TP11: 18331.00144 | TQ11: 17787.53693 | TR11: 17959.03651 | TS11: 17826.56921 | TT11: 17964.56785 | TU11: 17893.09419 | TV11: 18435.92276 | TW11: 18515.75312 | TX11: 18376.17964 | TY11: 18303.00186 | TZ11: 17909.34059 | UA11: 17554.87993 | UB11: 18356.3072 | UC11: 18080.18276 | UD11: 18220.69132 | UE11: 17397.12009 | UF11: 18261.33421 | UG11: 18771.24861 | UH11: 18312.45627 | UI11: 17771.27602 | UJ11: 18604.02736 | UK11: 18226.75001 | UL11: 17549.71768 | UM11: 17697.34365 | UN11: 18581.18922 | UO11: 17848.5958 | UP11: 18196.191 | UQ11: 18473.6863 | UR11: 17541.40491 | US11: 18201.17015 | UT11: 16822.04447 | UU11: 17894.90175 | UV11: 17548.86155 | UW11: 17623.22672 | UX11: 18074.16609 | UY11: 18070.01682 | UZ11: 18025.52495 | VA11: 17262.0465 | VB11: 18896.52444 | VC11: 18678.02795 | VD11: 18159.79906 | VE11: 17768.91868 | VF11: 18163.98037 | VG11: 17972.45463 | VH11: 17323.92174 | VI11: 18158.55841 | VJ11: 18653.60374 | VK11: 18072.20148 | VL11: 19189.39386 | VM11: 17270.37793 | VN11: 19332.67596 | VO11: 18434.35996 | VP11: 18614.68113 | VQ11: 18489.00494 | VR11: 16948.90802 | VS11: 18174.56386 | VT11: 17207.38686 | VU11: 17737.19172 | VV11: 18301.45413 | VW11: 18459.64703 | VX11: 17289.37528 | VY11: 18033.94129 | VZ11: 18286.25503 | WA11: 18596.18446 | WB11: 18498.38613 | WC11: 18579.46596 | WD11: 17705.58429 | WE11: 18121.90736 | WF11: 18434.80885 | WG11: 17544.08296 | WH11: 17699.05898 | WI11: 18059.566 | WJ11: 17709.38692 | WK11: 18197.13227 | WL11: 18614.96921 | WM11: 16926.34399 | WN11: 17976.6756 | WO11: 17628.649 | WP11: 18201.06902 | WQ11: 18491.544 | WR11: 17262.07788 | WS11: 18556.74373 | WT11: 18429.76453 | WU11: 18065.04119 | WV11: 18450.66529 | WW11: 18128.02306 | WX11: 19267.19032 | WY11: 19685.59394 | WZ11: 18638.52471 | XA11: 18518.70514 | XB11: 17929.37641 | XC11: 18688.94646 | XD11: 16876.79424 | XE11: 19727.47311 | XF11: 17877.69455 | XG11: 18072.91769 | XH11: 18390.51912 | XI11: 18238.21182 | XJ11: 17479.72545 | XK11: 18258.99042 | XL11: 18744.61095 | XM11: 17768.03687 | XN11: 17865.71451 | XO11: 18236.142 | XP11: 16955.46089 | XQ11: 17392.89566 | XR11: 18581.28876 | XS11: 19648.79362 | XT11: 18052.42032 | XU11: 18226.09076 | XV11: 18289.49349 | XW11: 17717.49783 | XX11: 18822.22721 | XY11: 17817.23091 | XZ11: 18374.25334 | YA11: 19120.52233 | YB11: 17874.04857 | YC11: 17637.95572 | YD11: 18984.0747 | YE11: 18404.72891 | YF11: 18777.35482 | YG11: 17321.55335 | YH11: 17610.54187 | YI11: 18477.81263 | YJ11: 17822.30393 | YK11: 18907.71908 | YL11: 19161.18609 | YM11: 18333.23879 | YN11: 16823.95255 | YO11: 18185.82995 | YP11: 18362.31268 | YQ11: 17798.32144 | YR11: 17888.41642 | YS11: 18806.42378 | YT11: 18084.69668 | YU11: 18475.9826 | YV11: 18394.92732 | YW11: 17142.19131 | YX11: 16679.5604 | YY11: 17697.57138 | YZ11: 18027.65396 | ZA11: 18217.54963 | ZB11: 17951.38585 | ZC11: 17869.20461 | ZD11: 18042.575 | ZE11: 19361.3716 | ZF11: 17859.58527 | ZG11: 18041.30048 | ZH11: 18604.57711 | ZI11: 17013.16962 | ZJ11: 17777.76465 | ZK11: 18027.46529 | ZL11: 18084.78332 | ZM11: 18846.16809 | ZN11: 18109.95352 | ZO11: 18315.62246 | ZP11: 17679.87269 | ZQ11: 19476.2031 | ZR11: 16749.33299 | ZS11: 17613.96932 | ZT11: 17992.05452 | ZU11: 18347.8524 | ZV11: 18101.49053 | ZW11: 17748.47306 | ZX11: 18970.13215 | ZY11: 18333.94313 | ZZ11: 19084.42611 | AAA11: 19246.20231 | AAB11: 19185.66289 | AAC11: 18626.89848 | AAD11: 18500.17394 | AAE11: 18789.47746 | AAF11: 18313.08797 | AAG11: 17888.59065 | AAH11: 18115.12322 | AAI11: 18640.43017 | AAJ11: 18573.33157 | AAK11: 18459.81015 | AAL11: 18651.29652 | AAM11: 18191.19281 | AAN11: 18402.02774 | AAO11: 18930.87743 | AAP11: 18248.5897 | AAQ11: 17935.47654 | AAR11: 17747.58194 | AAS11: 18067.86418 | AAT11: 17810.95932 | AAU11: 17692.1103 | AAV11: 17973.74867 | AAW11: 18484.7079 | AAX11: 18794.83129 | AAY11: 17933.84215 | AAZ11: 18882.32241 | ABA11: 18807.3544 | ABB11: 17777.4707 | ABC11: 18448.99456 | ABD11: 17715.03567 | ABE11: 17641.52996 | ABF11: 17929.61784 | ABG11: 18291.18607 | ABH11: 18318.5372 | ABI11: 17749.53687 | ABJ11: 18337.87264 | ABK11: 17905.63188 | ABL11: 17207.90494 | ABM11: 18434.18112 | ABN11: 19118.15785 | ABO11: 17963.72725 | ABP11: 18353.93291 | ABQ11: 18958.45336 | ABR11: 18057.79266 | ABS11: 18178.87489 | ABT11: 18175.13371 | ABU11: 18269.24206 | ABV11: 17767.4841 | ABW11: 18823.11392 | ABX11: 17046.6942 | ABY11: 19012.68842 | ABZ11: 18265.15241 | ACA11: 17236.23375 | ACB11: 18492.21084 | ACC11: 18593.16099 | ACD11: 18385.12983 | ACE11: 18027.41967 | ACF11: 17967.58388 | ACG11: 17931.18236 | ACH11: 17224.53659 | ACI11: 18025.41894 | ACJ11: 17434.42787 | ACK11: 16982.60876 | ACL11: 18127.10134 | ACM11: 17869.60714 | ACN11: 18253.28694 | ACO11: 17600.3735 | ACP11: 17703.84336 | ACQ11: 18023.05044 | ACR11: 17175.25167 | ACS11: 18226.43458 | ACT11: 19253.64101 | ACU11: 16996.65508 | ACV11: 18982.43557 | ACW11: 18026.20351 | ACX11: 17095.29591 | ACY11: 16608.68129 | ACZ11: 18177.89802 | ADA11: 18035.82389 | ADB11: 17386.24 | ADC11: 18653.78815 | ADD11: 17851.16185 | ADE11: 17933.08827 | ADF11: 17931.11792 | ADG11: 18065.59092 | ADH11: 18713.81888 | ADI11: 18083.00773 | ADJ11: 17965.15466 | ADK11: 18141.73827 | ADL11: 18239.81043 | ADM11: 17984.76036 | ADN11: 17798.47021 | ADO11: 18268.26551 | ADP11: 18876.52086 | ADQ11: 17431.59332 | ADR11: 18611.14487 | ADS11: 17752.22154 | ADT11: 19303.38321 | ADU11: 17612.90977 | ADV11: 18239.86469 | ADW11: 18252.49828 | ADX11: 17918.22576 | ADY11: 17986.85281 | ADZ11: 18696.1668 | AEA11: 17949.0504 | AEB11: 17108.77547 | AEC11: 18070.81863 | AED11: 18981.45127 | AEE11: 17486.29825 | AEF11: 18947.17948 | AEG11: 18596.75137 | AEH11: 18532.69035 | AEI11: 17798.71003 | AEJ11: 18035.24893 | AEK11: 18060.00381 | AEL11: 18218.67469 | AEM11: 17473.62304 | AEN11: 18620.50238 | AEO11: 16835.82692 | AEP11: 18510.83373 | AEQ11: 17750.91942 | AER11: 19238.62283 | AES11: 18397.10891 | AET11: 18062.61239 | AEU11: 18193.54723 | AEV11: 18004.82154 | AEW11: 17972.60654 | AEX11: 18185.61661 | AEY11: 17844.40009 | AEZ11: 18591.42363 | AFA11: 17370.96099 | AFB11: 17379.13815 | AFC11: 18767.80536 | AFD11: 19346.792 | AFE11: 17759.61096 | AFF11: 17530.61495 | AFG11: 18359.14716 | AFH11: 18150.05905 | AFI11: 17451.89677 | AFJ11: 18056.20037 | AFK11: 18224.69963 | AFL11: 19037.90946 | AFM11: 17897.1184 | AFN11: 17838.9389 | AFO11: 18900.69243 | AFP11: 18721.12884 | AFQ11: 17727.15003 | AFR11: 19003.54552 | AFS11: 18489.71572 | AFT11: 17887.70174 | AFU11: 18077.35904 | AFV11: 17782.89447 | AFW11: 18315.66337 | AFX11: 16576.47839 | AFY11: 18147.8274 | AFZ11: 18580.5743 | AGA11: 17704.63549 | AGB11: 17588.10513 | AGC11: 18512.20896 | AGD11: 17777.21803 | AGE11: 18638.12606 | AGF11: 18606.09317 | AGG11: 17517.78629 | AGH11: 18221.13648 | AGI11: 17862.92233 | AGJ11: 18073.73827 | AGK11: 18442.14789 | AGL11: 18404.77692 | AGM11: 18247.28506 | AGN11: 17713.53442 | AGO11: 17697.88591 | AGP11: 17076.33201 | AGQ11: 17446.21345 | AGR11: 18001.08765 | AGS11: 18186.3807 | AGT11: 18330.50633 | AGU11: 18126.42771 | AGV11: 17485.49034 | AGW11: 18315.50379 | AGX11: 18027.44195 | AGY11: 18560.09394 | AGZ11: 18214.47676 | AHA11: 17293.95791 | AHB11: 18009.32468 | AHC11: 19209.02619 | AHD11: 17498.35093 | AHE11: 19107.09302 | AHF11: 18069.18191 | AHG11: 17934.3837 | AHH11: 17565.46346 | AHI11: 17511.51471 | AHJ11: 17664.3366 | AHK11: 18345.00869 | AHL11: 18166.15204 | AHM11: 17383.98035 | AHN11: 18223.15443 | AHO11: 17736.3003 | AHP11: 18536.47716 | AHQ11: 18024.45842 | AHR11: 19279.34786 | AHS11: 17861.39798 | AHT11: 18437.30282 | AHU11: 17236.68355 | AHV11: 17531.45024 | AHW11: 17175.36273 | AHX11: 18906.10134 | AHY11: 18441.91648 | AHZ11: 18023.71584 | AIA11: 18486.76711 | AIB11: 18842.89271 | AIC11: 18765.01 | AID11: 18030.52874 | AIE11: 17890.14385 | AIF11: 17797.84303 | AIG11: 17178.78841 | AIH11: 18757.15434 | AII11: 19343.03164 | AIJ11: 18362.78808 | AIK11: 18300.77309 | AIL11: 16992.94143 | AIM11: 17873.61142 | AIN11: 17479.21251 | AIO11: 17571.50412 | AIP11: 18158.1748 | AIQ11: 17873.94105 | AIR11: 17879.50713 | AIS11: 17804.78232 | AIT11: 17672.82539 | AIU11: 18858.2529 | AIV11: 18303.7844 | AIW11: 18263.44518 | AIX11: 19074.91886 | AIY11: 17896.11417 | AIZ11: 18071.35939 | AJA11: 17998.89625 | AJB11: 16924.60421 | AJC11: 19384.147 | AJD11: 17667.23299 | AJE11: 18664.91787 | AJF11: 18710.90777 | AJG11: 18842.34936 | AJH11: 18345.74923 | AJI11: 17926.2912 | AJJ11: 18844.17714 | AJK11: 17696.00447 | AJL11: 17612.52876 | AJM11: 19300.34684 | AJN11: 17579.1319 | AJO11: 18076.89995 | AJP11: 18206.79349 | AJQ11: 18077.51712 | AJR11: 17546.41581 | AJS11: 18653.2407 | AJT11: 17325.83194 | AJU11: 17969.7972 | AJV11: 17619.34062 | AJW11: 17959.52996 | AJX11: 17989.66299 | AJY11: 17342.64526 | AJZ11: 18239.21809 | AKA11: 17142.2952 | AKB11: 17610.47565 | AKC11: 17882.46533 | AKD11: 18917.33973 | AKE11: 17801.34628 | AKF11: 17612.79963 | AKG11: 18206.97177 | AKH11: 18580.57772 | AKI11: 17515.65535 | AKJ11: 18483.77504 | AKK11: 17754.61451 | AKL11: 18885.77837 | AKM11: 17893.20944 | AKN11: 18960.35561 | AKO11: 17879.1182 | AKP11: 17863.87519 | AKQ11: 17061.61425 | AKR11: 17127.72152 | AKS11: 18722.78705 | AKT11: 18783.02725 | AKU11: 18155.20035 | AKV11: 17824.25362 | AKW11: 18179.23614 | AKX11: 18026.3355 | AKY11: 18331.60996 | AKZ11: 17642.64927 | ALA11: 18130.69704 | ALB11: 18424.00146 | ALC11: 17757.00511 | ALD11: 17209.65225 | ALE11: 17930.18772 | ALF11: 18257.30182 | ALG11: 18656.52631 | ALH11: 19057.35987 | ALI11: 18765.39883 | ALJ11: 18594.13553 | ALK11: 18316.87564 | ALL11: 18060.96802 | ALM11: 17827.46531 | ALN11: 18191.80807 | ALO11: 18039.17757 | ALP11: 18331.02015 | ALQ11: 18503.12457 | ALR11: 18158.24743 | ALS11: 18004.95782 | ALT11: 18852.79287 | ALU11: 18775.24226 | ALV11: 18354.27781
A12: 2013-05-14 | B12: 5995.399902 | C12: 0.002496643603 | F12: =E8-2*G8 -> -0.08948901877 | G12: and | H12: =E8+2*G8 -> 0.105345173 | J12: 9 | K12: 17454.81458 | L12: 18098.76525 | M12: 18249.44332 | N12: 17823.14603 | O12: 17862.85648 | P12: 17262.9365 | Q12: 18807.69217 | R12: 17466.36605 | S12: 18908.16079 | T12: 18168.1552 | U12: 18429.87894 | V12: 18443.95734 | W12: 17640.28805 | X12: 17599.92095 | Y12: 18781.02645 | Z12: 17931.11123 | AA12: 17592.09824 | AB12: 18288.67725 | AC12: 16874.84456 | AD12: 17415.28866 | AE12: 17628.21696 | AF12: 17767.77628 | AG12: 18589.96096 | AH12: 18406.73942 | AI12: 18012.67817 | AJ12: 17189.91206 | AK12: 17756.35913 | AL12: 17686.94326 | AM12: 18575.29112 | AN12: 18015.71121 | AO12: 18125.84844 | AP12: 18359.33307 | AQ12: 17822.4396 | AR12: 18494.48729 | AS12: 17377.48689 | AT12: 17589.74815 | AU12: 17916.51978 | AV12: 18088.35411 | AW12: 18474.58771 | AX12: 17924.68837 | AY12: 19218.14198 | AZ12: 17925.04994 | BA12: 18935.68321 | BB12: 18642.01223 | BC12: 17523.11308 | BD12: 19129.88932 | BE12: 17779.81284 | BF12: 19369.28085 | BG12: 17821.86649 | BH12: 19299.56449 | BI12: 17917.67387 | BJ12: 18655.6727 | BK12: 17971.62931 | BL12: 17314.32099 | BM12: 18333.97332 | BN12: 17238.67291 | BO12: 18424.18295 | BP12: 17800.47793 | BQ12: 18157.63398 | BR12: 17893.61394 | BS12: 19101.44445 | BT12: 17466.12948 | BU12: 18772.18118 | BV12: 18154.24621 | BW12: 19107.47848 | BX12: 17334.38027 | BY12: 17626.27789 | BZ12: 16932.24094 | CA12: 17498.3405 | CB12: 18208.84722 | CC12: 18302.10007 | CD12: 18000.5417 | CE12: 17706.06188 | CF12: 18577.25847 | CG12: 17913.49164 | CH12: 18898.20188 | CI12: 17361.33154 | CJ12: 17745.18585 | CK12: 18892.81292 | CL12: 18076.79991 | CM12: 18135.45447 | CN12: 17180.69517 | CO12: 17811.50964 | CP12: 18325.81292 | CQ12: 17296.49386 | CR12: 17910.55124 | CS12: 17502.41289 | CT12: 17570.12079 | CU12: 17943.955 | CV12: 18236.93218 | CW12: 18518.68351 | CX12: 18222.30265 | CY12: 19055.33328 | CZ12: 16934.23342 | DA12: 18605.83857 | DB12: 18151.39572 | DC12: 18657.59569 | DD12: 17111.8491 | DE12: 18187.72619 | DF12: 18826.74619 | DG12: 17917.21934 | DH12: 17929.57701 | DI12: 17865.6797 | DJ12: 18677.53888 | DK12: 17304.81182 | DL12: 18244.73551 | DM12: 17782.95373 | DN12: 17224.63589 | DO12: 17455.05584 | DP12: 18317.52732 | DQ12: 17095.6768 | DR12: 18506.45571 | DS12: 18558.21005 | DT12: 18724.65897 | DU12: 17067.95892 | DV12: 18177.70185 | DW12: 18088.63818 | DX12: 18400.04328 | DY12: 18533.60554 | DZ12: 18436.53896 | EA12: 17765.43099 | EB12: 17337.80646 | EC12: 18247.66439 | ED12: 17742.91688 | EE12: 18515.65946 | EF12: 18277.27156 | EG12: 18640.20831 | EH12: 18380.86422 | EI12: 18806.04409 | EJ12: 18677.6188 | EK12: 17727.99118 | EL12: 17455.99856 | EM12: 17394.05414 | EN12: 17785.426 | EO12: 17263.22958 | EP12: 18792.52779 | EQ12: 19065.94591 | ER12: 18465.01357 | ES12: 17444.07512 | ET12: 18244.12306 | EU12: 18200.75421 | EV12: 18439.90947 | EW12: 17674.88841 | EX12: 17588.13917 | EY12: 17566.81876 | EZ12: 18394.31909 | FA12: 17409.87995 | FB12: 18064.09461 | FC12: 18246.19522 | FD12: 17497.02221 | FE12: 18403.74354 | FF12: 17786.99151 | FG12: 17630.01877 | FH12: 18500.35815 | FI12: 17984.95986 | FJ12: 18701.73327 | FK12: 18861.53497 | FL12: 18085.85091 | FM12: 18512.74721 | FN12: 18485.42548 | FO12: 18645.59734 | FP12: 19871.60409 | FQ12: 17833.92664 | FR12: 18350.13417 | FS12: 19146.02793 | FT12: 18019.51472 | FU12: 16966.62055 | FV12: 17455.75765 | FW12: 18003.8056 | FX12: 18355.61442 | FY12: 18100.53733 | FZ12: 18159.19088 | GA12: 17927.33226 | GB12: 18174.02939 | GC12: 18757.02682 | GD12: 18288.48875 | GE12: 17572.00527 | GF12: 18361.96141 | GG12: 17954.53577 | GH12: 18008.13697 | GI12: 17930.03912 | GJ12: 18243.12239 | GK12: 18494.72389 | GL12: 18903.07896 | GM12: 18427.07008 | GN12: 18161.3507 | GO12: 17961.17909 | GP12: 18709.98636 | GQ12: 19426.11674 | GR12: 18952.40781 | GS12: 18013.07541 | GT12: 18104.29834 | GU12: 18560.20143 | GV12: 18465.37522 | GW12: 17798.98858 | GX12: 18916.40181 | GY12: 17630.99992 | GZ12: 18425.1164 | HA12: 18269.36947 | HB12: 18309.31055 | HC12: 17666.07434 | HD12: 18739.46876 | HE12: 18484.25494 | HF12: 17562.57582 | HG12: 17912.23532 | HH12: 17797.75334 | HI12: 17661.32633 | HJ12: 19246.549 | HK12: 18632.67944 | HL12: 16876.22221 | HM12: 18069.97997 | HN12: 18919.91865 | HO12: 17757.19294 | HP12: 18801.34608 | HQ12: 17839.94914 | HR12: 18281.04824 | HS12: 17700.92964 | HT12: 17669.92241 | HU12: 18348.02042 | HV12: 18284.21329 | HW12: 17960.0237 | HX12: 17768.56624 | HY12: 18017.8546 | HZ12: 18490.09991 | IA12: 17692.50326 | IB12: 17965.90218 | IC12: 18545.91528 | ID12: 19105.52184 | IE12: 17665.05838 | IF12: 17869.14079 | IG12: 19008.65868 | IH12: 17006.58845 | II12: 18896.22177 | IJ12: 18157.78048 | IK12: 18633.36077 | IL12: 18158.56177 | IM12: 18599.47333 | IN12: 18112.81975 | IO12: 17839.65487 | IP12: 17827.42341 | IQ12: 18999.08499 | IR12: 17756.12964 | IS12: 18589.49703 | IT12: 18354.54842 | IU12: 18120.84834 | IV12: 18553.94107 | IW12: 18601.42765 | IX12: 17956.43459 | IY12: 18255.40681 | IZ12: 18537.64019 | JA12: 18815.40081 | JB12: 18386.65679 | JC12: 18022.19475 | JD12: 18145.8513 | JE12: 18510.84622 | JF12: 17832.45049 | JG12: 17527.04061 | JH12: 18108.7753 | JI12: 18383.02469 | JJ12: 18455.69217 | JK12: 17749.18888 | JL12: 17640.17447 | JM12: 17594.98993 | JN12: 17742.98388 | JO12: 18366.77004 | JP12: 18426.71375 | JQ12: 18713.12233 | JR12: 18573.30512 | JS12: 17431.59884 | JT12: 19032.19504 | JU12: 18453.83245 | JV12: 17798.81652 | JW12: 17157.16576 | JX12: 18142.57819 | JY12: 18985.52917 | JZ12: 18532.03937 | KA12: 17272.21039 | KB12: 19059.37731 | KC12: 19403.77906 | KD12: 18651.15436 | KE12: 18642.36242 | KF12: 18633.00338 | KG12: 17696.68734 | KH12: 18214.58897 | KI12: 19101.71449 | KJ12: 17328.08072 | KK12: 18030.98672 | KL12: 17947.12809 | KM12: 18181.53221 | KN12: 17980.51708 | KO12: 17328.08486 | KP12: 17087.67359 | KQ12: 17954.12876 | KR12: 18714.34629 | KS12: 17608.74029 | KT12: 18006.92734 | KU12: 17754.30288 | KV12: 18263.66469 | KW12: 17281.4713 | KX12: 19610.5384 | KY12: 17602.22651 | KZ12: 18096.7828 | LA12: 17660.6438 | LB12: 19258.06978 | LC12: 17520.83884 | LD12: 17887.92398 | LE12: 18221.74213 | LF12: 18201.95302 | LG12: 17999.31936 | LH12: 18189.05259 | LI12: 19242.53844 | LJ12: 17201.13651 | LK12: 18234.74552 | LL12: 18397.82631 | LM12: 17384.55358 | LN12: 17899.48459 | LO12: 18769.83719 | LP12: 19485.07556 | LQ12: 18272.61729 | LR12: 17438.38192 | LS12: 17825.7272 | LT12: 17660.12599 | LU12: 18008.91875 | LV12: 18629.03194 | LW12: 17885.22925 | LX12: 18428.956 | LY12: 18492.55212 | LZ12: 18939.43152 | MA12: 17417.72784 | MB12: 17889.73228 | MC12: 18421.45035 | MD12: 17771.61749 | ME12: 17902.84799 | MF12: 17314.60627 | MG12: 18067.95716 | MH12: 19717.76563 | MI12: 18565.23773 | MJ12: 18133.45836 | MK12: 17911.02262 | ML12: 16770.53185 | MM12: 17986.38739 | MN12: 18693.18976 | MO12: 17942.5898 | MP12: 18088.70166 | MQ12: 18511.72726 | MR12: 17694.0621 | MS12: 17463.2869 | MT12: 17988.24501 | MU12: 18291.57298 | MV12: 18853.7744 | MW12: 17985.55768 | MX12: 17803.41944 | MY12: 19116.52718 | MZ12: 18085.96514 | NA12: 17183.45536 | NB12: 19252.77419 | NC12: 18832.79314 | ND12: 19184.95994 | NE12: 17104.00487 | NF12: 18039.48087 | NG12: 18798.16921 | NH12: 18674.00949 | NI12: 17532.93671 | NJ12: 18163.61161 | NK12: 18981.93416 | NL12: 17824.55004 | NM12: 18174.85242 | NN12: 17825.9211 | NO12: 18307.60786 | NP12: 17992.40086 | NQ12: 18475.69462 | NR12: 18080.72605 | NS12: 18800.50485 | NT12: 17754.45958 | NU12: 18075.46156 | NV12: 17906.28069 | NW12: 18214.36447 | NX12: 19041.04025 | NY12: 19674.00933 | NZ12: 18476.63409 | OA12: 18067.24523 | OB12: 18391.31975 | OC12: 17500.60606 | OD12: 18198.24187 | OE12: 17226.234 | OF12: 19267.33686 | OG12: 19078.33332 | OH12: 18328.53463 | OI12: 17392.87243 | OJ12: 17344.98138 | OK12: 18258.75037 | OL12: 16858.1674 | OM12: 17940.84655 | ON12: 18320.10388 | OO12: 18005.15222 | OP12: 18229.40679 | OQ12: 17731.5787 | OR12: 17883.95347 | OS12: 17760.05809 | OT12: 17966.7891 | OU12: 17931.71025 | OV12: 18990.90508 | OW12: 18010.4256 | OX12: 17851.58188 | OY12: 16991.12751 | OZ12: 18001.95535 | PA12: 17606.04866 | PB12: 18321.97729 | PC12: 18334.63215 | PD12: 17679.42449 | PE12: 18105.64793 | PF12: 17295.80647 | PG12: 17416.84445 | PH12: 17559.01544 | PI12: 19153.25994 | PJ12: 16955.83844 | PK12: 18344.48795 | PL12: 18567.37432 | PM12: 16991.94021 | PN12: 16832.04035 | PO12: 18800.26625 | PP12: 17552.70492 | PQ12: 17152.71931 | PR12: 17326.16118 | PS12: 18264.91836 | PT12: 17877.35326 | PU12: 17201.70106 | PV12: 18875.84653 | PW12: 17770.78859 | PX12: 18027.55494 | PY12: 18060.8518 | PZ12: 18162.48505 | QA12: 17296.78618 | QB12: 17402.95161 | QC12: 18555.99809 | QD12: 17819.98478 | QE12: 18713.67485 | QF12: 18417.82349 | QG12: 18099.21459 | QH12: 17679.39725 | QI12: 17646.42169 | QJ12: 17987.50015 | QK12: 18508.55637 | QL12: 18557.01527 | QM12: 19399.54951 | QN12: 18591.03292 | QO12: 18269.55129 | QP12: 17971.59856 | QQ12: 18357.63824 | QR12: 18100.15205 | QS12: 17557.18557 | QT12: 17626.27088 | QU12: 18094.1655 | QV12: 19575.30242 | QW12: 17669.68816 | QX12: 18132.43904 | QY12: 18963.14488 | QZ12: 18922.92736 | RA12: 17858.28583 | RB12: 18436.04826 | RC12: 17346.82085 | RD12: 17498.71705 | RE12: 18317.45303 | RF12: 17870.96238 | RG12: 17166.7991 | RH12: 17026.98544 | RI12: 18158.10721 | RJ12: 18228.56939 | RK12: 18887.08674 | RL12: 17686.28682 | RM12: 18157.60216 | RN12: 17328.84886 | RO12: 17916.88322 | RP12: 17675.63503 | RQ12: 18959.04121 | RR12: 17981.92032 | RS12: 18401.03044 | RT12: 18329.4371 | RU12: 18300.6299 | RV12: 18266.9828 | RW12: 17795.96941 | RX12: 18768.24994 | RY12: 17581.8781 | RZ12: 16977.0794 | SA12: 17393.26882 | SB12: 18125.42933 | SC12: 18495.98882 | SD12: 19127.51831 | SE12: 18696.79776 | SF12: 17451.96513 | SG12: 19245.94578 | SH12: 17766.71398 | SI12: 17511.79549 | SJ12: 17323.80822 | SK12: 17999.73747 | SL12: 18430.90398 | SM12: 19014.77993 | SN12: 17773.16994 | SO12: 19825.29336 | SP12: 18419.56295 | SQ12: 17518.62749 | SR12: 18592.73065 | SS12: 19073.47224 | ST12: 18008.49077 | SU12: 17783.40593 | SV12: 17830.96456 | SW12: 17723.71293 | SX12: 18319.1718 | SY12: 18069.9319 | SZ12: 18503.17886 | TA12: 17654.44795 | TB12: 17847.88804 | TC12: 18059.70958 | TD12: 18674.48842 | TE12: 18409.82719 | TF12: 17673.53838 | TG12: 18005.83291 | TH12: 18600.20891 | TI12: 18255.36136 | TJ12: 18257.6421 | TK12: 17635.66551 | TL12: 18187.88114 | TM12: 17715.897 | TN12: 18608.94441 | TO12: 17537.22131 | TP12: 18289.46917 | TQ12: 17798.86219 | TR12: 18120.36656 | TS12: 17632.53146 | TT12: 18067.87597 | TU12: 17916.72612 | TV12: 18488.62644 | TW12: 18348.23223 | TX12: 18622.72592 | TY12: 18129.91712 | TZ12: 17715.93154 | UA12: 17320.43903 | UB12: 17988.20967 | UC12: 18114.76171 | UD12: 18202.43582 | UE12: 17598.95991 | UF12: 18254.31294 | UG12: 18394.86835 | UH12: 18376.5888 | UI12: 17911.97583 | UJ12: 18892.40174 | UK12: 18211.59061 | UL12: 17222.46967 | UM12: 17934.99545 | UN12: 18487.67595 | UO12: 17970.87297 | UP12: 18254.09964 | UQ12: 18724.5636 | UR12: 17546.25755 | US12: 18371.12938 | UT12: 17032.88146 | UU12: 18211.61711 | UV12: 17407.33825 | UW12: 17758.20097 | UX12: 17825.80248 | UY12: 17795.60335 | UZ12: 17612.26959 | VA12: 17241.42404 | VB12: 18945.42025 | VC12: 18613.92518 | VD12: 17965.93306 | VE12: 17694.6783 | VF12: 17907.04131 | VG12: 18247.79801 | VH12: 17208.47078 | VI12: 17965.50619 | VJ12: 18542.62457 | VK12: 18138.51246 | VL12: 19396.7789 | VM12: 16837.73335 | VN12: 19317.2636 | VO12: 18299.5675 | VP12: 18530.06691 | VQ12: 18574.01028 | VR12: 16673.95486 | VS12: 18512.95483 | VT12: 17467.94006 | VU12: 17550.60106 | VV12: 18366.73878 | VW12: 18342.43016 | VX12: 17210.09629 | VY12: 17930.28016 | VZ12: 18282.63169 | WA12: 18531.43684 | WB12: 18420.21242 | WC12: 18460.27617 | WD12: 17723.57872 | WE12: 18093.12581 | WF12: 18258.84929 | WG12: 17252.46758 | WH12: 17796.9118 | WI12: 17982.23961 | WJ12: 18035.73389 | WK12: 18554.65489 | WL12: 18154.96239 | WM12: 17111.82694 | WN12: 17755.26777 | WO12: 17871.56663 | WP12: 18116.913 | WQ12: 18683.40215 | WR12: 17199.60085 | WS12: 18819.04728 | WT12: 18828.01358 | WU12: 17993.25179 | WV12: 18868.01794 | WW12: 18181.79553 | WX12: 19391.43781 | WY12: 19803.80839 | WZ12: 19045.76355 | XA12: 18519.85468 | XB12: 17679.38155 | XC12: 18362.53689 | XD12: 16861.66081 | XE12: 19435.21008 | XF12: 18097.80111 | XG12: 18342.74516 | XH12: 18596.04443 | XI12: 18127.10926 | XJ12: 17655.78057 | XK12: 18321.27334 | XL12: 18711.58744 | XM12: 17549.01046 | XN12: 17668.29282 | XO12: 18170.41998 | XP12: 16959.0362 | XQ12: 17347.79063 | XR12: 18602.59136 | XS12: 20000.15547 | XT12: 17754.21288 | XU12: 18416.50884 | XV12: 18013.01064 | XW12: 18067.49189 | XX12: 18787.24231 | XY12: 17708.33903 | XZ12: 18417.78121 | YA12: 18812.28182 | YB12: 17777.78594 | YC12: 17786.69655 | YD12: 19119.26984 | YE12: 18295.6088 | YF12: 18473.32844 | YG12: 17098.93131 | YH12: 17994.34645 | YI12: 18366.11069 | YJ12: 17994.3721 | YK12: 19179.52874 | YL12: 19057.27268 | YM12: 18662.51376 | YN12: 17263.89687 | YO12: 18382.87611 | YP12: 18390.08158 | YQ12: 17700.69643 | YR12: 17986.5923 | YS12: 19070.80662 | YT12: 18426.01284 | YU12: 18444.59786 | YV12: 18384.20027 | YW12: 17106.80605 | YX12: 16562.75829 | YY12: 17749.57517 | YZ12: 17896.6804 | ZA12: 18387.00249 | ZB12: 17855.8889 | ZC12: 17829.01736 | ZD12: 18287.77091 | ZE12: 19502.88093 | ZF12: 17922.70526 | ZG12: 18059.70406 | ZH12: 18587.46608 | ZI12: 17178.69737 | ZJ12: 18108.88803 | ZK12: 18261.29069 | ZL12: 17804.28301 | ZM12: 18446.86528 | ZN12: 17777.15611 | ZO12: 18466.17783 | ZP12: 18086.25701 | ZQ12: 19728.08974 | ZR12: 16836.33115 | ZS12: 17343.98069 | ZT12: 17733.84898 | ZU12: 18687.77534 | ZV12: 18053.51885 | ZW12: 17946.35131 | ZX12: 19157.10677 | ZY12: 18138.79704 | ZZ12: 19275.7421 | AAA12: 19244.76622 | AAB12: 19112.64333 | AAC12: 19106.02632 | AAD12: 18844.36427 | AAE12: 18741.76433 | AAF12: 18622.24769 | AAG12: 17973.66832 | AAH12: 17863.83246 | AAI12: 18753.20857 | AAJ12: 18888.25464 | AAK12: 18505.55005 | AAL12: 18712.46585 | AAM12: 18186.74132 | AAN12: 18417.29886 | AAO12: 18980.86533 | AAP12: 18098.14192 | AAQ12: 17800.10513 | AAR12: 17812.99363 | AAS12: 17914.24104 | AAT12: 17555.05886 | AAU12: 17758.57855 | AAV12: 18024.34294 | AAW12: 18636.92174 | AAX12: 18650.42176 | AAY12: 18256.41804 | AAZ12: 18774.28091 | ABA12: 18693.06074 | ABB12: 17835.45639 | ABC12: 18417.22179 | ABD12: 17759.01244 | ABE12: 17555.17965 | ABF12: 18023.36353 | ABG12: 18277.85453 | ABH12: 18198.74869 | ABI12: 18061.89885 | ABJ12: 18346.84265 | ABK12: 17923.29724 | ABL12: 17396.78596 | ABM12: 18475.38116 | ABN12: 19301.47483 | ABO12: 18171.05248 | ABP12: 18283.2833 | ABQ12: 18830.02155 | ABR12: 18156.33202 | ABS12: 18358.75786 | ABT12: 18110.84471 | ABU12: 18478.11695 | ABV12: 18016.01155 | ABW12: 18675.54822 | ABX12: 16899.43287 | ABY12: 19008.80045 | ABZ12: 17881.09668 | ACA12: 17063.28184 | ACB12: 18042.91637 | ACC12: 18760.72601 | ACD12: 18165.28043 | ACE12: 17917.15242 | ACF12: 17863.17698 | ACG12: 18064.22821 | ACH12: 16979.4699 | ACI12: 18076.71236 | ACJ12: 17474.99689 | ACK12: 17028.34503 | ACL12: 17978.36454 | ACM12: 17882.64947 | ACN12: 18422.88393 | ACO12: 17468.24336 | ACP12: 17529.90933 | ACQ12: 17740.56855 | ACR12: 17303.64254 | ACS12: 18109.77029 | ACT12: 19235.48544 | ACU12: 16870.49219 | ACV12: 18573.892 | ACW12: 18120.57539 | ACX12: 17048.85511 | ACY12: 16548.36698 | ACZ12: 18062.31391 | ADA12: 18175.64217 | ADB12: 17513.74979 | ADC12: 18402.23428 | ADD12: 17688.35108 | ADE12: 18140.25578 | ADF12: 17978.25319 | ADG12: 18278.65413 | ADH12: 18422.98276 | ADI12: 18349.98503 | ADJ12: 17708.38892 | ADK12: 18006.78497 | ADL12: 18150.22397 | ADM12: 18219.06032 | ADN12: 17637.45284 | ADO12: 18080.73515 | ADP12: 19037.74995 | ADQ12: 17514.18567 | ADR12: 18707.25005 | ADS12: 17751.61572 | ADT12: 18891.12778 | ADU12: 17586.22671 | ADV12: 17940.96457 | ADW12: 18118.3902 | ADX12: 17834.39916 | ADY12: 17904.15053 | ADZ12: 18769.70416 | AEA12: 17978.97757 | AEB12: 17109.10155 | AEC12: 18108.83848 | AED12: 18994.3497 | AEE12: 17806.75179 | AEF12: 19424.16632 | AEG12: 18447.77434 | AEH12: 18864.90365 | AEI12: 17973.91672 | AEJ12: 18377.72358 | AEK12: 17845.11665 | AEL12: 18534.24954 | AEM12: 17420.76068 | AEN12: 18732.99253 | AEO12: 16720.63973 | AEP12: 18575.34636 | AEQ12: 17664.10374 | AER12: 19141.6427 | AES12: 18448.84939 | AET12: 18425.43428 | AEU12: 18378.26769 | AEV12: 18266.95143 | AEW12: 18200.07981 | AEX12: 18102.28408 | AEY12: 17756.06383 | AEZ12: 18340.48089 | AFA12: 17289.87343 | AFB12: 17568.92845 | AFC12: 18762.43375 | AFD12: 19029.93489 | AFE12: 17879.69097 | AFF12: 17366.96546 | AFG12: 18629.49379 | AFH12: 18227.0677 | AFI12: 17364.80168 | AFJ12: 18208.34054 | AFK12: 18049.77967 | AFL12: 19304.15629 | AFM12: 18138.38159 | AFN12: 17792.20683 | AFO12: 18883.0396 | AFP12: 18585.57436 | AFQ12: 17463.85876 | AFR12: 19079.33379 | AFS12: 18602.9248 | AFT12: 17837.4148 | AFU12: 18216.52253 | AFV12: 18019.15095 | AFW12: 18516.19273 | AFX12: 16186.17586 | AFY12: 18233.67506 | AFZ12: 18524.26251 | AGA12: 17497.47231 | AGB12: 17523.70689 | AGC12: 18368.34289 | AGD12: 18055.75352 | AGE12: 18431.14654 | AGF12: 18390.2253 | AGG12: 17420.7091 | AGH12: 18000.95795 | AGI12: 17964.03415 | AGJ12: 17887.81494 | AGK12: 18226.82575 | AGL12: 17999.63534 | AGM12: 18435.91229 | AGN12: 18138.25963 | AGO12: 17782.62296 | AGP12: 17208.48403 | AGQ12: 17528.78148 | AGR12: 18098.85538 | AGS12: 18162.80344 | AGT12: 18436.44291 | AGU12: 18352.49148 | AGV12: 17554.45092 | AGW12: 18444.22155 | AGX12: 18042.02171 | AGY12: 18314.55532 | AGZ12: 18554.91803 | AHA12: 17050.81259 | AHB12: 17884.30071 | AHC12: 19117.22307 | AHD12: 17926.77435 | AHE12: 19062.32894 | AHF12: 18371.45842 | AHG12: 18231.01548 | AHH12: 17517.22424 | AHI12: 17534.05065 | AHJ12: 17914.70731 | AHK12: 18523.26453 | AHL12: 18070.61428 | AHM12: 17376.83258 | AHN12: 18146.604 | AHO12: 17776.17498 | AHP12: 18500.79666 | AHQ12: 18300.66712 | AHR12: 19548.5998 | AHS12: 17833.64902 | AHT12: 18544.96502 | AHU12: 17012.74534 | AHV12: 17322.07861 | AHW12: 17210.29134 | AHX12: 18633.62596 | AHY12: 18219.11703 | AHZ12: 18092.12071 | AIA12: 18589.90704 | AIB12: 19120.61704 | AIC12: 18683.68731 | AID12: 18313.30536 | AIE12: 17750.68696 | AIF12: 17891.09846 | AIG12: 17003.63056 | AIH12: 18605.99165 | AII12: 19314.85291 | AIJ12: 18321.85869 | AIK12: 18662.62275 | AIL12: 16815.06057 | AIM12: 17896.36945 | AIN12: 17452.28394 | AIO12: 17572.98413 | AIP12: 18444.9125 | AIQ12: 17869.12517 | AIR12: 17935.82543 | AIS12: 17857.35815 | AIT12: 17461.15594 | AIU12: 18567.54377 | AIV12: 18293.40293 | AIW12: 18219.04101 | AIX12: 18966.51364 | AIY12: 17890.75038 | AIZ12: 18171.33523 | AJA12: 17882.94924 | AJB12: 17037.45955 | AJC12: 18796.18771 | AJD12: 17876.82005 | AJE12: 18513.34599 | AJF12: 18782.034 | AJG12: 19269.52306 | AJH12: 18440.23494 | AJI12: 18091.13928 | AJJ12: 18877.53098 | AJK12: 17590.80944 | AJL12: 17664.77177 | AJM12: 19150.90045 | AJN12: 17647.85659 | AJO12: 18116.67628 | AJP12: 18039.36266 | AJQ12: 18266.69154 | AJR12: 17671.81877 | AJS12: 18750.92691 | AJT12: 17828.79177 | AJU12: 18356.63993 | AJV12: 17714.1037 | AJW12: 17889.41383 | AJX12: 17988.50091 | AJY12: 17460.48581 | AJZ12: 18299.68203 | AKA12: 17210.29612 | AKB12: 17809.29821 | AKC12: 17830.69527 | AKD12: 18466.23035 | AKE12: 17713.10769 | AKF12: 17500.52416 | AKG12: 18202.21763 | AKH12: 18300.13783 | AKI12: 17475.47941 | AKJ12: 18704.67806 | AKK12: 17486.07158 | AKL12: 18978.10948 | AKM12: 17721.40443 | AKN12: 19075.15478 | AKO12: 17834.91221 | AKP12: 17883.79975 | AKQ12: 17257.42656 | AKR12: 17137.4519 | AKS12: 18869.38455 | AKT12: 18781.12177 | AKU12: 18008.64601 | AKV12: 17848.74747 | AKW12: 18323.82592 | AKX12: 18204.86721 | AKY12: 18495.58714 | AKZ12: 17479.76744 | ALA12: 17763.18721 | ALB12: 18425.10267 | ALC12: 18004.42572 | ALD12: 16746.37559 | ALE12: 18300.08745 | ALF12: 18205.1867 | ALG12: 18591.47954 | ALH12: 18990.3801 | ALI12: 18741.63143 | ALJ12: 18231.78702 | ALK12: 18234.2166 | ALL12: 17755.61598 | ALM12: 17702.89489 | ALN12: 18205.75099 | ALO12: 17962.75335 | ALP12: 18209.82906 | ALQ12: 18422.27916 | ALR12: 18082.79295 | ALS12: 18000.33088 | ALT12: 18789.76588 | ALU12: 18835.8869 | ALV12: 18284.62178
A13: 2013-05-15 | B13: 6146.75 | C13: 0.02493099468 | J13: 10 | K13: 17632.64969 | L13: 18148.66838 | M13: 18486.85692 | N13: 17826.01404 | O13: 18114.65797 | P13: 17365.0209 | Q13: 18862.52188 | R13: 17419.82835 | S13: 18867.83444 | T13: 18246.42765 | U13: 18466.30974 | V13: 18373.48414 | W13: 17715.9213 | X13: 17382.49434 | Y13: 18850.45128 | Z13: 17944.63037 | AA13: 17220.12763 | AB13: 18512.82083 | AC13: 17149.46231 | AD13: 17498.19863 | AE13: 17342.57374 | AF13: 17609.39719 | AG13: 18676.23652 | AH13: 18542.7604 | AI13: 18251.03392 | AJ13: 17103.51313 | AK13: 17784.94786 | AL13: 17938.27708 | AM13: 18835.2624 | AN13: 18118.93847 | AO13: 17940.4656 | AP13: 18546.9787 | AQ13: 18085.21576 | AR13: 17992.09638 | AS13: 17345.15344 | AT13: 17842.07399 | AU13: 17906.85561 | AV13: 17717.12943 | AW13: 18369.96719 | AX13: 17811.2964 | AY13: 19323.83331 | AZ13: 18047.48846 | BA13: 19087.4012 | BB13: 18590.19818 | BC13: 17414.8281 | BD13: 19170.88383 | BE13: 17863.67381 | BF13: 18928.3612 | BG13: 18188.3743 | BH13: 19107.65233 | BI13: 17897.61362 | BJ13: 18738.11044 | BK13: 18035.58886 | BL13: 17353.18611 | BM13: 18409.27632 | BN13: 17124.87476 | BO13: 18340.21462 | BP13: 18095.16176 | BQ13: 17950.66195 | BR13: 17985.66662 | BS13: 18867.02501 | BT13: 17455.00413 | BU13: 18753.68483 | BV13: 18113.59731 | BW13: 19466.5907 | BX13: 17752.85535 | BY13: 17573.73731 | BZ13: 16967.05671 | CA13: 17215.72186 | CB13: 17916.06911 | CC13: 18264.90377 | CD13: 18141.27696 | CE13: 17781.35219 | CF13: 18749.7497 | CG13: 17924.015 | CH13: 18963.08927 | CI13: 17481.74448 | CJ13: 17636.93605 | CK13: 19021.2047 | CL13: 17877.47279 | CM13: 18240.36951 | CN13: 17232.92052 | CO13: 17968.48062 | CP13: 18272.94752 | CQ13: 17403.41807 | CR13: 17962.33784 | CS13: 17624.34783 | CT13: 17322.50601 | CU13: 17837.01051 | CV13: 18284.07348 | CW13: 18294.34104 | CX13: 18245.45847 | CY13: 19324.33762 | CZ13: 16822.59403 | DA13: 18384.6157 | DB13: 18396.88869 | DC13: 18436.78407 | DD13: 17066.196 | DE13: 18259.94086 | DF13: 18770.5871 | DG13: 17829.67554 | DH13: 17868.72211 | DI13: 18067.33775 | DJ13: 18972.68687 | DK13: 17173.91748 | DL13: 18370.82248 | DM13: 17839.04279 | DN13: 17310.50635 | DO13: 17152.19822 | DP13: 18215.4973 | DQ13: 17251.25442 | DR13: 18577.3137 | DS13: 18418.90315 | DT13: 18819.64748 | DU13: 16891.03126 | DV13: 18173.30447 | DW13: 18083.98278 | DX13: 18437.9367 | DY13: 18789.18952 | DZ13: 18570.86165 | EA13: 18040.91997 | EB13: 17338.94065 | EC13: 18656.1594 | ED13: 17855.71708 | EE13: 18380.90519 | EF13: 18026.13904 | EG13: 18578.18993 | EH13: 18113.89929 | EI13: 18786.76527 | EJ13: 18760.44561 | EK13: 17882.05984 | EL13: 17403.36608 | EM13: 17351.24859 | EN13: 17635.74378 | EO13: 17595.15712 | EP13: 18815.10173 | EQ13: 19211.18277 | ER13: 18330.79358 | ES13: 17420.39723 | ET13: 17920.53866 | EU13: 17903.89846 | EV13: 18436.30033 | EW13: 17440.56003 | EX13: 17353.5049 | EY13: 17313.41956 | EZ13: 18429.42474 | FA13: 17421.70369 | FB13: 17999.87967 | FC13: 17860.03753 | FD13: 17672.5412 | FE13: 18200.32008 | FF13: 17442.1632 | FG13: 17766.33344 | FH13: 18109.7091 | FI13: 17989.48469 | FJ13: 18628.31499 | FK13: 19074.3849 | FL13: 17932.06781 | FM13: 18441.60507 | FN13: 18625.71721 | FO13: 18544.53646 | FP13: 19810.82306 | FQ13: 17492.27756 | FR13: 18263.78117 | FS13: 19287.01423 | FT13: 18097.65894 | FU13: 17007.64778 | FV13: 17272.03518 | FW13: 18242.57319 | FX13: 17877.93035 | FY13: 18179.27795 | FZ13: 18137.25633 | GA13: 18208.00305 | GB13: 18039.58709 | GC13: 18773.86864 | GD13: 18253.88627 | GE13: 17617.73255 | GF13: 18565.70065 | GG13: 18113.41127 | GH13: 18073.01095 | GI13: 18117.69188 | GJ13: 18300.41632 | GK13: 18409.22087 | GL13: 19110.31988 | GM13: 18694.79064 | GN13: 18492.12737 | GO13: 18029.61019 | GP13: 18675.31072 | GQ13: 19698.27269 | GR13: 18591.94288 | GS13: 17864.45234 | GT13: 18459.73185 | GU13: 18373.20276 | GV13: 18545.94154 | GW13: 17756.32349 | GX13: 19074.02635 | GY13: 17882.00158 | GZ13: 18204.97493 | HA13: 18302.85938 | HB13: 18503.47302 | HC13: 17900.21598 | HD13: 18900.02685 | HE13: 18402.23395 | HF13: 17416.11529 | HG13: 18367.87662 | HH13: 18257.8975 | HI13: 17766.7906 | HJ13: 18900.24577 | HK13: 18571.99192 | HL13: 16873.98113 | HM13: 18251.29977 | HN13: 18988.56827 | HO13: 17401.96337 | HP13: 18759.14421 | HQ13: 17917.51296 | HR13: 18151.18991 | HS13: 17340.64682 | HT13: 17307.62407 | HU13: 18714.50914 | HV13: 18001.26201 | HW13: 18088.51888 | HX13: 17402.41368 | HY13: 18080.7763 | HZ13: 18482.47285 | IA13: 17813.49742 | IB13: 18178.3137 | IC13: 18791.12592 | ID13: 19113.46616 | IE13: 17891.50668 | IF13: 17811.67258 | IG13: 18916.36029 | IH13: 17110.49192 | II13: 18983.80735 | IJ13: 18004.63188 | IK13: 18706.05425 | IL13: 18217.54058 | IM13: 18593.6802 | IN13: 18330.38116 | IO13: 17934.9875 | IP13: 17816.39399 | IQ13: 18785.30279 | IR13: 17909.27379 | IS13: 18805.09624 | IT13: 18145.12005 | IU13: 18142.92986 | IV13: 18636.86421 | IW13: 18604.35315 | IX13: 17527.35053 | IY13: 18195.48955 | IZ13: 18628.17276 | JA13: 18822.32148 | JB13: 18288.67885 | JC13: 17615.41452 | JD13: 18062.33992 | JE13: 18522.26405 | JF13: 17662.10706 | JG13: 17515.31392 | JH13: 18307.83723 | JI13: 18199.24223 | JJ13: 18486.11877 | JK13: 17909.85581 | JL13: 17646.71102 | JM13: 17443.39731 | JN13: 17848.97494 | JO13: 18815.28273 | JP13: 18108.19692 | JQ13: 18838.97659 | JR13: 18651.66617 | JS13: 17452.25625 | JT13: 19307.59278 | JU13: 18647.27441 | JV13: 17956.07457 | JW13: 17422.97059 | JX13: 18017.86569 | JY13: 19194.74787 | JZ13: 18198.29172 | KA13: 17404.00482 | KB13: 18976.67251 | KC13: 19382.24014 | KD13: 18381.20982 | KE13: 18647.82011 | KF13: 18656.49098 | KG13: 17481.97604 | KH13: 17900.13891 | KI13: 19043.8649 | KJ13: 17178.51877 | KK13: 18231.79944 | KL13: 17725.34992 | KM13: 18092.88719 | KN13: 17939.22514 | KO13: 17412.39462 | KP13: 16985.31078 | KQ13: 17986.02246 | KR13: 18650.7183 | KS13: 17831.52771 | KT13: 18167.53579 | KU13: 17982.37282 | KV13: 18466.7639 | KW13: 17607.70301 | KX13: 19384.97269 | KY13: 17616.00558 | KZ13: 18083.92537 | LA13: 18059.32406 | LB13: 19381.16984 | LC13: 17634.36297 | LD13: 17734.55389 | LE13: 18257.38349 | LF13: 18115.51631 | LG13: 18184.51325 | LH13: 18204.70504 | LI13: 19183.23026 | LJ13: 17467.32911 | LK13: 17804.71724 | LL13: 18339.52918 | LM13: 17056.96594 | LN13: 18301.92422 | LO13: 19131.63358 | LP13: 20143.37824 | LQ13: 18436.72406 | LR13: 17446.29055 | LS13: 17601.08173 | LT13: 17637.75511 | LU13: 18142.66617 | LV13: 18499.077 | LW13: 17633.82536 | LX13: 18550.6841 | LY13: 18463.71415 | LZ13: 19157.24679 | MA13: 17112.94118 | MB13: 18030.79041 | MC13: 18250.19694 | MD13: 18069.17034 | ME13: 17682.49801 | MF13: 17071.63877 | MG13: 18286.58628 | MH13: 19936.57121 | MI13: 18277.19727 | MJ13: 18066.45462 | MK13: 17700.95737 | ML13: 16893.38532 | MM13: 18010.59986 | MN13: 18402.97314 | MO13: 17779.39801 | MP13: 18329.41366 | MQ13: 18810.05902 | MR13: 17466.72529 | MS13: 17807.21926 | MT13: 17348.53453 | MU13: 17848.06797 | MV13: 18868.83091 | MW13: 17967.40151 | MX13: 17885.06556 | MY13: 18979.94418 | MZ13: 17919.18612 | NA13: 17126.97798 | NB13: 19220.11608 | NC13: 18787.04627 | ND13: 19269.54012 | NE13: 17342.46403 | NF13: 17955.35294 | NG13: 18648.10563 | NH13: 18813.17612 | NI13: 17720.72541 | NJ13: 18110.73091 | NK13: 19253.47654 | NL13: 17877.65876 | NM13: 18318.11663 | NN13: 17999.50315 | NO13: 18262.51792 | NP13: 17516.66728 | NQ13: 18249.86754 | NR13: 17784.62476 | NS13: 18453.72288 | NT13: 17741.50176 | NU13: 17971.88217 | NV13: 17509.42803 | NW13: 17993.64654 | NX13: 19020.68173 | NY13: 19450.39272 | NZ13: 18405.95269 | OA13: 18120.28976 | OB13: 18623.9369 | OC13: 17378.96719 | OD13: 18359.00533 | OE13: 16910.03941 | OF13: 19551.57743 | OG13: 19122.1141 | OH13: 18382.90272 | OI13: 17433.92251 | OJ13: 17292.78739 | OK13: 18080.92129 | OL13: 16918.19049 | OM13: 18417.66366 | ON13: 18794.65477 | OO13: 18176.46056 | OP13: 17993.54117 | OQ13: 17473.38425 | OR13: 17529.88088 | OS13: 17671.45008 | OT13: 17564.20151 | OU13: 17846.07268 | OV13: 18967.514 | OW13: 18210.95668 | OX13: 17892.05479 | OY13: 17231.29934 | OZ13: 17842.22192 | PA13: 17353.09621 | PB13: 18279.92844 | PC13: 18546.4223 | PD13: 18157.93823 | PE13: 17992.30383 | PF13: 17277.48973 | PG13: 17344.56441 | PH13: 17732.40134 | PI13: 18989.47355 | PJ13: 16886.64989 | PK13: 18665.08608 | PL13: 18449.51578 | PM13: 17053.88481 | PN13: 17092.50376 | PO13: 19001.31244 | PP13: 17387.17989 | PQ13: 17137.51526 | PR13: 17551.97405 | PS13: 18090.18804 | PT13: 18045.96742 | PU13: 17708.77739 | PV13: 18995.025 | PW13: 18154.48508 | PX13: 17874.17207 | PY13: 17955.76906 | PZ13: 18144.9019 | QA13: 17344.00289 | QB13: 17206.34791 | QC13: 18785.6267 | QD13: 17430.93396 | QE13: 18724.44811 | QF13: 18478.64965 | QG13: 18135.35458 | QH13: 17608.45808 | QI13: 17843.54919 | QJ13: 18189.48916 | QK13: 18802.62285 | QL13: 19118.90795 | QM13: 19245.26363 | QN13: 18925.48281 | QO13: 18183.85152 | QP13: 17915.87162 | QQ13: 18614.44881 | QR13: 17800.09655 | QS13: 17683.16887 | QT13: 17227.77811 | QU13: 18242.18054 | QV13: 19852.83848 | QW13: 17697.43117 | QX13: 18084.94165 | QY13: 19062.44227 | QZ13: 18696.65957 | RA13: 17847.24565 | RB13: 18348.60525 | RC13: 17205.71916 | RD13: 17572.57341 | RE13: 18244.09049 | RF13: 18167.13682 | RG13: 17123.69656 | RH13: 17199.30454 | RI13: 18429.45423 | RJ13: 18315.93759 | RK13: 18738.16518 | RL13: 17832.25295 | RM13: 17935.70588 | RN13: 17348.47169 | RO13: 17853.31736 | RP13: 17626.29489 | RQ13: 19099.94917 | RR13: 17685.19773 | RS13: 18660.5106 | RT13: 18446.55526 | RU13: 18184.49386 | RV13: 18101.59217 | RW13: 17630.81195 | RX13: 18516.67473 | RY13: 17676.13812 | RZ13: 16727.17576 | SA13: 17131.20396 | SB13: 18350.37982 | SC13: 18601.99784 | SD13: 19157.35175 | SE13: 18703.23755 | SF13: 17698.50511 | SG13: 19254.02823 | SH13: 17778.68267 | SI13: 17366.25246 | SJ13: 17567.32795 | SK13: 17855.78263 | SL13: 18543.00483 | SM13: 19214.82708 | SN13: 17802.03904 | SO13: 19998.52101 | SP13: 18208.39125 | SQ13: 17569.11387 | SR13: 18930.49845 | SS13: 19181.88121 | ST13: 18015.13085 | SU13: 17377.8259 | SV13: 17683.54327 | SW13: 17555.8321 | SX13: 18526.43395 | SY13: 17895.01272 | SZ13: 18423.56955 | TA13: 17406.0089 | TB13: 17885.79104 | TC13: 18133.61286 | TD13: 18663.5496 | TE13: 18143.26628 | TF13: 17408.08195 | TG13: 17840.39079 | TH13: 18726.87262 | TI13: 18090.14785 | TJ13: 18270.212 | TK13: 17835.87687 | TL13: 18102.95804 | TM13: 17892.14532 | TN13: 18864.68496 | TO13: 17302.17627 | TP13: 18139.84284 | TQ13: 17736.90325 | TR13: 18242.0372 | TS13: 17991.17082 | TT13: 18061.10293 | TU13: 17781.72571 | TV13: 18348.47938 | TW13: 18329.16261 | TX13: 18929.31252 | TY13: 18113.75254 | TZ13: 17980.63944 | UA13: 17919.43808 | UB13: 17953.86177 | UC13: 17982.0443 | UD13: 18340.70095 | UE13: 17891.63468 | UF13: 18513.43157 | UG13: 18442.36841 | UH13: 18122.91342 | UI13: 17757.1306 | UJ13: 18828.955 | UK13: 18103.3929 | UL13: 17340.90707 | UM13: 17678.83952 | UN13: 18502.87643 | UO13: 18215.068 | UP13: 18297.19928 | UQ13: 19226.14644 | UR13: 17496.72169 | US13: 18540.56306 | UT13: 16944.21591 | UU13: 18546.73517 | UV13: 17545.57051 | UW13: 17745.5588 | UX13: 17433.46167 | UY13: 17790.77689 | UZ13: 17881.82718 | VA13: 17147.03038 | VB13: 18661.66153 | VC13: 18659.26954 | VD13: 17487.18453 | VE13: 17885.28962 | VF13: 18030.99069 | VG13: 18408.42535 | VH13: 17170.81487 | VI13: 18169.3006 | VJ13: 18802.07365 | VK13: 18006.97747 | VL13: 19412.15741 | VM13: 16744.33084 | VN13: 19410.11272 | VO13: 18344.95287 | VP13: 18679.70385 | VQ13: 18403.96662 | VR13: 16598.42305 | VS13: 18609.04738 | VT13: 17822.92764 | VU13: 17886.60011 | VV13: 18614.20171 | VW13: 18414.81279 | VX13: 17063.4063 | VY13: 17840.00123 | VZ13: 18339.02566 | WA13: 18300.13943 | WB13: 18481.99814 | WC13: 18437.20863 | WD13: 17496.39546 | WE13: 18002.55825 | WF13: 18234.67687 | WG13: 17355.15734 | WH13: 17796.3866 | WI13: 18212.59651 | WJ13: 17880.02818 | WK13: 18506.39814 | WL13: 18109.06416 | WM13: 16872.46742 | WN13: 17343.59506 | WO13: 18095.15231 | WP13: 17879.46414 | WQ13: 18311.55131 | WR13: 17136.36656 | WS13: 19263.30872 | WT13: 18849.98007 | WU13: 17876.58892 | WV13: 18710.14017 | WW13: 18031.57926 | WX13: 19381.72161 | WY13: 19884.97464 | WZ13: 19195.87899 | XA13: 18507.88583 | XB13: 17898.81576 | XC13: 18431.85445 | XD13: 16901.54162 | XE13: 19785.79855 | XF13: 18013.07693 | XG13: 18563.27106 | XH13: 18615.14045 | XI13: 18256.11398 | XJ13: 17606.09422 | XK13: 18149.8145 | XL13: 18754.27714 | XM13: 17475.9996 | XN13: 17733.49185 | XO13: 18044.00704 | XP13: 16891.60267 | XQ13: 17193.96884 | XR13: 18588.99897 | XS13: 19988.83292 | XT13: 17597.75248 | XU13: 18258.14635 | XV13: 18287.93055 | XW13: 17859.56712 | XX13: 18750.10918 | XY13: 17518.44865 | XZ13: 18760.07729 | YA13: 18694.68896 | YB13: 17824.69239 | YC13: 17598.67125 | YD13: 19118.10888 | YE13: 18373.60933 | YF13: 18801.4735 | YG13: 17052.01121 | YH13: 17869.03062 | YI13: 18231.59082 | YJ13: 17889.65538 | YK13: 19229.58501 | YL13: 19343.23707 | YM13: 19081.69525 | YN13: 17370.36119 | YO13: 18532.15071 | YP13: 18250.99296 | YQ13: 17613.39286 | YR13: 17890.01391 | YS13: 19423.15375 | YT13: 18283.43495 | YU13: 18668.55586 | YV13: 18293.41441 | YW13: 17212.77574 | YX13: 16665.08967 | YY13: 18039.88107 | YZ13: 17678.09333 | ZA13: 18465.15224 | ZB13: 17377.26762 | ZC13: 18085.06445 | ZD13: 18559.43132 | ZE13: 19562.51668 | ZF13: 18267.39688 | ZG13: 17907.36694 | ZH13: 18929.2677 | ZI13: 16786.21217 | ZJ13: 18339.58405 | ZK13: 18281.09972 | ZL13: 17610.47153 | ZM13: 18194.02309 | ZN13: 18081.66916 | ZO13: 18328.53142 | ZP13: 18031.56581 | ZQ13: 19710.34847 | ZR13: 16749.9798 | ZS13: 17352.98018 | ZT13: 17653.29142 | ZU13: 18914.25338 | ZV13: 17973.89366 | ZW13: 18356.97364 | ZX13: 19029.87359 | ZY13: 18382.09334 | ZZ13: 19535.84483 | AAA13: 18993.31151 | AAB13: 18911.72947 | AAC13: 19332.98032 | AAD13: 18934.06333 | AAE13: 18932.68136 | AAF13: 18700.61232 | AAG13: 18005.23024 | AAH13: 17760.51676 | AAI13: 18533.54787 | AAJ13: 19126.7308 | AAK13: 18452.31204 | AAL13: 18765.24066 | AAM13: 18335.62834 | AAN13: 18906.92516 | AAO13: 19206.90197 | AAP13: 18714.63065 | AAQ13: 17991.0704 | AAR13: 17888.11621 | AAS13: 17671.1836 | AAT13: 17391.11563 | AAU13: 17695.5617 | AAV13: 18107.8484 | AAW13: 18199.48363 | AAX13: 18250.97105 | AAY13: 18080.28993 | AAZ13: 18126.16739 | ABA13: 18434.41489 | ABB13: 17796.47267 | ABC13: 18636.80218 | ABD13: 17688.85795 | ABE13: 17575.64126 | ABF13: 17854.05005 | ABG13: 18371.90026 | ABH13: 18305.80815 | ABI13: 17683.59162 | ABJ13: 18611.63274 | ABK13: 17967.19108 | ABL13: 17404.41169 | ABM13: 18455.0077 | ABN13: 19128.27136 | ABO13: 17968.50963 | ABP13: 18132.56938 | ABQ13: 18795.55712 | ABR13: 18269.43123 | ABS13: 18606.93389 | ABT13: 18410.77343 | ABU13: 18447.46509 | ABV13: 18148.41061 | ABW13: 18481.62152 | ABX13: 16763.20658 | ABY13: 19032.73282 | ABZ13: 17777.70407 | ACA13: 16920.70699 | ACB13: 17902.90764 | ACC13: 18979.58975 | ACD13: 18104.47068 | ACE13: 17853.09825 | ACF13: 17753.69974 | ACG13: 17922.79748 | ACH13: 17037.977 | ACI13: 18109.43522 | ACJ13: 17713.53662 | ACK13: 16946.1678 | ACL13: 17890.75797 | ACM13: 17994.81956 | ACN13: 18282.36558 | ACO13: 17210.54003 | ACP13: 17854.74554 | ACQ13: 17634.16917 | ACR13: 17423.55285 | ACS13: 17833.16935 | ACT13: 19289.5392 | ACU13: 17032.54114 | ACV13: 18747.73008 | ACW13: 18146.60369 | ACX13: 17159.72677 | ACY13: 16487.23532 | ACZ13: 17771.88916 | ADA13: 18422.48558 | ADB13: 17643.00765 | ADC13: 18052.66669 | ADD13: 17907.57677 | ADE13: 18240.12556 | ADF13: 17587.34569 | ADG13: 18328.482 | ADH13: 18446.57068 | ADI13: 18749.52227 | ADJ13: 17598.06696 | ADK13: 18171.40466 | ADL13: 18186.73046 | ADM13: 18497.95418 | ADN13: 17606.68407 | ADO13: 18197.77709 | ADP13: 18950.80682 | ADQ13: 17193.21986 | ADR13: 18566.6581 | ADS13: 17557.54169 | ADT13: 18391.46594 | ADU13: 17771.16645 | ADV13: 18113.18162 | ADW13: 18046.7962 | ADX13: 18163.02815 | ADY13: 17909.81148 | ADZ13: 18582.0403 | AEA13: 17862.63598 | AEB13: 16977.4703 | AEC13: 17850.81224 | AED13: 19063.15954 | AEE13: 17780.83589 | AEF13: 19065.688 | AEG13: 18257.04465 | AEH13: 19146.18037 | AEI13: 18231.61048 | AEJ13: 18303.61362 | AEK13: 17939.34381 | AEL13: 18747.60745 | AEM13: 17935.50536 | AEN13: 18612.74534 | AEO13: 16498.92609 | AEP13: 18491.55015 | AEQ13: 17855.33762 | AER13: 19426.46217 | AES13: 18212.85674 | AET13: 18227.53427 | AEU13: 18313.61487 | AEV13: 18246.23795 | AEW13: 17899.61729 | AEX13: 18172.58831 | AEY13: 17585.01526 | AEZ13: 18329.06549 | AFA13: 17363.88286 | AFB13: 17877.9986 | AFC13: 18428.22036 | AFD13: 18644.6088 | AFE13: 17434.06132 | AFF13: 17049.44319 | AFG13: 18500.4109 | AFH13: 18048.01678 | AFI13: 17431.96544 | AFJ13: 17885.89944 | AFK13: 17881.86524 | AFL13: 19351.05278 | AFM13: 18487.85488 | AFN13: 17611.37114 | AFO13: 18912.88428 | AFP13: 18649.64908 | AFQ13: 17398.52919 | AFR13: 19180.07813 | AFS13: 18561.96315 | AFT13: 17621.34632 | AFU13: 18513.74772 | AFV13: 18085.04743 | AFW13: 18981.48515 | AFX13: 16153.6472 | AFY13: 18065.50627 | AFZ13: 18614.94384 | AGA13: 17617.62223 | AGB13: 17752.49115 | AGC13: 18534.58141 | AGD13: 18800.75223 | AGE13: 18290.16136 | AGF13: 18320.81315 | AGG13: 17524.82179 | AGH13: 17930.62987 | AGI13: 17956.61788 | AGJ13: 17806.27062 | AGK13: 18211.3794 | AGL13: 17600.73707 | AGM13: 18512.9026 | AGN13: 18320.06883 | AGO13: 17793.21239 | AGP13: 17451.55853 | AGQ13: 17830.33173 | AGR13: 18050.27535 | AGS13: 17976.95141 | AGT13: 18430.84972 | AGU13: 18471.12173 | AGV13: 17546.0643 | AGW13: 18612.35492 | AGX13: 18243.15096 | AGY13: 18076.01871 | AGZ13: 18557.14019 | AHA13: 16893.76353 | AHB13: 17827.42086 | AHC13: 19074.15107 | AHD13: 18022.17835 | AHE13: 18962.06674 | AHF13: 18353.77943 | AHG13: 18298.69965 | AHH13: 17595.30904 | AHI13: 17447.4526 | AHJ13: 17899.95486 | AHK13: 18461.66404 | AHL13: 18506.75449 | AHM13: 17193.51513 | AHN13: 18182.01128 | AHO13: 17844.62177 | AHP13: 18620.74963 | AHQ13: 18387.68187 | AHR13: 19139.00943 | AHS13: 17439.28999 | AHT13: 18694.98581 | AHU13: 17044.25544 | AHV13: 17217.8601 | AHW13: 17275.28602 | AHX13: 18411.52622 | AHY13: 18307.9701 | AHZ13: 18029.23905 | AIA13: 18895.40389 | AIB13: 19135.00434 | AIC13: 18688.96742 | AID13: 18544.05041 | AIE13: 17834.57656 | AIF13: 18048.38814 | AIG13: 16944.38907 | AIH13: 18487.37928 | AII13: 19319.81331 | AIJ13: 18591.34828 | AIK13: 18627.39505 | AIL13: 17194.47254 | AIM13: 18117.18555 | AIN13: 17485.53354 | AIO13: 17490.75088 | AIP13: 18680.95857 | AIQ13: 17720.63447 | AIR13: 17629.6502 | AIS13: 17706.67591 | AIT13: 17304.02963 | AIU13: 18765.17918 | AIV13: 18533.30036 | AIW13: 18202.52059 | AIX13: 18693.7032 | AIY13: 17958.90954 | AIZ13: 18217.96066 | AJA13: 18101.94071 | AJB13: 16985.74077 | AJC13: 18342.8604 | AJD13: 17522.39361 | AJE13: 18714.21367 | AJF13: 18737.91272 | AJG13: 19235.80187 | AJH13: 18516.98175 | AJI13: 18181.91219 | AJJ13: 19023.17894 | AJK13: 17802.62939 | AJL13: 17914.2953 | AJM13: 19378.12442 | AJN13: 17541.22154 | AJO13: 18205.19446 | AJP13: 18278.50604 | AJQ13: 18284.14963 | AJR13: 17686.76895 | AJS13: 18873.27512 | AJT13: 17825.00726 | AJU13: 18243.04358 | AJV13: 17835.48421 | AJW13: 18263.06745 | AJX13: 17761.94184 | AJY13: 17573.77697 | AJZ13: 18501.62041 | AKA13: 17262.24645 | AKB13: 17847.35308 | AKC13: 17528.79411 | AKD13: 18328.62601 | AKE13: 18067.00429 | AKF13: 17394.89597 | AKG13: 18095.82766 | AKH13: 18336.02749 | AKI13: 17609.98626 | AKJ13: 18422.36992 | AKK13: 17719.0035 | AKL13: 19344.88204 | AKM13: 17820.38056 | AKN13: 18917.19619 | AKO13: 17996.86317 | AKP13: 18001.40959 | AKQ13: 17373.31885 | AKR13: 17143.89912 | AKS13: 18858.55255 | AKT13: 18883.48484 | AKU13: 18065.53403 | AKV13: 17756.22521 | AKW13: 17873.8772 | AKX13: 18396.37595 | AKY13: 18500.21128 | AKZ13: 17852.95688 | ALA13: 17606.54326 | ALB13: 18285.03136 | ALC13: 17976.64838 | ALD13: 16655.77549 | ALE13: 18321.56802 | ALF13: 18131.85051 | ALG13: 18501.0821 | ALH13: 18977.36881 | ALI13: 18811.81699 | ALJ13: 17892.29233 | ALK13: 18115.38448 | ALL13: 17353.64477 | ALM13: 17625.72713 | ALN13: 18125.50233 | ALO13: 18035.1515 | ALP13: 18265.90166 | ALQ13: 18255.85714 | ALR13: 17867.39675 | ALS13: 18127.71466 | ALT13: 18799.94382 | ALU13: 18291.76832 | ALV13: 18215.70014
